Workbook

Sheet START
F11: =INDIRECT("START!I25") -> START | I11: =INDIRECT("START!K25") -> Описание методологии финмодели
I13: лист | K13: описание листа/столбца/строки/ячейки/блока ячеек
D14: =INDIRECT("Cntrl!M17") -> 0 | E14: =SUM($F14:$PL14) -> 0 | F14: =IFERROR(_xlfn.SHEET($A$1)-SUMIFS(Cntrl!O$15:O$100000,Cntrl!I$15:I$100000,$F$11),1) -> 0
A15: =ROW() -> 15 | I15: разработка финмоделей: https://mngmnt.ru/
A16: =ROW() -> 16 | H16: ФИНАНСОВАЯ МОДЕЛЬ
A17: =ROW() -> 17
A18: =ROW() -> 18
A19: =ROW() -> 19 | H19: ИНВЕСТПРОЕКТ СОЗДАНИЯ СЕТИ КОВОРКИНГОВ
A20: =ROW() -> 20
A21: =ROW() -> 21
A22: =ROW() -> 22
A23: =ROW() -> 23 | H23: Методология. Список и предназначение листов настоящей финансовой модели
A24: =ROW() -> 24
A25: =ROW() -> 25 | I25: START | K25: Описание методологии финмодели
A26: =ROW() -> 26 | I26: Cntrl | K26: Общий контроль финансовой модели
A27: =ROW() -> 27 | I27: Periods | K27: Периоды и горизонты моделирования фактических и прогнозных данных
A28: =ROW() -> 28 | I28: Lists | K28: Выпадающие списки финансовой модели
A29: =ROW() -> 29 | I29: Macro | K29: Макропоказатели внешней среды
A30: =ROW() -> 30 | I30: Items | K30: Справочники статей доходов и расходов и т.д.
A31: =ROW() -> 31 | I31: KPI | K31: Справочники ключевых показателей эффективности
... 38 more rows

Sheet Cntrl
F11: =INDIRECT("START!I26") -> Cntrl | I11: =INDIRECT("START!K26") -> Общий контроль финансовой модели
I13: лист | K13: ячейка с контролем | M13: контроль | O13: номер листа | Q13: =Lists!$U$13 -> тип листа | V13: точность
D14: =INDIRECT("Cntrl!M17") -> 0 | E14: =SUM($F14:$PL14) -> 0 | F14: =IFERROR(_xlfn.SHEET($A$1)-SUMIFS(Cntrl!O$15:O$100000,Cntrl!I$15:I$100000,$F$11),1) -> 0 | G14: =SUM(G$15:G$100000) -> 0 | S14: =SUM(S$15:S$100000) -> 0
A15: =ROW() -> 15 | I15: разработка финмоделей: https://mngmnt.ru/
A16: =ROW() -> 16
A17: =ROW() -> 17 | G17: =IF($R17="^",IF(COUNTIF(Lists!$13:$13,H17)=1,0,1),0) -> 0 | H17: Общий контроль | M17: =SUM(M$18:M$100000) -> 0
A18: =ROW() -> 18
A19: =ROW() -> 19 | G19: =IF($R19="^",IF(COUNTIF(Lists!$13:$13,H19)=1,0,1),0) -> 0 | H19: =Lists!$U$13 -> тип листа | I19: =START!I25 -> START | K19: E14 | M19: =IFERROR(INDIRECT($I19&"!"&$K19),1) -> 0 | O19: =_xlfn.SHEET(INDIRECT($I19&"!"&$K19)) -> 1 | P19: * | Q19: технический | R19: ^ | S19: =IF(G19<>0,1,IF(OR($Q19="",$Q19=0),0,IF($R19="^",IF(COUNTIF(INDIRECT(INDEX(Lists!$15:$15,SUMIFS(Lists!$1:$1,Lists!$13:$13,$H19))),$Q19)=1,0,1),0))) -> 0 | U19: * | V19: 0
A20: =ROW() -> 20 | G20: =IF($R20="^",IF(COUNTIF(Lists!$13:$13,H20)=1,0,1),0) -> 0 | H20: =Lists!$U$13 -> тип листа | I20: =START!I26 -> Cntrl | K20: E14 | M20: 0 | O20: 2 | P20: * | Q20: технический | R20: ^ | S20: =IF(G20<>0,1,IF(OR($Q20="",$Q20=0),0,IF($R20="^",IF(COUNTIF(INDIRECT(INDEX(Lists!$15:$15,SUMIFS(Lists!$1:$1,Lists!$13:$13,$H20))),$Q20)=1,0,1),0))) -> 0 | U20: * | V20: 0
A21: =ROW() -> 21 | G21: =IF($R21="^",IF(COUNTIF(Lists!$13:$13,H21)=1,0,1),0) -> 0 | H21: =Lists!$U$13 -> тип листа | I21: =START!I27 -> Periods | K21: E14 | M21: 0 | O21: 3 | P21: * | Q21: расчетный | R21: ^ | S21: =IF(G21<>0,1,IF(OR($Q21="",$Q21=0),0,IF($R21="^",IF(COUNTIF(INDIRECT(INDEX(Lists!$15:$15,SUMIFS(Lists!$1:$1,Lists!$13:$13,$H21))),$Q21)=1,0,1),0))) -> 0 | U21: * | V21: 0
A22: =ROW() -> 22 | G22: =IF($R22="^",IF(COUNTIF(Lists!$13:$13,H22)=1,0,1),0) -> 0 | H22: =Lists!$U$13 -> тип листа | I22: =START!I28 -> Lists | K22: E14 | M22: 0 | O22: 4 | P22: * | Q22: технический | R22: ^ | S22: =IF(G22<>0,1,IF(OR($Q22="",$Q22=0),0,IF($R22="^",IF(COUNTIF(INDIRECT(INDEX(Lists!$15:$15,SUMIFS(Lists!$1:$1,Lists!$13:$13,$H22))),$Q22)=1,0,1),0))) -> 0 | U22: * | V22: 0
A23: =ROW() -> 23 | G23: =IF($R23="^",IF(COUNTIF(Lists!$13:$13,H23)=1,0,1),0) -> 0 | H23: =Lists!$U$13 -> тип листа | I23: =START!I29 -> Macro | K23: E14 | M23: 0 | O23: 5 | P23: * | Q23: расчетный | R23: ^ | S23: =IF(G23<>0,1,IF(OR($Q23="",$Q23=0),0,IF($R23="^",IF(COUNTIF(INDIRECT(INDEX(Lists!$15:$15,SUMIFS(Lists!$1:$1,Lists!$13:$13,$H23))),$Q23)=1,0,1),0))) -> 0 | U23: * | V23: 0
A24: =ROW() -> 24 | G24: =IF($R24="^",IF(COUNTIF(Lists!$13:$13,H24)=1,0,1),0) -> 0 | H24: =Lists!$U$13 -> тип листа | I24: =START!I30 -> Items | K24: E14 | M24: 0 | O24: 6 | P24: * | Q24: технический | R24: ^ | S24: =IF(G24<>0,1,IF(OR($Q24="",$Q24=0),0,IF($R24="^",IF(COUNTIF(INDIRECT(INDEX(Lists!$15:$15,SUMIFS(Lists!$1:$1,Lists!$13:$13,$H24))),$Q24)=1,0,1),0))) -> 0 | U24: * | V24: 0
A25: =ROW() -> 25 | G25: =IF($R25="^",IF(COUNTIF(Lists!$13:$13,H25)=1,0,1),0) -> 0 | H25: =Lists!$U$13 -> тип листа | I25: =START!I31 -> KPI | K25: E14 | M25: 0 | O25: 7 | P25: * | Q25: технический | R25: ^ | S25: =IF(G25<>0,1,IF(OR($Q25="",$Q25=0),0,IF($R25="^",IF(COUNTIF(INDIRECT(INDEX(Lists!$15:$15,SUMIFS(Lists!$1:$1,Lists!$13:$13,$H25))),$Q25)=1,0,1),0))) -> 0 | U25: * | V25: 0
A26: =ROW() -> 26 | G26: =IF($R26="^",IF(COUNTIF(Lists!$13:$13,H26)=1,0,1),0) -> 0 | H26: =Lists!$U$13 -> тип листа | I26: =START!I32 -> Mrkting | K26: E14 | M26: =IFERROR(INDIRECT($I26&"!"&$K26),1) -> 0 | O26: =_xlfn.SHEET(INDIRECT($I26&"!"&$K26)) -> 8 | P26: * | Q26: расчетный | R26: ^ | S26: =IF(G26<>0,1,IF(OR($Q26="",$Q26=0),0,IF($R26="^",IF(COUNTIF(INDIRECT(INDEX(Lists!$15:$15,SUMIFS(Lists!$1:$1,Lists!$13:$13,$H26))),$Q26)=1,0,1),0))) -> 0 | U26: * | V26: 0.001
A27: =ROW() -> 27 | G27: =IF($R27="^",IF(COUNTIF(Lists!$13:$13,H27)=1,0,1),0) -> 0 | H27: =Lists!$U$13 -> тип листа | I27: =START!I33 -> CapEx | K27: E14 | M27: 0 | O27: 9 | P27: * | Q27: расчетный | R27: ^ | S27: =IF(G27<>0,1,IF(OR($Q27="",$Q27=0),0,IF($R27="^",IF(COUNTIF(INDIRECT(INDEX(Lists!$15:$15,SUMIFS(Lists!$1:$1,Lists!$13:$13,$H27))),$Q27)=1,0,1),0))) -> 0 | U27: * | V27: 1e-05
A28: =ROW() -> 28 | G28: =IF($R28="^",IF(COUNTIF(Lists!$13:$13,H28)=1,0,1),0) -> 0 | H28: =Lists!$U$13 -> тип листа | I28: =START!I34 -> Sales | K28: E14 | M28: 0 | O28: 10 | P28: * | Q28: расчетный | R28: ^ | S28: =IF(G28<>0,1,IF(OR($Q28="",$Q28=0),0,IF($R28="^",IF(COUNTIF(INDIRECT(INDEX(Lists!$15:$15,SUMIFS(Lists!$1:$1,Lists!$13:$13,$H28))),$Q28)=1,0,1),0))) -> 0 | U28: * | V28: 1e-05
A29: =ROW() -> 29 | G29: =IF($R29="^",IF(COUNTIF(Lists!$13:$13,H29)=1,0,1),0) -> 0 | H29: =Lists!$U$13 -> тип листа | I29: =START!I35 -> Prdction | K29: E14 | M29: 0 | O29: 11 | P29: * | Q29: расчетный | R29: ^ | S29: =IF(G29<>0,1,IF(OR($Q29="",$Q29=0),0,IF($R29="^",IF(COUNTIF(INDIRECT(INDEX(Lists!$15:$15,SUMIFS(Lists!$1:$1,Lists!$13:$13,$H29))),$Q29)=1,0,1),0))) -> 0 | U29: * | V29: 1e-05
A30: =ROW() -> 30 | G30: =IF($R30="^",IF(COUNTIF(Lists!$13:$13,H30)=1,0,1),0) -> 0 | H30: =Lists!$U$13 -> тип листа | I30: =START!I36 -> HR | K30: E14 | M30: 0 | O30: 12 | P30: * | Q30: расчетный | R30: ^ | S30: =IF(G30<>0,1,IF(OR($Q30="",$Q30=0),0,IF($R30="^",IF(COUNTIF(INDIRECT(INDEX(Lists!$15:$15,SUMIFS(Lists!$1:$1,Lists!$13:$13,$H30))),$Q30)=1,0,1),0))) -> 0 | U30: * | V30: 1e-05
A31: =ROW() -> 31 | G31: =IF($R31="^",IF(COUNTIF(Lists!$13:$13,H31)=1,0,1),0) -> 0 | H31: =Lists!$U$13 -> тип листа | I31: =START!I37 -> Exp | K31: E14 | M31: 0 | O31: 13 | P31: * | Q31: расчетный | R31: ^ | S31: =IF(G31<>0,1,IF(OR($Q31="",$Q31=0),0,IF($R31="^",IF(COUNTIF(INDIRECT(INDEX(Lists!$15:$15,SUMIFS(Lists!$1:$1,Lists!$13:$13,$H31))),$Q31)=1,0,1),0))) -> 0 | U31: * | V31: 1e-05
... 38 more rows

Sheet Periods
Y1: =START!$K$130 -> номер столбца: | AA1: =COLUMN() -> 27 | AB1: =COLUMN() -> 28 | AC1: =COLUMN() -> 29 | AD1: =COLUMN() -> 30 | AE1: =COLUMN() -> 31 | AF1: =COLUMN() -> 32 | AG1: =COLUMN() -> 33 | AH1: =COLUMN() -> 34 | AI1: =COLUMN() -> 35 | AJ1: =COLUMN() -> 36 | AK1: =COLUMN() -> 37 | AL1: =COLUMN() -> 38 | AM1: =COLUMN() -> 39 | AN1: =COLUMN() -> 40 | AO1: =COLUMN() -> 41 | AP1: =COLUMN() -> 42 | AQ1: =COLUMN() -> 43 | AR1: =COLUMN() -> 44 | AS1: =COLUMN() -> 45 | AT1: =COLUMN() -> 46 | AU1: =COLUMN() -> 47 | AV1: =COLUMN() -> 48 | AW1: =COLUMN() -> 49 | AX1: =COLUMN() -> 50 | AY1: =COLUMN() -> 51 | AZ1: =COLUMN() -> 52 | BA1: =COLUMN() -> 53 | BB1: =COLUMN() -> 54 | BC1: =COLUMN() -> 55 | BD1: =COLUMN() -> 56 | BE1: =COLUMN() -> 57 | BF1: =COLUMN() -> 58 | BG1: =COLUMN() -> 59 | BH1: =COLUMN() -> 60 | BI1: =COLUMN() -> 61 | BJ1: =COLUMN() -> 62 | BK1: =COLUMN() -> 63 | BL1: =COLUMN() -> 64 | BM1: =COLUMN() -> 65 | BN1: =COLUMN() -> 66 | BO1: =COLUMN() -> 67 | BP1: =COLUMN() -> 68 | BQ1: =COLUMN() -> 69 | BR1: =COLUMN() -> 70 | BS1: =COLUMN() -> 71 | BT1: =COLUMN() -> 72 | BU1: =COLUMN() -> 73 | BV1: =COLUMN() -> 74 | BW1: =COLUMN() -> 75 | BX1: =COLUMN() -> 76 | BY1: =COLUMN() -> 77 | BZ1: =COLUMN() -> 78 | CA1: =COLUMN() -> 79 | CB1: =COLUMN() -> 80 | CC1: =COLUMN() -> 81 | CD1: =COLUMN() -> 82 | CE1: =COLUMN() -> 83 | CF1: =COLUMN() -> 84 | CG1: =COLUMN() -> 85 | CH1: =COLUMN() -> 86 | CI1: =COLUMN() -> 87 | CJ1: =COLUMN() -> 88 | CK1: =COLUMN() -> 89 | CL1: =COLUMN() -> 90 | CM1: =COLUMN() -> 91 | CN1: =COLUMN() -> 92 | CO1: =COLUMN() -> 93 | CP1: =COLUMN() -> 94 | CQ1: =COLUMN() -> 95 | CR1: =COLUMN() -> 96 | CS1: =COLUMN() -> 97 | CT1: =COLUMN() -> 98 | CU1: =COLUMN() -> 99 | CV1: =COLUMN() -> 100 | CW1: =COLUMN() -> 101 | CX1: =COLUMN() -> 102 | CY1: =COLUMN() -> 103 | CZ1: =COLUMN() -> 104 | DA1: =COLUMN() -> 105 | DB1: =COLUMN() -> 106 | DC1: =COLUMN() -> 107 | DD1: =COLUMN() -> 108 | DE1: =COLUMN() -> 109 | DF1: =COLUMN() -> 110 | DG1: =COLUMN() -> 111 | DH1: =COLUMN() -> 112 | DI1: =COLUMN() -> 113 | DJ1: =COLUMN() -> 114 | DK1: =COLUMN() -> 115 | DL1: =COLUMN() -> 116 | DM1: =COLUMN() -> 117 | DN1: =COLUMN() -> 118 | DO1: =COLUMN() -> 119 | DP1: =COLUMN() -> 120 | DQ1: =COLUMN() -> 121 | DR1: =COLUMN() -> 122 | DS1: =COLUMN() -> 123 | DT1: =COLUMN() -> 124 | DU1: =COLUMN() -> 125 | DV1: =COLUMN() -> 126 | DW1: =COLUMN() -> 127 | DX1: =COLUMN() -> 128 | DY1: =COLUMN() -> 129 | DZ1: =COLUMN() -> 130 | EA1: =COLUMN() -> 131 | EB1: =COLUMN() -> 132 | EC1: =COLUMN() -> 133 | ED1: =COLUMN() -> 134 | EE1: =COLUMN() -> 135 | EF1: =COLUMN() -> 136 | EG1: =COLUMN() -> 137 | EH1: =COLUMN() -> 138 | EI1: =COLUMN() -> 139 | EJ1: =COLUMN() -> 140 | EK1: =COLUMN() -> 141 | EL1: =COLUMN() -> 142 | EM1: =COLUMN() -> 143 | EN1: =COLUMN() -> 144 | EO1: =COLUMN() -> 145 | EP1: =COLUMN() -> 146 | EQ1: =COLUMN() -> 147 | ER1: =COLUMN() -> 148 | ES1: =COLUMN() -> 149 | ET1: =COLUMN() -> 150 | EU1: =COLUMN() -> 151 | EV1: =COLUMN() -> 152 | EW1: =COLUMN() -> 153 | EX1: =COLUMN() -> 154 | EY1: =COLUMN() -> 155 | EZ1: =COLUMN() -> 156 | FA1: =COLUMN() -> 157 | FB1: =COLUMN() -> 158 | FC1: =COLUMN() -> 159
Y2: =START!$K$131 -> номер периода модели: | AA2: =MAX($Z2:Z2)+1 -> 1 | AB2: =MAX($Z2:AA2)+1 -> 2 | AC2: =MAX($Z2:AB2)+1 -> 3 | AD2: =MAX($Z2:AC2)+1 -> 4 | AE2: =MAX($Z2:AD2)+1 -> 5 | AF2: =MAX($Z2:AE2)+1 -> 6 | AG2: =MAX($Z2:AF2)+1 -> 7 | AH2: =MAX($Z2:AG2)+1 -> 8 | AI2: =MAX($Z2:AH2)+1 -> 9 | AJ2: =MAX($Z2:AI2)+1 -> 10 | AK2: =MAX($Z2:AJ2)+1 -> 11 | AL2: =MAX($Z2:AK2)+1 -> 12 | AM2: =MAX($Z2:AL2)+1 -> 13 | AN2: =MAX($Z2:AM2)+1 -> 14 | AO2: =MAX($Z2:AN2)+1 -> 15 | AP2: =MAX($Z2:AO2)+1 -> 16 | AQ2: =MAX($Z2:AP2)+1 -> 17 | AR2: =MAX($Z2:AQ2)+1 -> 18 | AS2: =MAX($Z2:AR2)+1 -> 19 | AT2: =MAX($Z2:AS2)+1 -> 20 | AU2: =MAX($Z2:AT2)+1 -> 21 | AV2: =MAX($Z2:AU2)+1 -> 22 | AW2: =MAX($Z2:AV2)+1 -> 23 | AX2: =MAX($Z2:AW2)+1 -> 24 | AY2: =MAX($Z2:AX2)+1 -> 25 | AZ2: =MAX($Z2:AY2)+1 -> 26 | BA2: =MAX($Z2:AZ2)+1 -> 27 | BB2: =MAX($Z2:BA2)+1 -> 28 | BC2: =MAX($Z2:BB2)+1 -> 29 | BD2: =MAX($Z2:BC2)+1 -> 30 | BE2: =MAX($Z2:BD2)+1 -> 31 | BF2: =MAX($Z2:BE2)+1 -> 32 | BG2: =MAX($Z2:BF2)+1 -> 33 | BH2: =MAX($Z2:BG2)+1 -> 34 | BI2: =MAX($Z2:BH2)+1 -> 35 | BJ2: =MAX($Z2:BI2)+1 -> 36 | BK2: =MAX($Z2:BJ2)+1 -> 37 | BL2: =MAX($Z2:BK2)+1 -> 38 | BM2: =MAX($Z2:BL2)+1 -> 39 | BN2: =MAX($Z2:BM2)+1 -> 40 | BO2: =MAX($Z2:BN2)+1 -> 41 | BP2: =MAX($Z2:BO2)+1 -> 42 | BQ2: =MAX($Z2:BP2)+1 -> 43 | BR2: =MAX($Z2:BQ2)+1 -> 44 | BS2: =MAX($Z2:BR2)+1 -> 45 | BT2: =MAX($Z2:BS2)+1 -> 46 | BU2: =MAX($Z2:BT2)+1 -> 47 | BV2: =MAX($Z2:BU2)+1 -> 48 | BW2: =MAX($Z2:BV2)+1 -> 49 | BX2: =MAX($Z2:BW2)+1 -> 50 | BY2: =MAX($Z2:BX2)+1 -> 51 | BZ2: =MAX($Z2:BY2)+1 -> 52 | CA2: =MAX($Z2:BZ2)+1 -> 53 | CB2: =MAX($Z2:CA2)+1 -> 54 | CC2: =MAX($Z2:CB2)+1 -> 55 | CD2: =MAX($Z2:CC2)+1 -> 56 | CE2: =MAX($Z2:CD2)+1 -> 57 | CF2: =MAX($Z2:CE2)+1 -> 58 | CG2: =MAX($Z2:CF2)+1 -> 59 | CH2: =MAX($Z2:CG2)+1 -> 60 | CI2: =MAX($Z2:CH2)+1 -> 61 | CJ2: =MAX($Z2:CI2)+1 -> 62 | CK2: =MAX($Z2:CJ2)+1 -> 63 | CL2: =MAX($Z2:CK2)+1 -> 64 | CM2: =MAX($Z2:CL2)+1 -> 65 | CN2: =MAX($Z2:CM2)+1 -> 66 | CO2: =MAX($Z2:CN2)+1 -> 67 | CP2: =MAX($Z2:CO2)+1 -> 68 | CQ2: =MAX($Z2:CP2)+1 -> 69 | CR2: =MAX($Z2:CQ2)+1 -> 70 | CS2: =MAX($Z2:CR2)+1 -> 71 | CT2: =MAX($Z2:CS2)+1 -> 72 | CU2: =MAX($Z2:CT2)+1 -> 73 | CV2: =MAX($Z2:CU2)+1 -> 74 | CW2: =MAX($Z2:CV2)+1 -> 75 | CX2: =MAX($Z2:CW2)+1 -> 76 | CY2: =MAX($Z2:CX2)+1 -> 77 | CZ2: =MAX($Z2:CY2)+1 -> 78 | DA2: =MAX($Z2:CZ2)+1 -> 79 | DB2: =MAX($Z2:DA2)+1 -> 80 | DC2: =MAX($Z2:DB2)+1 -> 81 | DD2: =MAX($Z2:DC2)+1 -> 82 | DE2: =MAX($Z2:DD2)+1 -> 83 | DF2: =MAX($Z2:DE2)+1 -> 84 | DG2: =MAX($Z2:DF2)+1 -> 85 | DH2: =MAX($Z2:DG2)+1 -> 86 | DI2: =MAX($Z2:DH2)+1 -> 87 | DJ2: =MAX($Z2:DI2)+1 -> 88 | DK2: =MAX($Z2:DJ2)+1 -> 89 | DL2: =MAX($Z2:DK2)+1 -> 90 | DM2: =MAX($Z2:DL2)+1 -> 91 | DN2: =MAX($Z2:DM2)+1 -> 92 | DO2: =MAX($Z2:DN2)+1 -> 93 | DP2: =MAX($Z2:DO2)+1 -> 94 | DQ2: =MAX($Z2:DP2)+1 -> 95 | DR2: =MAX($Z2:DQ2)+1 -> 96 | DS2: =MAX($Z2:DR2)+1 -> 97 | DT2: =MAX($Z2:DS2)+1 -> 98 | DU2: =MAX($Z2:DT2)+1 -> 99 | DV2: =MAX($Z2:DU2)+1 -> 100 | DW2: =MAX($Z2:DV2)+1 -> 101 | DX2: =MAX($Z2:DW2)+1 -> 102 | DY2: =MAX($Z2:DX2)+1 -> 103 | DZ2: =MAX($Z2:DY2)+1 -> 104 | EA2: =MAX($Z2:DZ2)+1 -> 105 | EB2: =MAX($Z2:EA2)+1 -> 106 | EC2: =MAX($Z2:EB2)+1 -> 107 | ED2: =MAX($Z2:EC2)+1 -> 108 | EE2: =MAX($Z2:ED2)+1 -> 109 | EF2: =MAX($Z2:EE2)+1 -> 110 | EG2: =MAX($Z2:EF2)+1 -> 111 | EH2: =MAX($Z2:EG2)+1 -> 112 | EI2: =MAX($Z2:EH2)+1 -> 113 | EJ2: =MAX($Z2:EI2)+1 -> 114 | EK2: =MAX($Z2:EJ2)+1 -> 115 | EL2: =MAX($Z2:EK2)+1 -> 116 | EM2: =MAX($Z2:EL2)+1 -> 117 | EN2: =MAX($Z2:EM2)+1 -> 118 | EO2: =MAX($Z2:EN2)+1 -> 119 | EP2: =MAX($Z2:EO2)+1 -> 120 | EQ2: =MAX($Z2:EP2)+1 -> 121 | ER2: =MAX($Z2:EQ2)+1 -> 122 | ES2: =MAX($Z2:ER2)+1 -> 123 | ET2: =MAX($Z2:ES2)+1 -> 124 | EU2: =MAX($Z2:ET2)+1 -> 125 | EV2: =MAX($Z2:EU2)+1 -> 126 | EW2: =MAX($Z2:EV2)+1 -> 127 | EX2: =MAX($Z2:EW2)+1 -> 128 | EY2: =MAX($Z2:EX2)+1 -> 129 | EZ2: =MAX($Z2:EY2)+1 -> 130 | FA2: =MAX($Z2:EZ2)+1 -> 131 | FB2: =MAX($Z2:FA2)+1 -> 132 | FC2: =MAX($Z2:FB2)+1 -> 133
Y3: =START!$K$132 -> номер факт-периода: | AA3: =IF($Q$12=Lists!$U$16,IF(Periods!AA28="","",MAX($Z3:Z3)+1),"") ->  | AB3: =IF($Q$12=Lists!$U$16,IF(Periods!AB28="","",MAX($Z3:AA3)+1),"") ->  | AC3: =IF($Q$12=Lists!$U$16,IF(Periods!AC28="","",MAX($Z3:AB3)+1),"") ->  | AD3: =IF($Q$12=Lists!$U$16,IF(Periods!AD28="","",MAX($Z3:AC3)+1),"") ->  | AE3: =IF($Q$12=Lists!$U$16,IF(Periods!AE28="","",MAX($Z3:AD3)+1),"") ->  | AF3: =IF($Q$12=Lists!$U$16,IF(Periods!AF28="","",MAX($Z3:AE3)+1),"") ->  | AG3: =IF($Q$12=Lists!$U$16,IF(Periods!AG28="","",MAX($Z3:AF3)+1),"") ->  | AH3: =IF($Q$12=Lists!$U$16,IF(Periods!AH28="","",MAX($Z3:AG3)+1),"") ->  | AI3: =IF($Q$12=Lists!$U$16,IF(Periods!AI28="","",MAX($Z3:AH3)+1),"") ->  | AJ3: =IF($Q$12=Lists!$U$16,IF(Periods!AJ28="","",MAX($Z3:AI3)+1),"") ->  | AK3: =IF($Q$12=Lists!$U$16,IF(Periods!AK28="","",MAX($Z3:AJ3)+1),"") ->  | AL3: =IF($Q$12=Lists!$U$16,IF(Periods!AL28="","",MAX($Z3:AK3)+1),"") ->  | AM3: =IF($Q$12=Lists!$U$16,IF(Periods!AM28="","",MAX($Z3:AL3)+1),"") ->  | AN3: =IF($Q$12=Lists!$U$16,IF(Periods!AN28="","",MAX($Z3:AM3)+1),"") ->  | AO3: =IF($Q$12=Lists!$U$16,IF(Periods!AO28="","",MAX($Z3:AN3)+1),"") ->  | AP3: =IF($Q$12=Lists!$U$16,IF(Periods!AP28="","",MAX($Z3:AO3)+1),"") ->  | AQ3: =IF($Q$12=Lists!$U$16,IF(Periods!AQ28="","",MAX($Z3:AP3)+1),"") ->  | AR3: =IF($Q$12=Lists!$U$16,IF(Periods!AR28="","",MAX($Z3:AQ3)+1),"") ->  | AS3: =IF($Q$12=Lists!$U$16,IF(Periods!AS28="","",MAX($Z3:AR3)+1),"") ->  | AT3: =IF($Q$12=Lists!$U$16,IF(Periods!AT28="","",MAX($Z3:AS3)+1),"") ->  | AU3: =IF($Q$12=Lists!$U$16,IF(Periods!AU28="","",MAX($Z3:AT3)+1),"") ->  | AV3: =IF($Q$12=Lists!$U$16,IF(Periods!AV28="","",MAX($Z3:AU3)+1),"") ->  | AW3: =IF($Q$12=Lists!$U$16,IF(Periods!AW28="","",MAX($Z3:AV3)+1),"") ->  | AX3: =IF($Q$12=Lists!$U$16,IF(Periods!AX28="","",MAX($Z3:AW3)+1),"") ->  | AY3: =IF($Q$12=Lists!$U$16,IF(Periods!AY28="","",MAX($Z3:AX3)+1),"") ->  | AZ3: =IF($Q$12=Lists!$U$16,IF(Periods!AZ28="","",MAX($Z3:AY3)+1),"") ->  | BA3: =IF($Q$12=Lists!$U$16,IF(Periods!BA28="","",MAX($Z3:AZ3)+1),"") ->  | BB3: =IF($Q$12=Lists!$U$16,IF(Periods!BB28="","",MAX($Z3:BA3)+1),"") ->  | BC3: =IF($Q$12=Lists!$U$16,IF(Periods!BC28="","",MAX($Z3:BB3)+1),"") ->  | BD3: =IF($Q$12=Lists!$U$16,IF(Periods!BD28="","",MAX($Z3:BC3)+1),"") ->  | BE3: =IF($Q$12=Lists!$U$16,IF(Periods!BE28="","",MAX($Z3:BD3)+1),"") ->  | BF3: =IF($Q$12=Lists!$U$16,IF(Periods!BF28="","",MAX($Z3:BE3)+1),"") ->  | BG3: =IF($Q$12=Lists!$U$16,IF(Periods!BG28="","",MAX($Z3:BF3)+1),"") ->  | BH3: =IF($Q$12=Lists!$U$16,IF(Periods!BH28="","",MAX($Z3:BG3)+1),"") ->  | BI3: =IF($Q$12=Lists!$U$16,IF(Periods!BI28="","",MAX($Z3:BH3)+1),"") ->  | BJ3: =IF($Q$12=Lists!$U$16,IF(Periods!BJ28="","",MAX($Z3:BI3)+1),"") ->  | BK3: =IF($Q$12=Lists!$U$16,IF(Periods!BK28="","",MAX($Z3:BJ3)+1),"") ->  | BL3: =IF($Q$12=Lists!$U$16,IF(Periods!BL28="","",MAX($Z3:BK3)+1),"") ->  | BM3: =IF($Q$12=Lists!$U$16,IF(Periods!BM28="","",MAX($Z3:BL3)+1),"") ->  | BN3: =IF($Q$12=Lists!$U$16,IF(Periods!BN28="","",MAX($Z3:BM3)+1),"") ->  | BO3: =IF($Q$12=Lists!$U$16,IF(Periods!BO28="","",MAX($Z3:BN3)+1),"") ->  | BP3: =IF($Q$12=Lists!$U$16,IF(Periods!BP28="","",MAX($Z3:BO3)+1),"") ->  | BQ3: =IF($Q$12=Lists!$U$16,IF(Periods!BQ28="","",MAX($Z3:BP3)+1),"") ->  | BR3: =IF($Q$12=Lists!$U$16,IF(Periods!BR28="","",MAX($Z3:BQ3)+1),"") ->  | BS3: =IF($Q$12=Lists!$U$16,IF(Periods!BS28="","",MAX($Z3:BR3)+1),"") ->  | BT3: =IF($Q$12=Lists!$U$16,IF(Periods!BT28="","",MAX($Z3:BS3)+1),"") ->  | BU3: =IF($Q$12=Lists!$U$16,IF(Periods!BU28="","",MAX($Z3:BT3)+1),"") ->  | BV3: =IF($Q$12=Lists!$U$16,IF(Periods!BV28="","",MAX($Z3:BU3)+1),"") ->  | BW3: =IF($Q$12=Lists!$U$16,IF(Periods!BW28="","",MAX($Z3:BV3)+1),"") ->  | BX3: =IF($Q$12=Lists!$U$16,IF(Periods!BX28="","",MAX($Z3:BW3)+1),"") ->  | BY3: =IF($Q$12=Lists!$U$16,IF(Periods!BY28="","",MAX($Z3:BX3)+1),"") ->  | BZ3: =IF($Q$12=Lists!$U$16,IF(Periods!BZ28="","",MAX($Z3:BY3)+1),"") ->  | CA3: =IF($Q$12=Lists!$U$16,IF(Periods!CA28="","",MAX($Z3:BZ3)+1),"") ->  | CB3: =IF($Q$12=Lists!$U$16,IF(Periods!CB28="","",MAX($Z3:CA3)+1),"") ->  | CC3: =IF($Q$12=Lists!$U$16,IF(Periods!CC28="","",MAX($Z3:CB3)+1),"") ->  | CD3: =IF($Q$12=Lists!$U$16,IF(Periods!CD28="","",MAX($Z3:CC3)+1),"") ->  | CE3: =IF($Q$12=Lists!$U$16,IF(Periods!CE28="","",MAX($Z3:CD3)+1),"") ->  | CF3: =IF($Q$12=Lists!$U$16,IF(Periods!CF28="","",MAX($Z3:CE3)+1),"") ->  | CG3: =IF($Q$12=Lists!$U$16,IF(Periods!CG28="","",MAX($Z3:CF3)+1),"") ->  | CH3: =IF($Q$12=Lists!$U$16,IF(Periods!CH28="","",MAX($Z3:CG3)+1),"") ->  | CI3: =IF($Q$12=Lists!$U$16,IF(Periods!CI28="","",MAX($Z3:CH3)+1),"") ->  | CJ3: =IF($Q$12=Lists!$U$16,IF(Periods!CJ28="","",MAX($Z3:CI3)+1),"") ->  | CK3: =IF($Q$12=Lists!$U$16,IF(Periods!CK28="","",MAX($Z3:CJ3)+1),"") ->  | CL3: =IF($Q$12=Lists!$U$16,IF(Periods!CL28="","",MAX($Z3:CK3)+1),"") ->  | CM3: =IF($Q$12=Lists!$U$16,IF(Periods!CM28="","",MAX($Z3:CL3)+1),"") ->  | CN3: =IF($Q$12=Lists!$U$16,IF(Periods!CN28="","",MAX($Z3:CM3)+1),"") ->  | CO3: =IF($Q$12=Lists!$U$16,IF(Periods!CO28="","",MAX($Z3:CN3)+1),"") ->  | CP3: =IF($Q$12=Lists!$U$16,IF(Periods!CP28="","",MAX($Z3:CO3)+1),"") ->  | CQ3: =IF($Q$12=Lists!$U$16,IF(Periods!CQ28="","",MAX($Z3:CP3)+1),"") ->  | CR3: =IF($Q$12=Lists!$U$16,IF(Periods!CR28="","",MAX($Z3:CQ3)+1),"") ->  | CS3: =IF($Q$12=Lists!$U$16,IF(Periods!CS28="","",MAX($Z3:CR3)+1),"") ->  | CT3: =IF($Q$12=Lists!$U$16,IF(Periods!CT28="","",MAX($Z3:CS3)+1),"") ->  | CU3: =IF($Q$12=Lists!$U$16,IF(Periods!CU28="","",MAX($Z3:CT3)+1),"") ->  | CV3: =IF($Q$12=Lists!$U$16,IF(Periods!CV28="","",MAX($Z3:CU3)+1),"") ->  | CW3: =IF($Q$12=Lists!$U$16,IF(Periods!CW28="","",MAX($Z3:CV3)+1),"") ->  | CX3: =IF($Q$12=Lists!$U$16,IF(Periods!CX28="","",MAX($Z3:CW3)+1),"") ->  | CY3: =IF($Q$12=Lists!$U$16,IF(Periods!CY28="","",MAX($Z3:CX3)+1),"") ->  | CZ3: =IF($Q$12=Lists!$U$16,IF(Periods!CZ28="","",MAX($Z3:CY3)+1),"") ->  | DA3: =IF($Q$12=Lists!$U$16,IF(Periods!DA28="","",MAX($Z3:CZ3)+1),"") ->  | DB3: =IF($Q$12=Lists!$U$16,IF(Periods!DB28="","",MAX($Z3:DA3)+1),"") ->  | DC3: =IF($Q$12=Lists!$U$16,IF(Periods!DC28="","",MAX($Z3:DB3)+1),"") ->  | DD3: =IF($Q$12=Lists!$U$16,IF(Periods!DD28="","",MAX($Z3:DC3)+1),"") ->  | DE3: =IF($Q$12=Lists!$U$16,IF(Periods!DE28="","",MAX($Z3:DD3)+1),"") ->  | DF3: =IF($Q$12=Lists!$U$16,IF(Periods!DF28="","",MAX($Z3:DE3)+1),"") ->  | DG3: =IF($Q$12=Lists!$U$16,IF(Periods!DG28="","",MAX($Z3:DF3)+1),"") ->  | DH3: =IF($Q$12=Lists!$U$16,IF(Periods!DH28="","",MAX($Z3:DG3)+1),"") ->  | DI3: =IF($Q$12=Lists!$U$16,IF(Periods!DI28="","",MAX($Z3:DH3)+1),"") ->  | DJ3: =IF($Q$12=Lists!$U$16,IF(Periods!DJ28="","",MAX($Z3:DI3)+1),"") ->  | DK3: =IF($Q$12=Lists!$U$16,IF(Periods!DK28="","",MAX($Z3:DJ3)+1),"") ->  | DL3: =IF($Q$12=Lists!$U$16,IF(Periods!DL28="","",MAX($Z3:DK3)+1),"") ->  | DM3: =IF($Q$12=Lists!$U$16,IF(Periods!DM28="","",MAX($Z3:DL3)+1),"") ->  | DN3: =IF($Q$12=Lists!$U$16,IF(Periods!DN28="","",MAX($Z3:DM3)+1),"") ->  | DO3: =IF($Q$12=Lists!$U$16,IF(Periods!DO28="","",MAX($Z3:DN3)+1),"") ->  | DP3: =IF($Q$12=Lists!$U$16,IF(Periods!DP28="","",MAX($Z3:DO3)+1),"") ->  | DQ3: =IF($Q$12=Lists!$U$16,IF(Periods!DQ28="","",MAX($Z3:DP3)+1),"") ->  | DR3: =IF($Q$12=Lists!$U$16,IF(Periods!DR28="","",MAX($Z3:DQ3)+1),"") ->  | DS3: =IF($Q$12=Lists!$U$16,IF(Periods!DS28="","",MAX($Z3:DR3)+1),"") ->  | DT3: =IF($Q$12=Lists!$U$16,IF(Periods!DT28="","",MAX($Z3:DS3)+1),"") ->  | DU3: =IF($Q$12=Lists!$U$16,IF(Periods!DU28="","",MAX($Z3:DT3)+1),"") ->  | DV3: =IF($Q$12=Lists!$U$16,IF(Periods!DV28="","",MAX($Z3:DU3)+1),"") ->  | DW3: =IF($Q$12=Lists!$U$16,IF(Periods!DW28="","",MAX($Z3:DV3)+1),"") ->  | DX3: =IF($Q$12=Lists!$U$16,IF(Periods!DX28="","",MAX($Z3:DW3)+1),"") ->  | DY3: =IF($Q$12=Lists!$U$16,IF(Periods!DY28="","",MAX($Z3:DX3)+1),"") ->  | DZ3: =IF($Q$12=Lists!$U$16,IF(Periods!DZ28="","",MAX($Z3:DY3)+1),"") ->  | EA3: =IF($Q$12=Lists!$U$16,IF(Periods!EA28="","",MAX($Z3:DZ3)+1),"") ->  | EB3: =IF($Q$12=Lists!$U$16,IF(Periods!EB28="","",MAX($Z3:EA3)+1),"") ->  | EC3: =IF($Q$12=Lists!$U$16,IF(Periods!EC28="","",MAX($Z3:EB3)+1),"") ->  | ED3: =IF($Q$12=Lists!$U$16,IF(Periods!ED28="","",MAX($Z3:EC3)+1),"") ->  | EE3: =IF($Q$12=Lists!$U$16,IF(Periods!EE28="","",MAX($Z3:ED3)+1),"") ->  | EF3: =IF($Q$12=Lists!$U$16,IF(Periods!EF28="","",MAX($Z3:EE3)+1),"") ->  | EG3: =IF($Q$12=Lists!$U$16,IF(Periods!EG28="","",MAX($Z3:EF3)+1),"") ->  | EH3: =IF($Q$12=Lists!$U$16,IF(Periods!EH28="","",MAX($Z3:EG3)+1),"") ->  | EI3: =IF($Q$12=Lists!$U$16,IF(Periods!EI28="","",MAX($Z3:EH3)+1),"") ->  | EJ3: =IF($Q$12=Lists!$U$16,IF(Periods!EJ28="","",MAX($Z3:EI3)+1),"") ->  | EK3: =IF($Q$12=Lists!$U$16,IF(Periods!EK28="","",MAX($Z3:EJ3)+1),"") ->  | EL3: =IF($Q$12=Lists!$U$16,IF(Periods!EL28="","",MAX($Z3:EK3)+1),"") ->  | EM3: =IF($Q$12=Lists!$U$16,IF(Periods!EM28="","",MAX($Z3:EL3)+1),"") ->  | EN3: =IF($Q$12=Lists!$U$16,IF(Periods!EN28="","",MAX($Z3:EM3)+1),"") ->  | EO3: =IF($Q$12=Lists!$U$16,IF(Periods!EO28="","",MAX($Z3:EN3)+1),"") ->  | EP3: =IF($Q$12=Lists!$U$16,IF(Periods!EP28="","",MAX($Z3:EO3)+1),"") ->  | EQ3: =IF($Q$12=Lists!$U$16,IF(Periods!EQ28="","",MAX($Z3:EP3)+1),"") ->  | ER3: =IF($Q$12=Lists!$U$16,IF(Periods!ER28="","",MAX($Z3:EQ3)+1),"") ->  | ES3: =IF($Q$12=Lists!$U$16,IF(Periods!ES28="","",MAX($Z3:ER3)+1),"") ->  | ET3: =IF($Q$12=Lists!$U$16,IF(Periods!ET28="","",MAX($Z3:ES3)+1),"") ->  | EU3: =IF($Q$12=Lists!$U$16,IF(Periods!EU28="","",MAX($Z3:ET3)+1),"") ->  | EV3: =IF($Q$12=Lists!$U$16,IF(Periods!EV28="","",MAX($Z3:EU3)+1),"") ->  | EW3: =IF($Q$12=Lists!$U$16,IF(Periods!EW28="","",MAX($Z3:EV3)+1),"") ->  | EX3: =IF($Q$12=Lists!$U$16,IF(Periods!EX28="","",MAX($Z3:EW3)+1),"") ->  | EY3: =IF($Q$12=Lists!$U$16,IF(Periods!EY28="","",MAX($Z3:EX3)+1),"") ->  | EZ3: =IF($Q$12=Lists!$U$16,IF(Periods!EZ28="","",MAX($Z3:EY3)+1),"") ->  | FA3: =IF($Q$12=Lists!$U$16,IF(Periods!FA28="","",MAX($Z3:EZ3)+1),"") ->  | FB3: =IF($Q$12=Lists!$U$16,IF(Periods!FB28="","",MAX($Z3:FA3)+1),"") ->  | FC3: =IF($Q$12=Lists!$U$16,IF(Periods!FC28="","",MAX($Z3:FB3)+1),"") -> 
Y4: =START!$K$133 -> номер план-периода: | AA4: =IF(OR(AA3<>"",AA11=""),"",MAX($Z4:Z4)+1) -> 1 | AB4: =IF(OR(AB3<>"",AB11=""),"",MAX($Z4:AA4)+1) -> 2 | AC4: =IF(OR(AC3<>"",AC11=""),"",MAX($Z4:AB4)+1) -> 3 | AD4: =IF(OR(AD3<>"",AD11=""),"",MAX($Z4:AC4)+1) -> 4 | AE4: =IF(OR(AE3<>"",AE11=""),"",MAX($Z4:AD4)+1) -> 5 | AF4: =IF(OR(AF3<>"",AF11=""),"",MAX($Z4:AE4)+1) -> 6 | AG4: =IF(OR(AG3<>"",AG11=""),"",MAX($Z4:AF4)+1) -> 7 | AH4: =IF(OR(AH3<>"",AH11=""),"",MAX($Z4:AG4)+1) -> 8 | AI4: =IF(OR(AI3<>"",AI11=""),"",MAX($Z4:AH4)+1) -> 9 | AJ4: =IF(OR(AJ3<>"",AJ11=""),"",MAX($Z4:AI4)+1) -> 10 | AK4: =IF(OR(AK3<>"",AK11=""),"",MAX($Z4:AJ4)+1) -> 11 | AL4: =IF(OR(AL3<>"",AL11=""),"",MAX($Z4:AK4)+1) -> 12 | AM4: =IF(OR(AM3<>"",AM11=""),"",MAX($Z4:AL4)+1) -> 13 | AN4: =IF(OR(AN3<>"",AN11=""),"",MAX($Z4:AM4)+1) -> 14 | AO4: =IF(OR(AO3<>"",AO11=""),"",MAX($Z4:AN4)+1) -> 15 | AP4: =IF(OR(AP3<>"",AP11=""),"",MAX($Z4:AO4)+1) -> 16 | AQ4: =IF(OR(AQ3<>"",AQ11=""),"",MAX($Z4:AP4)+1) -> 17 | AR4: =IF(OR(AR3<>"",AR11=""),"",MAX($Z4:AQ4)+1) -> 18 | AS4: =IF(OR(AS3<>"",AS11=""),"",MAX($Z4:AR4)+1) -> 19 | AT4: =IF(OR(AT3<>"",AT11=""),"",MAX($Z4:AS4)+1) -> 20 | AU4: =IF(OR(AU3<>"",AU11=""),"",MAX($Z4:AT4)+1) -> 21 | AV4: =IF(OR(AV3<>"",AV11=""),"",MAX($Z4:AU4)+1) -> 22 | AW4: =IF(OR(AW3<>"",AW11=""),"",MAX($Z4:AV4)+1) -> 23 | AX4: =IF(OR(AX3<>"",AX11=""),"",MAX($Z4:AW4)+1) -> 24 | AY4: =IF(OR(AY3<>"",AY11=""),"",MAX($Z4:AX4)+1) -> 25 | AZ4: =IF(OR(AZ3<>"",AZ11=""),"",MAX($Z4:AY4)+1) -> 26 | BA4: =IF(OR(BA3<>"",BA11=""),"",MAX($Z4:AZ4)+1) -> 27 | BB4: =IF(OR(BB3<>"",BB11=""),"",MAX($Z4:BA4)+1) -> 28 | BC4: =IF(OR(BC3<>"",BC11=""),"",MAX($Z4:BB4)+1) -> 29 | BD4: =IF(OR(BD3<>"",BD11=""),"",MAX($Z4:BC4)+1) -> 30 | BE4: =IF(OR(BE3<>"",BE11=""),"",MAX($Z4:BD4)+1) -> 31 | BF4: =IF(OR(BF3<>"",BF11=""),"",MAX($Z4:BE4)+1) -> 32 | BG4: =IF(OR(BG3<>"",BG11=""),"",MAX($Z4:BF4)+1) -> 33 | BH4: =IF(OR(BH3<>"",BH11=""),"",MAX($Z4:BG4)+1) -> 34 | BI4: =IF(OR(BI3<>"",BI11=""),"",MAX($Z4:BH4)+1) -> 35 | BJ4: =IF(OR(BJ3<>"",BJ11=""),"",MAX($Z4:BI4)+1) -> 36 | BK4: =IF(OR(BK3<>"",BK11=""),"",MAX($Z4:BJ4)+1) -> 37 | BL4: =IF(OR(BL3<>"",BL11=""),"",MAX($Z4:BK4)+1) -> 38 | BM4: =IF(OR(BM3<>"",BM11=""),"",MAX($Z4:BL4)+1) -> 39 | BN4: =IF(OR(BN3<>"",BN11=""),"",MAX($Z4:BM4)+1) -> 40 | BO4: =IF(OR(BO3<>"",BO11=""),"",MAX($Z4:BN4)+1) -> 41 | BP4: =IF(OR(BP3<>"",BP11=""),"",MAX($Z4:BO4)+1) -> 42 | BQ4: =IF(OR(BQ3<>"",BQ11=""),"",MAX($Z4:BP4)+1) -> 43 | BR4: =IF(OR(BR3<>"",BR11=""),"",MAX($Z4:BQ4)+1) -> 44 | BS4: =IF(OR(BS3<>"",BS11=""),"",MAX($Z4:BR4)+1) -> 45 | BT4: =IF(OR(BT3<>"",BT11=""),"",MAX($Z4:BS4)+1) -> 46 | BU4: =IF(OR(BU3<>"",BU11=""),"",MAX($Z4:BT4)+1) -> 47 | BV4: =IF(OR(BV3<>"",BV11=""),"",MAX($Z4:BU4)+1) -> 48 | BW4: =IF(OR(BW3<>"",BW11=""),"",MAX($Z4:BV4)+1) -> 49 | BX4: =IF(OR(BX3<>"",BX11=""),"",MAX($Z4:BW4)+1) -> 50 | BY4: =IF(OR(BY3<>"",BY11=""),"",MAX($Z4:BX4)+1) -> 51 | BZ4: =IF(OR(BZ3<>"",BZ11=""),"",MAX($Z4:BY4)+1) -> 52 | CA4: =IF(OR(CA3<>"",CA11=""),"",MAX($Z4:BZ4)+1) -> 53 | CB4: =IF(OR(CB3<>"",CB11=""),"",MAX($Z4:CA4)+1) -> 54 | CC4: =IF(OR(CC3<>"",CC11=""),"",MAX($Z4:CB4)+1) -> 55 | CD4: =IF(OR(CD3<>"",CD11=""),"",MAX($Z4:CC4)+1) -> 56 | CE4: =IF(OR(CE3<>"",CE11=""),"",MAX($Z4:CD4)+1) -> 57 | CF4: =IF(OR(CF3<>"",CF11=""),"",MAX($Z4:CE4)+1) -> 58 | CG4: =IF(OR(CG3<>"",CG11=""),"",MAX($Z4:CF4)+1) -> 59 | CH4: =IF(OR(CH3<>"",CH11=""),"",MAX($Z4:CG4)+1) -> 60 | CI4: =IF(OR(CI3<>"",CI11=""),"",MAX($Z4:CH4)+1) -> 61 | CJ4: =IF(OR(CJ3<>"",CJ11=""),"",MAX($Z4:CI4)+1) -> 62 | CK4: =IF(OR(CK3<>"",CK11=""),"",MAX($Z4:CJ4)+1) -> 63 | CL4: =IF(OR(CL3<>"",CL11=""),"",MAX($Z4:CK4)+1) -> 64 | CM4: =IF(OR(CM3<>"",CM11=""),"",MAX($Z4:CL4)+1) -> 65 | CN4: =IF(OR(CN3<>"",CN11=""),"",MAX($Z4:CM4)+1) -> 66 | CO4: =IF(OR(CO3<>"",CO11=""),"",MAX($Z4:CN4)+1) -> 67 | CP4: =IF(OR(CP3<>"",CP11=""),"",MAX($Z4:CO4)+1) -> 68 | CQ4: =IF(OR(CQ3<>"",CQ11=""),"",MAX($Z4:CP4)+1) -> 69 | CR4: =IF(OR(CR3<>"",CR11=""),"",MAX($Z4:CQ4)+1) -> 70 | CS4: =IF(OR(CS3<>"",CS11=""),"",MAX($Z4:CR4)+1) -> 71 | CT4: =IF(OR(CT3<>"",CT11=""),"",MAX($Z4:CS4)+1) -> 72 | CU4: =IF(OR(CU3<>"",CU11=""),"",MAX($Z4:CT4)+1) -> 73 | CV4: =IF(OR(CV3<>"",CV11=""),"",MAX($Z4:CU4)+1) -> 74 | CW4: =IF(OR(CW3<>"",CW11=""),"",MAX($Z4:CV4)+1) -> 75 | CX4: =IF(OR(CX3<>"",CX11=""),"",MAX($Z4:CW4)+1) -> 76 | CY4: =IF(OR(CY3<>"",CY11=""),"",MAX($Z4:CX4)+1) -> 77 | CZ4: =IF(OR(CZ3<>"",CZ11=""),"",MAX($Z4:CY4)+1) -> 78 | DA4: =IF(OR(DA3<>"",DA11=""),"",MAX($Z4:CZ4)+1) -> 79 | DB4: =IF(OR(DB3<>"",DB11=""),"",MAX($Z4:DA4)+1) -> 80 | DC4: =IF(OR(DC3<>"",DC11=""),"",MAX($Z4:DB4)+1) -> 81 | DD4: =IF(OR(DD3<>"",DD11=""),"",MAX($Z4:DC4)+1) -> 82 | DE4: =IF(OR(DE3<>"",DE11=""),"",MAX($Z4:DD4)+1) -> 83 | DF4: =IF(OR(DF3<>"",DF11=""),"",MAX($Z4:DE4)+1) -> 84 | DG4: =IF(OR(DG3<>"",DG11=""),"",MAX($Z4:DF4)+1) -> 85 | DH4: =IF(OR(DH3<>"",DH11=""),"",MAX($Z4:DG4)+1) -> 86 | DI4: =IF(OR(DI3<>"",DI11=""),"",MAX($Z4:DH4)+1) -> 87 | DJ4: =IF(OR(DJ3<>"",DJ11=""),"",MAX($Z4:DI4)+1) -> 88 | DK4: =IF(OR(DK3<>"",DK11=""),"",MAX($Z4:DJ4)+1) -> 89 | DL4: =IF(OR(DL3<>"",DL11=""),"",MAX($Z4:DK4)+1) -> 90 | DM4: =IF(OR(DM3<>"",DM11=""),"",MAX($Z4:DL4)+1) -> 91 | DN4: =IF(OR(DN3<>"",DN11=""),"",MAX($Z4:DM4)+1) -> 92 | DO4: =IF(OR(DO3<>"",DO11=""),"",MAX($Z4:DN4)+1) -> 93 | DP4: =IF(OR(DP3<>"",DP11=""),"",MAX($Z4:DO4)+1) -> 94 | DQ4: =IF(OR(DQ3<>"",DQ11=""),"",MAX($Z4:DP4)+1) -> 95 | DR4: =IF(OR(DR3<>"",DR11=""),"",MAX($Z4:DQ4)+1) -> 96 | DS4: =IF(OR(DS3<>"",DS11=""),"",MAX($Z4:DR4)+1) -> 97 | DT4: =IF(OR(DT3<>"",DT11=""),"",MAX($Z4:DS4)+1) -> 98 | DU4: =IF(OR(DU3<>"",DU11=""),"",MAX($Z4:DT4)+1) -> 99 | DV4: =IF(OR(DV3<>"",DV11=""),"",MAX($Z4:DU4)+1) -> 100 | DW4: =IF(OR(DW3<>"",DW11=""),"",MAX($Z4:DV4)+1) -> 101 | DX4: =IF(OR(DX3<>"",DX11=""),"",MAX($Z4:DW4)+1) -> 102 | DY4: =IF(OR(DY3<>"",DY11=""),"",MAX($Z4:DX4)+1) -> 103 | DZ4: =IF(OR(DZ3<>"",DZ11=""),"",MAX($Z4:DY4)+1) -> 104 | EA4: =IF(OR(EA3<>"",EA11=""),"",MAX($Z4:DZ4)+1) -> 105 | EB4: =IF(OR(EB3<>"",EB11=""),"",MAX($Z4:EA4)+1) -> 106 | EC4: =IF(OR(EC3<>"",EC11=""),"",MAX($Z4:EB4)+1) -> 107 | ED4: =IF(OR(ED3<>"",ED11=""),"",MAX($Z4:EC4)+1) -> 108 | EE4: =IF(OR(EE3<>"",EE11=""),"",MAX($Z4:ED4)+1) -> 109 | EF4: =IF(OR(EF3<>"",EF11=""),"",MAX($Z4:EE4)+1) -> 110 | EG4: =IF(OR(EG3<>"",EG11=""),"",MAX($Z4:EF4)+1) -> 111 | EH4: =IF(OR(EH3<>"",EH11=""),"",MAX($Z4:EG4)+1) -> 112 | EI4: =IF(OR(EI3<>"",EI11=""),"",MAX($Z4:EH4)+1) -> 113 | EJ4: =IF(OR(EJ3<>"",EJ11=""),"",MAX($Z4:EI4)+1) -> 114 | EK4: =IF(OR(EK3<>"",EK11=""),"",MAX($Z4:EJ4)+1) -> 115 | EL4: =IF(OR(EL3<>"",EL11=""),"",MAX($Z4:EK4)+1) -> 116 | EM4: =IF(OR(EM3<>"",EM11=""),"",MAX($Z4:EL4)+1) -> 117 | EN4: =IF(OR(EN3<>"",EN11=""),"",MAX($Z4:EM4)+1) -> 118 | EO4: =IF(OR(EO3<>"",EO11=""),"",MAX($Z4:EN4)+1) -> 119 | EP4: =IF(OR(EP3<>"",EP11=""),"",MAX($Z4:EO4)+1) -> 120 | EQ4: =IF(OR(EQ3<>"",EQ11=""),"",MAX($Z4:EP4)+1) ->  | ER4: =IF(OR(ER3<>"",ER11=""),"",MAX($Z4:EQ4)+1) ->  | ES4: =IF(OR(ES3<>"",ES11=""),"",MAX($Z4:ER4)+1) ->  | ET4: =IF(OR(ET3<>"",ET11=""),"",MAX($Z4:ES4)+1) ->  | EU4: =IF(OR(EU3<>"",EU11=""),"",MAX($Z4:ET4)+1) ->  | EV4: =IF(OR(EV3<>"",EV11=""),"",MAX($Z4:EU4)+1) ->  | EW4: =IF(OR(EW3<>"",EW11=""),"",MAX($Z4:EV4)+1) ->  | EX4: =IF(OR(EX3<>"",EX11=""),"",MAX($Z4:EW4)+1) ->  | EY4: =IF(OR(EY3<>"",EY11=""),"",MAX($Z4:EX4)+1) ->  | EZ4: =IF(OR(EZ3<>"",EZ11=""),"",MAX($Z4:EY4)+1) ->  | FA4: =IF(OR(FA3<>"",FA11=""),"",MAX($Z4:EZ4)+1) ->  | FB4: =IF(OR(FB3<>"",FB11=""),"",MAX($Z4:FA4)+1) ->  | FC4: =IF(OR(FC3<>"",FC11=""),"",MAX($Z4:FB4)+1) -> 
Y5: =START!$K$134 -> число даты начала: | AA5: =IF(AA11="","",DAY(AA11)) -> 1 | AB5: =IF(AB11="","",DAY(AB11)) -> 1 | AC5: 1 | AD5: 1 | AE5: 1 | AF5: 1 | AG5: 1 | AH5: 1 | AI5: 1 | AJ5: 1 | AK5: 1 | AL5: 1 | AM5: 1 | AN5: 1 | AO5: 1 | AP5: 1 | AQ5: 1 | AR5: 1 | AS5: 1 | AT5: 1 | AU5: 1 | AV5: 1 | AW5: 1 | AX5: 1 | AY5: 1 | AZ5: 1 | BA5: 1 | BB5: 1 | BC5: 1 | BD5: 1 | BE5: 1 | BF5: 1 | BG5: 1 | BH5: 1 | BI5: 1 | BJ5: 1 | BK5: 1 | BL5: 1 | BM5: 1 | BN5: 1 | BO5: 1 | BP5: 1 | BQ5: 1 | BR5: 1 | BS5: 1 | BT5: 1 | BU5: 1 | BV5: 1 | BW5: 1 | BX5: 1 | BY5: 1 | BZ5: 1 | CA5: 1 | CB5: 1 | CC5: 1 | CD5: 1 | CE5: 1 | CF5: 1 | CG5: 1 | CH5: 1 | CI5: 1 | CJ5: 1 | CK5: 1 | CL5: 1 | CM5: 1 | CN5: =IF(CN11="","",DAY(CN11)) -> 1 | CO5: 1 | CP5: 1 | CQ5: 1 | CR5: 1 | CS5: 1 | CT5: 1 | CU5: 1 | CV5: 1 | CW5: 1 | CX5: 1 | CY5: 1 | CZ5: 1 | DA5: 1 | DB5: 1 | DC5: 1 | DD5: 1 | DE5: 1 | DF5: 1 | DG5: 1 | DH5: 1 | DI5: 1 | DJ5: 1 | DK5: 1 | DL5: 1 | DM5: 1 | DN5: 1 | DO5: 1 | DP5: 1 | DQ5: 1 | DR5: 1 | DS5: 1 | DT5: 1 | DU5: 1 | DV5: 1 | DW5: 1 | DX5: 1 | DY5: 1 | DZ5: 1 | EA5: 1 | EB5: 1 | EC5: 1 | ED5: 1 | EE5: 1 | EF5: 1 | EG5: 1 | EH5: 1 | EI5: 1 | EJ5: 1 | EK5: 1 | EL5: 1 | EM5: 1 | EN5: 1 | EO5: 1 | EP5: 1 | EZ5: =IF(EZ11="","",DAY(EZ11)) ->  | FA5: =IF(FA11="","",DAY(FA11)) ->  | FB5: =IF(FB11="","",DAY(FB11)) ->  | FC5: =IF(FC11="","",DAY(FC11)) -> 
Y6: =START!$K$135 -> номер месяца даты начала: | AA6: =IF(AA11="","",MONTH(AA11)) -> 7 | AB6: =IF(AB11="","",MONTH(AB11)) -> 8 | AC6: 9 | AD6: 10 | AE6: 11 | AF6: 12 | AG6: 1 | AH6: 2 | AI6: 3 | AJ6: 4 | AK6: 5 | AL6: 6 | AM6: 7 | AN6: 8 | AO6: 9 | AP6: 10 | AQ6: 11 | AR6: 12 | AS6: 1 | AT6: 2 | AU6: 3 | AV6: 4 | AW6: 5 | AX6: 6 | AY6: 7 | AZ6: 8 | BA6: 9 | BB6: 10 | BC6: 11 | BD6: 12 | BE6: 1 | BF6: 2 | BG6: 3 | BH6: 4 | BI6: 5 | BJ6: 6 | BK6: 7 | BL6: 8 | BM6: 9 | BN6: 10 | BO6: 11 | BP6: 12 | BQ6: 1 | BR6: 2 | BS6: 3 | BT6: 4 | BU6: 5 | BV6: 6 | BW6: 7 | BX6: 8 | BY6: 9 | BZ6: 10 | CA6: 11 | CB6: 12 | CC6: 1 | CD6: 2 | CE6: 3 | CF6: 4 | CG6: 5 | CH6: 6 | CI6: 7 | CJ6: 8 | CK6: 9 | CL6: 10 | CM6: 11 | CN6: =IF(CN11="","",MONTH(CN11)) -> 12 | CO6: 1 | CP6: 2 | CQ6: 3 | CR6: 4 | CS6: 5 | CT6: 6 | CU6: 7 | CV6: 8 | CW6: 9 | CX6: 10 | CY6: 11 | CZ6: 12 | DA6: 1 | DB6: 2 | DC6: 3 | DD6: 4 | DE6: 5 | DF6: 6 | DG6: 7 | DH6: 8 | DI6: 9 | DJ6: 10 | DK6: 11 | DL6: 12 | DM6: 1 | DN6: 2 | DO6: 3 | DP6: 4 | DQ6: 5 | DR6: 6 | DS6: 7 | DT6: 8 | DU6: 9 | DV6: 10 | DW6: 11 | DX6: 12 | DY6: 1 | DZ6: 2 | EA6: 3 | EB6: 4 | EC6: 5 | ED6: 6 | EE6: 7 | EF6: 8 | EG6: 9 | EH6: 10 | EI6: 11 | EJ6: 12 | EK6: 1 | EL6: 2 | EM6: 3 | EN6: 4 | EO6: 5 | EP6: 6 | EZ6: =IF(EZ11="","",MONTH(EZ11)) ->  | FA6: =IF(FA11="","",MONTH(FA11)) ->  | FB6: =IF(FB11="","",MONTH(FB11)) ->  | FC6: =IF(FC11="","",MONTH(FC11)) -> 
Y7: =START!$K$136 -> год даты начала: | AA7: =IF(AA11="","",YEAR(AA11)-2000) -> 21 | AB7: =IF(AB11="","",YEAR(AB11)-2000) -> 21 | AC7: 21 | AD7: 21 | AE7: 21 | AF7: 21 | AG7: 22 | AH7: 22 | AI7: 22 | AJ7: 22 | AK7: 22 | AL7: 22 | AM7: 22 | AN7: 22 | AO7: 22 | AP7: 22 | AQ7: 22 | AR7: 22 | AS7: 23 | AT7: 23 | AU7: 23 | AV7: 23 | AW7: 23 | AX7: 23 | AY7: 23 | AZ7: 23 | BA7: 23 | BB7: 23 | BC7: 23 | BD7: 23 | BE7: 24 | BF7: 24 | BG7: 24 | BH7: 24 | BI7: 24 | BJ7: 24 | BK7: 24 | BL7: 24 | BM7: 24 | BN7: 24 | BO7: 24 | BP7: 24 | BQ7: 25 | BR7: 25 | BS7: 25 | BT7: 25 | BU7: 25 | BV7: 25 | BW7: 25 | BX7: 25 | BY7: 25 | BZ7: 25 | CA7: 25 | CB7: 25 | CC7: 26 | CD7: 26 | CE7: 26 | CF7: 26 | CG7: 26 | CH7: 26 | CI7: 26 | CJ7: 26 | CK7: 26 | CL7: 26 | CM7: 26 | CN7: =IF(CN11="","",YEAR(CN11)-2000) -> 26 | CO7: 27 | CP7: 27 | CQ7: 27 | CR7: 27 | CS7: 27 | CT7: 27 | CU7: 27 | CV7: 27 | CW7: 27 | CX7: 27 | CY7: 27 | CZ7: 27 | DA7: 28 | DB7: 28 | DC7: 28 | DD7: 28 | DE7: 28 | DF7: 28 | DG7: 28 | DH7: 28 | DI7: 28 | DJ7: 28 | DK7: 28 | DL7: 28 | DM7: 29 | DN7: 29 | DO7: 29 | DP7: 29 | DQ7: 29 | DR7: 29 | DS7: 29 | DT7: 29 | DU7: 29 | DV7: 29 | DW7: 29 | DX7: 29 | DY7: 30 | DZ7: 30 | EA7: 30 | EB7: 30 | EC7: 30 | ED7: 30 | EE7: 30 | EF7: 30 | EG7: 30 | EH7: 30 | EI7: 30 | EJ7: 30 | EK7: 31 | EL7: 31 | EM7: 31 | EN7: 31 | EO7: 31 | EP7: 31 | EZ7: =IF(EZ11="","",YEAR(EZ11)-2000) ->  | FA7: =IF(FA11="","",YEAR(FA11)-2000) ->  | FB7: =IF(FB11="","",YEAR(FB11)-2000) ->  | FC7: =IF(FC11="","",YEAR(FC11)-2000) -> 
Y8: =START!$K$137 -> число даты окончания: | AA8: =IF(AA12="","",DAY(AA12)) -> 31 | AB8: =IF(AB12="","",DAY(AB12)) -> 31 | AC8: 30 | AD8: 31 | AE8: 30 | AF8: 31 | AG8: 31 | AH8: 28 | AI8: 31 | AJ8: 30 | AK8: 31 | AL8: 30 | AM8: 31 | AN8: 31 | AO8: 30 | AP8: 31 | AQ8: 30 | AR8: 31 | AS8: 31 | AT8: 28 | AU8: 31 | AV8: 30 | AW8: 31 | AX8: 30 | AY8: 31 | AZ8: 31 | BA8: 30 | BB8: 31 | BC8: 30 | BD8: 31 | BE8: 31 | BF8: 29 | BG8: 31 | BH8: 30 | BI8: 31 | BJ8: 30 | BK8: 31 | BL8: 31 | BM8: 30 | BN8: 31 | BO8: 30 | BP8: 31 | BQ8: 31 | BR8: 28 | BS8: 31 | BT8: 30 | BU8: 31 | BV8: 30 | BW8: 31 | BX8: 31 | BY8: 30 | BZ8: 31 | CA8: 30 | CB8: 31 | CC8: 31 | CD8: 28 | CE8: 31 | CF8: 30 | CG8: 31 | CH8: 30 | CI8: 31 | CJ8: 31 | CK8: 30 | CL8: 31 | CM8: 30 | CN8: =IF(CN12="","",DAY(CN12)) -> 31 | CO8: 31 | CP8: 28 | CQ8: 31 | CR8: 30 | CS8: 31 | CT8: 30 | CU8: 31 | CV8: 31 | CW8: 30 | CX8: 31 | CY8: 30 | CZ8: 31 | DA8: 31 | DB8: 29 | DC8: 31 | DD8: 30 | DE8: 31 | DF8: 30 | DG8: 31 | DH8: 31 | DI8: 30 | DJ8: 31 | DK8: 30 | DL8: 31 | DM8: 31 | DN8: 28 | DO8: 31 | DP8: 30 | DQ8: 31 | DR8: 30 | DS8: 31 | DT8: 31 | DU8: 30 | DV8: 31 | DW8: 30 | DX8: 31 | DY8: 31 | DZ8: 28 | EA8: 31 | EB8: 30 | EC8: 31 | ED8: 30 | EE8: 31 | EF8: 31 | EG8: 30 | EH8: 31 | EI8: 30 | EJ8: 31 | EK8: 31 | EL8: 28 | EM8: 31 | EN8: 30 | EO8: 31 | EP8: 30 | EZ8: =IF(EZ12="","",DAY(EZ12)) ->  | FA8: =IF(FA12="","",DAY(FA12)) ->  | FB8: =IF(FB12="","",DAY(FB12)) ->  | FC8: =IF(FC12="","",DAY(FC12)) -> 
Y9: =START!$K$138 -> номер месяца даты окончания: | AA9: =IF(AA12="","",MONTH(AA12)) -> 7 | AB9: =IF(AB12="","",MONTH(AB12)) -> 8 | AC9: 9 | AD9: 10 | AE9: 11 | AF9: 12 | AG9: 1 | AH9: 2 | AI9: 3 | AJ9: 4 | AK9: 5 | AL9: 6 | AM9: 7 | AN9: 8 | AO9: 9 | AP9: 10 | AQ9: 11 | AR9: 12 | AS9: 1 | AT9: 2 | AU9: 3 | AV9: 4 | AW9: 5 | AX9: 6 | AY9: 7 | AZ9: 8 | BA9: 9 | BB9: 10 | BC9: 11 | BD9: 12 | BE9: 1 | BF9: 2 | BG9: 3 | BH9: 4 | BI9: 5 | BJ9: 6 | BK9: 7 | BL9: 8 | BM9: 9 | BN9: 10 | BO9: 11 | BP9: 12 | BQ9: 1 | BR9: 2 | BS9: 3 | BT9: 4 | BU9: 5 | BV9: 6 | BW9: 7 | BX9: 8 | BY9: 9 | BZ9: 10 | CA9: 11 | CB9: 12 | CC9: 1 | CD9: 2 | CE9: 3 | CF9: 4 | CG9: 5 | CH9: 6 | CI9: 7 | CJ9: 8 | CK9: 9 | CL9: 10 | CM9: 11 | CN9: =IF(CN12="","",MONTH(CN12)) -> 12 | CO9: 1 | CP9: 2 | CQ9: 3 | CR9: 4 | CS9: 5 | CT9: 6 | CU9: 7 | CV9: 8 | CW9: 9 | CX9: 10 | CY9: 11 | CZ9: 12 | DA9: 1 | DB9: 2 | DC9: 3 | DD9: 4 | DE9: 5 | DF9: 6 | DG9: 7 | DH9: 8 | DI9: 9 | DJ9: 10 | DK9: 11 | DL9: 12 | DM9: 1 | DN9: 2 | DO9: 3 | DP9: 4 | DQ9: 5 | DR9: 6 | DS9: 7 | DT9: 8 | DU9: 9 | DV9: 10 | DW9: 11 | DX9: 12 | DY9: 1 | DZ9: 2 | EA9: 3 | EB9: 4 | EC9: 5 | ED9: 6 | EE9: 7 | EF9: 8 | EG9: 9 | EH9: 10 | EI9: 11 | EJ9: 12 | EK9: 1 | EL9: 2 | EM9: 3 | EN9: 4 | EO9: 5 | EP9: 6 | EZ9: =IF(EZ12="","",MONTH(EZ12)) ->  | FA9: =IF(FA12="","",MONTH(FA12)) ->  | FB9: =IF(FB12="","",MONTH(FB12)) ->  | FC9: =IF(FC12="","",MONTH(FC12)) -> 
Y10: =START!$K$139 -> год даты окончания: | AA10: =IF(AA12="","",YEAR(AA12)-2000) -> 21 | AB10: =IF(AB12="","",YEAR(AB12)-2000) -> 21 | AC10: 21 | AD10: 21 | AE10: 21 | AF10: 21 | AG10: 22 | AH10: 22 | AI10: 22 | AJ10: 22 | AK10: 22 | AL10: 22 | AM10: 22 | AN10: 22 | AO10: 22 | AP10: 22 | AQ10: 22 | AR10: 22 | AS10: 23 | AT10: 23 | AU10: 23 | AV10: 23 | AW10: 23 | AX10: 23 | AY10: 23 | AZ10: 23 | BA10: 23 | BB10: 23 | BC10: 23 | BD10: 23 | BE10: 24 | BF10: 24 | BG10: 24 | BH10: 24 | BI10: 24 | BJ10: 24 | BK10: 24 | BL10: 24 | BM10: 24 | BN10: 24 | BO10: 24 | BP10: 24 | BQ10: 25 | BR10: 25 | BS10: 25 | BT10: 25 | BU10: 25 | BV10: 25 | BW10: 25 | BX10: 25 | BY10: 25 | BZ10: 25 | CA10: 25 | CB10: 25 | CC10: 26 | CD10: 26 | CE10: 26 | CF10: 26 | CG10: 26 | CH10: 26 | CI10: 26 | CJ10: 26 | CK10: 26 | CL10: 26 | CM10: 26 | CN10: =IF(CN12="","",YEAR(CN12)-2000) -> 26 | CO10: 27 | CP10: 27 | CQ10: 27 | CR10: 27 | CS10: 27 | CT10: 27 | CU10: 27 | CV10: 27 | CW10: 27 | CX10: 27 | CY10: 27 | CZ10: 27 | DA10: 28 | DB10: 28 | DC10: 28 | DD10: 28 | DE10: 28 | DF10: 28 | DG10: 28 | DH10: 28 | DI10: 28 | DJ10: 28 | DK10: 28 | DL10: 28 | DM10: 29 | DN10: 29 | DO10: 29 | DP10: 29 | DQ10: 29 | DR10: 29 | DS10: 29 | DT10: 29 | DU10: 29 | DV10: 29 | DW10: 29 | DX10: 29 | DY10: 30 | DZ10: 30 | EA10: 30 | EB10: 30 | EC10: 30 | ED10: 30 | EE10: 30 | EF10: 30 | EG10: 30 | EH10: 30 | EI10: 30 | EJ10: 30 | EK10: 31 | EL10: 31 | EM10: 31 | EN10: 31 | EO10: 31 | EP10: 31 | EZ10: =IF(EZ12="","",YEAR(EZ12)-2000) ->  | FA10: =IF(FA12="","",YEAR(FA12)-2000) ->  | FB10: =IF(FB12="","",YEAR(FB12)-2000) ->  | FC10: =IF(FC12="","",YEAR(FC12)-2000) -> 
F11: =INDIRECT("START!I27") -> Periods | I11: =INDIRECT("START!K27") -> Периоды и горизонты моделирования фактических и прогнозных данных | X11: =IF($Q$12=Lists!$U$16,IF(Periods!X20="","",Periods!X20),IF($Q$12=Lists!$U$17,IF(Periods!X35="","",Periods!X35),"")) -> 2021-07-01 | AA11: =IF($Q$12=Lists!$U$16,IF(Periods!AA20="","",Periods!AA20),IF($Q$12=Lists!$U$17,IF(Periods!AA35="","",Periods!AA35),"")) -> 2021-07-01 | AB11: =IF($Q$12=Lists!$U$16,IF(Periods!AB20="","",Periods!AB20),IF($Q$12=Lists!$U$17,IF(Periods!AB35="","",Periods!AB35),"")) -> 2021-08-01 | AC11: =IF($Q$12=Lists!$U$16,IF(Periods!AC20="","",Periods!AC20),IF($Q$12=Lists!$U$17,IF(Periods!AC35="","",Periods!AC35),"")) -> 2021-09-01 | AD11: =IF($Q$12=Lists!$U$16,IF(Periods!AD20="","",Periods!AD20),IF($Q$12=Lists!$U$17,IF(Periods!AD35="","",Periods!AD35),"")) -> 2021-10-01 | AE11: =IF($Q$12=Lists!$U$16,IF(Periods!AE20="","",Periods!AE20),IF($Q$12=Lists!$U$17,IF(Periods!AE35="","",Periods!AE35),"")) -> 2021-11-01 | AF11: =IF($Q$12=Lists!$U$16,IF(Periods!AF20="","",Periods!AF20),IF($Q$12=Lists!$U$17,IF(Periods!AF35="","",Periods!AF35),"")) -> 2021-12-01 | AG11: =IF($Q$12=Lists!$U$16,IF(Periods!AG20="","",Periods!AG20),IF($Q$12=Lists!$U$17,IF(Periods!AG35="","",Periods!AG35),"")) -> 2022-01-01 | AH11: =IF($Q$12=Lists!$U$16,IF(Periods!AH20="","",Periods!AH20),IF($Q$12=Lists!$U$17,IF(Periods!AH35="","",Periods!AH35),"")) -> 2022-02-01 | AI11: =IF($Q$12=Lists!$U$16,IF(Periods!AI20="","",Periods!AI20),IF($Q$12=Lists!$U$17,IF(Periods!AI35="","",Periods!AI35),"")) -> 2022-03-01 | AJ11: =IF($Q$12=Lists!$U$16,IF(Periods!AJ20="","",Periods!AJ20),IF($Q$12=Lists!$U$17,IF(Periods!AJ35="","",Periods!AJ35),"")) -> 2022-04-01 | AK11: =IF($Q$12=Lists!$U$16,IF(Periods!AK20="","",Periods!AK20),IF($Q$12=Lists!$U$17,IF(Periods!AK35="","",Periods!AK35),"")) -> 2022-05-01 | AL11: =IF($Q$12=Lists!$U$16,IF(Periods!AL20="","",Periods!AL20),IF($Q$12=Lists!$U$17,IF(Periods!AL35="","",Periods!AL35),"")) -> 2022-06-01 | AM11: =IF($Q$12=Lists!$U$16,IF(Periods!AM20="","",Periods!AM20),IF($Q$12=Lists!$U$17,IF(Periods!AM35="","",Periods!AM35),"")) -> 2022-07-01 | AN11: =IF($Q$12=Lists!$U$16,IF(Periods!AN20="","",Periods!AN20),IF($Q$12=Lists!$U$17,IF(Periods!AN35="","",Periods!AN35),"")) -> 2022-08-01 | AO11: =IF($Q$12=Lists!$U$16,IF(Periods!AO20="","",Periods!AO20),IF($Q$12=Lists!$U$17,IF(Periods!AO35="","",Periods!AO35),"")) -> 2022-09-01 | AP11: =IF($Q$12=Lists!$U$16,IF(Periods!AP20="","",Periods!AP20),IF($Q$12=Lists!$U$17,IF(Periods!AP35="","",Periods!AP35),"")) -> 2022-10-01 | AQ11: =IF($Q$12=Lists!$U$16,IF(Periods!AQ20="","",Periods!AQ20),IF($Q$12=Lists!$U$17,IF(Periods!AQ35="","",Periods!AQ35),"")) -> 2022-11-01 | AR11: =IF($Q$12=Lists!$U$16,IF(Periods!AR20="","",Periods!AR20),IF($Q$12=Lists!$U$17,IF(Periods!AR35="","",Periods!AR35),"")) -> 2022-12-01 | AS11: =IF($Q$12=Lists!$U$16,IF(Periods!AS20="","",Periods!AS20),IF($Q$12=Lists!$U$17,IF(Periods!AS35="","",Periods!AS35),"")) -> 2023-01-01 | AT11: =IF($Q$12=Lists!$U$16,IF(Periods!AT20="","",Periods!AT20),IF($Q$12=Lists!$U$17,IF(Periods!AT35="","",Periods!AT35),"")) -> 2023-02-01 | AU11: =IF($Q$12=Lists!$U$16,IF(Periods!AU20="","",Periods!AU20),IF($Q$12=Lists!$U$17,IF(Periods!AU35="","",Periods!AU35),"")) -> 2023-03-01 | AV11: =IF($Q$12=Lists!$U$16,IF(Periods!AV20="","",Periods!AV20),IF($Q$12=Lists!$U$17,IF(Periods!AV35="","",Periods!AV35),"")) -> 2023-04-01 | AW11: =IF($Q$12=Lists!$U$16,IF(Periods!AW20="","",Periods!AW20),IF($Q$12=Lists!$U$17,IF(Periods!AW35="","",Periods!AW35),"")) -> 2023-05-01 | AX11: =IF($Q$12=Lists!$U$16,IF(Periods!AX20="","",Periods!AX20),IF($Q$12=Lists!$U$17,IF(Periods!AX35="","",Periods!AX35),"")) -> 2023-06-01 | AY11: =IF($Q$12=Lists!$U$16,IF(Periods!AY20="","",Periods!AY20),IF($Q$12=Lists!$U$17,IF(Periods!AY35="","",Periods!AY35),"")) -> 2023-07-01 | AZ11: =IF($Q$12=Lists!$U$16,IF(Periods!AZ20="","",Periods!AZ20),IF($Q$12=Lists!$U$17,IF(Periods!AZ35="","",Periods!AZ35),"")) -> 2023-08-01 | BA11: =IF($Q$12=Lists!$U$16,IF(Periods!BA20="","",Periods!BA20),IF($Q$12=Lists!$U$17,IF(Periods!BA35="","",Periods!BA35),"")) -> 2023-09-01 | BB11: =IF($Q$12=Lists!$U$16,IF(Periods!BB20="","",Periods!BB20),IF($Q$12=Lists!$U$17,IF(Periods!BB35="","",Periods!BB35),"")) -> 2023-10-01 | BC11: =IF($Q$12=Lists!$U$16,IF(Periods!BC20="","",Periods!BC20),IF($Q$12=Lists!$U$17,IF(Periods!BC35="","",Periods!BC35),"")) -> 2023-11-01 | BD11: =IF($Q$12=Lists!$U$16,IF(Periods!BD20="","",Periods!BD20),IF($Q$12=Lists!$U$17,IF(Periods!BD35="","",Periods!BD35),"")) -> 2023-12-01 | BE11: =IF($Q$12=Lists!$U$16,IF(Periods!BE20="","",Periods!BE20),IF($Q$12=Lists!$U$17,IF(Periods!BE35="","",Periods!BE35),"")) -> 2024-01-01 | BF11: =IF($Q$12=Lists!$U$16,IF(Periods!BF20="","",Periods!BF20),IF($Q$12=Lists!$U$17,IF(Periods!BF35="","",Periods!BF35),"")) -> 2024-02-01 | BG11: =IF($Q$12=Lists!$U$16,IF(Periods!BG20="","",Periods!BG20),IF($Q$12=Lists!$U$17,IF(Periods!BG35="","",Periods!BG35),"")) -> 2024-03-01 | BH11: =IF($Q$12=Lists!$U$16,IF(Periods!BH20="","",Periods!BH20),IF($Q$12=Lists!$U$17,IF(Periods!BH35="","",Periods!BH35),"")) -> 2024-04-01 | BI11: =IF($Q$12=Lists!$U$16,IF(Periods!BI20="","",Periods!BI20),IF($Q$12=Lists!$U$17,IF(Periods!BI35="","",Periods!BI35),"")) -> 2024-05-01 | BJ11: =IF($Q$12=Lists!$U$16,IF(Periods!BJ20="","",Periods!BJ20),IF($Q$12=Lists!$U$17,IF(Periods!BJ35="","",Periods!BJ35),"")) -> 2024-06-01 | BK11: =IF($Q$12=Lists!$U$16,IF(Periods!BK20="","",Periods!BK20),IF($Q$12=Lists!$U$17,IF(Periods!BK35="","",Periods!BK35),"")) -> 2024-07-01 | BL11: =IF($Q$12=Lists!$U$16,IF(Periods!BL20="","",Periods!BL20),IF($Q$12=Lists!$U$17,IF(Periods!BL35="","",Periods!BL35),"")) -> 2024-08-01 | BM11: =IF($Q$12=Lists!$U$16,IF(Periods!BM20="","",Periods!BM20),IF($Q$12=Lists!$U$17,IF(Periods!BM35="","",Periods!BM35),"")) -> 2024-09-01 | BN11: =IF($Q$12=Lists!$U$16,IF(Periods!BN20="","",Periods!BN20),IF($Q$12=Lists!$U$17,IF(Periods!BN35="","",Periods!BN35),"")) -> 2024-10-01 | BO11: =IF($Q$12=Lists!$U$16,IF(Periods!BO20="","",Periods!BO20),IF($Q$12=Lists!$U$17,IF(Periods!BO35="","",Periods!BO35),"")) -> 2024-11-01 | BP11: =IF($Q$12=Lists!$U$16,IF(Periods!BP20="","",Periods!BP20),IF($Q$12=Lists!$U$17,IF(Periods!BP35="","",Periods!BP35),"")) -> 2024-12-01 | BQ11: =IF($Q$12=Lists!$U$16,IF(Periods!BQ20="","",Periods!BQ20),IF($Q$12=Lists!$U$17,IF(Periods!BQ35="","",Periods!BQ35),"")) -> 2025-01-01 | BR11: =IF($Q$12=Lists!$U$16,IF(Periods!BR20="","",Periods!BR20),IF($Q$12=Lists!$U$17,IF(Periods!BR35="","",Periods!BR35),"")) -> 2025-02-01 | BS11: =IF($Q$12=Lists!$U$16,IF(Periods!BS20="","",Periods!BS20),IF($Q$12=Lists!$U$17,IF(Periods!BS35="","",Periods!BS35),"")) -> 2025-03-01 | BT11: =IF($Q$12=Lists!$U$16,IF(Periods!BT20="","",Periods!BT20),IF($Q$12=Lists!$U$17,IF(Periods!BT35="","",Periods!BT35),"")) -> 2025-04-01 | BU11: =IF($Q$12=Lists!$U$16,IF(Periods!BU20="","",Periods!BU20),IF($Q$12=Lists!$U$17,IF(Periods!BU35="","",Periods!BU35),"")) -> 2025-05-01 | BV11: =IF($Q$12=Lists!$U$16,IF(Periods!BV20="","",Periods!BV20),IF($Q$12=Lists!$U$17,IF(Periods!BV35="","",Periods!BV35),"")) -> 2025-06-01 | BW11: =IF($Q$12=Lists!$U$16,IF(Periods!BW20="","",Periods!BW20),IF($Q$12=Lists!$U$17,IF(Periods!BW35="","",Periods!BW35),"")) -> 2025-07-01 | BX11: =IF($Q$12=Lists!$U$16,IF(Periods!BX20="","",Periods!BX20),IF($Q$12=Lists!$U$17,IF(Periods!BX35="","",Periods!BX35),"")) -> 2025-08-01 | BY11: =IF($Q$12=Lists!$U$16,IF(Periods!BY20="","",Periods!BY20),IF($Q$12=Lists!$U$17,IF(Periods!BY35="","",Periods!BY35),"")) -> 2025-09-01 | BZ11: =IF($Q$12=Lists!$U$16,IF(Periods!BZ20="","",Periods!BZ20),IF($Q$12=Lists!$U$17,IF(Periods!BZ35="","",Periods!BZ35),"")) -> 2025-10-01 | CA11: =IF($Q$12=Lists!$U$16,IF(Periods!CA20="","",Periods!CA20),IF($Q$12=Lists!$U$17,IF(Periods!CA35="","",Periods!CA35),"")) -> 2025-11-01 | CB11: =IF($Q$12=Lists!$U$16,IF(Periods!CB20="","",Periods!CB20),IF($Q$12=Lists!$U$17,IF(Periods!CB35="","",Periods!CB35),"")) -> 2025-12-01 | CC11: =IF($Q$12=Lists!$U$16,IF(Periods!CC20="","",Periods!CC20),IF($Q$12=Lists!$U$17,IF(Periods!CC35="","",Periods!CC35),"")) -> 2026-01-01 | CD11: =IF($Q$12=Lists!$U$16,IF(Periods!CD20="","",Periods!CD20),IF($Q$12=Lists!$U$17,IF(Periods!CD35="","",Periods!CD35),"")) -> 2026-02-01 | CE11: =IF($Q$12=Lists!$U$16,IF(Periods!CE20="","",Periods!CE20),IF($Q$12=Lists!$U$17,IF(Periods!CE35="","",Periods!CE35),"")) -> 2026-03-01 | CF11: =IF($Q$12=Lists!$U$16,IF(Periods!CF20="","",Periods!CF20),IF($Q$12=Lists!$U$17,IF(Periods!CF35="","",Periods!CF35),"")) -> 2026-04-01 | CG11: =IF($Q$12=Lists!$U$16,IF(Periods!CG20="","",Periods!CG20),IF($Q$12=Lists!$U$17,IF(Periods!CG35="","",Periods!CG35),"")) -> 2026-05-01 | CH11: =IF($Q$12=Lists!$U$16,IF(Periods!CH20="","",Periods!CH20),IF($Q$12=Lists!$U$17,IF(Periods!CH35="","",Periods!CH35),"")) -> 2026-06-01 | CI11: =IF($Q$12=Lists!$U$16,IF(Periods!CI20="","",Periods!CI20),IF($Q$12=Lists!$U$17,IF(Periods!CI35="","",Periods!CI35),"")) -> 2026-07-01 | CJ11: =IF($Q$12=Lists!$U$16,IF(Periods!CJ20="","",Periods!CJ20),IF($Q$12=Lists!$U$17,IF(Periods!CJ35="","",Periods!CJ35),"")) -> 2026-08-01 | CK11: =IF($Q$12=Lists!$U$16,IF(Periods!CK20="","",Periods!CK20),IF($Q$12=Lists!$U$17,IF(Periods!CK35="","",Periods!CK35),"")) -> 2026-09-01 | CL11: =IF($Q$12=Lists!$U$16,IF(Periods!CL20="","",Periods!CL20),IF($Q$12=Lists!$U$17,IF(Periods!CL35="","",Periods!CL35),"")) -> 2026-10-01 | CM11: =IF($Q$12=Lists!$U$16,IF(Periods!CM20="","",Periods!CM20),IF($Q$12=Lists!$U$17,IF(Periods!CM35="","",Periods!CM35),"")) -> 2026-11-01 | CN11: =IF($Q$12=Lists!$U$16,IF(Periods!CN20="","",Periods!CN20),IF($Q$12=Lists!$U$17,IF(Periods!CN35="","",Periods!CN35),"")) -> 2026-12-01 | CO11: =IF($Q$12=Lists!$U$16,IF(Periods!CO20="","",Periods!CO20),IF($Q$12=Lists!$U$17,IF(Periods!CO35="","",Periods!CO35),"")) -> 2027-01-01 | CP11: =IF($Q$12=Lists!$U$16,IF(Periods!CP20="","",Periods!CP20),IF($Q$12=Lists!$U$17,IF(Periods!CP35="","",Periods!CP35),"")) -> 2027-02-01 | CQ11: =IF($Q$12=Lists!$U$16,IF(Periods!CQ20="","",Periods!CQ20),IF($Q$12=Lists!$U$17,IF(Periods!CQ35="","",Periods!CQ35),"")) -> 2027-03-01 | CR11: =IF($Q$12=Lists!$U$16,IF(Periods!CR20="","",Periods!CR20),IF($Q$12=Lists!$U$17,IF(Periods!CR35="","",Periods!CR35),"")) -> 2027-04-01 | CS11: =IF($Q$12=Lists!$U$16,IF(Periods!CS20="","",Periods!CS20),IF($Q$12=Lists!$U$17,IF(Periods!CS35="","",Periods!CS35),"")) -> 2027-05-01 | CT11: =IF($Q$12=Lists!$U$16,IF(Periods!CT20="","",Periods!CT20),IF($Q$12=Lists!$U$17,IF(Periods!CT35="","",Periods!CT35),"")) -> 2027-06-01 | CU11: =IF($Q$12=Lists!$U$16,IF(Periods!CU20="","",Periods!CU20),IF($Q$12=Lists!$U$17,IF(Periods!CU35="","",Periods!CU35),"")) -> 2027-07-01 | CV11: =IF($Q$12=Lists!$U$16,IF(Periods!CV20="","",Periods!CV20),IF($Q$12=Lists!$U$17,IF(Periods!CV35="","",Periods!CV35),"")) -> 2027-08-01 | CW11: =IF($Q$12=Lists!$U$16,IF(Periods!CW20="","",Periods!CW20),IF($Q$12=Lists!$U$17,IF(Periods!CW35="","",Periods!CW35),"")) -> 2027-09-01 | CX11: =IF($Q$12=Lists!$U$16,IF(Periods!CX20="","",Periods!CX20),IF($Q$12=Lists!$U$17,IF(Periods!CX35="","",Periods!CX35),"")) -> 2027-10-01 | CY11: =IF($Q$12=Lists!$U$16,IF(Periods!CY20="","",Periods!CY20),IF($Q$12=Lists!$U$17,IF(Periods!CY35="","",Periods!CY35),"")) -> 2027-11-01 | CZ11: =IF($Q$12=Lists!$U$16,IF(Periods!CZ20="","",Periods!CZ20),IF($Q$12=Lists!$U$17,IF(Periods!CZ35="","",Periods!CZ35),"")) -> 2027-12-01 | DA11: =IF($Q$12=Lists!$U$16,IF(Periods!DA20="","",Periods!DA20),IF($Q$12=Lists!$U$17,IF(Periods!DA35="","",Periods!DA35),"")) -> 2028-01-01 | DB11: =IF($Q$12=Lists!$U$16,IF(Periods!DB20="","",Periods!DB20),IF($Q$12=Lists!$U$17,IF(Periods!DB35="","",Periods!DB35),"")) -> 2028-02-01 | DC11: =IF($Q$12=Lists!$U$16,IF(Periods!DC20="","",Periods!DC20),IF($Q$12=Lists!$U$17,IF(Periods!DC35="","",Periods!DC35),"")) -> 2028-03-01 | DD11: =IF($Q$12=Lists!$U$16,IF(Periods!DD20="","",Periods!DD20),IF($Q$12=Lists!$U$17,IF(Periods!DD35="","",Periods!DD35),"")) -> 2028-04-01 | DE11: =IF($Q$12=Lists!$U$16,IF(Periods!DE20="","",Periods!DE20),IF($Q$12=Lists!$U$17,IF(Periods!DE35="","",Periods!DE35),"")) -> 2028-05-01 | DF11: =IF($Q$12=Lists!$U$16,IF(Periods!DF20="","",Periods!DF20),IF($Q$12=Lists!$U$17,IF(Periods!DF35="","",Periods!DF35),"")) -> 2028-06-01 | DG11: =IF($Q$12=Lists!$U$16,IF(Periods!DG20="","",Periods!DG20),IF($Q$12=Lists!$U$17,IF(Periods!DG35="","",Periods!DG35),"")) -> 2028-07-01 | DH11: =IF($Q$12=Lists!$U$16,IF(Periods!DH20="","",Periods!DH20),IF($Q$12=Lists!$U$17,IF(Periods!DH35="","",Periods!DH35),"")) -> 2028-08-01 | DI11: =IF($Q$12=Lists!$U$16,IF(Periods!DI20="","",Periods!DI20),IF($Q$12=Lists!$U$17,IF(Periods!DI35="","",Periods!DI35),"")) -> 2028-09-01 | DJ11: =IF($Q$12=Lists!$U$16,IF(Periods!DJ20="","",Periods!DJ20),IF($Q$12=Lists!$U$17,IF(Periods!DJ35="","",Periods!DJ35),"")) -> 2028-10-01 | DK11: =IF($Q$12=Lists!$U$16,IF(Periods!DK20="","",Periods!DK20),IF($Q$12=Lists!$U$17,IF(Periods!DK35="","",Periods!DK35),"")) -> 2028-11-01 | DL11: =IF($Q$12=Lists!$U$16,IF(Periods!DL20="","",Periods!DL20),IF($Q$12=Lists!$U$17,IF(Periods!DL35="","",Periods!DL35),"")) -> 2028-12-01 | DM11: =IF($Q$12=Lists!$U$16,IF(Periods!DM20="","",Periods!DM20),IF($Q$12=Lists!$U$17,IF(Periods!DM35="","",Periods!DM35),"")) -> 2029-01-01 | DN11: =IF($Q$12=Lists!$U$16,IF(Periods!DN20="","",Periods!DN20),IF($Q$12=Lists!$U$17,IF(Periods!DN35="","",Periods!DN35),"")) -> 2029-02-01 | DO11: =IF($Q$12=Lists!$U$16,IF(Periods!DO20="","",Periods!DO20),IF($Q$12=Lists!$U$17,IF(Periods!DO35="","",Periods!DO35),"")) -> 2029-03-01 | DP11: =IF($Q$12=Lists!$U$16,IF(Periods!DP20="","",Periods!DP20),IF($Q$12=Lists!$U$17,IF(Periods!DP35="","",Periods!DP35),"")) -> 2029-04-01 | DQ11: =IF($Q$12=Lists!$U$16,IF(Periods!DQ20="","",Periods!DQ20),IF($Q$12=Lists!$U$17,IF(Periods!DQ35="","",Periods!DQ35),"")) -> 2029-05-01 | DR11: =IF($Q$12=Lists!$U$16,IF(Periods!DR20="","",Periods!DR20),IF($Q$12=Lists!$U$17,IF(Periods!DR35="","",Periods!DR35),"")) -> 2029-06-01 | DS11: =IF($Q$12=Lists!$U$16,IF(Periods!DS20="","",Periods!DS20),IF($Q$12=Lists!$U$17,IF(Periods!DS35="","",Periods!DS35),"")) -> 2029-07-01 | DT11: =IF($Q$12=Lists!$U$16,IF(Periods!DT20="","",Periods!DT20),IF($Q$12=Lists!$U$17,IF(Periods!DT35="","",Periods!DT35),"")) -> 2029-08-01 | DU11: =IF($Q$12=Lists!$U$16,IF(Periods!DU20="","",Periods!DU20),IF($Q$12=Lists!$U$17,IF(Periods!DU35="","",Periods!DU35),"")) -> 2029-09-01 | DV11: =IF($Q$12=Lists!$U$16,IF(Periods!DV20="","",Periods!DV20),IF($Q$12=Lists!$U$17,IF(Periods!DV35="","",Periods!DV35),"")) -> 2029-10-01 | DW11: =IF($Q$12=Lists!$U$16,IF(Periods!DW20="","",Periods!DW20),IF($Q$12=Lists!$U$17,IF(Periods!DW35="","",Periods!DW35),"")) -> 2029-11-01 | DX11: =IF($Q$12=Lists!$U$16,IF(Periods!DX20="","",Periods!DX20),IF($Q$12=Lists!$U$17,IF(Periods!DX35="","",Periods!DX35),"")) -> 2029-12-01 | DY11: =IF($Q$12=Lists!$U$16,IF(Periods!DY20="","",Periods!DY20),IF($Q$12=Lists!$U$17,IF(Periods!DY35="","",Periods!DY35),"")) -> 2030-01-01 | DZ11: =IF($Q$12=Lists!$U$16,IF(Periods!DZ20="","",Periods!DZ20),IF($Q$12=Lists!$U$17,IF(Periods!DZ35="","",Periods!DZ35),"")) -> 2030-02-01 | EA11: =IF($Q$12=Lists!$U$16,IF(Periods!EA20="","",Periods!EA20),IF($Q$12=Lists!$U$17,IF(Periods!EA35="","",Periods!EA35),"")) -> 2030-03-01 | EB11: =IF($Q$12=Lists!$U$16,IF(Periods!EB20="","",Periods!EB20),IF($Q$12=Lists!$U$17,IF(Periods!EB35="","",Periods!EB35),"")) -> 2030-04-01 | EC11: =IF($Q$12=Lists!$U$16,IF(Periods!EC20="","",Periods!EC20),IF($Q$12=Lists!$U$17,IF(Periods!EC35="","",Periods!EC35),"")) -> 2030-05-01 | ED11: =IF($Q$12=Lists!$U$16,IF(Periods!ED20="","",Periods!ED20),IF($Q$12=Lists!$U$17,IF(Periods!ED35="","",Periods!ED35),"")) -> 2030-06-01 | EE11: =IF($Q$12=Lists!$U$16,IF(Periods!EE20="","",Periods!EE20),IF($Q$12=Lists!$U$17,IF(Periods!EE35="","",Periods!EE35),"")) -> 2030-07-01 | EF11: =IF($Q$12=Lists!$U$16,IF(Periods!EF20="","",Periods!EF20),IF($Q$12=Lists!$U$17,IF(Periods!EF35="","",Periods!EF35),"")) -> 2030-08-01 | EG11: =IF($Q$12=Lists!$U$16,IF(Periods!EG20="","",Periods!EG20),IF($Q$12=Lists!$U$17,IF(Periods!EG35="","",Periods!EG35),"")) -> 2030-09-01 | EH11: =IF($Q$12=Lists!$U$16,IF(Periods!EH20="","",Periods!EH20),IF($Q$12=Lists!$U$17,IF(Periods!EH35="","",Periods!EH35),"")) -> 2030-10-01 | EI11: =IF($Q$12=Lists!$U$16,IF(Periods!EI20="","",Periods!EI20),IF($Q$12=Lists!$U$17,IF(Periods!EI35="","",Periods!EI35),"")) -> 2030-11-01 | EJ11: =IF($Q$12=Lists!$U$16,IF(Periods!EJ20="","",Periods!EJ20),IF($Q$12=Lists!$U$17,IF(Periods!EJ35="","",Periods!EJ35),"")) -> 2030-12-01 | EK11: =IF($Q$12=Lists!$U$16,IF(Periods!EK20="","",Periods!EK20),IF($Q$12=Lists!$U$17,IF(Periods!EK35="","",Periods!EK35),"")) -> 2031-01-01 | EL11: =IF($Q$12=Lists!$U$16,IF(Periods!EL20="","",Periods!EL20),IF($Q$12=Lists!$U$17,IF(Periods!EL35="","",Periods!EL35),"")) -> 2031-02-01 | EM11: =IF($Q$12=Lists!$U$16,IF(Periods!EM20="","",Periods!EM20),IF($Q$12=Lists!$U$17,IF(Periods!EM35="","",Periods!EM35),"")) -> 2031-03-01 | EN11: =IF($Q$12=Lists!$U$16,IF(Periods!EN20="","",Periods!EN20),IF($Q$12=Lists!$U$17,IF(Periods!EN35="","",Periods!EN35),"")) -> 2031-04-01 | EO11: =IF($Q$12=Lists!$U$16,IF(Periods!EO20="","",Periods!EO20),IF($Q$12=Lists!$U$17,IF(Periods!EO35="","",Periods!EO35),"")) -> 2031-05-01 | EP11: =IF($Q$12=Lists!$U$16,IF(Periods!EP20="","",Periods!EP20),IF($Q$12=Lists!$U$17,IF(Periods!EP35="","",Periods!EP35),"")) -> 2031-06-01 | EQ11: =IF($Q$12=Lists!$U$16,IF(Periods!EQ20="","",Periods!EQ20),IF($Q$12=Lists!$U$17,IF(Periods!EQ35="","",Periods!EQ35),"")) ->  | ER11: =IF($Q$12=Lists!$U$16,IF(Periods!ER20="","",Periods!ER20),IF($Q$12=Lists!$U$17,IF(Periods!ER35="","",Periods!ER35),"")) ->  | ES11: =IF($Q$12=Lists!$U$16,IF(Periods!ES20="","",Periods!ES20),IF($Q$12=Lists!$U$17,IF(Periods!ES35="","",Periods!ES35),"")) ->  | ET11: =IF($Q$12=Lists!$U$16,IF(Periods!ET20="","",Periods!ET20),IF($Q$12=Lists!$U$17,IF(Periods!ET35="","",Periods!ET35),"")) ->  | EU11: =IF($Q$12=Lists!$U$16,IF(Periods!EU20="","",Periods!EU20),IF($Q$12=Lists!$U$17,IF(Periods!EU35="","",Periods!EU35),"")) ->  | EV11: =IF($Q$12=Lists!$U$16,IF(Periods!EV20="","",Periods!EV20),IF($Q$12=Lists!$U$17,IF(Periods!EV35="","",Periods!EV35),"")) ->  | EW11: =IF($Q$12=Lists!$U$16,IF(Periods!EW20="","",Periods!EW20),IF($Q$12=Lists!$U$17,IF(Periods!EW35="","",Periods!EW35),"")) ->  | EX11: =IF($Q$12=Lists!$U$16,IF(Periods!EX20="","",Periods!EX20),IF($Q$12=Lists!$U$17,IF(Periods!EX35="","",Periods!EX35),"")) ->  | EY11: =IF($Q$12=Lists!$U$16,IF(Periods!EY20="","",Periods!EY20),IF($Q$12=Lists!$U$17,IF(Periods!EY35="","",Periods!EY35),"")) ->  | EZ11: =IF($Q$12=Lists!$U$16,IF(Periods!EZ20="","",Periods!EZ20),IF($Q$12=Lists!$U$17,IF(Periods!EZ35="","",Periods!EZ35),"")) ->  | FA11: =IF($Q$12=Lists!$U$16,IF(Periods!FA20="","",Periods!FA20),IF($Q$12=Lists!$U$17,IF(Periods!FA35="","",Periods!FA35),"")) ->  | FB11: =IF($Q$12=Lists!$U$16,IF(Periods!FB20="","",Periods!FB20),IF($Q$12=Lists!$U$17,IF(Periods!FB35="","",Periods!FB35),"")) ->  | FC11: =IF($Q$12=Lists!$U$16,IF(Periods!FC20="","",Periods!FC20),IF($Q$12=Lists!$U$17,IF(Periods!FC35="","",Periods!FC35),"")) -> 
H12: =Lists!$U$13 -> тип листа | Q12: =INDEX(Cntrl!$Q:$Q,SUMIFS(Cntrl!$A:$A,Cntrl!$I:$I,$F$11)) -> расчетный | X12: =IF($Q$12=Lists!$U$16,IF(Periods!X21="","",Periods!X21),IF($Q$12=Lists!$U$17,IF(Periods!X36="","",Periods!X36),"")) -> 2031-06-30 | AA12: =IF($Q$12=Lists!$U$16,IF(Periods!AA21="","",Periods!AA21),IF($Q$12=Lists!$U$17,IF(Periods!AA36="","",Periods!AA36),"")) -> 2021-07-31 | AB12: =IF($Q$12=Lists!$U$16,IF(Periods!AB21="","",Periods!AB21),IF($Q$12=Lists!$U$17,IF(Periods!AB36="","",Periods!AB36),"")) -> 2021-08-31 | AC12: =IF($Q$12=Lists!$U$16,IF(Periods!AC21="","",Periods!AC21),IF($Q$12=Lists!$U$17,IF(Periods!AC36="","",Periods!AC36),"")) -> 2021-09-30 | AD12: =IF($Q$12=Lists!$U$16,IF(Periods!AD21="","",Periods!AD21),IF($Q$12=Lists!$U$17,IF(Periods!AD36="","",Periods!AD36),"")) -> 2021-10-31 | AE12: =IF($Q$12=Lists!$U$16,IF(Periods!AE21="","",Periods!AE21),IF($Q$12=Lists!$U$17,IF(Periods!AE36="","",Periods!AE36),"")) -> 2021-11-30 | AF12: =IF($Q$12=Lists!$U$16,IF(Periods!AF21="","",Periods!AF21),IF($Q$12=Lists!$U$17,IF(Periods!AF36="","",Periods!AF36),"")) -> 2021-12-31 | AG12: =IF($Q$12=Lists!$U$16,IF(Periods!AG21="","",Periods!AG21),IF($Q$12=Lists!$U$17,IF(Periods!AG36="","",Periods!AG36),"")) -> 2022-01-31 | AH12: =IF($Q$12=Lists!$U$16,IF(Periods!AH21="","",Periods!AH21),IF($Q$12=Lists!$U$17,IF(Periods!AH36="","",Periods!AH36),"")) -> 2022-02-28 | AI12: =IF($Q$12=Lists!$U$16,IF(Periods!AI21="","",Periods!AI21),IF($Q$12=Lists!$U$17,IF(Periods!AI36="","",Periods!AI36),"")) -> 2022-03-31 | AJ12: =IF($Q$12=Lists!$U$16,IF(Periods!AJ21="","",Periods!AJ21),IF($Q$12=Lists!$U$17,IF(Periods!AJ36="","",Periods!AJ36),"")) -> 2022-04-30 | AK12: =IF($Q$12=Lists!$U$16,IF(Periods!AK21="","",Periods!AK21),IF($Q$12=Lists!$U$17,IF(Periods!AK36="","",Periods!AK36),"")) -> 2022-05-31 | AL12: =IF($Q$12=Lists!$U$16,IF(Periods!AL21="","",Periods!AL21),IF($Q$12=Lists!$U$17,IF(Periods!AL36="","",Periods!AL36),"")) -> 2022-06-30 | AM12: =IF($Q$12=Lists!$U$16,IF(Periods!AM21="","",Periods!AM21),IF($Q$12=Lists!$U$17,IF(Periods!AM36="","",Periods!AM36),"")) -> 2022-07-31 | AN12: =IF($Q$12=Lists!$U$16,IF(Periods!AN21="","",Periods!AN21),IF($Q$12=Lists!$U$17,IF(Periods!AN36="","",Periods!AN36),"")) -> 2022-08-31 | AO12: =IF($Q$12=Lists!$U$16,IF(Periods!AO21="","",Periods!AO21),IF($Q$12=Lists!$U$17,IF(Periods!AO36="","",Periods!AO36),"")) -> 2022-09-30 | AP12: =IF($Q$12=Lists!$U$16,IF(Periods!AP21="","",Periods!AP21),IF($Q$12=Lists!$U$17,IF(Periods!AP36="","",Periods!AP36),"")) -> 2022-10-31 | AQ12: =IF($Q$12=Lists!$U$16,IF(Periods!AQ21="","",Periods!AQ21),IF($Q$12=Lists!$U$17,IF(Periods!AQ36="","",Periods!AQ36),"")) -> 2022-11-30 | AR12: =IF($Q$12=Lists!$U$16,IF(Periods!AR21="","",Periods!AR21),IF($Q$12=Lists!$U$17,IF(Periods!AR36="","",Periods!AR36),"")) -> 2022-12-31 | AS12: =IF($Q$12=Lists!$U$16,IF(Periods!AS21="","",Periods!AS21),IF($Q$12=Lists!$U$17,IF(Periods!AS36="","",Periods!AS36),"")) -> 2023-01-31 | AT12: =IF($Q$12=Lists!$U$16,IF(Periods!AT21="","",Periods!AT21),IF($Q$12=Lists!$U$17,IF(Periods!AT36="","",Periods!AT36),"")) -> 2023-02-28 | AU12: =IF($Q$12=Lists!$U$16,IF(Periods!AU21="","",Periods!AU21),IF($Q$12=Lists!$U$17,IF(Periods!AU36="","",Periods!AU36),"")) -> 2023-03-31 | AV12: =IF($Q$12=Lists!$U$16,IF(Periods!AV21="","",Periods!AV21),IF($Q$12=Lists!$U$17,IF(Periods!AV36="","",Periods!AV36),"")) -> 2023-04-30 | AW12: =IF($Q$12=Lists!$U$16,IF(Periods!AW21="","",Periods!AW21),IF($Q$12=Lists!$U$17,IF(Periods!AW36="","",Periods!AW36),"")) -> 2023-05-31 | AX12: =IF($Q$12=Lists!$U$16,IF(Periods!AX21="","",Periods!AX21),IF($Q$12=Lists!$U$17,IF(Periods!AX36="","",Periods!AX36),"")) -> 2023-06-30 | AY12: =IF($Q$12=Lists!$U$16,IF(Periods!AY21="","",Periods!AY21),IF($Q$12=Lists!$U$17,IF(Periods!AY36="","",Periods!AY36),"")) -> 2023-07-31 | AZ12: =IF($Q$12=Lists!$U$16,IF(Periods!AZ21="","",Periods!AZ21),IF($Q$12=Lists!$U$17,IF(Periods!AZ36="","",Periods!AZ36),"")) -> 2023-08-31 | BA12: =IF($Q$12=Lists!$U$16,IF(Periods!BA21="","",Periods!BA21),IF($Q$12=Lists!$U$17,IF(Periods!BA36="","",Periods!BA36),"")) -> 2023-09-30 | BB12: =IF($Q$12=Lists!$U$16,IF(Periods!BB21="","",Periods!BB21),IF($Q$12=Lists!$U$17,IF(Periods!BB36="","",Periods!BB36),"")) -> 2023-10-31 | BC12: =IF($Q$12=Lists!$U$16,IF(Periods!BC21="","",Periods!BC21),IF($Q$12=Lists!$U$17,IF(Periods!BC36="","",Periods!BC36),"")) -> 2023-11-30 | BD12: =IF($Q$12=Lists!$U$16,IF(Periods!BD21="","",Periods!BD21),IF($Q$12=Lists!$U$17,IF(Periods!BD36="","",Periods!BD36),"")) -> 2023-12-31 | BE12: =IF($Q$12=Lists!$U$16,IF(Periods!BE21="","",Periods!BE21),IF($Q$12=Lists!$U$17,IF(Periods!BE36="","",Periods!BE36),"")) -> 2024-01-31 | BF12: =IF($Q$12=Lists!$U$16,IF(Periods!BF21="","",Periods!BF21),IF($Q$12=Lists!$U$17,IF(Periods!BF36="","",Periods!BF36),"")) -> 2024-02-29 | BG12: =IF($Q$12=Lists!$U$16,IF(Periods!BG21="","",Periods!BG21),IF($Q$12=Lists!$U$17,IF(Periods!BG36="","",Periods!BG36),"")) -> 2024-03-31 | BH12: =IF($Q$12=Lists!$U$16,IF(Periods!BH21="","",Periods!BH21),IF($Q$12=Lists!$U$17,IF(Periods!BH36="","",Periods!BH36),"")) -> 2024-04-30 | BI12: =IF($Q$12=Lists!$U$16,IF(Periods!BI21="","",Periods!BI21),IF($Q$12=Lists!$U$17,IF(Periods!BI36="","",Periods!BI36),"")) -> 2024-05-31 | BJ12: =IF($Q$12=Lists!$U$16,IF(Periods!BJ21="","",Periods!BJ21),IF($Q$12=Lists!$U$17,IF(Periods!BJ36="","",Periods!BJ36),"")) -> 2024-06-30 | BK12: =IF($Q$12=Lists!$U$16,IF(Periods!BK21="","",Periods!BK21),IF($Q$12=Lists!$U$17,IF(Periods!BK36="","",Periods!BK36),"")) -> 2024-07-31 | BL12: =IF($Q$12=Lists!$U$16,IF(Periods!BL21="","",Periods!BL21),IF($Q$12=Lists!$U$17,IF(Periods!BL36="","",Periods!BL36),"")) -> 2024-08-31 | BM12: =IF($Q$12=Lists!$U$16,IF(Periods!BM21="","",Periods!BM21),IF($Q$12=Lists!$U$17,IF(Periods!BM36="","",Periods!BM36),"")) -> 2024-09-30 | BN12: =IF($Q$12=Lists!$U$16,IF(Periods!BN21="","",Periods!BN21),IF($Q$12=Lists!$U$17,IF(Periods!BN36="","",Periods!BN36),"")) -> 2024-10-31 | BO12: =IF($Q$12=Lists!$U$16,IF(Periods!BO21="","",Periods!BO21),IF($Q$12=Lists!$U$17,IF(Periods!BO36="","",Periods!BO36),"")) -> 2024-11-30 | BP12: =IF($Q$12=Lists!$U$16,IF(Periods!BP21="","",Periods!BP21),IF($Q$12=Lists!$U$17,IF(Periods!BP36="","",Periods!BP36),"")) -> 2024-12-31 | BQ12: =IF($Q$12=Lists!$U$16,IF(Periods!BQ21="","",Periods!BQ21),IF($Q$12=Lists!$U$17,IF(Periods!BQ36="","",Periods!BQ36),"")) -> 2025-01-31 | BR12: =IF($Q$12=Lists!$U$16,IF(Periods!BR21="","",Periods!BR21),IF($Q$12=Lists!$U$17,IF(Periods!BR36="","",Periods!BR36),"")) -> 2025-02-28 | BS12: =IF($Q$12=Lists!$U$16,IF(Periods!BS21="","",Periods!BS21),IF($Q$12=Lists!$U$17,IF(Periods!BS36="","",Periods!BS36),"")) -> 2025-03-31 | BT12: =IF($Q$12=Lists!$U$16,IF(Periods!BT21="","",Periods!BT21),IF($Q$12=Lists!$U$17,IF(Periods!BT36="","",Periods!BT36),"")) -> 2025-04-30 | BU12: =IF($Q$12=Lists!$U$16,IF(Periods!BU21="","",Periods!BU21),IF($Q$12=Lists!$U$17,IF(Periods!BU36="","",Periods!BU36),"")) -> 2025-05-31 | BV12: =IF($Q$12=Lists!$U$16,IF(Periods!BV21="","",Periods!BV21),IF($Q$12=Lists!$U$17,IF(Periods!BV36="","",Periods!BV36),"")) -> 2025-06-30 | BW12: =IF($Q$12=Lists!$U$16,IF(Periods!BW21="","",Periods!BW21),IF($Q$12=Lists!$U$17,IF(Periods!BW36="","",Periods!BW36),"")) -> 2025-07-31 | BX12: =IF($Q$12=Lists!$U$16,IF(Periods!BX21="","",Periods!BX21),IF($Q$12=Lists!$U$17,IF(Periods!BX36="","",Periods!BX36),"")) -> 2025-08-31 | BY12: =IF($Q$12=Lists!$U$16,IF(Periods!BY21="","",Periods!BY21),IF($Q$12=Lists!$U$17,IF(Periods!BY36="","",Periods!BY36),"")) -> 2025-09-30 | BZ12: =IF($Q$12=Lists!$U$16,IF(Periods!BZ21="","",Periods!BZ21),IF($Q$12=Lists!$U$17,IF(Periods!BZ36="","",Periods!BZ36),"")) -> 2025-10-31 | CA12: =IF($Q$12=Lists!$U$16,IF(Periods!CA21="","",Periods!CA21),IF($Q$12=Lists!$U$17,IF(Periods!CA36="","",Periods!CA36),"")) -> 2025-11-30 | CB12: =IF($Q$12=Lists!$U$16,IF(Periods!CB21="","",Periods!CB21),IF($Q$12=Lists!$U$17,IF(Periods!CB36="","",Periods!CB36),"")) -> 2025-12-31 | CC12: =IF($Q$12=Lists!$U$16,IF(Periods!CC21="","",Periods!CC21),IF($Q$12=Lists!$U$17,IF(Periods!CC36="","",Periods!CC36),"")) -> 2026-01-31 | CD12: =IF($Q$12=Lists!$U$16,IF(Periods!CD21="","",Periods!CD21),IF($Q$12=Lists!$U$17,IF(Periods!CD36="","",Periods!CD36),"")) -> 2026-02-28 | CE12: =IF($Q$12=Lists!$U$16,IF(Periods!CE21="","",Periods!CE21),IF($Q$12=Lists!$U$17,IF(Periods!CE36="","",Periods!CE36),"")) -> 2026-03-31 | CF12: =IF($Q$12=Lists!$U$16,IF(Periods!CF21="","",Periods!CF21),IF($Q$12=Lists!$U$17,IF(Periods!CF36="","",Periods!CF36),"")) -> 2026-04-30 | CG12: =IF($Q$12=Lists!$U$16,IF(Periods!CG21="","",Periods!CG21),IF($Q$12=Lists!$U$17,IF(Periods!CG36="","",Periods!CG36),"")) -> 2026-05-31 | CH12: =IF($Q$12=Lists!$U$16,IF(Periods!CH21="","",Periods!CH21),IF($Q$12=Lists!$U$17,IF(Periods!CH36="","",Periods!CH36),"")) -> 2026-06-30 | CI12: =IF($Q$12=Lists!$U$16,IF(Periods!CI21="","",Periods!CI21),IF($Q$12=Lists!$U$17,IF(Periods!CI36="","",Periods!CI36),"")) -> 2026-07-31 | CJ12: =IF($Q$12=Lists!$U$16,IF(Periods!CJ21="","",Periods!CJ21),IF($Q$12=Lists!$U$17,IF(Periods!CJ36="","",Periods!CJ36),"")) -> 2026-08-31 | CK12: =IF($Q$12=Lists!$U$16,IF(Periods!CK21="","",Periods!CK21),IF($Q$12=Lists!$U$17,IF(Periods!CK36="","",Periods!CK36),"")) -> 2026-09-30 | CL12: =IF($Q$12=Lists!$U$16,IF(Periods!CL21="","",Periods!CL21),IF($Q$12=Lists!$U$17,IF(Periods!CL36="","",Periods!CL36),"")) -> 2026-10-31 | CM12: =IF($Q$12=Lists!$U$16,IF(Periods!CM21="","",Periods!CM21),IF($Q$12=Lists!$U$17,IF(Periods!CM36="","",Periods!CM36),"")) -> 2026-11-30 | CN12: =IF($Q$12=Lists!$U$16,IF(Periods!CN21="","",Periods!CN21),IF($Q$12=Lists!$U$17,IF(Periods!CN36="","",Periods!CN36),"")) -> 2026-12-31 | CO12: =IF($Q$12=Lists!$U$16,IF(Periods!CO21="","",Periods!CO21),IF($Q$12=Lists!$U$17,IF(Periods!CO36="","",Periods!CO36),"")) -> 2027-01-31 | CP12: =IF($Q$12=Lists!$U$16,IF(Periods!CP21="","",Periods!CP21),IF($Q$12=Lists!$U$17,IF(Periods!CP36="","",Periods!CP36),"")) -> 2027-02-28 | CQ12: =IF($Q$12=Lists!$U$16,IF(Periods!CQ21="","",Periods!CQ21),IF($Q$12=Lists!$U$17,IF(Periods!CQ36="","",Periods!CQ36),"")) -> 2027-03-31 | CR12: =IF($Q$12=Lists!$U$16,IF(Periods!CR21="","",Periods!CR21),IF($Q$12=Lists!$U$17,IF(Periods!CR36="","",Periods!CR36),"")) -> 2027-04-30 | CS12: =IF($Q$12=Lists!$U$16,IF(Periods!CS21="","",Periods!CS21),IF($Q$12=Lists!$U$17,IF(Periods!CS36="","",Periods!CS36),"")) -> 2027-05-31 | CT12: =IF($Q$12=Lists!$U$16,IF(Periods!CT21="","",Periods!CT21),IF($Q$12=Lists!$U$17,IF(Periods!CT36="","",Periods!CT36),"")) -> 2027-06-30 | CU12: =IF($Q$12=Lists!$U$16,IF(Periods!CU21="","",Periods!CU21),IF($Q$12=Lists!$U$17,IF(Periods!CU36="","",Periods!CU36),"")) -> 2027-07-31 | CV12: =IF($Q$12=Lists!$U$16,IF(Periods!CV21="","",Periods!CV21),IF($Q$12=Lists!$U$17,IF(Periods!CV36="","",Periods!CV36),"")) -> 2027-08-31 | CW12: =IF($Q$12=Lists!$U$16,IF(Periods!CW21="","",Periods!CW21),IF($Q$12=Lists!$U$17,IF(Periods!CW36="","",Periods!CW36),"")) -> 2027-09-30 | CX12: =IF($Q$12=Lists!$U$16,IF(Periods!CX21="","",Periods!CX21),IF($Q$12=Lists!$U$17,IF(Periods!CX36="","",Periods!CX36),"")) -> 2027-10-31 | CY12: =IF($Q$12=Lists!$U$16,IF(Periods!CY21="","",Periods!CY21),IF($Q$12=Lists!$U$17,IF(Periods!CY36="","",Periods!CY36),"")) -> 2027-11-30 | CZ12: =IF($Q$12=Lists!$U$16,IF(Periods!CZ21="","",Periods!CZ21),IF($Q$12=Lists!$U$17,IF(Periods!CZ36="","",Periods!CZ36),"")) -> 2027-12-31 | DA12: =IF($Q$12=Lists!$U$16,IF(Periods!DA21="","",Periods!DA21),IF($Q$12=Lists!$U$17,IF(Periods!DA36="","",Periods!DA36),"")) -> 2028-01-31 | DB12: =IF($Q$12=Lists!$U$16,IF(Periods!DB21="","",Periods!DB21),IF($Q$12=Lists!$U$17,IF(Periods!DB36="","",Periods!DB36),"")) -> 2028-02-29 | DC12: =IF($Q$12=Lists!$U$16,IF(Periods!DC21="","",Periods!DC21),IF($Q$12=Lists!$U$17,IF(Periods!DC36="","",Periods!DC36),"")) -> 2028-03-31 | DD12: =IF($Q$12=Lists!$U$16,IF(Periods!DD21="","",Periods!DD21),IF($Q$12=Lists!$U$17,IF(Periods!DD36="","",Periods!DD36),"")) -> 2028-04-30 | DE12: =IF($Q$12=Lists!$U$16,IF(Periods!DE21="","",Periods!DE21),IF($Q$12=Lists!$U$17,IF(Periods!DE36="","",Periods!DE36),"")) -> 2028-05-31 | DF12: =IF($Q$12=Lists!$U$16,IF(Periods!DF21="","",Periods!DF21),IF($Q$12=Lists!$U$17,IF(Periods!DF36="","",Periods!DF36),"")) -> 2028-06-30 | DG12: =IF($Q$12=Lists!$U$16,IF(Periods!DG21="","",Periods!DG21),IF($Q$12=Lists!$U$17,IF(Periods!DG36="","",Periods!DG36),"")) -> 2028-07-31 | DH12: =IF($Q$12=Lists!$U$16,IF(Periods!DH21="","",Periods!DH21),IF($Q$12=Lists!$U$17,IF(Periods!DH36="","",Periods!DH36),"")) -> 2028-08-31 | DI12: =IF($Q$12=Lists!$U$16,IF(Periods!DI21="","",Periods!DI21),IF($Q$12=Lists!$U$17,IF(Periods!DI36="","",Periods!DI36),"")) -> 2028-09-30 | DJ12: =IF($Q$12=Lists!$U$16,IF(Periods!DJ21="","",Periods!DJ21),IF($Q$12=Lists!$U$17,IF(Periods!DJ36="","",Periods!DJ36),"")) -> 2028-10-31 | DK12: =IF($Q$12=Lists!$U$16,IF(Periods!DK21="","",Periods!DK21),IF($Q$12=Lists!$U$17,IF(Periods!DK36="","",Periods!DK36),"")) -> 2028-11-30 | DL12: =IF($Q$12=Lists!$U$16,IF(Periods!DL21="","",Periods!DL21),IF($Q$12=Lists!$U$17,IF(Periods!DL36="","",Periods!DL36),"")) -> 2028-12-31 | DM12: =IF($Q$12=Lists!$U$16,IF(Periods!DM21="","",Periods!DM21),IF($Q$12=Lists!$U$17,IF(Periods!DM36="","",Periods!DM36),"")) -> 2029-01-31 | DN12: =IF($Q$12=Lists!$U$16,IF(Periods!DN21="","",Periods!DN21),IF($Q$12=Lists!$U$17,IF(Periods!DN36="","",Periods!DN36),"")) -> 2029-02-28 | DO12: =IF($Q$12=Lists!$U$16,IF(Periods!DO21="","",Periods!DO21),IF($Q$12=Lists!$U$17,IF(Periods!DO36="","",Periods!DO36),"")) -> 2029-03-31 | DP12: =IF($Q$12=Lists!$U$16,IF(Periods!DP21="","",Periods!DP21),IF($Q$12=Lists!$U$17,IF(Periods!DP36="","",Periods!DP36),"")) -> 2029-04-30 | DQ12: =IF($Q$12=Lists!$U$16,IF(Periods!DQ21="","",Periods!DQ21),IF($Q$12=Lists!$U$17,IF(Periods!DQ36="","",Periods!DQ36),"")) -> 2029-05-31 | DR12: =IF($Q$12=Lists!$U$16,IF(Periods!DR21="","",Periods!DR21),IF($Q$12=Lists!$U$17,IF(Periods!DR36="","",Periods!DR36),"")) -> 2029-06-30 | DS12: =IF($Q$12=Lists!$U$16,IF(Periods!DS21="","",Periods!DS21),IF($Q$12=Lists!$U$17,IF(Periods!DS36="","",Periods!DS36),"")) -> 2029-07-31 | DT12: =IF($Q$12=Lists!$U$16,IF(Periods!DT21="","",Periods!DT21),IF($Q$12=Lists!$U$17,IF(Periods!DT36="","",Periods!DT36),"")) -> 2029-08-31 | DU12: =IF($Q$12=Lists!$U$16,IF(Periods!DU21="","",Periods!DU21),IF($Q$12=Lists!$U$17,IF(Periods!DU36="","",Periods!DU36),"")) -> 2029-09-30 | DV12: =IF($Q$12=Lists!$U$16,IF(Periods!DV21="","",Periods!DV21),IF($Q$12=Lists!$U$17,IF(Periods!DV36="","",Periods!DV36),"")) -> 2029-10-31 | DW12: =IF($Q$12=Lists!$U$16,IF(Periods!DW21="","",Periods!DW21),IF($Q$12=Lists!$U$17,IF(Periods!DW36="","",Periods!DW36),"")) -> 2029-11-30 | DX12: =IF($Q$12=Lists!$U$16,IF(Periods!DX21="","",Periods!DX21),IF($Q$12=Lists!$U$17,IF(Periods!DX36="","",Periods!DX36),"")) -> 2029-12-31 | DY12: =IF($Q$12=Lists!$U$16,IF(Periods!DY21="","",Periods!DY21),IF($Q$12=Lists!$U$17,IF(Periods!DY36="","",Periods!DY36),"")) -> 2030-01-31 | DZ12: =IF($Q$12=Lists!$U$16,IF(Periods!DZ21="","",Periods!DZ21),IF($Q$12=Lists!$U$17,IF(Periods!DZ36="","",Periods!DZ36),"")) -> 2030-02-28 | EA12: =IF($Q$12=Lists!$U$16,IF(Periods!EA21="","",Periods!EA21),IF($Q$12=Lists!$U$17,IF(Periods!EA36="","",Periods!EA36),"")) -> 2030-03-31 | EB12: =IF($Q$12=Lists!$U$16,IF(Periods!EB21="","",Periods!EB21),IF($Q$12=Lists!$U$17,IF(Periods!EB36="","",Periods!EB36),"")) -> 2030-04-30 | EC12: =IF($Q$12=Lists!$U$16,IF(Periods!EC21="","",Periods!EC21),IF($Q$12=Lists!$U$17,IF(Periods!EC36="","",Periods!EC36),"")) -> 2030-05-31 | ED12: =IF($Q$12=Lists!$U$16,IF(Periods!ED21="","",Periods!ED21),IF($Q$12=Lists!$U$17,IF(Periods!ED36="","",Periods!ED36),"")) -> 2030-06-30 | EE12: =IF($Q$12=Lists!$U$16,IF(Periods!EE21="","",Periods!EE21),IF($Q$12=Lists!$U$17,IF(Periods!EE36="","",Periods!EE36),"")) -> 2030-07-31 | EF12: =IF($Q$12=Lists!$U$16,IF(Periods!EF21="","",Periods!EF21),IF($Q$12=Lists!$U$17,IF(Periods!EF36="","",Periods!EF36),"")) -> 2030-08-31 | EG12: =IF($Q$12=Lists!$U$16,IF(Periods!EG21="","",Periods!EG21),IF($Q$12=Lists!$U$17,IF(Periods!EG36="","",Periods!EG36),"")) -> 2030-09-30 | EH12: =IF($Q$12=Lists!$U$16,IF(Periods!EH21="","",Periods!EH21),IF($Q$12=Lists!$U$17,IF(Periods!EH36="","",Periods!EH36),"")) -> 2030-10-31 | EI12: =IF($Q$12=Lists!$U$16,IF(Periods!EI21="","",Periods!EI21),IF($Q$12=Lists!$U$17,IF(Periods!EI36="","",Periods!EI36),"")) -> 2030-11-30 | EJ12: =IF($Q$12=Lists!$U$16,IF(Periods!EJ21="","",Periods!EJ21),IF($Q$12=Lists!$U$17,IF(Periods!EJ36="","",Periods!EJ36),"")) -> 2030-12-31 | EK12: =IF($Q$12=Lists!$U$16,IF(Periods!EK21="","",Periods!EK21),IF($Q$12=Lists!$U$17,IF(Periods!EK36="","",Periods!EK36),"")) -> 2031-01-31 | EL12: =IF($Q$12=Lists!$U$16,IF(Periods!EL21="","",Periods!EL21),IF($Q$12=Lists!$U$17,IF(Periods!EL36="","",Periods!EL36),"")) -> 2031-02-28 | EM12: =IF($Q$12=Lists!$U$16,IF(Periods!EM21="","",Periods!EM21),IF($Q$12=Lists!$U$17,IF(Periods!EM36="","",Periods!EM36),"")) -> 2031-03-31 | EN12: =IF($Q$12=Lists!$U$16,IF(Periods!EN21="","",Periods!EN21),IF($Q$12=Lists!$U$17,IF(Periods!EN36="","",Periods!EN36),"")) -> 2031-04-30 | EO12: =IF($Q$12=Lists!$U$16,IF(Periods!EO21="","",Periods!EO21),IF($Q$12=Lists!$U$17,IF(Periods!EO36="","",Periods!EO36),"")) -> 2031-05-31 | EP12: =IF($Q$12=Lists!$U$16,IF(Periods!EP21="","",Periods!EP21),IF($Q$12=Lists!$U$17,IF(Periods!EP36="","",Periods!EP36),"")) -> 2031-06-30 | EQ12: =IF($Q$12=Lists!$U$16,IF(Periods!EQ21="","",Periods!EQ21),IF($Q$12=Lists!$U$17,IF(Periods!EQ36="","",Periods!EQ36),"")) ->  | ER12: =IF($Q$12=Lists!$U$16,IF(Periods!ER21="","",Periods!ER21),IF($Q$12=Lists!$U$17,IF(Periods!ER36="","",Periods!ER36),"")) ->  | ES12: =IF($Q$12=Lists!$U$16,IF(Periods!ES21="","",Periods!ES21),IF($Q$12=Lists!$U$17,IF(Periods!ES36="","",Periods!ES36),"")) ->  | ET12: =IF($Q$12=Lists!$U$16,IF(Periods!ET21="","",Periods!ET21),IF($Q$12=Lists!$U$17,IF(Periods!ET36="","",Periods!ET36),"")) ->  | EU12: =IF($Q$12=Lists!$U$16,IF(Periods!EU21="","",Periods!EU21),IF($Q$12=Lists!$U$17,IF(Periods!EU36="","",Periods!EU36),"")) ->  | EV12: =IF($Q$12=Lists!$U$16,IF(Periods!EV21="","",Periods!EV21),IF($Q$12=Lists!$U$17,IF(Periods!EV36="","",Periods!EV36),"")) ->  | EW12: =IF($Q$12=Lists!$U$16,IF(Periods!EW21="","",Periods!EW21),IF($Q$12=Lists!$U$17,IF(Periods!EW36="","",Periods!EW36),"")) ->  | EX12: =IF($Q$12=Lists!$U$16,IF(Periods!EX21="","",Periods!EX21),IF($Q$12=Lists!$U$17,IF(Periods!EX36="","",Periods!EX36),"")) ->  | EY12: =IF($Q$12=Lists!$U$16,IF(Periods!EY21="","",Periods!EY21),IF($Q$12=Lists!$U$17,IF(Periods!EY36="","",Periods!EY36),"")) ->  | EZ12: =IF($Q$12=Lists!$U$16,IF(Periods!EZ21="","",Periods!EZ21),IF($Q$12=Lists!$U$17,IF(Periods!EZ36="","",Periods!EZ36),"")) ->  | FA12: =IF($Q$12=Lists!$U$16,IF(Periods!FA21="","",Periods!FA21),IF($Q$12=Lists!$U$17,IF(Periods!FA36="","",Periods!FA36),"")) ->  | FB12: =IF($Q$12=Lists!$U$16,IF(Periods!FB21="","",Periods!FB21),IF($Q$12=Lists!$U$17,IF(Periods!FB36="","",Periods!FB36),"")) ->  | FC12: =IF($Q$12=Lists!$U$16,IF(Periods!FC21="","",Periods!FC21),IF($Q$12=Lists!$U$17,IF(Periods!FC36="","",Periods!FC36),"")) -> 
H13: показатель | Q13: значение | X13: итого | AA13: =IF($Q$12=Lists!$U$16,IF(Periods!AA22="","",Periods!AA22),IF($Q$12=Lists!$U$17,IF(Periods!AA37="","",Periods!AA37),"")) -> 2021-07-01 | AB13: =IF($Q$12=Lists!$U$16,IF(Periods!AB22="","",Periods!AB22),IF($Q$12=Lists!$U$17,IF(Periods!AB37="","",Periods!AB37),"")) -> 2021-08-01 | AC13: =IF($Q$12=Lists!$U$16,IF(Periods!AC22="","",Periods!AC22),IF($Q$12=Lists!$U$17,IF(Periods!AC37="","",Periods!AC37),"")) -> 2021-09-01 | AD13: =IF($Q$12=Lists!$U$16,IF(Periods!AD22="","",Periods!AD22),IF($Q$12=Lists!$U$17,IF(Periods!AD37="","",Periods!AD37),"")) -> 2021-10-01 | AE13: =IF($Q$12=Lists!$U$16,IF(Periods!AE22="","",Periods!AE22),IF($Q$12=Lists!$U$17,IF(Periods!AE37="","",Periods!AE37),"")) -> 2021-11-01 | AF13: =IF($Q$12=Lists!$U$16,IF(Periods!AF22="","",Periods!AF22),IF($Q$12=Lists!$U$17,IF(Periods!AF37="","",Periods!AF37),"")) -> 2021-12-01 | AG13: =IF($Q$12=Lists!$U$16,IF(Periods!AG22="","",Periods!AG22),IF($Q$12=Lists!$U$17,IF(Periods!AG37="","",Periods!AG37),"")) -> 2022-01-01 | AH13: =IF($Q$12=Lists!$U$16,IF(Periods!AH22="","",Periods!AH22),IF($Q$12=Lists!$U$17,IF(Periods!AH37="","",Periods!AH37),"")) -> 2022-02-01 | AI13: =IF($Q$12=Lists!$U$16,IF(Periods!AI22="","",Periods!AI22),IF($Q$12=Lists!$U$17,IF(Periods!AI37="","",Periods!AI37),"")) -> 2022-03-01 | AJ13: =IF($Q$12=Lists!$U$16,IF(Periods!AJ22="","",Periods!AJ22),IF($Q$12=Lists!$U$17,IF(Periods!AJ37="","",Periods!AJ37),"")) -> 2022-04-01 | AK13: =IF($Q$12=Lists!$U$16,IF(Periods!AK22="","",Periods!AK22),IF($Q$12=Lists!$U$17,IF(Periods!AK37="","",Periods!AK37),"")) -> 2022-05-01 | AL13: =IF($Q$12=Lists!$U$16,IF(Periods!AL22="","",Periods!AL22),IF($Q$12=Lists!$U$17,IF(Periods!AL37="","",Periods!AL37),"")) -> 2022-06-01 | AM13: =IF($Q$12=Lists!$U$16,IF(Periods!AM22="","",Periods!AM22),IF($Q$12=Lists!$U$17,IF(Periods!AM37="","",Periods!AM37),"")) -> 2022-07-01 | AN13: =IF($Q$12=Lists!$U$16,IF(Periods!AN22="","",Periods!AN22),IF($Q$12=Lists!$U$17,IF(Periods!AN37="","",Periods!AN37),"")) -> 2022-08-01 | AO13: =IF($Q$12=Lists!$U$16,IF(Periods!AO22="","",Periods!AO22),IF($Q$12=Lists!$U$17,IF(Periods!AO37="","",Periods!AO37),"")) -> 2022-09-01 | AP13: =IF($Q$12=Lists!$U$16,IF(Periods!AP22="","",Periods!AP22),IF($Q$12=Lists!$U$17,IF(Periods!AP37="","",Periods!AP37),"")) -> 2022-10-01 | AQ13: =IF($Q$12=Lists!$U$16,IF(Periods!AQ22="","",Periods!AQ22),IF($Q$12=Lists!$U$17,IF(Periods!AQ37="","",Periods!AQ37),"")) -> 2022-11-01 | AR13: =IF($Q$12=Lists!$U$16,IF(Periods!AR22="","",Periods!AR22),IF($Q$12=Lists!$U$17,IF(Periods!AR37="","",Periods!AR37),"")) -> 2022-12-01 | AS13: =IF($Q$12=Lists!$U$16,IF(Periods!AS22="","",Periods!AS22),IF($Q$12=Lists!$U$17,IF(Periods!AS37="","",Periods!AS37),"")) -> 2023-01-01 | AT13: =IF($Q$12=Lists!$U$16,IF(Periods!AT22="","",Periods!AT22),IF($Q$12=Lists!$U$17,IF(Periods!AT37="","",Periods!AT37),"")) -> 2023-02-01 | AU13: =IF($Q$12=Lists!$U$16,IF(Periods!AU22="","",Periods!AU22),IF($Q$12=Lists!$U$17,IF(Periods!AU37="","",Periods!AU37),"")) -> 2023-03-01 | AV13: =IF($Q$12=Lists!$U$16,IF(Periods!AV22="","",Periods!AV22),IF($Q$12=Lists!$U$17,IF(Periods!AV37="","",Periods!AV37),"")) -> 2023-04-01 | AW13: =IF($Q$12=Lists!$U$16,IF(Periods!AW22="","",Periods!AW22),IF($Q$12=Lists!$U$17,IF(Periods!AW37="","",Periods!AW37),"")) -> 2023-05-01 | AX13: =IF($Q$12=Lists!$U$16,IF(Periods!AX22="","",Periods!AX22),IF($Q$12=Lists!$U$17,IF(Periods!AX37="","",Periods!AX37),"")) -> 2023-06-01 | AY13: =IF($Q$12=Lists!$U$16,IF(Periods!AY22="","",Periods!AY22),IF($Q$12=Lists!$U$17,IF(Periods!AY37="","",Periods!AY37),"")) -> 2023-07-01 | AZ13: =IF($Q$12=Lists!$U$16,IF(Periods!AZ22="","",Periods!AZ22),IF($Q$12=Lists!$U$17,IF(Periods!AZ37="","",Periods!AZ37),"")) -> 2023-08-01 | BA13: =IF($Q$12=Lists!$U$16,IF(Periods!BA22="","",Periods!BA22),IF($Q$12=Lists!$U$17,IF(Periods!BA37="","",Periods!BA37),"")) -> 2023-09-01 | BB13: =IF($Q$12=Lists!$U$16,IF(Periods!BB22="","",Periods!BB22),IF($Q$12=Lists!$U$17,IF(Periods!BB37="","",Periods!BB37),"")) -> 2023-10-01 | BC13: =IF($Q$12=Lists!$U$16,IF(Periods!BC22="","",Periods!BC22),IF($Q$12=Lists!$U$17,IF(Periods!BC37="","",Periods!BC37),"")) -> 2023-11-01 | BD13: =IF($Q$12=Lists!$U$16,IF(Periods!BD22="","",Periods!BD22),IF($Q$12=Lists!$U$17,IF(Periods!BD37="","",Periods!BD37),"")) -> 2023-12-01 | BE13: =IF($Q$12=Lists!$U$16,IF(Periods!BE22="","",Periods!BE22),IF($Q$12=Lists!$U$17,IF(Periods!BE37="","",Periods!BE37),"")) -> 2024-01-01 | BF13: =IF($Q$12=Lists!$U$16,IF(Periods!BF22="","",Periods!BF22),IF($Q$12=Lists!$U$17,IF(Periods!BF37="","",Periods!BF37),"")) -> 2024-02-01 | BG13: =IF($Q$12=Lists!$U$16,IF(Periods!BG22="","",Periods!BG22),IF($Q$12=Lists!$U$17,IF(Periods!BG37="","",Periods!BG37),"")) -> 2024-03-01 | BH13: =IF($Q$12=Lists!$U$16,IF(Periods!BH22="","",Periods!BH22),IF($Q$12=Lists!$U$17,IF(Periods!BH37="","",Periods!BH37),"")) -> 2024-04-01 | BI13: =IF($Q$12=Lists!$U$16,IF(Periods!BI22="","",Periods!BI22),IF($Q$12=Lists!$U$17,IF(Periods!BI37="","",Periods!BI37),"")) -> 2024-05-01 | BJ13: =IF($Q$12=Lists!$U$16,IF(Periods!BJ22="","",Periods!BJ22),IF($Q$12=Lists!$U$17,IF(Periods!BJ37="","",Periods!BJ37),"")) -> 2024-06-01 | BK13: =IF($Q$12=Lists!$U$16,IF(Periods!BK22="","",Periods!BK22),IF($Q$12=Lists!$U$17,IF(Periods!BK37="","",Periods!BK37),"")) -> 2024-07-01 | BL13: =IF($Q$12=Lists!$U$16,IF(Periods!BL22="","",Periods!BL22),IF($Q$12=Lists!$U$17,IF(Periods!BL37="","",Periods!BL37),"")) -> 2024-08-01 | BM13: =IF($Q$12=Lists!$U$16,IF(Periods!BM22="","",Periods!BM22),IF($Q$12=Lists!$U$17,IF(Periods!BM37="","",Periods!BM37),"")) -> 2024-09-01 | BN13: =IF($Q$12=Lists!$U$16,IF(Periods!BN22="","",Periods!BN22),IF($Q$12=Lists!$U$17,IF(Periods!BN37="","",Periods!BN37),"")) -> 2024-10-01 | BO13: =IF($Q$12=Lists!$U$16,IF(Periods!BO22="","",Periods!BO22),IF($Q$12=Lists!$U$17,IF(Periods!BO37="","",Periods!BO37),"")) -> 2024-11-01 | BP13: =IF($Q$12=Lists!$U$16,IF(Periods!BP22="","",Periods!BP22),IF($Q$12=Lists!$U$17,IF(Periods!BP37="","",Periods!BP37),"")) -> 2024-12-01 | BQ13: =IF($Q$12=Lists!$U$16,IF(Periods!BQ22="","",Periods!BQ22),IF($Q$12=Lists!$U$17,IF(Periods!BQ37="","",Periods!BQ37),"")) -> 2025-01-01 | BR13: =IF($Q$12=Lists!$U$16,IF(Periods!BR22="","",Periods!BR22),IF($Q$12=Lists!$U$17,IF(Periods!BR37="","",Periods!BR37),"")) -> 2025-02-01 | BS13: =IF($Q$12=Lists!$U$16,IF(Periods!BS22="","",Periods!BS22),IF($Q$12=Lists!$U$17,IF(Periods!BS37="","",Periods!BS37),"")) -> 2025-03-01 | BT13: =IF($Q$12=Lists!$U$16,IF(Periods!BT22="","",Periods!BT22),IF($Q$12=Lists!$U$17,IF(Periods!BT37="","",Periods!BT37),"")) -> 2025-04-01 | BU13: =IF($Q$12=Lists!$U$16,IF(Periods!BU22="","",Periods!BU22),IF($Q$12=Lists!$U$17,IF(Periods!BU37="","",Periods!BU37),"")) -> 2025-05-01 | BV13: =IF($Q$12=Lists!$U$16,IF(Periods!BV22="","",Periods!BV22),IF($Q$12=Lists!$U$17,IF(Periods!BV37="","",Periods!BV37),"")) -> 2025-06-01 | BW13: =IF($Q$12=Lists!$U$16,IF(Periods!BW22="","",Periods!BW22),IF($Q$12=Lists!$U$17,IF(Periods!BW37="","",Periods!BW37),"")) -> 2025-07-01 | BX13: =IF($Q$12=Lists!$U$16,IF(Periods!BX22="","",Periods!BX22),IF($Q$12=Lists!$U$17,IF(Periods!BX37="","",Periods!BX37),"")) -> 2025-08-01 | BY13: =IF($Q$12=Lists!$U$16,IF(Periods!BY22="","",Periods!BY22),IF($Q$12=Lists!$U$17,IF(Periods!BY37="","",Periods!BY37),"")) -> 2025-09-01 | BZ13: =IF($Q$12=Lists!$U$16,IF(Periods!BZ22="","",Periods!BZ22),IF($Q$12=Lists!$U$17,IF(Periods!BZ37="","",Periods!BZ37),"")) -> 2025-10-01 | CA13: =IF($Q$12=Lists!$U$16,IF(Periods!CA22="","",Periods!CA22),IF($Q$12=Lists!$U$17,IF(Periods!CA37="","",Periods!CA37),"")) -> 2025-11-01 | CB13: =IF($Q$12=Lists!$U$16,IF(Periods!CB22="","",Periods!CB22),IF($Q$12=Lists!$U$17,IF(Periods!CB37="","",Periods!CB37),"")) -> 2025-12-01 | CC13: =IF($Q$12=Lists!$U$16,IF(Periods!CC22="","",Periods!CC22),IF($Q$12=Lists!$U$17,IF(Periods!CC37="","",Periods!CC37),"")) -> 2026-01-01 | CD13: =IF($Q$12=Lists!$U$16,IF(Periods!CD22="","",Periods!CD22),IF($Q$12=Lists!$U$17,IF(Periods!CD37="","",Periods!CD37),"")) -> 2026-02-01 | CE13: =IF($Q$12=Lists!$U$16,IF(Periods!CE22="","",Periods!CE22),IF($Q$12=Lists!$U$17,IF(Periods!CE37="","",Periods!CE37),"")) -> 2026-03-01 | CF13: =IF($Q$12=Lists!$U$16,IF(Periods!CF22="","",Periods!CF22),IF($Q$12=Lists!$U$17,IF(Periods!CF37="","",Periods!CF37),"")) -> 2026-04-01 | CG13: =IF($Q$12=Lists!$U$16,IF(Periods!CG22="","",Periods!CG22),IF($Q$12=Lists!$U$17,IF(Periods!CG37="","",Periods!CG37),"")) -> 2026-05-01 | CH13: =IF($Q$12=Lists!$U$16,IF(Periods!CH22="","",Periods!CH22),IF($Q$12=Lists!$U$17,IF(Periods!CH37="","",Periods!CH37),"")) -> 2026-06-01 | CI13: =IF($Q$12=Lists!$U$16,IF(Periods!CI22="","",Periods!CI22),IF($Q$12=Lists!$U$17,IF(Periods!CI37="","",Periods!CI37),"")) -> 2026-07-01 | CJ13: =IF($Q$12=Lists!$U$16,IF(Periods!CJ22="","",Periods!CJ22),IF($Q$12=Lists!$U$17,IF(Periods!CJ37="","",Periods!CJ37),"")) -> 2026-08-01 | CK13: =IF($Q$12=Lists!$U$16,IF(Periods!CK22="","",Periods!CK22),IF($Q$12=Lists!$U$17,IF(Periods!CK37="","",Periods!CK37),"")) -> 2026-09-01 | CL13: =IF($Q$12=Lists!$U$16,IF(Periods!CL22="","",Periods!CL22),IF($Q$12=Lists!$U$17,IF(Periods!CL37="","",Periods!CL37),"")) -> 2026-10-01 | CM13: =IF($Q$12=Lists!$U$16,IF(Periods!CM22="","",Periods!CM22),IF($Q$12=Lists!$U$17,IF(Periods!CM37="","",Periods!CM37),"")) -> 2026-11-01 | CN13: =IF($Q$12=Lists!$U$16,IF(Periods!CN22="","",Periods!CN22),IF($Q$12=Lists!$U$17,IF(Periods!CN37="","",Periods!CN37),"")) -> 2026-12-01 | CO13: =IF($Q$12=Lists!$U$16,IF(Periods!CO22="","",Periods!CO22),IF($Q$12=Lists!$U$17,IF(Periods!CO37="","",Periods!CO37),"")) -> 2027-01-01 | CP13: =IF($Q$12=Lists!$U$16,IF(Periods!CP22="","",Periods!CP22),IF($Q$12=Lists!$U$17,IF(Periods!CP37="","",Periods!CP37),"")) -> 2027-02-01 | CQ13: =IF($Q$12=Lists!$U$16,IF(Periods!CQ22="","",Periods!CQ22),IF($Q$12=Lists!$U$17,IF(Periods!CQ37="","",Periods!CQ37),"")) -> 2027-03-01 | CR13: =IF($Q$12=Lists!$U$16,IF(Periods!CR22="","",Periods!CR22),IF($Q$12=Lists!$U$17,IF(Periods!CR37="","",Periods!CR37),"")) -> 2027-04-01 | CS13: =IF($Q$12=Lists!$U$16,IF(Periods!CS22="","",Periods!CS22),IF($Q$12=Lists!$U$17,IF(Periods!CS37="","",Periods!CS37),"")) -> 2027-05-01 | CT13: =IF($Q$12=Lists!$U$16,IF(Periods!CT22="","",Periods!CT22),IF($Q$12=Lists!$U$17,IF(Periods!CT37="","",Periods!CT37),"")) -> 2027-06-01 | CU13: =IF($Q$12=Lists!$U$16,IF(Periods!CU22="","",Periods!CU22),IF($Q$12=Lists!$U$17,IF(Periods!CU37="","",Periods!CU37),"")) -> 2027-07-01 | CV13: =IF($Q$12=Lists!$U$16,IF(Periods!CV22="","",Periods!CV22),IF($Q$12=Lists!$U$17,IF(Periods!CV37="","",Periods!CV37),"")) -> 2027-08-01 | CW13: =IF($Q$12=Lists!$U$16,IF(Periods!CW22="","",Periods!CW22),IF($Q$12=Lists!$U$17,IF(Periods!CW37="","",Periods!CW37),"")) -> 2027-09-01 | CX13: =IF($Q$12=Lists!$U$16,IF(Periods!CX22="","",Periods!CX22),IF($Q$12=Lists!$U$17,IF(Periods!CX37="","",Periods!CX37),"")) -> 2027-10-01 | CY13: =IF($Q$12=Lists!$U$16,IF(Periods!CY22="","",Periods!CY22),IF($Q$12=Lists!$U$17,IF(Periods!CY37="","",Periods!CY37),"")) -> 2027-11-01 | CZ13: =IF($Q$12=Lists!$U$16,IF(Periods!CZ22="","",Periods!CZ22),IF($Q$12=Lists!$U$17,IF(Periods!CZ37="","",Periods!CZ37),"")) -> 2027-12-01 | DA13: =IF($Q$12=Lists!$U$16,IF(Periods!DA22="","",Periods!DA22),IF($Q$12=Lists!$U$17,IF(Periods!DA37="","",Periods!DA37),"")) -> 2028-01-01 | DB13: =IF($Q$12=Lists!$U$16,IF(Periods!DB22="","",Periods!DB22),IF($Q$12=Lists!$U$17,IF(Periods!DB37="","",Periods!DB37),"")) -> 2028-02-01 | DC13: =IF($Q$12=Lists!$U$16,IF(Periods!DC22="","",Periods!DC22),IF($Q$12=Lists!$U$17,IF(Periods!DC37="","",Periods!DC37),"")) -> 2028-03-01 | DD13: =IF($Q$12=Lists!$U$16,IF(Periods!DD22="","",Periods!DD22),IF($Q$12=Lists!$U$17,IF(Periods!DD37="","",Periods!DD37),"")) -> 2028-04-01 | DE13: =IF($Q$12=Lists!$U$16,IF(Periods!DE22="","",Periods!DE22),IF($Q$12=Lists!$U$17,IF(Periods!DE37="","",Periods!DE37),"")) -> 2028-05-01 | DF13: =IF($Q$12=Lists!$U$16,IF(Periods!DF22="","",Periods!DF22),IF($Q$12=Lists!$U$17,IF(Periods!DF37="","",Periods!DF37),"")) -> 2028-06-01 | DG13: =IF($Q$12=Lists!$U$16,IF(Periods!DG22="","",Periods!DG22),IF($Q$12=Lists!$U$17,IF(Periods!DG37="","",Periods!DG37),"")) -> 2028-07-01 | DH13: =IF($Q$12=Lists!$U$16,IF(Periods!DH22="","",Periods!DH22),IF($Q$12=Lists!$U$17,IF(Periods!DH37="","",Periods!DH37),"")) -> 2028-08-01 | DI13: =IF($Q$12=Lists!$U$16,IF(Periods!DI22="","",Periods!DI22),IF($Q$12=Lists!$U$17,IF(Periods!DI37="","",Periods!DI37),"")) -> 2028-09-01 | DJ13: =IF($Q$12=Lists!$U$16,IF(Periods!DJ22="","",Periods!DJ22),IF($Q$12=Lists!$U$17,IF(Periods!DJ37="","",Periods!DJ37),"")) -> 2028-10-01 | DK13: =IF($Q$12=Lists!$U$16,IF(Periods!DK22="","",Periods!DK22),IF($Q$12=Lists!$U$17,IF(Periods!DK37="","",Periods!DK37),"")) -> 2028-11-01 | DL13: =IF($Q$12=Lists!$U$16,IF(Periods!DL22="","",Periods!DL22),IF($Q$12=Lists!$U$17,IF(Periods!DL37="","",Periods!DL37),"")) -> 2028-12-01 | DM13: =IF($Q$12=Lists!$U$16,IF(Periods!DM22="","",Periods!DM22),IF($Q$12=Lists!$U$17,IF(Periods!DM37="","",Periods!DM37),"")) -> 2029-01-01 | DN13: =IF($Q$12=Lists!$U$16,IF(Periods!DN22="","",Periods!DN22),IF($Q$12=Lists!$U$17,IF(Periods!DN37="","",Periods!DN37),"")) -> 2029-02-01 | DO13: =IF($Q$12=Lists!$U$16,IF(Periods!DO22="","",Periods!DO22),IF($Q$12=Lists!$U$17,IF(Periods!DO37="","",Periods!DO37),"")) -> 2029-03-01 | DP13: =IF($Q$12=Lists!$U$16,IF(Periods!DP22="","",Periods!DP22),IF($Q$12=Lists!$U$17,IF(Periods!DP37="","",Periods!DP37),"")) -> 2029-04-01 | DQ13: =IF($Q$12=Lists!$U$16,IF(Periods!DQ22="","",Periods!DQ22),IF($Q$12=Lists!$U$17,IF(Periods!DQ37="","",Periods!DQ37),"")) -> 2029-05-01 | DR13: =IF($Q$12=Lists!$U$16,IF(Periods!DR22="","",Periods!DR22),IF($Q$12=Lists!$U$17,IF(Periods!DR37="","",Periods!DR37),"")) -> 2029-06-01 | DS13: =IF($Q$12=Lists!$U$16,IF(Periods!DS22="","",Periods!DS22),IF($Q$12=Lists!$U$17,IF(Periods!DS37="","",Periods!DS37),"")) -> 2029-07-01 | DT13: =IF($Q$12=Lists!$U$16,IF(Periods!DT22="","",Periods!DT22),IF($Q$12=Lists!$U$17,IF(Periods!DT37="","",Periods!DT37),"")) -> 2029-08-01 | DU13: =IF($Q$12=Lists!$U$16,IF(Periods!DU22="","",Periods!DU22),IF($Q$12=Lists!$U$17,IF(Periods!DU37="","",Periods!DU37),"")) -> 2029-09-01 | DV13: =IF($Q$12=Lists!$U$16,IF(Periods!DV22="","",Periods!DV22),IF($Q$12=Lists!$U$17,IF(Periods!DV37="","",Periods!DV37),"")) -> 2029-10-01 | DW13: =IF($Q$12=Lists!$U$16,IF(Periods!DW22="","",Periods!DW22),IF($Q$12=Lists!$U$17,IF(Periods!DW37="","",Periods!DW37),"")) -> 2029-11-01 | DX13: =IF($Q$12=Lists!$U$16,IF(Periods!DX22="","",Periods!DX22),IF($Q$12=Lists!$U$17,IF(Periods!DX37="","",Periods!DX37),"")) -> 2029-12-01 | DY13: =IF($Q$12=Lists!$U$16,IF(Periods!DY22="","",Periods!DY22),IF($Q$12=Lists!$U$17,IF(Periods!DY37="","",Periods!DY37),"")) -> 2030-01-01 | DZ13: =IF($Q$12=Lists!$U$16,IF(Periods!DZ22="","",Periods!DZ22),IF($Q$12=Lists!$U$17,IF(Periods!DZ37="","",Periods!DZ37),"")) -> 2030-02-01 | EA13: =IF($Q$12=Lists!$U$16,IF(Periods!EA22="","",Periods!EA22),IF($Q$12=Lists!$U$17,IF(Periods!EA37="","",Periods!EA37),"")) -> 2030-03-01 | EB13: =IF($Q$12=Lists!$U$16,IF(Periods!EB22="","",Periods!EB22),IF($Q$12=Lists!$U$17,IF(Periods!EB37="","",Periods!EB37),"")) -> 2030-04-01 | EC13: =IF($Q$12=Lists!$U$16,IF(Periods!EC22="","",Periods!EC22),IF($Q$12=Lists!$U$17,IF(Periods!EC37="","",Periods!EC37),"")) -> 2030-05-01 | ED13: =IF($Q$12=Lists!$U$16,IF(Periods!ED22="","",Periods!ED22),IF($Q$12=Lists!$U$17,IF(Periods!ED37="","",Periods!ED37),"")) -> 2030-06-01 | EE13: =IF($Q$12=Lists!$U$16,IF(Periods!EE22="","",Periods!EE22),IF($Q$12=Lists!$U$17,IF(Periods!EE37="","",Periods!EE37),"")) -> 2030-07-01 | EF13: =IF($Q$12=Lists!$U$16,IF(Periods!EF22="","",Periods!EF22),IF($Q$12=Lists!$U$17,IF(Periods!EF37="","",Periods!EF37),"")) -> 2030-08-01 | EG13: =IF($Q$12=Lists!$U$16,IF(Periods!EG22="","",Periods!EG22),IF($Q$12=Lists!$U$17,IF(Periods!EG37="","",Periods!EG37),"")) -> 2030-09-01 | EH13: =IF($Q$12=Lists!$U$16,IF(Periods!EH22="","",Periods!EH22),IF($Q$12=Lists!$U$17,IF(Periods!EH37="","",Periods!EH37),"")) -> 2030-10-01 | EI13: =IF($Q$12=Lists!$U$16,IF(Periods!EI22="","",Periods!EI22),IF($Q$12=Lists!$U$17,IF(Periods!EI37="","",Periods!EI37),"")) -> 2030-11-01 | EJ13: =IF($Q$12=Lists!$U$16,IF(Periods!EJ22="","",Periods!EJ22),IF($Q$12=Lists!$U$17,IF(Periods!EJ37="","",Periods!EJ37),"")) -> 2030-12-01 | EK13: =IF($Q$12=Lists!$U$16,IF(Periods!EK22="","",Periods!EK22),IF($Q$12=Lists!$U$17,IF(Periods!EK37="","",Periods!EK37),"")) -> 2031-01-01 | EL13: =IF($Q$12=Lists!$U$16,IF(Periods!EL22="","",Periods!EL22),IF($Q$12=Lists!$U$17,IF(Periods!EL37="","",Periods!EL37),"")) -> 2031-02-01 | EM13: =IF($Q$12=Lists!$U$16,IF(Periods!EM22="","",Periods!EM22),IF($Q$12=Lists!$U$17,IF(Periods!EM37="","",Periods!EM37),"")) -> 2031-03-01 | EN13: =IF($Q$12=Lists!$U$16,IF(Periods!EN22="","",Periods!EN22),IF($Q$12=Lists!$U$17,IF(Periods!EN37="","",Periods!EN37),"")) -> 2031-04-01 | EO13: =IF($Q$12=Lists!$U$16,IF(Periods!EO22="","",Periods!EO22),IF($Q$12=Lists!$U$17,IF(Periods!EO37="","",Periods!EO37),"")) -> 2031-05-01 | EP13: =IF($Q$12=Lists!$U$16,IF(Periods!EP22="","",Periods!EP22),IF($Q$12=Lists!$U$17,IF(Periods!EP37="","",Periods!EP37),"")) -> 2031-06-01 | EQ13: =IF($Q$12=Lists!$U$16,IF(Periods!EQ22="","",Periods!EQ22),IF($Q$12=Lists!$U$17,IF(Periods!EQ37="","",Periods!EQ37),"")) ->  | ER13: =IF($Q$12=Lists!$U$16,IF(Periods!ER22="","",Periods!ER22),IF($Q$12=Lists!$U$17,IF(Periods!ER37="","",Periods!ER37),"")) ->  | ES13: =IF($Q$12=Lists!$U$16,IF(Periods!ES22="","",Periods!ES22),IF($Q$12=Lists!$U$17,IF(Periods!ES37="","",Periods!ES37),"")) ->  | ET13: =IF($Q$12=Lists!$U$16,IF(Periods!ET22="","",Periods!ET22),IF($Q$12=Lists!$U$17,IF(Periods!ET37="","",Periods!ET37),"")) ->  | EU13: =IF($Q$12=Lists!$U$16,IF(Periods!EU22="","",Periods!EU22),IF($Q$12=Lists!$U$17,IF(Periods!EU37="","",Periods!EU37),"")) ->  | EV13: =IF($Q$12=Lists!$U$16,IF(Periods!EV22="","",Periods!EV22),IF($Q$12=Lists!$U$17,IF(Periods!EV37="","",Periods!EV37),"")) ->  | EW13: =IF($Q$12=Lists!$U$16,IF(Periods!EW22="","",Periods!EW22),IF($Q$12=Lists!$U$17,IF(Periods!EW37="","",Periods!EW37),"")) ->  | EX13: =IF($Q$12=Lists!$U$16,IF(Periods!EX22="","",Periods!EX22),IF($Q$12=Lists!$U$17,IF(Periods!EX37="","",Periods!EX37),"")) ->  | EY13: =IF($Q$12=Lists!$U$16,IF(Periods!EY22="","",Periods!EY22),IF($Q$12=Lists!$U$17,IF(Periods!EY37="","",Periods!EY37),"")) ->  | EZ13: =IF($Q$12=Lists!$U$16,IF(Periods!EZ22="","",Periods!EZ22),IF($Q$12=Lists!$U$17,IF(Periods!EZ37="","",Periods!EZ37),"")) ->  | FA13: =IF($Q$12=Lists!$U$16,IF(Periods!FA22="","",Periods!FA22),IF($Q$12=Lists!$U$17,IF(Periods!FA37="","",Periods!FA37),"")) ->  | FB13: =IF($Q$12=Lists!$U$16,IF(Periods!FB22="","",Periods!FB22),IF($Q$12=Lists!$U$17,IF(Periods!FB37="","",Periods!FB37),"")) ->  | FC13: =IF($Q$12=Lists!$U$16,IF(Periods!FC22="","",Periods!FC22),IF($Q$12=Lists!$U$17,IF(Periods!FC37="","",Periods!FC37),"")) -> 
D14: =INDIRECT("Cntrl!M17") -> 0 | E14: =SUM($F14:$FE14) -> 0 | F14: =IFERROR(_xlfn.SHEET($A$1)-SUMIFS(Cntrl!O$15:O$100000,Cntrl!I$15:I$100000,$F$11),1) -> 0 | G14: =SUM(G$15:G$100000) -> 0 | S14: =SUM(S$15:S$100000) -> 0
A15: =ROW() -> 15 | H15: разработка финмоделей: https://mngmnt.ru/
A16: =ROW() -> 16 | G16: =IF($R16="^",IF(COUNTIF(Lists!$13:$13,H16)=1,0,1),0) -> 0 | H16: =Lists!$I$13 -> минимальный период расчетов | P16: * | Q16: месяц | R16: ^ | S16: =IF(G16<>0,1,IF(OR($Q16="",$Q16=0),0,IF($R16="^",IF(COUNTIF(INDIRECT(INDEX(Lists!$15:$15,SUMIFS(Lists!$1:$1,Lists!$13:$13,$H16))),$Q16)=1,0,1),0))) -> 0 | Y16: =START!$K$131 -> номер периода модели: | AA16: =MAX($Z16:Z16)+1 -> 1 | AB16: =MAX($Z16:AA16)+1 -> 2 | AC16: =MAX($Z16:AB16)+1 -> 3 | AD16: =MAX($Z16:AC16)+1 -> 4 | AE16: =MAX($Z16:AD16)+1 -> 5 | AF16: =MAX($Z16:AE16)+1 -> 6 | AG16: =MAX($Z16:AF16)+1 -> 7 | AH16: =MAX($Z16:AG16)+1 -> 8 | AI16: =MAX($Z16:AH16)+1 -> 9 | AJ16: =MAX($Z16:AI16)+1 -> 10 | AK16: =MAX($Z16:AJ16)+1 -> 11 | AL16: =MAX($Z16:AK16)+1 -> 12 | AM16: =MAX($Z16:AL16)+1 -> 13 | AN16: =MAX($Z16:AM16)+1 -> 14 | AO16: =MAX($Z16:AN16)+1 -> 15 | AP16: =MAX($Z16:AO16)+1 -> 16 | AQ16: =MAX($Z16:AP16)+1 -> 17 | AR16: =MAX($Z16:AQ16)+1 -> 18 | AS16: =MAX($Z16:AR16)+1 -> 19 | AT16: =MAX($Z16:AS16)+1 -> 20 | AU16: =MAX($Z16:AT16)+1 -> 21 | AV16: =MAX($Z16:AU16)+1 -> 22 | AW16: =MAX($Z16:AV16)+1 -> 23 | AX16: =MAX($Z16:AW16)+1 -> 24 | AY16: =MAX($Z16:AX16)+1 -> 25 | AZ16: =MAX($Z16:AY16)+1 -> 26 | BA16: =MAX($Z16:AZ16)+1 -> 27 | BB16: =MAX($Z16:BA16)+1 -> 28 | BC16: =MAX($Z16:BB16)+1 -> 29 | BD16: =MAX($Z16:BC16)+1 -> 30 | BE16: =MAX($Z16:BD16)+1 -> 31 | BF16: =MAX($Z16:BE16)+1 -> 32 | BG16: =MAX($Z16:BF16)+1 -> 33 | BH16: =MAX($Z16:BG16)+1 -> 34 | BI16: =MAX($Z16:BH16)+1 -> 35 | BJ16: =MAX($Z16:BI16)+1 -> 36 | BK16: =MAX($Z16:BJ16)+1 -> 37 | BL16: =MAX($Z16:BK16)+1 -> 38 | BM16: =MAX($Z16:BL16)+1 -> 39 | BN16: =MAX($Z16:BM16)+1 -> 40 | BO16: =MAX($Z16:BN16)+1 -> 41 | BP16: =MAX($Z16:BO16)+1 -> 42 | BQ16: =MAX($Z16:BP16)+1 -> 43 | BR16: =MAX($Z16:BQ16)+1 -> 44 | BS16: =MAX($Z16:BR16)+1 -> 45 | BT16: =MAX($Z16:BS16)+1 -> 46 | BU16: =MAX($Z16:BT16)+1 -> 47 | BV16: =MAX($Z16:BU16)+1 -> 48 | BW16: =MAX($Z16:BV16)+1 -> 49 | BX16: =MAX($Z16:BW16)+1 -> 50 | BY16: =MAX($Z16:BX16)+1 -> 51 | BZ16: =MAX($Z16:BY16)+1 -> 52 | CA16: =MAX($Z16:BZ16)+1 -> 53 | CB16: =MAX($Z16:CA16)+1 -> 54 | CC16: =MAX($Z16:CB16)+1 -> 55 | CD16: =MAX($Z16:CC16)+1 -> 56 | CE16: =MAX($Z16:CD16)+1 -> 57 | CF16: =MAX($Z16:CE16)+1 -> 58 | CG16: =MAX($Z16:CF16)+1 -> 59 | CH16: =MAX($Z16:CG16)+1 -> 60 | CI16: =MAX($Z16:CH16)+1 -> 61 | CJ16: =MAX($Z16:CI16)+1 -> 62 | CK16: =MAX($Z16:CJ16)+1 -> 63 | CL16: =MAX($Z16:CK16)+1 -> 64 | CM16: =MAX($Z16:CL16)+1 -> 65 | CN16: =MAX($Z16:CM16)+1 -> 66 | CO16: =MAX($Z16:CN16)+1 -> 67 | CP16: =MAX($Z16:CO16)+1 -> 68 | CQ16: =MAX($Z16:CP16)+1 -> 69 | CR16: =MAX($Z16:CQ16)+1 -> 70 | CS16: =MAX($Z16:CR16)+1 -> 71 | CT16: =MAX($Z16:CS16)+1 -> 72 | CU16: =MAX($Z16:CT16)+1 -> 73 | CV16: =MAX($Z16:CU16)+1 -> 74 | CW16: =MAX($Z16:CV16)+1 -> 75 | CX16: =MAX($Z16:CW16)+1 -> 76 | CY16: =MAX($Z16:CX16)+1 -> 77 | CZ16: =MAX($Z16:CY16)+1 -> 78 | DA16: =MAX($Z16:CZ16)+1 -> 79 | DB16: =MAX($Z16:DA16)+1 -> 80 | DC16: =MAX($Z16:DB16)+1 -> 81 | DD16: =MAX($Z16:DC16)+1 -> 82 | DE16: =MAX($Z16:DD16)+1 -> 83 | DF16: =MAX($Z16:DE16)+1 -> 84 | DG16: =MAX($Z16:DF16)+1 -> 85 | DH16: =MAX($Z16:DG16)+1 -> 86 | DI16: =MAX($Z16:DH16)+1 -> 87 | DJ16: =MAX($Z16:DI16)+1 -> 88 | DK16: =MAX($Z16:DJ16)+1 -> 89 | DL16: =MAX($Z16:DK16)+1 -> 90 | DM16: =MAX($Z16:DL16)+1 -> 91 | DN16: =MAX($Z16:DM16)+1 -> 92 | DO16: =MAX($Z16:DN16)+1 -> 93 | DP16: =MAX($Z16:DO16)+1 -> 94 | DQ16: =MAX($Z16:DP16)+1 -> 95 | DR16: =MAX($Z16:DQ16)+1 -> 96 | DS16: =MAX($Z16:DR16)+1 -> 97 | DT16: =MAX($Z16:DS16)+1 -> 98 | DU16: =MAX($Z16:DT16)+1 -> 99 | DV16: =MAX($Z16:DU16)+1 -> 100 | DW16: =MAX($Z16:DV16)+1 -> 101 | DX16: =MAX($Z16:DW16)+1 -> 102 | DY16: =MAX($Z16:DX16)+1 -> 103 | DZ16: =MAX($Z16:DY16)+1 -> 104 | EA16: =MAX($Z16:DZ16)+1 -> 105 | EB16: =MAX($Z16:EA16)+1 -> 106 | EC16: =MAX($Z16:EB16)+1 -> 107 | ED16: =MAX($Z16:EC16)+1 -> 108 | EE16: =MAX($Z16:ED16)+1 -> 109 | EF16: =MAX($Z16:EE16)+1 -> 110 | EG16: =MAX($Z16:EF16)+1 -> 111 | EH16: =MAX($Z16:EG16)+1 -> 112 | EI16: =MAX($Z16:EH16)+1 -> 113 | EJ16: =MAX($Z16:EI16)+1 -> 114 | EK16: =MAX($Z16:EJ16)+1 -> 115 | EL16: =MAX($Z16:EK16)+1 -> 116 | EM16: =MAX($Z16:EL16)+1 -> 117 | EN16: =MAX($Z16:EM16)+1 -> 118 | EO16: =MAX($Z16:EN16)+1 -> 119 | EP16: =MAX($Z16:EO16)+1 -> 120 | EQ16: =MAX($Z16:EP16)+1 -> 121 | ER16: =MAX($Z16:EQ16)+1 -> 122 | ES16: =MAX($Z16:ER16)+1 -> 123 | ET16: =MAX($Z16:ES16)+1 -> 124 | EU16: =MAX($Z16:ET16)+1 -> 125 | EV16: =MAX($Z16:EU16)+1 -> 126 | EW16: =MAX($Z16:EV16)+1 -> 127 | EX16: =MAX($Z16:EW16)+1 -> 128 | EY16: =MAX($Z16:EX16)+1 -> 129 | EZ16: =MAX($Z16:EY16)+1 -> 130 | FA16: =MAX($Z16:EZ16)+1 -> 131 | FB16: =MAX($Z16:FA16)+1 -> 132 | FC16: =MAX($Z16:FB16)+1 -> 133
A17: =ROW() -> 17 | G17: =IF($R17="^",IF(COUNTIF(Lists!$13:$13,H17)=1,0,1),0) -> 0 | H17: дата старта проекта | P17: * | Q17: 2021-07-01 | S17: =IF(G17<>0,1,IF(OR($Q17="",$Q17=0),0,IF($R17="^",IF(COUNTIF(INDIRECT(INDEX(Lists!$15:$15,SUMIFS(Lists!$1:$1,Lists!$13:$13,$H17))),$Q17)=1,0,1),0))) -> 0 | Y17: =START!$K$135 -> номер месяца даты начала: | AA17: =IF(AA20="","",MONTH(AA20)) -> 7 | AB17: =IF(AB20="","",MONTH(AB20)) -> 8 | AC17: 9 | AD17: 10 | AE17: 11 | AF17: 12 | AG17: 1 | AH17: 2 | AI17: 3 | AJ17: 4 | AK17: 5 | AL17: 6 | AM17: 7 | AN17: 8 | AO17: 9 | AP17: 10 | AQ17: 11 | AR17: 12 | AS17: 1 | AT17: 2 | AU17: 3 | AV17: 4 | AW17: 5 | AX17: 6 | AY17: 7 | AZ17: 8 | BA17: 9 | BB17: 10 | BC17: 11 | BD17: 12 | BE17: 1 | BF17: 2 | BG17: 3 | BH17: 4 | BI17: 5 | BJ17: 6 | BK17: 7 | BL17: 8 | BM17: 9 | BN17: 10 | BO17: 11 | BP17: 12 | BQ17: 1 | BR17: 2 | BS17: 3 | BT17: 4 | BU17: 5 | BV17: 6 | BW17: 7 | BX17: 8 | BY17: 9 | BZ17: 10 | CA17: 11 | CB17: 12 | CC17: 1 | CD17: 2 | CE17: 3 | CF17: 4 | CG17: 5 | CH17: 6 | CI17: 7 | CJ17: 8 | CK17: 9 | CL17: 10 | CM17: 11 | CN17: =IF(CN20="","",MONTH(CN20)) -> 12 | CO17: 1 | CP17: 2 | CQ17: 3 | CR17: 4 | CS17: 5 | CT17: 6 | CU17: 7 | CV17: 8 | CW17: 9 | CX17: 10 | CY17: 11 | CZ17: 12 | DA17: 1 | DB17: 2 | DC17: 3 | DD17: 4 | DE17: 5 | DF17: 6 | DG17: 7 | DH17: 8 | DI17: 9 | DJ17: 10 | DK17: 11 | DL17: 12 | DM17: 1 | DN17: 2 | DO17: 3 | DP17: 4 | DQ17: 5 | DR17: 6 | DS17: 7 | DT17: 8 | DU17: 9 | DV17: 10 | DW17: 11 | DX17: 12 | DY17: 1 | DZ17: 2 | EA17: 3 | EB17: 4 | EC17: 5 | ED17: 6 | EE17: 7 | EF17: 8 | EG17: 9 | EH17: 10 | EI17: 11 | EJ17: 12 | EK17: 1 | EL17: 2 | EM17: 3 | EN17: 4 | EO17: 5 | EP17: 6 | EZ17: =IF(EZ20="","",MONTH(EZ20)) ->  | FA17: =IF(FA20="","",MONTH(FA20)) ->  | FB17: =IF(FB20="","",MONTH(FB20)) ->  | FC17: =IF(FC20="","",MONTH(FC20)) -> 
A18: =ROW() -> 18 | G18: =IF($R18="^",IF(COUNTIF(Lists!$13:$13,H18)=1,0,1),0) -> 0 | H18: горизонт моделирования в кол-ве периодов | P18: * | Q18: 120 | S18: =IF(G18<>0,1,IF(OR($Q18="",$Q18=0),0,IF($R18="^",IF(COUNTIF(INDIRECT(INDEX(Lists!$15:$15,SUMIFS(Lists!$1:$1,Lists!$13:$13,$H18))),$Q18)=1,0,1),0))) -> 0 | Y18: =START!$K$136 -> год даты начала: | AA18: =IF(AA20="","",YEAR(AA20)-2000) -> 21 | AB18: =IF(AB20="","",YEAR(AB20)-2000) -> 21 | AC18: 21 | AD18: 21 | AE18: 21 | AF18: 21 | AG18: 22 | AH18: 22 | AI18: 22 | AJ18: 22 | AK18: 22 | AL18: 22 | AM18: 22 | AN18: 22 | AO18: 22 | AP18: 22 | AQ18: 22 | AR18: 22 | AS18: 23 | AT18: 23 | AU18: 23 | AV18: 23 | AW18: 23 | AX18: 23 | AY18: 23 | AZ18: 23 | BA18: 23 | BB18: 23 | BC18: 23 | BD18: 23 | BE18: 24 | BF18: 24 | BG18: 24 | BH18: 24 | BI18: 24 | BJ18: 24 | BK18: 24 | BL18: 24 | BM18: 24 | BN18: 24 | BO18: 24 | BP18: 24 | BQ18: 25 | BR18: 25 | BS18: 25 | BT18: 25 | BU18: 25 | BV18: 25 | BW18: 25 | BX18: 25 | BY18: 25 | BZ18: 25 | CA18: 25 | CB18: 25 | CC18: 26 | CD18: 26 | CE18: 26 | CF18: 26 | CG18: 26 | CH18: 26 | CI18: 26 | CJ18: 26 | CK18: 26 | CL18: 26 | CM18: 26 | CN18: =IF(CN20="","",YEAR(CN20)-2000) -> 26 | CO18: 27 | CP18: 27 | CQ18: 27 | CR18: 27 | CS18: 27 | CT18: 27 | CU18: 27 | CV18: 27 | CW18: 27 | CX18: 27 | CY18: 27 | CZ18: 27 | DA18: 28 | DB18: 28 | DC18: 28 | DD18: 28 | DE18: 28 | DF18: 28 | DG18: 28 | DH18: 28 | DI18: 28 | DJ18: 28 | DK18: 28 | DL18: 28 | DM18: 29 | DN18: 29 | DO18: 29 | DP18: 29 | DQ18: 29 | DR18: 29 | DS18: 29 | DT18: 29 | DU18: 29 | DV18: 29 | DW18: 29 | DX18: 29 | DY18: 30 | DZ18: 30 | EA18: 30 | EB18: 30 | EC18: 30 | ED18: 30 | EE18: 30 | EF18: 30 | EG18: 30 | EH18: 30 | EI18: 30 | EJ18: 30 | EK18: 31 | EL18: 31 | EM18: 31 | EN18: 31 | EO18: 31 | EP18: 31 | EZ18: =IF(EZ20="","",YEAR(EZ20)-2000) ->  | FA18: =IF(FA20="","",YEAR(FA20)-2000) ->  | FB18: =IF(FB20="","",YEAR(FB20)-2000) ->  | FC18: =IF(FC20="","",YEAR(FC20)-2000) -> 
A19: =ROW() -> 19
A20: =ROW() -> 20 | G20: =IF($R20="^",IF(COUNTIF(Lists!$13:$13,H20)=1,0,1),0) -> 0 | H20: дата старта периода расчетов модели | X20: =IF(OR($Q$17="",$Q$17=0),"",IF($Q$16=Lists!$I$16,$Q$17,IF($Q$16=Lists!$I$17,$Q$17-IF(WEEKDAY($Q$17)=1,7,WEEKDAY($Q$17))+2,IF($Q$16=Lists!$I$18,EOMONTH($Q$17,-1)+INT((IF(DAY($Q$17)=31,30,DAY($Q$17))-1)/10)*10+1,IF(OR($Q$16=Lists!$I$19,$Q$16=Lists!$I$21),EOMONTH($Q$17,-1)+1,IF($Q$16=Lists!$I$20,EOMONTH($Q$17,-(MONTH($Q$17)-3*INT((MONTH($Q$17)-1)/3)))+1,IF($Q$16=Lists!$I$22,EOMONTH($Q$17,-MONTH($Q$17))+1,""))))))) -> 2021-07-01 | AA20: =IF(AA$16>$Q$18,"",IF(AA$16=1,IF($X20="","",$X20),IF(Z21="","",Z21+1))) -> 2021-07-01 | AB20: =IF(AB$16>$Q$18,"",IF(AB$16=1,IF($X20="","",$X20),IF(AA21="","",AA21+1))) -> 2021-08-01 | AC20: 2021-09-01 | AD20: 2021-10-01 | AE20: 2021-11-01 | AF20: 2021-12-01 | AG20: 2022-01-01 | AH20: 2022-02-01 | AI20: 2022-03-01 | AJ20: 2022-04-01 | AK20: 2022-05-01 | AL20: 2022-06-01 | AM20: 2022-07-01 | AN20: 2022-08-01 | AO20: 2022-09-01 | AP20: 2022-10-01 | AQ20: 2022-11-01 | AR20: 2022-12-01 | AS20: 2023-01-01 | AT20: 2023-02-01 | AU20: 2023-03-01 | AV20: 2023-04-01 | AW20: 2023-05-01 | AX20: 2023-06-01 | AY20: 2023-07-01 | AZ20: 2023-08-01 | BA20: 2023-09-01 | BB20: 2023-10-01 | BC20: 2023-11-01 | BD20: 2023-12-01 | BE20: 2024-01-01 | BF20: 2024-02-01 | BG20: 2024-03-01 | BH20: 2024-04-01 | BI20: 2024-05-01 | BJ20: 2024-06-01 | BK20: 2024-07-01 | BL20: 2024-08-01 | BM20: 2024-09-01 | BN20: 2024-10-01 | BO20: 2024-11-01 | BP20: 2024-12-01 | BQ20: 2025-01-01 | BR20: 2025-02-01 | BS20: 2025-03-01 | BT20: 2025-04-01 | BU20: 2025-05-01 | BV20: 2025-06-01 | BW20: 2025-07-01 | BX20: 2025-08-01 | BY20: 2025-09-01 | BZ20: 2025-10-01 | CA20: 2025-11-01 | CB20: 2025-12-01 | CC20: 2026-01-01 | CD20: 2026-02-01 | CE20: 2026-03-01 | CF20: 2026-04-01 | CG20: 2026-05-01 | CH20: 2026-06-01 | CI20: 2026-07-01 | CJ20: 2026-08-01 | CK20: 2026-09-01 | CL20: 2026-10-01 | CM20: 2026-11-01 | CN20: =IF(CN$16>$Q$18,"",IF(CN$16=1,IF($X20="","",$X20),IF(CM21="","",CM21+1))) -> 2026-12-01 | CO20: 2027-01-01 | CP20: 2027-02-01 | CQ20: 2027-03-01 | CR20: 2027-04-01 | CS20: 2027-05-01 | CT20: 2027-06-01 | CU20: 2027-07-01 | CV20: 2027-08-01 | CW20: 2027-09-01 | CX20: 2027-10-01 | CY20: 2027-11-01 | CZ20: 2027-12-01 | DA20: 2028-01-01 | DB20: 2028-02-01 | DC20: 2028-03-01 | DD20: 2028-04-01 | DE20: 2028-05-01 | DF20: 2028-06-01 | DG20: 2028-07-01 | DH20: 2028-08-01 | DI20: 2028-09-01 | DJ20: 2028-10-01 | DK20: 2028-11-01 | DL20: 2028-12-01 | DM20: 2029-01-01 | DN20: 2029-02-01 | DO20: 2029-03-01 | DP20: 2029-04-01 | DQ20: 2029-05-01 | DR20: 2029-06-01 | DS20: 2029-07-01 | DT20: 2029-08-01 | DU20: 2029-09-01 | DV20: 2029-10-01 | DW20: 2029-11-01 | DX20: 2029-12-01 | DY20: 2030-01-01 | DZ20: 2030-02-01 | EA20: 2030-03-01 | EB20: 2030-04-01 | EC20: 2030-05-01 | ED20: 2030-06-01 | EE20: 2030-07-01 | EF20: 2030-08-01 | EG20: 2030-09-01 | EH20: 2030-10-01 | EI20: 2030-11-01 | EJ20: 2030-12-01 | EK20: 2031-01-01 | EL20: 2031-02-01 | EM20: 2031-03-01 | EN20: 2031-04-01 | EO20: 2031-05-01 | EP20: 2031-06-01 | EZ20: =IF(EZ$16>$Q$18,"",IF(EZ$16=1,IF($X20="","",$X20),IF(EY21="","",EY21+1))) ->  | FA20: =IF(FA$16>$Q$18,"",IF(FA$16=1,IF($X20="","",$X20),IF(EZ21="","",EZ21+1))) ->  | FB20: =IF(FB$16>$Q$18,"",IF(FB$16=1,IF($X20="","",$X20),IF(FA21="","",FA21+1))) ->  | FC20: =IF(FC$16>$Q$18,"",IF(FC$16=1,IF($X20="","",$X20),IF(FB21="","",FB21+1))) -> 
A21: =ROW() -> 21 | G21: =IF($R21="^",IF(COUNTIF(Lists!$13:$13,H21)=1,0,1),0) -> 0 | H21: дата завершения периода расчетов модели | X21: =IF(OR(X20="",AA21=""),"",MAX($Z21:$FD21)) -> 2031-06-30 | AA21: =IF(AA20="","",IF($Q$16=Lists!$I$16,AA20,IF($Q$16=Lists!$I$17,AA20+6,IF($Q$16=Lists!$I$18,IF(DAY(AA20)=21,EOMONTH(AA20,0),AA20+9),IF($Q$16=Lists!$I$19,EOMONTH(AA20,0),IF($Q$16=Lists!$I$20,EOMONTH(AA20,2),IF(OR($Q$16=Lists!$I$21,$Q$16=Lists!$I$22),EOMONTH(AA20,11),""))))))) -> 2021-07-31 | AB21: =IF(AB20="","",IF($Q$16=Lists!$I$16,AB20,IF($Q$16=Lists!$I$17,AB20+6,IF($Q$16=Lists!$I$18,IF(DAY(AB20)=21,EOMONTH(AB20,0),AB20+9),IF($Q$16=Lists!$I$19,EOMONTH(AB20,0),IF($Q$16=Lists!$I$20,EOMONTH(AB20,2),IF(OR($Q$16=Lists!$I$21,$Q$16=Lists!$I$22),EOMONTH(AB20,11),""))))))) -> 2021-08-31 | AC21: =IF(AC20="","",IF($Q$16=Lists!$I$16,AC20,IF($Q$16=Lists!$I$17,AC20+6,IF($Q$16=Lists!$I$18,IF(DAY(AC20)=21,EOMONTH(AC20,0),AC20+9),IF($Q$16=Lists!$I$19,EOMONTH(AC20,0),IF($Q$16=Lists!$I$20,EOMONTH(AC20,2),IF(OR($Q$16=Lists!$I$21,$Q$16=Lists!$I$22),EOMONTH(AC20,11),""))))))) -> 2021-09-30 | AD21: =IF(AD20="","",IF($Q$16=Lists!$I$16,AD20,IF($Q$16=Lists!$I$17,AD20+6,IF($Q$16=Lists!$I$18,IF(DAY(AD20)=21,EOMONTH(AD20,0),AD20+9),IF($Q$16=Lists!$I$19,EOMONTH(AD20,0),IF($Q$16=Lists!$I$20,EOMONTH(AD20,2),IF(OR($Q$16=Lists!$I$21,$Q$16=Lists!$I$22),EOMONTH(AD20,11),""))))))) -> 2021-10-31 | AE21: =IF(AE20="","",IF($Q$16=Lists!$I$16,AE20,IF($Q$16=Lists!$I$17,AE20+6,IF($Q$16=Lists!$I$18,IF(DAY(AE20)=21,EOMONTH(AE20,0),AE20+9),IF($Q$16=Lists!$I$19,EOMONTH(AE20,0),IF($Q$16=Lists!$I$20,EOMONTH(AE20,2),IF(OR($Q$16=Lists!$I$21,$Q$16=Lists!$I$22),EOMONTH(AE20,11),""))))))) -> 2021-11-30 | AF21: =IF(AF20="","",IF($Q$16=Lists!$I$16,AF20,IF($Q$16=Lists!$I$17,AF20+6,IF($Q$16=Lists!$I$18,IF(DAY(AF20)=21,EOMONTH(AF20,0),AF20+9),IF($Q$16=Lists!$I$19,EOMONTH(AF20,0),IF($Q$16=Lists!$I$20,EOMONTH(AF20,2),IF(OR($Q$16=Lists!$I$21,$Q$16=Lists!$I$22),EOMONTH(AF20,11),""))))))) -> 2021-12-31 | AG21: =IF(AG20="","",IF($Q$16=Lists!$I$16,AG20,IF($Q$16=Lists!$I$17,AG20+6,IF($Q$16=Lists!$I$18,IF(DAY(AG20)=21,EOMONTH(AG20,0),AG20+9),IF($Q$16=Lists!$I$19,EOMONTH(AG20,0),IF($Q$16=Lists!$I$20,EOMONTH(AG20,2),IF(OR($Q$16=Lists!$I$21,$Q$16=Lists!$I$22),EOMONTH(AG20,11),""))))))) -> 2022-01-31 | AH21: =IF(AH20="","",IF($Q$16=Lists!$I$16,AH20,IF($Q$16=Lists!$I$17,AH20+6,IF($Q$16=Lists!$I$18,IF(DAY(AH20)=21,EOMONTH(AH20,0),AH20+9),IF($Q$16=Lists!$I$19,EOMONTH(AH20,0),IF($Q$16=Lists!$I$20,EOMONTH(AH20,2),IF(OR($Q$16=Lists!$I$21,$Q$16=Lists!$I$22),EOMONTH(AH20,11),""))))))) -> 2022-02-28 | AI21: =IF(AI20="","",IF($Q$16=Lists!$I$16,AI20,IF($Q$16=Lists!$I$17,AI20+6,IF($Q$16=Lists!$I$18,IF(DAY(AI20)=21,EOMONTH(AI20,0),AI20+9),IF($Q$16=Lists!$I$19,EOMONTH(AI20,0),IF($Q$16=Lists!$I$20,EOMONTH(AI20,2),IF(OR($Q$16=Lists!$I$21,$Q$16=Lists!$I$22),EOMONTH(AI20,11),""))))))) -> 2022-03-31 | AJ21: =IF(AJ20="","",IF($Q$16=Lists!$I$16,AJ20,IF($Q$16=Lists!$I$17,AJ20+6,IF($Q$16=Lists!$I$18,IF(DAY(AJ20)=21,EOMONTH(AJ20,0),AJ20+9),IF($Q$16=Lists!$I$19,EOMONTH(AJ20,0),IF($Q$16=Lists!$I$20,EOMONTH(AJ20,2),IF(OR($Q$16=Lists!$I$21,$Q$16=Lists!$I$22),EOMONTH(AJ20,11),""))))))) -> 2022-04-30 | AK21: =IF(AK20="","",IF($Q$16=Lists!$I$16,AK20,IF($Q$16=Lists!$I$17,AK20+6,IF($Q$16=Lists!$I$18,IF(DAY(AK20)=21,EOMONTH(AK20,0),AK20+9),IF($Q$16=Lists!$I$19,EOMONTH(AK20,0),IF($Q$16=Lists!$I$20,EOMONTH(AK20,2),IF(OR($Q$16=Lists!$I$21,$Q$16=Lists!$I$22),EOMONTH(AK20,11),""))))))) -> 2022-05-31 | AL21: =IF(AL20="","",IF($Q$16=Lists!$I$16,AL20,IF($Q$16=Lists!$I$17,AL20+6,IF($Q$16=Lists!$I$18,IF(DAY(AL20)=21,EOMONTH(AL20,0),AL20+9),IF($Q$16=Lists!$I$19,EOMONTH(AL20,0),IF($Q$16=Lists!$I$20,EOMONTH(AL20,2),IF(OR($Q$16=Lists!$I$21,$Q$16=Lists!$I$22),EOMONTH(AL20,11),""))))))) -> 2022-06-30 | AM21: =IF(AM20="","",IF($Q$16=Lists!$I$16,AM20,IF($Q$16=Lists!$I$17,AM20+6,IF($Q$16=Lists!$I$18,IF(DAY(AM20)=21,EOMONTH(AM20,0),AM20+9),IF($Q$16=Lists!$I$19,EOMONTH(AM20,0),IF($Q$16=Lists!$I$20,EOMONTH(AM20,2),IF(OR($Q$16=Lists!$I$21,$Q$16=Lists!$I$22),EOMONTH(AM20,11),""))))))) -> 2022-07-31 | AN21: =IF(AN20="","",IF($Q$16=Lists!$I$16,AN20,IF($Q$16=Lists!$I$17,AN20+6,IF($Q$16=Lists!$I$18,IF(DAY(AN20)=21,EOMONTH(AN20,0),AN20+9),IF($Q$16=Lists!$I$19,EOMONTH(AN20,0),IF($Q$16=Lists!$I$20,EOMONTH(AN20,2),IF(OR($Q$16=Lists!$I$21,$Q$16=Lists!$I$22),EOMONTH(AN20,11),""))))))) -> 2022-08-31 | AO21: =IF(AO20="","",IF($Q$16=Lists!$I$16,AO20,IF($Q$16=Lists!$I$17,AO20+6,IF($Q$16=Lists!$I$18,IF(DAY(AO20)=21,EOMONTH(AO20,0),AO20+9),IF($Q$16=Lists!$I$19,EOMONTH(AO20,0),IF($Q$16=Lists!$I$20,EOMONTH(AO20,2),IF(OR($Q$16=Lists!$I$21,$Q$16=Lists!$I$22),EOMONTH(AO20,11),""))))))) -> 2022-09-30 | AP21: =IF(AP20="","",IF($Q$16=Lists!$I$16,AP20,IF($Q$16=Lists!$I$17,AP20+6,IF($Q$16=Lists!$I$18,IF(DAY(AP20)=21,EOMONTH(AP20,0),AP20+9),IF($Q$16=Lists!$I$19,EOMONTH(AP20,0),IF($Q$16=Lists!$I$20,EOMONTH(AP20,2),IF(OR($Q$16=Lists!$I$21,$Q$16=Lists!$I$22),EOMONTH(AP20,11),""))))))) -> 2022-10-31 | AQ21: =IF(AQ20="","",IF($Q$16=Lists!$I$16,AQ20,IF($Q$16=Lists!$I$17,AQ20+6,IF($Q$16=Lists!$I$18,IF(DAY(AQ20)=21,EOMONTH(AQ20,0),AQ20+9),IF($Q$16=Lists!$I$19,EOMONTH(AQ20,0),IF($Q$16=Lists!$I$20,EOMONTH(AQ20,2),IF(OR($Q$16=Lists!$I$21,$Q$16=Lists!$I$22),EOMONTH(AQ20,11),""))))))) -> 2022-11-30 | AR21: =IF(AR20="","",IF($Q$16=Lists!$I$16,AR20,IF($Q$16=Lists!$I$17,AR20+6,IF($Q$16=Lists!$I$18,IF(DAY(AR20)=21,EOMONTH(AR20,0),AR20+9),IF($Q$16=Lists!$I$19,EOMONTH(AR20,0),IF($Q$16=Lists!$I$20,EOMONTH(AR20,2),IF(OR($Q$16=Lists!$I$21,$Q$16=Lists!$I$22),EOMONTH(AR20,11),""))))))) -> 2022-12-31 | AS21: =IF(AS20="","",IF($Q$16=Lists!$I$16,AS20,IF($Q$16=Lists!$I$17,AS20+6,IF($Q$16=Lists!$I$18,IF(DAY(AS20)=21,EOMONTH(AS20,0),AS20+9),IF($Q$16=Lists!$I$19,EOMONTH(AS20,0),IF($Q$16=Lists!$I$20,EOMONTH(AS20,2),IF(OR($Q$16=Lists!$I$21,$Q$16=Lists!$I$22),EOMONTH(AS20,11),""))))))) -> 2023-01-31 | AT21: =IF(AT20="","",IF($Q$16=Lists!$I$16,AT20,IF($Q$16=Lists!$I$17,AT20+6,IF($Q$16=Lists!$I$18,IF(DAY(AT20)=21,EOMONTH(AT20,0),AT20+9),IF($Q$16=Lists!$I$19,EOMONTH(AT20,0),IF($Q$16=Lists!$I$20,EOMONTH(AT20,2),IF(OR($Q$16=Lists!$I$21,$Q$16=Lists!$I$22),EOMONTH(AT20,11),""))))))) -> 2023-02-28 | AU21: =IF(AU20="","",IF($Q$16=Lists!$I$16,AU20,IF($Q$16=Lists!$I$17,AU20+6,IF($Q$16=Lists!$I$18,IF(DAY(AU20)=21,EOMONTH(AU20,0),AU20+9),IF($Q$16=Lists!$I$19,EOMONTH(AU20,0),IF($Q$16=Lists!$I$20,EOMONTH(AU20,2),IF(OR($Q$16=Lists!$I$21,$Q$16=Lists!$I$22),EOMONTH(AU20,11),""))))))) -> 2023-03-31 | AV21: =IF(AV20="","",IF($Q$16=Lists!$I$16,AV20,IF($Q$16=Lists!$I$17,AV20+6,IF($Q$16=Lists!$I$18,IF(DAY(AV20)=21,EOMONTH(AV20,0),AV20+9),IF($Q$16=Lists!$I$19,EOMONTH(AV20,0),IF($Q$16=Lists!$I$20,EOMONTH(AV20,2),IF(OR($Q$16=Lists!$I$21,$Q$16=Lists!$I$22),EOMONTH(AV20,11),""))))))) -> 2023-04-30 | AW21: =IF(AW20="","",IF($Q$16=Lists!$I$16,AW20,IF($Q$16=Lists!$I$17,AW20+6,IF($Q$16=Lists!$I$18,IF(DAY(AW20)=21,EOMONTH(AW20,0),AW20+9),IF($Q$16=Lists!$I$19,EOMONTH(AW20,0),IF($Q$16=Lists!$I$20,EOMONTH(AW20,2),IF(OR($Q$16=Lists!$I$21,$Q$16=Lists!$I$22),EOMONTH(AW20,11),""))))))) -> 2023-05-31 | AX21: =IF(AX20="","",IF($Q$16=Lists!$I$16,AX20,IF($Q$16=Lists!$I$17,AX20+6,IF($Q$16=Lists!$I$18,IF(DAY(AX20)=21,EOMONTH(AX20,0),AX20+9),IF($Q$16=Lists!$I$19,EOMONTH(AX20,0),IF($Q$16=Lists!$I$20,EOMONTH(AX20,2),IF(OR($Q$16=Lists!$I$21,$Q$16=Lists!$I$22),EOMONTH(AX20,11),""))))))) -> 2023-06-30 | AY21: =IF(AY20="","",IF($Q$16=Lists!$I$16,AY20,IF($Q$16=Lists!$I$17,AY20+6,IF($Q$16=Lists!$I$18,IF(DAY(AY20)=21,EOMONTH(AY20,0),AY20+9),IF($Q$16=Lists!$I$19,EOMONTH(AY20,0),IF($Q$16=Lists!$I$20,EOMONTH(AY20,2),IF(OR($Q$16=Lists!$I$21,$Q$16=Lists!$I$22),EOMONTH(AY20,11),""))))))) -> 2023-07-31 | AZ21: =IF(AZ20="","",IF($Q$16=Lists!$I$16,AZ20,IF($Q$16=Lists!$I$17,AZ20+6,IF($Q$16=Lists!$I$18,IF(DAY(AZ20)=21,EOMONTH(AZ20,0),AZ20+9),IF($Q$16=Lists!$I$19,EOMONTH(AZ20,0),IF($Q$16=Lists!$I$20,EOMONTH(AZ20,2),IF(OR($Q$16=Lists!$I$21,$Q$16=Lists!$I$22),EOMONTH(AZ20,11),""))))))) -> 2023-08-31 | BA21: =IF(BA20="","",IF($Q$16=Lists!$I$16,BA20,IF($Q$16=Lists!$I$17,BA20+6,IF($Q$16=Lists!$I$18,IF(DAY(BA20)=21,EOMONTH(BA20,0),BA20+9),IF($Q$16=Lists!$I$19,EOMONTH(BA20,0),IF($Q$16=Lists!$I$20,EOMONTH(BA20,2),IF(OR($Q$16=Lists!$I$21,$Q$16=Lists!$I$22),EOMONTH(BA20,11),""))))))) -> 2023-09-30 | BB21: =IF(BB20="","",IF($Q$16=Lists!$I$16,BB20,IF($Q$16=Lists!$I$17,BB20+6,IF($Q$16=Lists!$I$18,IF(DAY(BB20)=21,EOMONTH(BB20,0),BB20+9),IF($Q$16=Lists!$I$19,EOMONTH(BB20,0),IF($Q$16=Lists!$I$20,EOMONTH(BB20,2),IF(OR($Q$16=Lists!$I$21,$Q$16=Lists!$I$22),EOMONTH(BB20,11),""))))))) -> 2023-10-31 | BC21: =IF(BC20="","",IF($Q$16=Lists!$I$16,BC20,IF($Q$16=Lists!$I$17,BC20+6,IF($Q$16=Lists!$I$18,IF(DAY(BC20)=21,EOMONTH(BC20,0),BC20+9),IF($Q$16=Lists!$I$19,EOMONTH(BC20,0),IF($Q$16=Lists!$I$20,EOMONTH(BC20,2),IF(OR($Q$16=Lists!$I$21,$Q$16=Lists!$I$22),EOMONTH(BC20,11),""))))))) -> 2023-11-30 | BD21: =IF(BD20="","",IF($Q$16=Lists!$I$16,BD20,IF($Q$16=Lists!$I$17,BD20+6,IF($Q$16=Lists!$I$18,IF(DAY(BD20)=21,EOMONTH(BD20,0),BD20+9),IF($Q$16=Lists!$I$19,EOMONTH(BD20,0),IF($Q$16=Lists!$I$20,EOMONTH(BD20,2),IF(OR($Q$16=Lists!$I$21,$Q$16=Lists!$I$22),EOMONTH(BD20,11),""))))))) -> 2023-12-31 | BE21: =IF(BE20="","",IF($Q$16=Lists!$I$16,BE20,IF($Q$16=Lists!$I$17,BE20+6,IF($Q$16=Lists!$I$18,IF(DAY(BE20)=21,EOMONTH(BE20,0),BE20+9),IF($Q$16=Lists!$I$19,EOMONTH(BE20,0),IF($Q$16=Lists!$I$20,EOMONTH(BE20,2),IF(OR($Q$16=Lists!$I$21,$Q$16=Lists!$I$22),EOMONTH(BE20,11),""))))))) -> 2024-01-31 | BF21: =IF(BF20="","",IF($Q$16=Lists!$I$16,BF20,IF($Q$16=Lists!$I$17,BF20+6,IF($Q$16=Lists!$I$18,IF(DAY(BF20)=21,EOMONTH(BF20,0),BF20+9),IF($Q$16=Lists!$I$19,EOMONTH(BF20,0),IF($Q$16=Lists!$I$20,EOMONTH(BF20,2),IF(OR($Q$16=Lists!$I$21,$Q$16=Lists!$I$22),EOMONTH(BF20,11),""))))))) -> 2024-02-29 | BG21: =IF(BG20="","",IF($Q$16=Lists!$I$16,BG20,IF($Q$16=Lists!$I$17,BG20+6,IF($Q$16=Lists!$I$18,IF(DAY(BG20)=21,EOMONTH(BG20,0),BG20+9),IF($Q$16=Lists!$I$19,EOMONTH(BG20,0),IF($Q$16=Lists!$I$20,EOMONTH(BG20,2),IF(OR($Q$16=Lists!$I$21,$Q$16=Lists!$I$22),EOMONTH(BG20,11),""))))))) -> 2024-03-31 | BH21: =IF(BH20="","",IF($Q$16=Lists!$I$16,BH20,IF($Q$16=Lists!$I$17,BH20+6,IF($Q$16=Lists!$I$18,IF(DAY(BH20)=21,EOMONTH(BH20,0),BH20+9),IF($Q$16=Lists!$I$19,EOMONTH(BH20,0),IF($Q$16=Lists!$I$20,EOMONTH(BH20,2),IF(OR($Q$16=Lists!$I$21,$Q$16=Lists!$I$22),EOMONTH(BH20,11),""))))))) -> 2024-04-30 | BI21: =IF(BI20="","",IF($Q$16=Lists!$I$16,BI20,IF($Q$16=Lists!$I$17,BI20+6,IF($Q$16=Lists!$I$18,IF(DAY(BI20)=21,EOMONTH(BI20,0),BI20+9),IF($Q$16=Lists!$I$19,EOMONTH(BI20,0),IF($Q$16=Lists!$I$20,EOMONTH(BI20,2),IF(OR($Q$16=Lists!$I$21,$Q$16=Lists!$I$22),EOMONTH(BI20,11),""))))))) -> 2024-05-31 | BJ21: =IF(BJ20="","",IF($Q$16=Lists!$I$16,BJ20,IF($Q$16=Lists!$I$17,BJ20+6,IF($Q$16=Lists!$I$18,IF(DAY(BJ20)=21,EOMONTH(BJ20,0),BJ20+9),IF($Q$16=Lists!$I$19,EOMONTH(BJ20,0),IF($Q$16=Lists!$I$20,EOMONTH(BJ20,2),IF(OR($Q$16=Lists!$I$21,$Q$16=Lists!$I$22),EOMONTH(BJ20,11),""))))))) -> 2024-06-30 | BK21: =IF(BK20="","",IF($Q$16=Lists!$I$16,BK20,IF($Q$16=Lists!$I$17,BK20+6,IF($Q$16=Lists!$I$18,IF(DAY(BK20)=21,EOMONTH(BK20,0),BK20+9),IF($Q$16=Lists!$I$19,EOMONTH(BK20,0),IF($Q$16=Lists!$I$20,EOMONTH(BK20,2),IF(OR($Q$16=Lists!$I$21,$Q$16=Lists!$I$22),EOMONTH(BK20,11),""))))))) -> 2024-07-31 | BL21: =IF(BL20="","",IF($Q$16=Lists!$I$16,BL20,IF($Q$16=Lists!$I$17,BL20+6,IF($Q$16=Lists!$I$18,IF(DAY(BL20)=21,EOMONTH(BL20,0),BL20+9),IF($Q$16=Lists!$I$19,EOMONTH(BL20,0),IF($Q$16=Lists!$I$20,EOMONTH(BL20,2),IF(OR($Q$16=Lists!$I$21,$Q$16=Lists!$I$22),EOMONTH(BL20,11),""))))))) -> 2024-08-31 | BM21: =IF(BM20="","",IF($Q$16=Lists!$I$16,BM20,IF($Q$16=Lists!$I$17,BM20+6,IF($Q$16=Lists!$I$18,IF(DAY(BM20)=21,EOMONTH(BM20,0),BM20+9),IF($Q$16=Lists!$I$19,EOMONTH(BM20,0),IF($Q$16=Lists!$I$20,EOMONTH(BM20,2),IF(OR($Q$16=Lists!$I$21,$Q$16=Lists!$I$22),EOMONTH(BM20,11),""))))))) -> 2024-09-30 | BN21: =IF(BN20="","",IF($Q$16=Lists!$I$16,BN20,IF($Q$16=Lists!$I$17,BN20+6,IF($Q$16=Lists!$I$18,IF(DAY(BN20)=21,EOMONTH(BN20,0),BN20+9),IF($Q$16=Lists!$I$19,EOMONTH(BN20,0),IF($Q$16=Lists!$I$20,EOMONTH(BN20,2),IF(OR($Q$16=Lists!$I$21,$Q$16=Lists!$I$22),EOMONTH(BN20,11),""))))))) -> 2024-10-31 | BO21: =IF(BO20="","",IF($Q$16=Lists!$I$16,BO20,IF($Q$16=Lists!$I$17,BO20+6,IF($Q$16=Lists!$I$18,IF(DAY(BO20)=21,EOMONTH(BO20,0),BO20+9),IF($Q$16=Lists!$I$19,EOMONTH(BO20,0),IF($Q$16=Lists!$I$20,EOMONTH(BO20,2),IF(OR($Q$16=Lists!$I$21,$Q$16=Lists!$I$22),EOMONTH(BO20,11),""))))))) -> 2024-11-30 | BP21: =IF(BP20="","",IF($Q$16=Lists!$I$16,BP20,IF($Q$16=Lists!$I$17,BP20+6,IF($Q$16=Lists!$I$18,IF(DAY(BP20)=21,EOMONTH(BP20,0),BP20+9),IF($Q$16=Lists!$I$19,EOMONTH(BP20,0),IF($Q$16=Lists!$I$20,EOMONTH(BP20,2),IF(OR($Q$16=Lists!$I$21,$Q$16=Lists!$I$22),EOMONTH(BP20,11),""))))))) -> 2024-12-31 | BQ21: =IF(BQ20="","",IF($Q$16=Lists!$I$16,BQ20,IF($Q$16=Lists!$I$17,BQ20+6,IF($Q$16=Lists!$I$18,IF(DAY(BQ20)=21,EOMONTH(BQ20,0),BQ20+9),IF($Q$16=Lists!$I$19,EOMONTH(BQ20,0),IF($Q$16=Lists!$I$20,EOMONTH(BQ20,2),IF(OR($Q$16=Lists!$I$21,$Q$16=Lists!$I$22),EOMONTH(BQ20,11),""))))))) -> 2025-01-31 | BR21: =IF(BR20="","",IF($Q$16=Lists!$I$16,BR20,IF($Q$16=Lists!$I$17,BR20+6,IF($Q$16=Lists!$I$18,IF(DAY(BR20)=21,EOMONTH(BR20,0),BR20+9),IF($Q$16=Lists!$I$19,EOMONTH(BR20,0),IF($Q$16=Lists!$I$20,EOMONTH(BR20,2),IF(OR($Q$16=Lists!$I$21,$Q$16=Lists!$I$22),EOMONTH(BR20,11),""))))))) -> 2025-02-28 | BS21: =IF(BS20="","",IF($Q$16=Lists!$I$16,BS20,IF($Q$16=Lists!$I$17,BS20+6,IF($Q$16=Lists!$I$18,IF(DAY(BS20)=21,EOMONTH(BS20,0),BS20+9),IF($Q$16=Lists!$I$19,EOMONTH(BS20,0),IF($Q$16=Lists!$I$20,EOMONTH(BS20,2),IF(OR($Q$16=Lists!$I$21,$Q$16=Lists!$I$22),EOMONTH(BS20,11),""))))))) -> 2025-03-31 | BT21: =IF(BT20="","",IF($Q$16=Lists!$I$16,BT20,IF($Q$16=Lists!$I$17,BT20+6,IF($Q$16=Lists!$I$18,IF(DAY(BT20)=21,EOMONTH(BT20,0),BT20+9),IF($Q$16=Lists!$I$19,EOMONTH(BT20,0),IF($Q$16=Lists!$I$20,EOMONTH(BT20,2),IF(OR($Q$16=Lists!$I$21,$Q$16=Lists!$I$22),EOMONTH(BT20,11),""))))))) -> 2025-04-30 | BU21: =IF(BU20="","",IF($Q$16=Lists!$I$16,BU20,IF($Q$16=Lists!$I$17,BU20+6,IF($Q$16=Lists!$I$18,IF(DAY(BU20)=21,EOMONTH(BU20,0),BU20+9),IF($Q$16=Lists!$I$19,EOMONTH(BU20,0),IF($Q$16=Lists!$I$20,EOMONTH(BU20,2),IF(OR($Q$16=Lists!$I$21,$Q$16=Lists!$I$22),EOMONTH(BU20,11),""))))))) -> 2025-05-31 | BV21: =IF(BV20="","",IF($Q$16=Lists!$I$16,BV20,IF($Q$16=Lists!$I$17,BV20+6,IF($Q$16=Lists!$I$18,IF(DAY(BV20)=21,EOMONTH(BV20,0),BV20+9),IF($Q$16=Lists!$I$19,EOMONTH(BV20,0),IF($Q$16=Lists!$I$20,EOMONTH(BV20,2),IF(OR($Q$16=Lists!$I$21,$Q$16=Lists!$I$22),EOMONTH(BV20,11),""))))))) -> 2025-06-30 | BW21: =IF(BW20="","",IF($Q$16=Lists!$I$16,BW20,IF($Q$16=Lists!$I$17,BW20+6,IF($Q$16=Lists!$I$18,IF(DAY(BW20)=21,EOMONTH(BW20,0),BW20+9),IF($Q$16=Lists!$I$19,EOMONTH(BW20,0),IF($Q$16=Lists!$I$20,EOMONTH(BW20,2),IF(OR($Q$16=Lists!$I$21,$Q$16=Lists!$I$22),EOMONTH(BW20,11),""))))))) -> 2025-07-31 | BX21: =IF(BX20="","",IF($Q$16=Lists!$I$16,BX20,IF($Q$16=Lists!$I$17,BX20+6,IF($Q$16=Lists!$I$18,IF(DAY(BX20)=21,EOMONTH(BX20,0),BX20+9),IF($Q$16=Lists!$I$19,EOMONTH(BX20,0),IF($Q$16=Lists!$I$20,EOMONTH(BX20,2),IF(OR($Q$16=Lists!$I$21,$Q$16=Lists!$I$22),EOMONTH(BX20,11),""))))))) -> 2025-08-31 | BY21: =IF(BY20="","",IF($Q$16=Lists!$I$16,BY20,IF($Q$16=Lists!$I$17,BY20+6,IF($Q$16=Lists!$I$18,IF(DAY(BY20)=21,EOMONTH(BY20,0),BY20+9),IF($Q$16=Lists!$I$19,EOMONTH(BY20,0),IF($Q$16=Lists!$I$20,EOMONTH(BY20,2),IF(OR($Q$16=Lists!$I$21,$Q$16=Lists!$I$22),EOMONTH(BY20,11),""))))))) -> 2025-09-30 | BZ21: =IF(BZ20="","",IF($Q$16=Lists!$I$16,BZ20,IF($Q$16=Lists!$I$17,BZ20+6,IF($Q$16=Lists!$I$18,IF(DAY(BZ20)=21,EOMONTH(BZ20,0),BZ20+9),IF($Q$16=Lists!$I$19,EOMONTH(BZ20,0),IF($Q$16=Lists!$I$20,EOMONTH(BZ20,2),IF(OR($Q$16=Lists!$I$21,$Q$16=Lists!$I$22),EOMONTH(BZ20,11),""))))))) -> 2025-10-31 | CA21: =IF(CA20="","",IF($Q$16=Lists!$I$16,CA20,IF($Q$16=Lists!$I$17,CA20+6,IF($Q$16=Lists!$I$18,IF(DAY(CA20)=21,EOMONTH(CA20,0),CA20+9),IF($Q$16=Lists!$I$19,EOMONTH(CA20,0),IF($Q$16=Lists!$I$20,EOMONTH(CA20,2),IF(OR($Q$16=Lists!$I$21,$Q$16=Lists!$I$22),EOMONTH(CA20,11),""))))))) -> 2025-11-30 | CB21: =IF(CB20="","",IF($Q$16=Lists!$I$16,CB20,IF($Q$16=Lists!$I$17,CB20+6,IF($Q$16=Lists!$I$18,IF(DAY(CB20)=21,EOMONTH(CB20,0),CB20+9),IF($Q$16=Lists!$I$19,EOMONTH(CB20,0),IF($Q$16=Lists!$I$20,EOMONTH(CB20,2),IF(OR($Q$16=Lists!$I$21,$Q$16=Lists!$I$22),EOMONTH(CB20,11),""))))))) -> 2025-12-31 | CC21: =IF(CC20="","",IF($Q$16=Lists!$I$16,CC20,IF($Q$16=Lists!$I$17,CC20+6,IF($Q$16=Lists!$I$18,IF(DAY(CC20)=21,EOMONTH(CC20,0),CC20+9),IF($Q$16=Lists!$I$19,EOMONTH(CC20,0),IF($Q$16=Lists!$I$20,EOMONTH(CC20,2),IF(OR($Q$16=Lists!$I$21,$Q$16=Lists!$I$22),EOMONTH(CC20,11),""))))))) -> 2026-01-31 | CD21: =IF(CD20="","",IF($Q$16=Lists!$I$16,CD20,IF($Q$16=Lists!$I$17,CD20+6,IF($Q$16=Lists!$I$18,IF(DAY(CD20)=21,EOMONTH(CD20,0),CD20+9),IF($Q$16=Lists!$I$19,EOMONTH(CD20,0),IF($Q$16=Lists!$I$20,EOMONTH(CD20,2),IF(OR($Q$16=Lists!$I$21,$Q$16=Lists!$I$22),EOMONTH(CD20,11),""))))))) -> 2026-02-28 | CE21: =IF(CE20="","",IF($Q$16=Lists!$I$16,CE20,IF($Q$16=Lists!$I$17,CE20+6,IF($Q$16=Lists!$I$18,IF(DAY(CE20)=21,EOMONTH(CE20,0),CE20+9),IF($Q$16=Lists!$I$19,EOMONTH(CE20,0),IF($Q$16=Lists!$I$20,EOMONTH(CE20,2),IF(OR($Q$16=Lists!$I$21,$Q$16=Lists!$I$22),EOMONTH(CE20,11),""))))))) -> 2026-03-31 | CF21: =IF(CF20="","",IF($Q$16=Lists!$I$16,CF20,IF($Q$16=Lists!$I$17,CF20+6,IF($Q$16=Lists!$I$18,IF(DAY(CF20)=21,EOMONTH(CF20,0),CF20+9),IF($Q$16=Lists!$I$19,EOMONTH(CF20,0),IF($Q$16=Lists!$I$20,EOMONTH(CF20,2),IF(OR($Q$16=Lists!$I$21,$Q$16=Lists!$I$22),EOMONTH(CF20,11),""))))))) -> 2026-04-30 | CG21: =IF(CG20="","",IF($Q$16=Lists!$I$16,CG20,IF($Q$16=Lists!$I$17,CG20+6,IF($Q$16=Lists!$I$18,IF(DAY(CG20)=21,EOMONTH(CG20,0),CG20+9),IF($Q$16=Lists!$I$19,EOMONTH(CG20,0),IF($Q$16=Lists!$I$20,EOMONTH(CG20,2),IF(OR($Q$16=Lists!$I$21,$Q$16=Lists!$I$22),EOMONTH(CG20,11),""))))))) -> 2026-05-31 | CH21: =IF(CH20="","",IF($Q$16=Lists!$I$16,CH20,IF($Q$16=Lists!$I$17,CH20+6,IF($Q$16=Lists!$I$18,IF(DAY(CH20)=21,EOMONTH(CH20,0),CH20+9),IF($Q$16=Lists!$I$19,EOMONTH(CH20,0),IF($Q$16=Lists!$I$20,EOMONTH(CH20,2),IF(OR($Q$16=Lists!$I$21,$Q$16=Lists!$I$22),EOMONTH(CH20,11),""))))))) -> 2026-06-30 | CI21: =IF(CI20="","",IF($Q$16=Lists!$I$16,CI20,IF($Q$16=Lists!$I$17,CI20+6,IF($Q$16=Lists!$I$18,IF(DAY(CI20)=21,EOMONTH(CI20,0),CI20+9),IF($Q$16=Lists!$I$19,EOMONTH(CI20,0),IF($Q$16=Lists!$I$20,EOMONTH(CI20,2),IF(OR($Q$16=Lists!$I$21,$Q$16=Lists!$I$22),EOMONTH(CI20,11),""))))))) -> 2026-07-31 | CJ21: =IF(CJ20="","",IF($Q$16=Lists!$I$16,CJ20,IF($Q$16=Lists!$I$17,CJ20+6,IF($Q$16=Lists!$I$18,IF(DAY(CJ20)=21,EOMONTH(CJ20,0),CJ20+9),IF($Q$16=Lists!$I$19,EOMONTH(CJ20,0),IF($Q$16=Lists!$I$20,EOMONTH(CJ20,2),IF(OR($Q$16=Lists!$I$21,$Q$16=Lists!$I$22),EOMONTH(CJ20,11),""))))))) -> 2026-08-31 | CK21: =IF(CK20="","",IF($Q$16=Lists!$I$16,CK20,IF($Q$16=Lists!$I$17,CK20+6,IF($Q$16=Lists!$I$18,IF(DAY(CK20)=21,EOMONTH(CK20,0),CK20+9),IF($Q$16=Lists!$I$19,EOMONTH(CK20,0),IF($Q$16=Lists!$I$20,EOMONTH(CK20,2),IF(OR($Q$16=Lists!$I$21,$Q$16=Lists!$I$22),EOMONTH(CK20,11),""))))))) -> 2026-09-30 | CL21: =IF(CL20="","",IF($Q$16=Lists!$I$16,CL20,IF($Q$16=Lists!$I$17,CL20+6,IF($Q$16=Lists!$I$18,IF(DAY(CL20)=21,EOMONTH(CL20,0),CL20+9),IF($Q$16=Lists!$I$19,EOMONTH(CL20,0),IF($Q$16=Lists!$I$20,EOMONTH(CL20,2),IF(OR($Q$16=Lists!$I$21,$Q$16=Lists!$I$22),EOMONTH(CL20,11),""))))))) -> 2026-10-31 | CM21: =IF(CM20="","",IF($Q$16=Lists!$I$16,CM20,IF($Q$16=Lists!$I$17,CM20+6,IF($Q$16=Lists!$I$18,IF(DAY(CM20)=21,EOMONTH(CM20,0),CM20+9),IF($Q$16=Lists!$I$19,EOMONTH(CM20,0),IF($Q$16=Lists!$I$20,EOMONTH(CM20,2),IF(OR($Q$16=Lists!$I$21,$Q$16=Lists!$I$22),EOMONTH(CM20,11),""))))))) -> 2026-11-30 | CN21: =IF(CN20="","",IF($Q$16=Lists!$I$16,CN20,IF($Q$16=Lists!$I$17,CN20+6,IF($Q$16=Lists!$I$18,IF(DAY(CN20)=21,EOMONTH(CN20,0),CN20+9),IF($Q$16=Lists!$I$19,EOMONTH(CN20,0),IF($Q$16=Lists!$I$20,EOMONTH(CN20,2),IF(OR($Q$16=Lists!$I$21,$Q$16=Lists!$I$22),EOMONTH(CN20,11),""))))))) -> 2026-12-31 | CO21: =IF(CO20="","",IF($Q$16=Lists!$I$16,CO20,IF($Q$16=Lists!$I$17,CO20+6,IF($Q$16=Lists!$I$18,IF(DAY(CO20)=21,EOMONTH(CO20,0),CO20+9),IF($Q$16=Lists!$I$19,EOMONTH(CO20,0),IF($Q$16=Lists!$I$20,EOMONTH(CO20,2),IF(OR($Q$16=Lists!$I$21,$Q$16=Lists!$I$22),EOMONTH(CO20,11),""))))))) -> 2027-01-31 | CP21: =IF(CP20="","",IF($Q$16=Lists!$I$16,CP20,IF($Q$16=Lists!$I$17,CP20+6,IF($Q$16=Lists!$I$18,IF(DAY(CP20)=21,EOMONTH(CP20,0),CP20+9),IF($Q$16=Lists!$I$19,EOMONTH(CP20,0),IF($Q$16=Lists!$I$20,EOMONTH(CP20,2),IF(OR($Q$16=Lists!$I$21,$Q$16=Lists!$I$22),EOMONTH(CP20,11),""))))))) -> 2027-02-28 | CQ21: =IF(CQ20="","",IF($Q$16=Lists!$I$16,CQ20,IF($Q$16=Lists!$I$17,CQ20+6,IF($Q$16=Lists!$I$18,IF(DAY(CQ20)=21,EOMONTH(CQ20,0),CQ20+9),IF($Q$16=Lists!$I$19,EOMONTH(CQ20,0),IF($Q$16=Lists!$I$20,EOMONTH(CQ20,2),IF(OR($Q$16=Lists!$I$21,$Q$16=Lists!$I$22),EOMONTH(CQ20,11),""))))))) -> 2027-03-31 | CR21: =IF(CR20="","",IF($Q$16=Lists!$I$16,CR20,IF($Q$16=Lists!$I$17,CR20+6,IF($Q$16=Lists!$I$18,IF(DAY(CR20)=21,EOMONTH(CR20,0),CR20+9),IF($Q$16=Lists!$I$19,EOMONTH(CR20,0),IF($Q$16=Lists!$I$20,EOMONTH(CR20,2),IF(OR($Q$16=Lists!$I$21,$Q$16=Lists!$I$22),EOMONTH(CR20,11),""))))))) -> 2027-04-30 | CS21: =IF(CS20="","",IF($Q$16=Lists!$I$16,CS20,IF($Q$16=Lists!$I$17,CS20+6,IF($Q$16=Lists!$I$18,IF(DAY(CS20)=21,EOMONTH(CS20,0),CS20+9),IF($Q$16=Lists!$I$19,EOMONTH(CS20,0),IF($Q$16=Lists!$I$20,EOMONTH(CS20,2),IF(OR($Q$16=Lists!$I$21,$Q$16=Lists!$I$22),EOMONTH(CS20,11),""))))))) -> 2027-05-31 | CT21: =IF(CT20="","",IF($Q$16=Lists!$I$16,CT20,IF($Q$16=Lists!$I$17,CT20+6,IF($Q$16=Lists!$I$18,IF(DAY(CT20)=21,EOMONTH(CT20,0),CT20+9),IF($Q$16=Lists!$I$19,EOMONTH(CT20,0),IF($Q$16=Lists!$I$20,EOMONTH(CT20,2),IF(OR($Q$16=Lists!$I$21,$Q$16=Lists!$I$22),EOMONTH(CT20,11),""))))))) -> 2027-06-30 | CU21: =IF(CU20="","",IF($Q$16=Lists!$I$16,CU20,IF($Q$16=Lists!$I$17,CU20+6,IF($Q$16=Lists!$I$18,IF(DAY(CU20)=21,EOMONTH(CU20,0),CU20+9),IF($Q$16=Lists!$I$19,EOMONTH(CU20,0),IF($Q$16=Lists!$I$20,EOMONTH(CU20,2),IF(OR($Q$16=Lists!$I$21,$Q$16=Lists!$I$22),EOMONTH(CU20,11),""))))))) -> 2027-07-31 | CV21: =IF(CV20="","",IF($Q$16=Lists!$I$16,CV20,IF($Q$16=Lists!$I$17,CV20+6,IF($Q$16=Lists!$I$18,IF(DAY(CV20)=21,EOMONTH(CV20,0),CV20+9),IF($Q$16=Lists!$I$19,EOMONTH(CV20,0),IF($Q$16=Lists!$I$20,EOMONTH(CV20,2),IF(OR($Q$16=Lists!$I$21,$Q$16=Lists!$I$22),EOMONTH(CV20,11),""))))))) -> 2027-08-31 | CW21: =IF(CW20="","",IF($Q$16=Lists!$I$16,CW20,IF($Q$16=Lists!$I$17,CW20+6,IF($Q$16=Lists!$I$18,IF(DAY(CW20)=21,EOMONTH(CW20,0),CW20+9),IF($Q$16=Lists!$I$19,EOMONTH(CW20,0),IF($Q$16=Lists!$I$20,EOMONTH(CW20,2),IF(OR($Q$16=Lists!$I$21,$Q$16=Lists!$I$22),EOMONTH(CW20,11),""))))))) -> 2027-09-30 | CX21: =IF(CX20="","",IF($Q$16=Lists!$I$16,CX20,IF($Q$16=Lists!$I$17,CX20+6,IF($Q$16=Lists!$I$18,IF(DAY(CX20)=21,EOMONTH(CX20,0),CX20+9),IF($Q$16=Lists!$I$19,EOMONTH(CX20,0),IF($Q$16=Lists!$I$20,EOMONTH(CX20,2),IF(OR($Q$16=Lists!$I$21,$Q$16=Lists!$I$22),EOMONTH(CX20,11),""))))))) -> 2027-10-31 | CY21: =IF(CY20="","",IF($Q$16=Lists!$I$16,CY20,IF($Q$16=Lists!$I$17,CY20+6,IF($Q$16=Lists!$I$18,IF(DAY(CY20)=21,EOMONTH(CY20,0),CY20+9),IF($Q$16=Lists!$I$19,EOMONTH(CY20,0),IF($Q$16=Lists!$I$20,EOMONTH(CY20,2),IF(OR($Q$16=Lists!$I$21,$Q$16=Lists!$I$22),EOMONTH(CY20,11),""))))))) -> 2027-11-30 | CZ21: =IF(CZ20="","",IF($Q$16=Lists!$I$16,CZ20,IF($Q$16=Lists!$I$17,CZ20+6,IF($Q$16=Lists!$I$18,IF(DAY(CZ20)=21,EOMONTH(CZ20,0),CZ20+9),IF($Q$16=Lists!$I$19,EOMONTH(CZ20,0),IF($Q$16=Lists!$I$20,EOMONTH(CZ20,2),IF(OR($Q$16=Lists!$I$21,$Q$16=Lists!$I$22),EOMONTH(CZ20,11),""))))))) -> 2027-12-31 | DA21: =IF(DA20="","",IF($Q$16=Lists!$I$16,DA20,IF($Q$16=Lists!$I$17,DA20+6,IF($Q$16=Lists!$I$18,IF(DAY(DA20)=21,EOMONTH(DA20,0),DA20+9),IF($Q$16=Lists!$I$19,EOMONTH(DA20,0),IF($Q$16=Lists!$I$20,EOMONTH(DA20,2),IF(OR($Q$16=Lists!$I$21,$Q$16=Lists!$I$22),EOMONTH(DA20,11),""))))))) -> 2028-01-31 | DB21: =IF(DB20="","",IF($Q$16=Lists!$I$16,DB20,IF($Q$16=Lists!$I$17,DB20+6,IF($Q$16=Lists!$I$18,IF(DAY(DB20)=21,EOMONTH(DB20,0),DB20+9),IF($Q$16=Lists!$I$19,EOMONTH(DB20,0),IF($Q$16=Lists!$I$20,EOMONTH(DB20,2),IF(OR($Q$16=Lists!$I$21,$Q$16=Lists!$I$22),EOMONTH(DB20,11),""))))))) -> 2028-02-29 | DC21: =IF(DC20="","",IF($Q$16=Lists!$I$16,DC20,IF($Q$16=Lists!$I$17,DC20+6,IF($Q$16=Lists!$I$18,IF(DAY(DC20)=21,EOMONTH(DC20,0),DC20+9),IF($Q$16=Lists!$I$19,EOMONTH(DC20,0),IF($Q$16=Lists!$I$20,EOMONTH(DC20,2),IF(OR($Q$16=Lists!$I$21,$Q$16=Lists!$I$22),EOMONTH(DC20,11),""))))))) -> 2028-03-31 | DD21: =IF(DD20="","",IF($Q$16=Lists!$I$16,DD20,IF($Q$16=Lists!$I$17,DD20+6,IF($Q$16=Lists!$I$18,IF(DAY(DD20)=21,EOMONTH(DD20,0),DD20+9),IF($Q$16=Lists!$I$19,EOMONTH(DD20,0),IF($Q$16=Lists!$I$20,EOMONTH(DD20,2),IF(OR($Q$16=Lists!$I$21,$Q$16=Lists!$I$22),EOMONTH(DD20,11),""))))))) -> 2028-04-30 | DE21: =IF(DE20="","",IF($Q$16=Lists!$I$16,DE20,IF($Q$16=Lists!$I$17,DE20+6,IF($Q$16=Lists!$I$18,IF(DAY(DE20)=21,EOMONTH(DE20,0),DE20+9),IF($Q$16=Lists!$I$19,EOMONTH(DE20,0),IF($Q$16=Lists!$I$20,EOMONTH(DE20,2),IF(OR($Q$16=Lists!$I$21,$Q$16=Lists!$I$22),EOMONTH(DE20,11),""))))))) -> 2028-05-31 | DF21: =IF(DF20="","",IF($Q$16=Lists!$I$16,DF20,IF($Q$16=Lists!$I$17,DF20+6,IF($Q$16=Lists!$I$18,IF(DAY(DF20)=21,EOMONTH(DF20,0),DF20+9),IF($Q$16=Lists!$I$19,EOMONTH(DF20,0),IF($Q$16=Lists!$I$20,EOMONTH(DF20,2),IF(OR($Q$16=Lists!$I$21,$Q$16=Lists!$I$22),EOMONTH(DF20,11),""))))))) -> 2028-06-30 | DG21: =IF(DG20="","",IF($Q$16=Lists!$I$16,DG20,IF($Q$16=Lists!$I$17,DG20+6,IF($Q$16=Lists!$I$18,IF(DAY(DG20)=21,EOMONTH(DG20,0),DG20+9),IF($Q$16=Lists!$I$19,EOMONTH(DG20,0),IF($Q$16=Lists!$I$20,EOMONTH(DG20,2),IF(OR($Q$16=Lists!$I$21,$Q$16=Lists!$I$22),EOMONTH(DG20,11),""))))))) -> 2028-07-31 | DH21: =IF(DH20="","",IF($Q$16=Lists!$I$16,DH20,IF($Q$16=Lists!$I$17,DH20+6,IF($Q$16=Lists!$I$18,IF(DAY(DH20)=21,EOMONTH(DH20,0),DH20+9),IF($Q$16=Lists!$I$19,EOMONTH(DH20,0),IF($Q$16=Lists!$I$20,EOMONTH(DH20,2),IF(OR($Q$16=Lists!$I$21,$Q$16=Lists!$I$22),EOMONTH(DH20,11),""))))))) -> 2028-08-31 | DI21: =IF(DI20="","",IF($Q$16=Lists!$I$16,DI20,IF($Q$16=Lists!$I$17,DI20+6,IF($Q$16=Lists!$I$18,IF(DAY(DI20)=21,EOMONTH(DI20,0),DI20+9),IF($Q$16=Lists!$I$19,EOMONTH(DI20,0),IF($Q$16=Lists!$I$20,EOMONTH(DI20,2),IF(OR($Q$16=Lists!$I$21,$Q$16=Lists!$I$22),EOMONTH(DI20,11),""))))))) -> 2028-09-30 | DJ21: =IF(DJ20="","",IF($Q$16=Lists!$I$16,DJ20,IF($Q$16=Lists!$I$17,DJ20+6,IF($Q$16=Lists!$I$18,IF(DAY(DJ20)=21,EOMONTH(DJ20,0),DJ20+9),IF($Q$16=Lists!$I$19,EOMONTH(DJ20,0),IF($Q$16=Lists!$I$20,EOMONTH(DJ20,2),IF(OR($Q$16=Lists!$I$21,$Q$16=Lists!$I$22),EOMONTH(DJ20,11),""))))))) -> 2028-10-31 | DK21: =IF(DK20="","",IF($Q$16=Lists!$I$16,DK20,IF($Q$16=Lists!$I$17,DK20+6,IF($Q$16=Lists!$I$18,IF(DAY(DK20)=21,EOMONTH(DK20,0),DK20+9),IF($Q$16=Lists!$I$19,EOMONTH(DK20,0),IF($Q$16=Lists!$I$20,EOMONTH(DK20,2),IF(OR($Q$16=Lists!$I$21,$Q$16=Lists!$I$22),EOMONTH(DK20,11),""))))))) -> 2028-11-30 | DL21: =IF(DL20="","",IF($Q$16=Lists!$I$16,DL20,IF($Q$16=Lists!$I$17,DL20+6,IF($Q$16=Lists!$I$18,IF(DAY(DL20)=21,EOMONTH(DL20,0),DL20+9),IF($Q$16=Lists!$I$19,EOMONTH(DL20,0),IF($Q$16=Lists!$I$20,EOMONTH(DL20,2),IF(OR($Q$16=Lists!$I$21,$Q$16=Lists!$I$22),EOMONTH(DL20,11),""))))))) -> 2028-12-31 | DM21: =IF(DM20="","",IF($Q$16=Lists!$I$16,DM20,IF($Q$16=Lists!$I$17,DM20+6,IF($Q$16=Lists!$I$18,IF(DAY(DM20)=21,EOMONTH(DM20,0),DM20+9),IF($Q$16=Lists!$I$19,EOMONTH(DM20,0),IF($Q$16=Lists!$I$20,EOMONTH(DM20,2),IF(OR($Q$16=Lists!$I$21,$Q$16=Lists!$I$22),EOMONTH(DM20,11),""))))))) -> 2029-01-31 | DN21: =IF(DN20="","",IF($Q$16=Lists!$I$16,DN20,IF($Q$16=Lists!$I$17,DN20+6,IF($Q$16=Lists!$I$18,IF(DAY(DN20)=21,EOMONTH(DN20,0),DN20+9),IF($Q$16=Lists!$I$19,EOMONTH(DN20,0),IF($Q$16=Lists!$I$20,EOMONTH(DN20,2),IF(OR($Q$16=Lists!$I$21,$Q$16=Lists!$I$22),EOMONTH(DN20,11),""))))))) -> 2029-02-28 | DO21: =IF(DO20="","",IF($Q$16=Lists!$I$16,DO20,IF($Q$16=Lists!$I$17,DO20+6,IF($Q$16=Lists!$I$18,IF(DAY(DO20)=21,EOMONTH(DO20,0),DO20+9),IF($Q$16=Lists!$I$19,EOMONTH(DO20,0),IF($Q$16=Lists!$I$20,EOMONTH(DO20,2),IF(OR($Q$16=Lists!$I$21,$Q$16=Lists!$I$22),EOMONTH(DO20,11),""))))))) -> 2029-03-31 | DP21: =IF(DP20="","",IF($Q$16=Lists!$I$16,DP20,IF($Q$16=Lists!$I$17,DP20+6,IF($Q$16=Lists!$I$18,IF(DAY(DP20)=21,EOMONTH(DP20,0),DP20+9),IF($Q$16=Lists!$I$19,EOMONTH(DP20,0),IF($Q$16=Lists!$I$20,EOMONTH(DP20,2),IF(OR($Q$16=Lists!$I$21,$Q$16=Lists!$I$22),EOMONTH(DP20,11),""))))))) -> 2029-04-30 | DQ21: =IF(DQ20="","",IF($Q$16=Lists!$I$16,DQ20,IF($Q$16=Lists!$I$17,DQ20+6,IF($Q$16=Lists!$I$18,IF(DAY(DQ20)=21,EOMONTH(DQ20,0),DQ20+9),IF($Q$16=Lists!$I$19,EOMONTH(DQ20,0),IF($Q$16=Lists!$I$20,EOMONTH(DQ20,2),IF(OR($Q$16=Lists!$I$21,$Q$16=Lists!$I$22),EOMONTH(DQ20,11),""))))))) -> 2029-05-31 | DR21: =IF(DR20="","",IF($Q$16=Lists!$I$16,DR20,IF($Q$16=Lists!$I$17,DR20+6,IF($Q$16=Lists!$I$18,IF(DAY(DR20)=21,EOMONTH(DR20,0),DR20+9),IF($Q$16=Lists!$I$19,EOMONTH(DR20,0),IF($Q$16=Lists!$I$20,EOMONTH(DR20,2),IF(OR($Q$16=Lists!$I$21,$Q$16=Lists!$I$22),EOMONTH(DR20,11),""))))))) -> 2029-06-30 | DS21: =IF(DS20="","",IF($Q$16=Lists!$I$16,DS20,IF($Q$16=Lists!$I$17,DS20+6,IF($Q$16=Lists!$I$18,IF(DAY(DS20)=21,EOMONTH(DS20,0),DS20+9),IF($Q$16=Lists!$I$19,EOMONTH(DS20,0),IF($Q$16=Lists!$I$20,EOMONTH(DS20,2),IF(OR($Q$16=Lists!$I$21,$Q$16=Lists!$I$22),EOMONTH(DS20,11),""))))))) -> 2029-07-31 | DT21: =IF(DT20="","",IF($Q$16=Lists!$I$16,DT20,IF($Q$16=Lists!$I$17,DT20+6,IF($Q$16=Lists!$I$18,IF(DAY(DT20)=21,EOMONTH(DT20,0),DT20+9),IF($Q$16=Lists!$I$19,EOMONTH(DT20,0),IF($Q$16=Lists!$I$20,EOMONTH(DT20,2),IF(OR($Q$16=Lists!$I$21,$Q$16=Lists!$I$22),EOMONTH(DT20,11),""))))))) -> 2029-08-31 | DU21: =IF(DU20="","",IF($Q$16=Lists!$I$16,DU20,IF($Q$16=Lists!$I$17,DU20+6,IF($Q$16=Lists!$I$18,IF(DAY(DU20)=21,EOMONTH(DU20,0),DU20+9),IF($Q$16=Lists!$I$19,EOMONTH(DU20,0),IF($Q$16=Lists!$I$20,EOMONTH(DU20,2),IF(OR($Q$16=Lists!$I$21,$Q$16=Lists!$I$22),EOMONTH(DU20,11),""))))))) -> 2029-09-30 | DV21: =IF(DV20="","",IF($Q$16=Lists!$I$16,DV20,IF($Q$16=Lists!$I$17,DV20+6,IF($Q$16=Lists!$I$18,IF(DAY(DV20)=21,EOMONTH(DV20,0),DV20+9),IF($Q$16=Lists!$I$19,EOMONTH(DV20,0),IF($Q$16=Lists!$I$20,EOMONTH(DV20,2),IF(OR($Q$16=Lists!$I$21,$Q$16=Lists!$I$22),EOMONTH(DV20,11),""))))))) -> 2029-10-31 | DW21: =IF(DW20="","",IF($Q$16=Lists!$I$16,DW20,IF($Q$16=Lists!$I$17,DW20+6,IF($Q$16=Lists!$I$18,IF(DAY(DW20)=21,EOMONTH(DW20,0),DW20+9),IF($Q$16=Lists!$I$19,EOMONTH(DW20,0),IF($Q$16=Lists!$I$20,EOMONTH(DW20,2),IF(OR($Q$16=Lists!$I$21,$Q$16=Lists!$I$22),EOMONTH(DW20,11),""))))))) -> 2029-11-30 | DX21: =IF(DX20="","",IF($Q$16=Lists!$I$16,DX20,IF($Q$16=Lists!$I$17,DX20+6,IF($Q$16=Lists!$I$18,IF(DAY(DX20)=21,EOMONTH(DX20,0),DX20+9),IF($Q$16=Lists!$I$19,EOMONTH(DX20,0),IF($Q$16=Lists!$I$20,EOMONTH(DX20,2),IF(OR($Q$16=Lists!$I$21,$Q$16=Lists!$I$22),EOMONTH(DX20,11),""))))))) -> 2029-12-31 | DY21: =IF(DY20="","",IF($Q$16=Lists!$I$16,DY20,IF($Q$16=Lists!$I$17,DY20+6,IF($Q$16=Lists!$I$18,IF(DAY(DY20)=21,EOMONTH(DY20,0),DY20+9),IF($Q$16=Lists!$I$19,EOMONTH(DY20,0),IF($Q$16=Lists!$I$20,EOMONTH(DY20,2),IF(OR($Q$16=Lists!$I$21,$Q$16=Lists!$I$22),EOMONTH(DY20,11),""))))))) -> 2030-01-31 | DZ21: =IF(DZ20="","",IF($Q$16=Lists!$I$16,DZ20,IF($Q$16=Lists!$I$17,DZ20+6,IF($Q$16=Lists!$I$18,IF(DAY(DZ20)=21,EOMONTH(DZ20,0),DZ20+9),IF($Q$16=Lists!$I$19,EOMONTH(DZ20,0),IF($Q$16=Lists!$I$20,EOMONTH(DZ20,2),IF(OR($Q$16=Lists!$I$21,$Q$16=Lists!$I$22),EOMONTH(DZ20,11),""))))))) -> 2030-02-28 | EA21: =IF(EA20="","",IF($Q$16=Lists!$I$16,EA20,IF($Q$16=Lists!$I$17,EA20+6,IF($Q$16=Lists!$I$18,IF(DAY(EA20)=21,EOMONTH(EA20,0),EA20+9),IF($Q$16=Lists!$I$19,EOMONTH(EA20,0),IF($Q$16=Lists!$I$20,EOMONTH(EA20,2),IF(OR($Q$16=Lists!$I$21,$Q$16=Lists!$I$22),EOMONTH(EA20,11),""))))))) -> 2030-03-31 | EB21: =IF(EB20="","",IF($Q$16=Lists!$I$16,EB20,IF($Q$16=Lists!$I$17,EB20+6,IF($Q$16=Lists!$I$18,IF(DAY(EB20)=21,EOMONTH(EB20,0),EB20+9),IF($Q$16=Lists!$I$19,EOMONTH(EB20,0),IF($Q$16=Lists!$I$20,EOMONTH(EB20,2),IF(OR($Q$16=Lists!$I$21,$Q$16=Lists!$I$22),EOMONTH(EB20,11),""))))))) -> 2030-04-30 | EC21: =IF(EC20="","",IF($Q$16=Lists!$I$16,EC20,IF($Q$16=Lists!$I$17,EC20+6,IF($Q$16=Lists!$I$18,IF(DAY(EC20)=21,EOMONTH(EC20,0),EC20+9),IF($Q$16=Lists!$I$19,EOMONTH(EC20,0),IF($Q$16=Lists!$I$20,EOMONTH(EC20,2),IF(OR($Q$16=Lists!$I$21,$Q$16=Lists!$I$22),EOMONTH(EC20,11),""))))))) -> 2030-05-31 | ED21: =IF(ED20="","",IF($Q$16=Lists!$I$16,ED20,IF($Q$16=Lists!$I$17,ED20+6,IF($Q$16=Lists!$I$18,IF(DAY(ED20)=21,EOMONTH(ED20,0),ED20+9),IF($Q$16=Lists!$I$19,EOMONTH(ED20,0),IF($Q$16=Lists!$I$20,EOMONTH(ED20,2),IF(OR($Q$16=Lists!$I$21,$Q$16=Lists!$I$22),EOMONTH(ED20,11),""))))))) -> 2030-06-30 | EE21: =IF(EE20="","",IF($Q$16=Lists!$I$16,EE20,IF($Q$16=Lists!$I$17,EE20+6,IF($Q$16=Lists!$I$18,IF(DAY(EE20)=21,EOMONTH(EE20,0),EE20+9),IF($Q$16=Lists!$I$19,EOMONTH(EE20,0),IF($Q$16=Lists!$I$20,EOMONTH(EE20,2),IF(OR($Q$16=Lists!$I$21,$Q$16=Lists!$I$22),EOMONTH(EE20,11),""))))))) -> 2030-07-31 | EF21: =IF(EF20="","",IF($Q$16=Lists!$I$16,EF20,IF($Q$16=Lists!$I$17,EF20+6,IF($Q$16=Lists!$I$18,IF(DAY(EF20)=21,EOMONTH(EF20,0),EF20+9),IF($Q$16=Lists!$I$19,EOMONTH(EF20,0),IF($Q$16=Lists!$I$20,EOMONTH(EF20,2),IF(OR($Q$16=Lists!$I$21,$Q$16=Lists!$I$22),EOMONTH(EF20,11),""))))))) -> 2030-08-31 | EG21: =IF(EG20="","",IF($Q$16=Lists!$I$16,EG20,IF($Q$16=Lists!$I$17,EG20+6,IF($Q$16=Lists!$I$18,IF(DAY(EG20)=21,EOMONTH(EG20,0),EG20+9),IF($Q$16=Lists!$I$19,EOMONTH(EG20,0),IF($Q$16=Lists!$I$20,EOMONTH(EG20,2),IF(OR($Q$16=Lists!$I$21,$Q$16=Lists!$I$22),EOMONTH(EG20,11),""))))))) -> 2030-09-30 | EH21: =IF(EH20="","",IF($Q$16=Lists!$I$16,EH20,IF($Q$16=Lists!$I$17,EH20+6,IF($Q$16=Lists!$I$18,IF(DAY(EH20)=21,EOMONTH(EH20,0),EH20+9),IF($Q$16=Lists!$I$19,EOMONTH(EH20,0),IF($Q$16=Lists!$I$20,EOMONTH(EH20,2),IF(OR($Q$16=Lists!$I$21,$Q$16=Lists!$I$22),EOMONTH(EH20,11),""))))))) -> 2030-10-31 | EI21: =IF(EI20="","",IF($Q$16=Lists!$I$16,EI20,IF($Q$16=Lists!$I$17,EI20+6,IF($Q$16=Lists!$I$18,IF(DAY(EI20)=21,EOMONTH(EI20,0),EI20+9),IF($Q$16=Lists!$I$19,EOMONTH(EI20,0),IF($Q$16=Lists!$I$20,EOMONTH(EI20,2),IF(OR($Q$16=Lists!$I$21,$Q$16=Lists!$I$22),EOMONTH(EI20,11),""))))))) -> 2030-11-30 | EJ21: =IF(EJ20="","",IF($Q$16=Lists!$I$16,EJ20,IF($Q$16=Lists!$I$17,EJ20+6,IF($Q$16=Lists!$I$18,IF(DAY(EJ20)=21,EOMONTH(EJ20,0),EJ20+9),IF($Q$16=Lists!$I$19,EOMONTH(EJ20,0),IF($Q$16=Lists!$I$20,EOMONTH(EJ20,2),IF(OR($Q$16=Lists!$I$21,$Q$16=Lists!$I$22),EOMONTH(EJ20,11),""))))))) -> 2030-12-31 | EK21: =IF(EK20="","",IF($Q$16=Lists!$I$16,EK20,IF($Q$16=Lists!$I$17,EK20+6,IF($Q$16=Lists!$I$18,IF(DAY(EK20)=21,EOMONTH(EK20,0),EK20+9),IF($Q$16=Lists!$I$19,EOMONTH(EK20,0),IF($Q$16=Lists!$I$20,EOMONTH(EK20,2),IF(OR($Q$16=Lists!$I$21,$Q$16=Lists!$I$22),EOMONTH(EK20,11),""))))))) -> 2031-01-31 | EL21: =IF(EL20="","",IF($Q$16=Lists!$I$16,EL20,IF($Q$16=Lists!$I$17,EL20+6,IF($Q$16=Lists!$I$18,IF(DAY(EL20)=21,EOMONTH(EL20,0),EL20+9),IF($Q$16=Lists!$I$19,EOMONTH(EL20,0),IF($Q$16=Lists!$I$20,EOMONTH(EL20,2),IF(OR($Q$16=Lists!$I$21,$Q$16=Lists!$I$22),EOMONTH(EL20,11),""))))))) -> 2031-02-28 | EM21: =IF(EM20="","",IF($Q$16=Lists!$I$16,EM20,IF($Q$16=Lists!$I$17,EM20+6,IF($Q$16=Lists!$I$18,IF(DAY(EM20)=21,EOMONTH(EM20,0),EM20+9),IF($Q$16=Lists!$I$19,EOMONTH(EM20,0),IF($Q$16=Lists!$I$20,EOMONTH(EM20,2),IF(OR($Q$16=Lists!$I$21,$Q$16=Lists!$I$22),EOMONTH(EM20,11),""))))))) -> 2031-03-31 | EN21: =IF(EN20="","",IF($Q$16=Lists!$I$16,EN20,IF($Q$16=Lists!$I$17,EN20+6,IF($Q$16=Lists!$I$18,IF(DAY(EN20)=21,EOMONTH(EN20,0),EN20+9),IF($Q$16=Lists!$I$19,EOMONTH(EN20,0),IF($Q$16=Lists!$I$20,EOMONTH(EN20,2),IF(OR($Q$16=Lists!$I$21,$Q$16=Lists!$I$22),EOMONTH(EN20,11),""))))))) -> 2031-04-30 | EO21: =IF(EO20="","",IF($Q$16=Lists!$I$16,EO20,IF($Q$16=Lists!$I$17,EO20+6,IF($Q$16=Lists!$I$18,IF(DAY(EO20)=21,EOMONTH(EO20,0),EO20+9),IF($Q$16=Lists!$I$19,EOMONTH(EO20,0),IF($Q$16=Lists!$I$20,EOMONTH(EO20,2),IF(OR($Q$16=Lists!$I$21,$Q$16=Lists!$I$22),EOMONTH(EO20,11),""))))))) -> 2031-05-31 | EP21: =IF(EP20="","",IF($Q$16=Lists!$I$16,EP20,IF($Q$16=Lists!$I$17,EP20+6,IF($Q$16=Lists!$I$18,IF(DAY(EP20)=21,EOMONTH(EP20,0),EP20+9),IF($Q$16=Lists!$I$19,EOMONTH(EP20,0),IF($Q$16=Lists!$I$20,EOMONTH(EP20,2),IF(OR($Q$16=Lists!$I$21,$Q$16=Lists!$I$22),EOMONTH(EP20,11),""))))))) -> 2031-06-30 | EQ21: =IF(EQ20="","",IF($Q$16=Lists!$I$16,EQ20,IF($Q$16=Lists!$I$17,EQ20+6,IF($Q$16=Lists!$I$18,IF(DAY(EQ20)=21,EOMONTH(EQ20,0),EQ20+9),IF($Q$16=Lists!$I$19,EOMONTH(EQ20,0),IF($Q$16=Lists!$I$20,EOMONTH(EQ20,2),IF(OR($Q$16=Lists!$I$21,$Q$16=Lists!$I$22),EOMONTH(EQ20,11),""))))))) ->  | ER21: =IF(ER20="","",IF($Q$16=Lists!$I$16,ER20,IF($Q$16=Lists!$I$17,ER20+6,IF($Q$16=Lists!$I$18,IF(DAY(ER20)=21,EOMONTH(ER20,0),ER20+9),IF($Q$16=Lists!$I$19,EOMONTH(ER20,0),IF($Q$16=Lists!$I$20,EOMONTH(ER20,2),IF(OR($Q$16=Lists!$I$21,$Q$16=Lists!$I$22),EOMONTH(ER20,11),""))))))) ->  | ES21: =IF(ES20="","",IF($Q$16=Lists!$I$16,ES20,IF($Q$16=Lists!$I$17,ES20+6,IF($Q$16=Lists!$I$18,IF(DAY(ES20)=21,EOMONTH(ES20,0),ES20+9),IF($Q$16=Lists!$I$19,EOMONTH(ES20,0),IF($Q$16=Lists!$I$20,EOMONTH(ES20,2),IF(OR($Q$16=Lists!$I$21,$Q$16=Lists!$I$22),EOMONTH(ES20,11),""))))))) ->  | ET21: =IF(ET20="","",IF($Q$16=Lists!$I$16,ET20,IF($Q$16=Lists!$I$17,ET20+6,IF($Q$16=Lists!$I$18,IF(DAY(ET20)=21,EOMONTH(ET20,0),ET20+9),IF($Q$16=Lists!$I$19,EOMONTH(ET20,0),IF($Q$16=Lists!$I$20,EOMONTH(ET20,2),IF(OR($Q$16=Lists!$I$21,$Q$16=Lists!$I$22),EOMONTH(ET20,11),""))))))) ->  | EU21: =IF(EU20="","",IF($Q$16=Lists!$I$16,EU20,IF($Q$16=Lists!$I$17,EU20+6,IF($Q$16=Lists!$I$18,IF(DAY(EU20)=21,EOMONTH(EU20,0),EU20+9),IF($Q$16=Lists!$I$19,EOMONTH(EU20,0),IF($Q$16=Lists!$I$20,EOMONTH(EU20,2),IF(OR($Q$16=Lists!$I$21,$Q$16=Lists!$I$22),EOMONTH(EU20,11),""))))))) ->  | EV21: =IF(EV20="","",IF($Q$16=Lists!$I$16,EV20,IF($Q$16=Lists!$I$17,EV20+6,IF($Q$16=Lists!$I$18,IF(DAY(EV20)=21,EOMONTH(EV20,0),EV20+9),IF($Q$16=Lists!$I$19,EOMONTH(EV20,0),IF($Q$16=Lists!$I$20,EOMONTH(EV20,2),IF(OR($Q$16=Lists!$I$21,$Q$16=Lists!$I$22),EOMONTH(EV20,11),""))))))) ->  | EW21: =IF(EW20="","",IF($Q$16=Lists!$I$16,EW20,IF($Q$16=Lists!$I$17,EW20+6,IF($Q$16=Lists!$I$18,IF(DAY(EW20)=21,EOMONTH(EW20,0),EW20+9),IF($Q$16=Lists!$I$19,EOMONTH(EW20,0),IF($Q$16=Lists!$I$20,EOMONTH(EW20,2),IF(OR($Q$16=Lists!$I$21,$Q$16=Lists!$I$22),EOMONTH(EW20,11),""))))))) ->  | EX21: =IF(EX20="","",IF($Q$16=Lists!$I$16,EX20,IF($Q$16=Lists!$I$17,EX20+6,IF($Q$16=Lists!$I$18,IF(DAY(EX20)=21,EOMONTH(EX20,0),EX20+9),IF($Q$16=Lists!$I$19,EOMONTH(EX20,0),IF($Q$16=Lists!$I$20,EOMONTH(EX20,2),IF(OR($Q$16=Lists!$I$21,$Q$16=Lists!$I$22),EOMONTH(EX20,11),""))))))) ->  | EY21: =IF(EY20="","",IF($Q$16=Lists!$I$16,EY20,IF($Q$16=Lists!$I$17,EY20+6,IF($Q$16=Lists!$I$18,IF(DAY(EY20)=21,EOMONTH(EY20,0),EY20+9),IF($Q$16=Lists!$I$19,EOMONTH(EY20,0),IF($Q$16=Lists!$I$20,EOMONTH(EY20,2),IF(OR($Q$16=Lists!$I$21,$Q$16=Lists!$I$22),EOMONTH(EY20,11),""))))))) ->  | EZ21: =IF(EZ20="","",IF($Q$16=Lists!$I$16,EZ20,IF($Q$16=Lists!$I$17,EZ20+6,IF($Q$16=Lists!$I$18,IF(DAY(EZ20)=21,EOMONTH(EZ20,0),EZ20+9),IF($Q$16=Lists!$I$19,EOMONTH(EZ20,0),IF($Q$16=Lists!$I$20,EOMONTH(EZ20,2),IF(OR($Q$16=Lists!$I$21,$Q$16=Lists!$I$22),EOMONTH(EZ20,11),""))))))) ->  | FA21: =IF(FA20="","",IF($Q$16=Lists!$I$16,FA20,IF($Q$16=Lists!$I$17,FA20+6,IF($Q$16=Lists!$I$18,IF(DAY(FA20)=21,EOMONTH(FA20,0),FA20+9),IF($Q$16=Lists!$I$19,EOMONTH(FA20,0),IF($Q$16=Lists!$I$20,EOMONTH(FA20,2),IF(OR($Q$16=Lists!$I$21,$Q$16=Lists!$I$22),EOMONTH(FA20,11),""))))))) ->  | FB21: =IF(FB20="","",IF($Q$16=Lists!$I$16,FB20,IF($Q$16=Lists!$I$17,FB20+6,IF($Q$16=Lists!$I$18,IF(DAY(FB20)=21,EOMONTH(FB20,0),FB20+9),IF($Q$16=Lists!$I$19,EOMONTH(FB20,0),IF($Q$16=Lists!$I$20,EOMONTH(FB20,2),IF(OR($Q$16=Lists!$I$21,$Q$16=Lists!$I$22),EOMONTH(FB20,11),""))))))) ->  | FC21: =IF(FC20="","",IF($Q$16=Lists!$I$16,FC20,IF($Q$16=Lists!$I$17,FC20+6,IF($Q$16=Lists!$I$18,IF(DAY(FC20)=21,EOMONTH(FC20,0),FC20+9),IF($Q$16=Lists!$I$19,EOMONTH(FC20,0),IF($Q$16=Lists!$I$20,EOMONTH(FC20,2),IF(OR($Q$16=Lists!$I$21,$Q$16=Lists!$I$22),EOMONTH(FC20,11),""))))))) -> 
A22: =ROW() -> 22 | G22: =IF($R22="^",IF(COUNTIF(Lists!$13:$13,H22)=1,0,1),0) -> 0 | H22: названия периодов расчета | AA22: =IF(AA20="","",IF($Q$16=Lists!$I$16,IF(WEEKDAY(AA20)=1,"вс",IF(WEEKDAY(AA20)=2,"пн",IF(WEEKDAY(AA20)=3,"вт",IF(WEEKDAY(AA20)=4,"ср",IF(WEEKDAY(AA20)=5,"чт",IF(WEEKDAY(AA20)=6,"пт","сб")))))),IF(OR($Q$16=Lists!$I$17,$Q$16=Lists!$I$18),COUNTIFS($Z17:AA17,MONTH(AA20),$Z18:AA18,YEAR(AA20)-2000)&IF($Q$16=Lists!$I$17,"нд-","дк-")&IF(AA17=1,"янв",IF(AA17=2,"фев",IF(AA17=3,"мар",IF(AA17=4,"апр",IF(AA17=5,"май",IF(AA17=6,"июн",IF(AA17=7,"июл",IF(AA17=8,"авг",IF(AA17=9,"сен",IF(AA17=10,"окт",IF(AA17=11,"ноя","дек")))))))))))&AA18,IF($Q$16=Lists!$I$19,AA20,IF($Q$16=Lists!$I$20,(INT((AA17-1)/3)+1)&"кв"&AA18&"г",IF($Q$16=Lists!$I$21,AA16&" год",IF($Q$16=Lists!$I$22,YEAR(AA20)&"г.",""))))))) -> 2021-07-01 | AB22: =IF(AB20="","",IF($Q$16=Lists!$I$16,IF(WEEKDAY(AB20)=1,"вс",IF(WEEKDAY(AB20)=2,"пн",IF(WEEKDAY(AB20)=3,"вт",IF(WEEKDAY(AB20)=4,"ср",IF(WEEKDAY(AB20)=5,"чт",IF(WEEKDAY(AB20)=6,"пт","сб")))))),IF(OR($Q$16=Lists!$I$17,$Q$16=Lists!$I$18),COUNTIFS($Z17:AB17,MONTH(AB20),$Z18:AB18,YEAR(AB20)-2000)&IF($Q$16=Lists!$I$17,"нд-","дк-")&IF(AB17=1,"янв",IF(AB17=2,"фев",IF(AB17=3,"мар",IF(AB17=4,"апр",IF(AB17=5,"май",IF(AB17=6,"июн",IF(AB17=7,"июл",IF(AB17=8,"авг",IF(AB17=9,"сен",IF(AB17=10,"окт",IF(AB17=11,"ноя","дек")))))))))))&AB18,IF($Q$16=Lists!$I$19,AB20,IF($Q$16=Lists!$I$20,(INT((AB17-1)/3)+1)&"кв"&AB18&"г",IF($Q$16=Lists!$I$21,AB16&" год",IF($Q$16=Lists!$I$22,YEAR(AB20)&"г.",""))))))) -> 2021-08-01 | AC22: =IF(AC20="","",IF($Q$16=Lists!$I$16,IF(WEEKDAY(AC20)=1,"вс",IF(WEEKDAY(AC20)=2,"пн",IF(WEEKDAY(AC20)=3,"вт",IF(WEEKDAY(AC20)=4,"ср",IF(WEEKDAY(AC20)=5,"чт",IF(WEEKDAY(AC20)=6,"пт","сб")))))),IF(OR($Q$16=Lists!$I$17,$Q$16=Lists!$I$18),COUNTIFS($Z17:AC17,MONTH(AC20),$Z18:AC18,YEAR(AC20)-2000)&IF($Q$16=Lists!$I$17,"нд-","дк-")&IF(AC17=1,"янв",IF(AC17=2,"фев",IF(AC17=3,"мар",IF(AC17=4,"апр",IF(AC17=5,"май",IF(AC17=6,"июн",IF(AC17=7,"июл",IF(AC17=8,"авг",IF(AC17=9,"сен",IF(AC17=10,"окт",IF(AC17=11,"ноя","дек")))))))))))&AC18,IF($Q$16=Lists!$I$19,AC20,IF($Q$16=Lists!$I$20,(INT((AC17-1)/3)+1)&"кв"&AC18&"г",IF($Q$16=Lists!$I$21,AC16&" год",IF($Q$16=Lists!$I$22,YEAR(AC20)&"г.",""))))))) -> 2021-09-01 | AD22: =IF(AD20="","",IF($Q$16=Lists!$I$16,IF(WEEKDAY(AD20)=1,"вс",IF(WEEKDAY(AD20)=2,"пн",IF(WEEKDAY(AD20)=3,"вт",IF(WEEKDAY(AD20)=4,"ср",IF(WEEKDAY(AD20)=5,"чт",IF(WEEKDAY(AD20)=6,"пт","сб")))))),IF(OR($Q$16=Lists!$I$17,$Q$16=Lists!$I$18),COUNTIFS($Z17:AD17,MONTH(AD20),$Z18:AD18,YEAR(AD20)-2000)&IF($Q$16=Lists!$I$17,"нд-","дк-")&IF(AD17=1,"янв",IF(AD17=2,"фев",IF(AD17=3,"мар",IF(AD17=4,"апр",IF(AD17=5,"май",IF(AD17=6,"июн",IF(AD17=7,"июл",IF(AD17=8,"авг",IF(AD17=9,"сен",IF(AD17=10,"окт",IF(AD17=11,"ноя","дек")))))))))))&AD18,IF($Q$16=Lists!$I$19,AD20,IF($Q$16=Lists!$I$20,(INT((AD17-1)/3)+1)&"кв"&AD18&"г",IF($Q$16=Lists!$I$21,AD16&" год",IF($Q$16=Lists!$I$22,YEAR(AD20)&"г.",""))))))) -> 2021-10-01 | AE22: =IF(AE20="","",IF($Q$16=Lists!$I$16,IF(WEEKDAY(AE20)=1,"вс",IF(WEEKDAY(AE20)=2,"пн",IF(WEEKDAY(AE20)=3,"вт",IF(WEEKDAY(AE20)=4,"ср",IF(WEEKDAY(AE20)=5,"чт",IF(WEEKDAY(AE20)=6,"пт","сб")))))),IF(OR($Q$16=Lists!$I$17,$Q$16=Lists!$I$18),COUNTIFS($Z17:AE17,MONTH(AE20),$Z18:AE18,YEAR(AE20)-2000)&IF($Q$16=Lists!$I$17,"нд-","дк-")&IF(AE17=1,"янв",IF(AE17=2,"фев",IF(AE17=3,"мар",IF(AE17=4,"апр",IF(AE17=5,"май",IF(AE17=6,"июн",IF(AE17=7,"июл",IF(AE17=8,"авг",IF(AE17=9,"сен",IF(AE17=10,"окт",IF(AE17=11,"ноя","дек")))))))))))&AE18,IF($Q$16=Lists!$I$19,AE20,IF($Q$16=Lists!$I$20,(INT((AE17-1)/3)+1)&"кв"&AE18&"г",IF($Q$16=Lists!$I$21,AE16&" год",IF($Q$16=Lists!$I$22,YEAR(AE20)&"г.",""))))))) -> 2021-11-01 | AF22: =IF(AF20="","",IF($Q$16=Lists!$I$16,IF(WEEKDAY(AF20)=1,"вс",IF(WEEKDAY(AF20)=2,"пн",IF(WEEKDAY(AF20)=3,"вт",IF(WEEKDAY(AF20)=4,"ср",IF(WEEKDAY(AF20)=5,"чт",IF(WEEKDAY(AF20)=6,"пт","сб")))))),IF(OR($Q$16=Lists!$I$17,$Q$16=Lists!$I$18),COUNTIFS($Z17:AF17,MONTH(AF20),$Z18:AF18,YEAR(AF20)-2000)&IF($Q$16=Lists!$I$17,"нд-","дк-")&IF(AF17=1,"янв",IF(AF17=2,"фев",IF(AF17=3,"мар",IF(AF17=4,"апр",IF(AF17=5,"май",IF(AF17=6,"июн",IF(AF17=7,"июл",IF(AF17=8,"авг",IF(AF17=9,"сен",IF(AF17=10,"окт",IF(AF17=11,"ноя","дек")))))))))))&AF18,IF($Q$16=Lists!$I$19,AF20,IF($Q$16=Lists!$I$20,(INT((AF17-1)/3)+1)&"кв"&AF18&"г",IF($Q$16=Lists!$I$21,AF16&" год",IF($Q$16=Lists!$I$22,YEAR(AF20)&"г.",""))))))) -> 2021-12-01 | AG22: =IF(AG20="","",IF($Q$16=Lists!$I$16,IF(WEEKDAY(AG20)=1,"вс",IF(WEEKDAY(AG20)=2,"пн",IF(WEEKDAY(AG20)=3,"вт",IF(WEEKDAY(AG20)=4,"ср",IF(WEEKDAY(AG20)=5,"чт",IF(WEEKDAY(AG20)=6,"пт","сб")))))),IF(OR($Q$16=Lists!$I$17,$Q$16=Lists!$I$18),COUNTIFS($Z17:AG17,MONTH(AG20),$Z18:AG18,YEAR(AG20)-2000)&IF($Q$16=Lists!$I$17,"нд-","дк-")&IF(AG17=1,"янв",IF(AG17=2,"фев",IF(AG17=3,"мар",IF(AG17=4,"апр",IF(AG17=5,"май",IF(AG17=6,"июн",IF(AG17=7,"июл",IF(AG17=8,"авг",IF(AG17=9,"сен",IF(AG17=10,"окт",IF(AG17=11,"ноя","дек")))))))))))&AG18,IF($Q$16=Lists!$I$19,AG20,IF($Q$16=Lists!$I$20,(INT((AG17-1)/3)+1)&"кв"&AG18&"г",IF($Q$16=Lists!$I$21,AG16&" год",IF($Q$16=Lists!$I$22,YEAR(AG20)&"г.",""))))))) -> 2022-01-01 | AH22: =IF(AH20="","",IF($Q$16=Lists!$I$16,IF(WEEKDAY(AH20)=1,"вс",IF(WEEKDAY(AH20)=2,"пн",IF(WEEKDAY(AH20)=3,"вт",IF(WEEKDAY(AH20)=4,"ср",IF(WEEKDAY(AH20)=5,"чт",IF(WEEKDAY(AH20)=6,"пт","сб")))))),IF(OR($Q$16=Lists!$I$17,$Q$16=Lists!$I$18),COUNTIFS($Z17:AH17,MONTH(AH20),$Z18:AH18,YEAR(AH20)-2000)&IF($Q$16=Lists!$I$17,"нд-","дк-")&IF(AH17=1,"янв",IF(AH17=2,"фев",IF(AH17=3,"мар",IF(AH17=4,"апр",IF(AH17=5,"май",IF(AH17=6,"июн",IF(AH17=7,"июл",IF(AH17=8,"авг",IF(AH17=9,"сен",IF(AH17=10,"окт",IF(AH17=11,"ноя","дек")))))))))))&AH18,IF($Q$16=Lists!$I$19,AH20,IF($Q$16=Lists!$I$20,(INT((AH17-1)/3)+1)&"кв"&AH18&"г",IF($Q$16=Lists!$I$21,AH16&" год",IF($Q$16=Lists!$I$22,YEAR(AH20)&"г.",""))))))) -> 2022-02-01 | AI22: =IF(AI20="","",IF($Q$16=Lists!$I$16,IF(WEEKDAY(AI20)=1,"вс",IF(WEEKDAY(AI20)=2,"пн",IF(WEEKDAY(AI20)=3,"вт",IF(WEEKDAY(AI20)=4,"ср",IF(WEEKDAY(AI20)=5,"чт",IF(WEEKDAY(AI20)=6,"пт","сб")))))),IF(OR($Q$16=Lists!$I$17,$Q$16=Lists!$I$18),COUNTIFS($Z17:AI17,MONTH(AI20),$Z18:AI18,YEAR(AI20)-2000)&IF($Q$16=Lists!$I$17,"нд-","дк-")&IF(AI17=1,"янв",IF(AI17=2,"фев",IF(AI17=3,"мар",IF(AI17=4,"апр",IF(AI17=5,"май",IF(AI17=6,"июн",IF(AI17=7,"июл",IF(AI17=8,"авг",IF(AI17=9,"сен",IF(AI17=10,"окт",IF(AI17=11,"ноя","дек")))))))))))&AI18,IF($Q$16=Lists!$I$19,AI20,IF($Q$16=Lists!$I$20,(INT((AI17-1)/3)+1)&"кв"&AI18&"г",IF($Q$16=Lists!$I$21,AI16&" год",IF($Q$16=Lists!$I$22,YEAR(AI20)&"г.",""))))))) -> 2022-03-01 | AJ22: =IF(AJ20="","",IF($Q$16=Lists!$I$16,IF(WEEKDAY(AJ20)=1,"вс",IF(WEEKDAY(AJ20)=2,"пн",IF(WEEKDAY(AJ20)=3,"вт",IF(WEEKDAY(AJ20)=4,"ср",IF(WEEKDAY(AJ20)=5,"чт",IF(WEEKDAY(AJ20)=6,"пт","сб")))))),IF(OR($Q$16=Lists!$I$17,$Q$16=Lists!$I$18),COUNTIFS($Z17:AJ17,MONTH(AJ20),$Z18:AJ18,YEAR(AJ20)-2000)&IF($Q$16=Lists!$I$17,"нд-","дк-")&IF(AJ17=1,"янв",IF(AJ17=2,"фев",IF(AJ17=3,"мар",IF(AJ17=4,"апр",IF(AJ17=5,"май",IF(AJ17=6,"июн",IF(AJ17=7,"июл",IF(AJ17=8,"авг",IF(AJ17=9,"сен",IF(AJ17=10,"окт",IF(AJ17=11,"ноя","дек")))))))))))&AJ18,IF($Q$16=Lists!$I$19,AJ20,IF($Q$16=Lists!$I$20,(INT((AJ17-1)/3)+1)&"кв"&AJ18&"г",IF($Q$16=Lists!$I$21,AJ16&" год",IF($Q$16=Lists!$I$22,YEAR(AJ20)&"г.",""))))))) -> 2022-04-01 | AK22: =IF(AK20="","",IF($Q$16=Lists!$I$16,IF(WEEKDAY(AK20)=1,"вс",IF(WEEKDAY(AK20)=2,"пн",IF(WEEKDAY(AK20)=3,"вт",IF(WEEKDAY(AK20)=4,"ср",IF(WEEKDAY(AK20)=5,"чт",IF(WEEKDAY(AK20)=6,"пт","сб")))))),IF(OR($Q$16=Lists!$I$17,$Q$16=Lists!$I$18),COUNTIFS($Z17:AK17,MONTH(AK20),$Z18:AK18,YEAR(AK20)-2000)&IF($Q$16=Lists!$I$17,"нд-","дк-")&IF(AK17=1,"янв",IF(AK17=2,"фев",IF(AK17=3,"мар",IF(AK17=4,"апр",IF(AK17=5,"май",IF(AK17=6,"июн",IF(AK17=7,"июл",IF(AK17=8,"авг",IF(AK17=9,"сен",IF(AK17=10,"окт",IF(AK17=11,"ноя","дек")))))))))))&AK18,IF($Q$16=Lists!$I$19,AK20,IF($Q$16=Lists!$I$20,(INT((AK17-1)/3)+1)&"кв"&AK18&"г",IF($Q$16=Lists!$I$21,AK16&" год",IF($Q$16=Lists!$I$22,YEAR(AK20)&"г.",""))))))) -> 2022-05-01 | AL22: =IF(AL20="","",IF($Q$16=Lists!$I$16,IF(WEEKDAY(AL20)=1,"вс",IF(WEEKDAY(AL20)=2,"пн",IF(WEEKDAY(AL20)=3,"вт",IF(WEEKDAY(AL20)=4,"ср",IF(WEEKDAY(AL20)=5,"чт",IF(WEEKDAY(AL20)=6,"пт","сб")))))),IF(OR($Q$16=Lists!$I$17,$Q$16=Lists!$I$18),COUNTIFS($Z17:AL17,MONTH(AL20),$Z18:AL18,YEAR(AL20)-2000)&IF($Q$16=Lists!$I$17,"нд-","дк-")&IF(AL17=1,"янв",IF(AL17=2,"фев",IF(AL17=3,"мар",IF(AL17=4,"апр",IF(AL17=5,"май",IF(AL17=6,"июн",IF(AL17=7,"июл",IF(AL17=8,"авг",IF(AL17=9,"сен",IF(AL17=10,"окт",IF(AL17=11,"ноя","дек")))))))))))&AL18,IF($Q$16=Lists!$I$19,AL20,IF($Q$16=Lists!$I$20,(INT((AL17-1)/3)+1)&"кв"&AL18&"г",IF($Q$16=Lists!$I$21,AL16&" год",IF($Q$16=Lists!$I$22,YEAR(AL20)&"г.",""))))))) -> 2022-06-01 | AM22: =IF(AM20="","",IF($Q$16=Lists!$I$16,IF(WEEKDAY(AM20)=1,"вс",IF(WEEKDAY(AM20)=2,"пн",IF(WEEKDAY(AM20)=3,"вт",IF(WEEKDAY(AM20)=4,"ср",IF(WEEKDAY(AM20)=5,"чт",IF(WEEKDAY(AM20)=6,"пт","сб")))))),IF(OR($Q$16=Lists!$I$17,$Q$16=Lists!$I$18),COUNTIFS($Z17:AM17,MONTH(AM20),$Z18:AM18,YEAR(AM20)-2000)&IF($Q$16=Lists!$I$17,"нд-","дк-")&IF(AM17=1,"янв",IF(AM17=2,"фев",IF(AM17=3,"мар",IF(AM17=4,"апр",IF(AM17=5,"май",IF(AM17=6,"июн",IF(AM17=7,"июл",IF(AM17=8,"авг",IF(AM17=9,"сен",IF(AM17=10,"окт",IF(AM17=11,"ноя","дек")))))))))))&AM18,IF($Q$16=Lists!$I$19,AM20,IF($Q$16=Lists!$I$20,(INT((AM17-1)/3)+1)&"кв"&AM18&"г",IF($Q$16=Lists!$I$21,AM16&" год",IF($Q$16=Lists!$I$22,YEAR(AM20)&"г.",""))))))) -> 2022-07-01 | AN22: =IF(AN20="","",IF($Q$16=Lists!$I$16,IF(WEEKDAY(AN20)=1,"вс",IF(WEEKDAY(AN20)=2,"пн",IF(WEEKDAY(AN20)=3,"вт",IF(WEEKDAY(AN20)=4,"ср",IF(WEEKDAY(AN20)=5,"чт",IF(WEEKDAY(AN20)=6,"пт","сб")))))),IF(OR($Q$16=Lists!$I$17,$Q$16=Lists!$I$18),COUNTIFS($Z17:AN17,MONTH(AN20),$Z18:AN18,YEAR(AN20)-2000)&IF($Q$16=Lists!$I$17,"нд-","дк-")&IF(AN17=1,"янв",IF(AN17=2,"фев",IF(AN17=3,"мар",IF(AN17=4,"апр",IF(AN17=5,"май",IF(AN17=6,"июн",IF(AN17=7,"июл",IF(AN17=8,"авг",IF(AN17=9,"сен",IF(AN17=10,"окт",IF(AN17=11,"ноя","дек")))))))))))&AN18,IF($Q$16=Lists!$I$19,AN20,IF($Q$16=Lists!$I$20,(INT((AN17-1)/3)+1)&"кв"&AN18&"г",IF($Q$16=Lists!$I$21,AN16&" год",IF($Q$16=Lists!$I$22,YEAR(AN20)&"г.",""))))))) -> 2022-08-01 | AO22: =IF(AO20="","",IF($Q$16=Lists!$I$16,IF(WEEKDAY(AO20)=1,"вс",IF(WEEKDAY(AO20)=2,"пн",IF(WEEKDAY(AO20)=3,"вт",IF(WEEKDAY(AO20)=4,"ср",IF(WEEKDAY(AO20)=5,"чт",IF(WEEKDAY(AO20)=6,"пт","сб")))))),IF(OR($Q$16=Lists!$I$17,$Q$16=Lists!$I$18),COUNTIFS($Z17:AO17,MONTH(AO20),$Z18:AO18,YEAR(AO20)-2000)&IF($Q$16=Lists!$I$17,"нд-","дк-")&IF(AO17=1,"янв",IF(AO17=2,"фев",IF(AO17=3,"мар",IF(AO17=4,"апр",IF(AO17=5,"май",IF(AO17=6,"июн",IF(AO17=7,"июл",IF(AO17=8,"авг",IF(AO17=9,"сен",IF(AO17=10,"окт",IF(AO17=11,"ноя","дек")))))))))))&AO18,IF($Q$16=Lists!$I$19,AO20,IF($Q$16=Lists!$I$20,(INT((AO17-1)/3)+1)&"кв"&AO18&"г",IF($Q$16=Lists!$I$21,AO16&" год",IF($Q$16=Lists!$I$22,YEAR(AO20)&"г.",""))))))) -> 2022-09-01 | AP22: =IF(AP20="","",IF($Q$16=Lists!$I$16,IF(WEEKDAY(AP20)=1,"вс",IF(WEEKDAY(AP20)=2,"пн",IF(WEEKDAY(AP20)=3,"вт",IF(WEEKDAY(AP20)=4,"ср",IF(WEEKDAY(AP20)=5,"чт",IF(WEEKDAY(AP20)=6,"пт","сб")))))),IF(OR($Q$16=Lists!$I$17,$Q$16=Lists!$I$18),COUNTIFS($Z17:AP17,MONTH(AP20),$Z18:AP18,YEAR(AP20)-2000)&IF($Q$16=Lists!$I$17,"нд-","дк-")&IF(AP17=1,"янв",IF(AP17=2,"фев",IF(AP17=3,"мар",IF(AP17=4,"апр",IF(AP17=5,"май",IF(AP17=6,"июн",IF(AP17=7,"июл",IF(AP17=8,"авг",IF(AP17=9,"сен",IF(AP17=10,"окт",IF(AP17=11,"ноя","дек")))))))))))&AP18,IF($Q$16=Lists!$I$19,AP20,IF($Q$16=Lists!$I$20,(INT((AP17-1)/3)+1)&"кв"&AP18&"г",IF($Q$16=Lists!$I$21,AP16&" год",IF($Q$16=Lists!$I$22,YEAR(AP20)&"г.",""))))))) -> 2022-10-01 | AQ22: =IF(AQ20="","",IF($Q$16=Lists!$I$16,IF(WEEKDAY(AQ20)=1,"вс",IF(WEEKDAY(AQ20)=2,"пн",IF(WEEKDAY(AQ20)=3,"вт",IF(WEEKDAY(AQ20)=4,"ср",IF(WEEKDAY(AQ20)=5,"чт",IF(WEEKDAY(AQ20)=6,"пт","сб")))))),IF(OR($Q$16=Lists!$I$17,$Q$16=Lists!$I$18),COUNTIFS($Z17:AQ17,MONTH(AQ20),$Z18:AQ18,YEAR(AQ20)-2000)&IF($Q$16=Lists!$I$17,"нд-","дк-")&IF(AQ17=1,"янв",IF(AQ17=2,"фев",IF(AQ17=3,"мар",IF(AQ17=4,"апр",IF(AQ17=5,"май",IF(AQ17=6,"июн",IF(AQ17=7,"июл",IF(AQ17=8,"авг",IF(AQ17=9,"сен",IF(AQ17=10,"окт",IF(AQ17=11,"ноя","дек")))))))))))&AQ18,IF($Q$16=Lists!$I$19,AQ20,IF($Q$16=Lists!$I$20,(INT((AQ17-1)/3)+1)&"кв"&AQ18&"г",IF($Q$16=Lists!$I$21,AQ16&" год",IF($Q$16=Lists!$I$22,YEAR(AQ20)&"г.",""))))))) -> 2022-11-01 | AR22: =IF(AR20="","",IF($Q$16=Lists!$I$16,IF(WEEKDAY(AR20)=1,"вс",IF(WEEKDAY(AR20)=2,"пн",IF(WEEKDAY(AR20)=3,"вт",IF(WEEKDAY(AR20)=4,"ср",IF(WEEKDAY(AR20)=5,"чт",IF(WEEKDAY(AR20)=6,"пт","сб")))))),IF(OR($Q$16=Lists!$I$17,$Q$16=Lists!$I$18),COUNTIFS($Z17:AR17,MONTH(AR20),$Z18:AR18,YEAR(AR20)-2000)&IF($Q$16=Lists!$I$17,"нд-","дк-")&IF(AR17=1,"янв",IF(AR17=2,"фев",IF(AR17=3,"мар",IF(AR17=4,"апр",IF(AR17=5,"май",IF(AR17=6,"июн",IF(AR17=7,"июл",IF(AR17=8,"авг",IF(AR17=9,"сен",IF(AR17=10,"окт",IF(AR17=11,"ноя","дек")))))))))))&AR18,IF($Q$16=Lists!$I$19,AR20,IF($Q$16=Lists!$I$20,(INT((AR17-1)/3)+1)&"кв"&AR18&"г",IF($Q$16=Lists!$I$21,AR16&" год",IF($Q$16=Lists!$I$22,YEAR(AR20)&"г.",""))))))) -> 2022-12-01 | AS22: =IF(AS20="","",IF($Q$16=Lists!$I$16,IF(WEEKDAY(AS20)=1,"вс",IF(WEEKDAY(AS20)=2,"пн",IF(WEEKDAY(AS20)=3,"вт",IF(WEEKDAY(AS20)=4,"ср",IF(WEEKDAY(AS20)=5,"чт",IF(WEEKDAY(AS20)=6,"пт","сб")))))),IF(OR($Q$16=Lists!$I$17,$Q$16=Lists!$I$18),COUNTIFS($Z17:AS17,MONTH(AS20),$Z18:AS18,YEAR(AS20)-2000)&IF($Q$16=Lists!$I$17,"нд-","дк-")&IF(AS17=1,"янв",IF(AS17=2,"фев",IF(AS17=3,"мар",IF(AS17=4,"апр",IF(AS17=5,"май",IF(AS17=6,"июн",IF(AS17=7,"июл",IF(AS17=8,"авг",IF(AS17=9,"сен",IF(AS17=10,"окт",IF(AS17=11,"ноя","дек")))))))))))&AS18,IF($Q$16=Lists!$I$19,AS20,IF($Q$16=Lists!$I$20,(INT((AS17-1)/3)+1)&"кв"&AS18&"г",IF($Q$16=Lists!$I$21,AS16&" год",IF($Q$16=Lists!$I$22,YEAR(AS20)&"г.",""))))))) -> 2023-01-01 | AT22: =IF(AT20="","",IF($Q$16=Lists!$I$16,IF(WEEKDAY(AT20)=1,"вс",IF(WEEKDAY(AT20)=2,"пн",IF(WEEKDAY(AT20)=3,"вт",IF(WEEKDAY(AT20)=4,"ср",IF(WEEKDAY(AT20)=5,"чт",IF(WEEKDAY(AT20)=6,"пт","сб")))))),IF(OR($Q$16=Lists!$I$17,$Q$16=Lists!$I$18),COUNTIFS($Z17:AT17,MONTH(AT20),$Z18:AT18,YEAR(AT20)-2000)&IF($Q$16=Lists!$I$17,"нд-","дк-")&IF(AT17=1,"янв",IF(AT17=2,"фев",IF(AT17=3,"мар",IF(AT17=4,"апр",IF(AT17=5,"май",IF(AT17=6,"июн",IF(AT17=7,"июл",IF(AT17=8,"авг",IF(AT17=9,"сен",IF(AT17=10,"окт",IF(AT17=11,"ноя","дек")))))))))))&AT18,IF($Q$16=Lists!$I$19,AT20,IF($Q$16=Lists!$I$20,(INT((AT17-1)/3)+1)&"кв"&AT18&"г",IF($Q$16=Lists!$I$21,AT16&" год",IF($Q$16=Lists!$I$22,YEAR(AT20)&"г.",""))))))) -> 2023-02-01 | AU22: =IF(AU20="","",IF($Q$16=Lists!$I$16,IF(WEEKDAY(AU20)=1,"вс",IF(WEEKDAY(AU20)=2,"пн",IF(WEEKDAY(AU20)=3,"вт",IF(WEEKDAY(AU20)=4,"ср",IF(WEEKDAY(AU20)=5,"чт",IF(WEEKDAY(AU20)=6,"пт","сб")))))),IF(OR($Q$16=Lists!$I$17,$Q$16=Lists!$I$18),COUNTIFS($Z17:AU17,MONTH(AU20),$Z18:AU18,YEAR(AU20)-2000)&IF($Q$16=Lists!$I$17,"нд-","дк-")&IF(AU17=1,"янв",IF(AU17=2,"фев",IF(AU17=3,"мар",IF(AU17=4,"апр",IF(AU17=5,"май",IF(AU17=6,"июн",IF(AU17=7,"июл",IF(AU17=8,"авг",IF(AU17=9,"сен",IF(AU17=10,"окт",IF(AU17=11,"ноя","дек")))))))))))&AU18,IF($Q$16=Lists!$I$19,AU20,IF($Q$16=Lists!$I$20,(INT((AU17-1)/3)+1)&"кв"&AU18&"г",IF($Q$16=Lists!$I$21,AU16&" год",IF($Q$16=Lists!$I$22,YEAR(AU20)&"г.",""))))))) -> 2023-03-01 | AV22: =IF(AV20="","",IF($Q$16=Lists!$I$16,IF(WEEKDAY(AV20)=1,"вс",IF(WEEKDAY(AV20)=2,"пн",IF(WEEKDAY(AV20)=3,"вт",IF(WEEKDAY(AV20)=4,"ср",IF(WEEKDAY(AV20)=5,"чт",IF(WEEKDAY(AV20)=6,"пт","сб")))))),IF(OR($Q$16=Lists!$I$17,$Q$16=Lists!$I$18),COUNTIFS($Z17:AV17,MONTH(AV20),$Z18:AV18,YEAR(AV20)-2000)&IF($Q$16=Lists!$I$17,"нд-","дк-")&IF(AV17=1,"янв",IF(AV17=2,"фев",IF(AV17=3,"мар",IF(AV17=4,"апр",IF(AV17=5,"май",IF(AV17=6,"июн",IF(AV17=7,"июл",IF(AV17=8,"авг",IF(AV17=9,"сен",IF(AV17=10,"окт",IF(AV17=11,"ноя","дек")))))))))))&AV18,IF($Q$16=Lists!$I$19,AV20,IF($Q$16=Lists!$I$20,(INT((AV17-1)/3)+1)&"кв"&AV18&"г",IF($Q$16=Lists!$I$21,AV16&" год",IF($Q$16=Lists!$I$22,YEAR(AV20)&"г.",""))))))) -> 2023-04-01 | AW22: =IF(AW20="","",IF($Q$16=Lists!$I$16,IF(WEEKDAY(AW20)=1,"вс",IF(WEEKDAY(AW20)=2,"пн",IF(WEEKDAY(AW20)=3,"вт",IF(WEEKDAY(AW20)=4,"ср",IF(WEEKDAY(AW20)=5,"чт",IF(WEEKDAY(AW20)=6,"пт","сб")))))),IF(OR($Q$16=Lists!$I$17,$Q$16=Lists!$I$18),COUNTIFS($Z17:AW17,MONTH(AW20),$Z18:AW18,YEAR(AW20)-2000)&IF($Q$16=Lists!$I$17,"нд-","дк-")&IF(AW17=1,"янв",IF(AW17=2,"фев",IF(AW17=3,"мар",IF(AW17=4,"апр",IF(AW17=5,"май",IF(AW17=6,"июн",IF(AW17=7,"июл",IF(AW17=8,"авг",IF(AW17=9,"сен",IF(AW17=10,"окт",IF(AW17=11,"ноя","дек")))))))))))&AW18,IF($Q$16=Lists!$I$19,AW20,IF($Q$16=Lists!$I$20,(INT((AW17-1)/3)+1)&"кв"&AW18&"г",IF($Q$16=Lists!$I$21,AW16&" год",IF($Q$16=Lists!$I$22,YEAR(AW20)&"г.",""))))))) -> 2023-05-01 | AX22: =IF(AX20="","",IF($Q$16=Lists!$I$16,IF(WEEKDAY(AX20)=1,"вс",IF(WEEKDAY(AX20)=2,"пн",IF(WEEKDAY(AX20)=3,"вт",IF(WEEKDAY(AX20)=4,"ср",IF(WEEKDAY(AX20)=5,"чт",IF(WEEKDAY(AX20)=6,"пт","сб")))))),IF(OR($Q$16=Lists!$I$17,$Q$16=Lists!$I$18),COUNTIFS($Z17:AX17,MONTH(AX20),$Z18:AX18,YEAR(AX20)-2000)&IF($Q$16=Lists!$I$17,"нд-","дк-")&IF(AX17=1,"янв",IF(AX17=2,"фев",IF(AX17=3,"мар",IF(AX17=4,"апр",IF(AX17=5,"май",IF(AX17=6,"июн",IF(AX17=7,"июл",IF(AX17=8,"авг",IF(AX17=9,"сен",IF(AX17=10,"окт",IF(AX17=11,"ноя","дек")))))))))))&AX18,IF($Q$16=Lists!$I$19,AX20,IF($Q$16=Lists!$I$20,(INT((AX17-1)/3)+1)&"кв"&AX18&"г",IF($Q$16=Lists!$I$21,AX16&" год",IF($Q$16=Lists!$I$22,YEAR(AX20)&"г.",""))))))) -> 2023-06-01 | AY22: =IF(AY20="","",IF($Q$16=Lists!$I$16,IF(WEEKDAY(AY20)=1,"вс",IF(WEEKDAY(AY20)=2,"пн",IF(WEEKDAY(AY20)=3,"вт",IF(WEEKDAY(AY20)=4,"ср",IF(WEEKDAY(AY20)=5,"чт",IF(WEEKDAY(AY20)=6,"пт","сб")))))),IF(OR($Q$16=Lists!$I$17,$Q$16=Lists!$I$18),COUNTIFS($Z17:AY17,MONTH(AY20),$Z18:AY18,YEAR(AY20)-2000)&IF($Q$16=Lists!$I$17,"нд-","дк-")&IF(AY17=1,"янв",IF(AY17=2,"фев",IF(AY17=3,"мар",IF(AY17=4,"апр",IF(AY17=5,"май",IF(AY17=6,"июн",IF(AY17=7,"июл",IF(AY17=8,"авг",IF(AY17=9,"сен",IF(AY17=10,"окт",IF(AY17=11,"ноя","дек")))))))))))&AY18,IF($Q$16=Lists!$I$19,AY20,IF($Q$16=Lists!$I$20,(INT((AY17-1)/3)+1)&"кв"&AY18&"г",IF($Q$16=Lists!$I$21,AY16&" год",IF($Q$16=Lists!$I$22,YEAR(AY20)&"г.",""))))))) -> 2023-07-01 | AZ22: =IF(AZ20="","",IF($Q$16=Lists!$I$16,IF(WEEKDAY(AZ20)=1,"вс",IF(WEEKDAY(AZ20)=2,"пн",IF(WEEKDAY(AZ20)=3,"вт",IF(WEEKDAY(AZ20)=4,"ср",IF(WEEKDAY(AZ20)=5,"чт",IF(WEEKDAY(AZ20)=6,"пт","сб")))))),IF(OR($Q$16=Lists!$I$17,$Q$16=Lists!$I$18),COUNTIFS($Z17:AZ17,MONTH(AZ20),$Z18:AZ18,YEAR(AZ20)-2000)&IF($Q$16=Lists!$I$17,"нд-","дк-")&IF(AZ17=1,"янв",IF(AZ17=2,"фев",IF(AZ17=3,"мар",IF(AZ17=4,"апр",IF(AZ17=5,"май",IF(AZ17=6,"июн",IF(AZ17=7,"июл",IF(AZ17=8,"авг",IF(AZ17=9,"сен",IF(AZ17=10,"окт",IF(AZ17=11,"ноя","дек")))))))))))&AZ18,IF($Q$16=Lists!$I$19,AZ20,IF($Q$16=Lists!$I$20,(INT((AZ17-1)/3)+1)&"кв"&AZ18&"г",IF($Q$16=Lists!$I$21,AZ16&" год",IF($Q$16=Lists!$I$22,YEAR(AZ20)&"г.",""))))))) -> 2023-08-01 | BA22: =IF(BA20="","",IF($Q$16=Lists!$I$16,IF(WEEKDAY(BA20)=1,"вс",IF(WEEKDAY(BA20)=2,"пн",IF(WEEKDAY(BA20)=3,"вт",IF(WEEKDAY(BA20)=4,"ср",IF(WEEKDAY(BA20)=5,"чт",IF(WEEKDAY(BA20)=6,"пт","сб")))))),IF(OR($Q$16=Lists!$I$17,$Q$16=Lists!$I$18),COUNTIFS($Z17:BA17,MONTH(BA20),$Z18:BA18,YEAR(BA20)-2000)&IF($Q$16=Lists!$I$17,"нд-","дк-")&IF(BA17=1,"янв",IF(BA17=2,"фев",IF(BA17=3,"мар",IF(BA17=4,"апр",IF(BA17=5,"май",IF(BA17=6,"июн",IF(BA17=7,"июл",IF(BA17=8,"авг",IF(BA17=9,"сен",IF(BA17=10,"окт",IF(BA17=11,"ноя","дек")))))))))))&BA18,IF($Q$16=Lists!$I$19,BA20,IF($Q$16=Lists!$I$20,(INT((BA17-1)/3)+1)&"кв"&BA18&"г",IF($Q$16=Lists!$I$21,BA16&" год",IF($Q$16=Lists!$I$22,YEAR(BA20)&"г.",""))))))) -> 2023-09-01 | BB22: =IF(BB20="","",IF($Q$16=Lists!$I$16,IF(WEEKDAY(BB20)=1,"вс",IF(WEEKDAY(BB20)=2,"пн",IF(WEEKDAY(BB20)=3,"вт",IF(WEEKDAY(BB20)=4,"ср",IF(WEEKDAY(BB20)=5,"чт",IF(WEEKDAY(BB20)=6,"пт","сб")))))),IF(OR($Q$16=Lists!$I$17,$Q$16=Lists!$I$18),COUNTIFS($Z17:BB17,MONTH(BB20),$Z18:BB18,YEAR(BB20)-2000)&IF($Q$16=Lists!$I$17,"нд-","дк-")&IF(BB17=1,"янв",IF(BB17=2,"фев",IF(BB17=3,"мар",IF(BB17=4,"апр",IF(BB17=5,"май",IF(BB17=6,"июн",IF(BB17=7,"июл",IF(BB17=8,"авг",IF(BB17=9,"сен",IF(BB17=10,"окт",IF(BB17=11,"ноя","дек")))))))))))&BB18,IF($Q$16=Lists!$I$19,BB20,IF($Q$16=Lists!$I$20,(INT((BB17-1)/3)+1)&"кв"&BB18&"г",IF($Q$16=Lists!$I$21,BB16&" год",IF($Q$16=Lists!$I$22,YEAR(BB20)&"г.",""))))))) -> 2023-10-01 | BC22: =IF(BC20="","",IF($Q$16=Lists!$I$16,IF(WEEKDAY(BC20)=1,"вс",IF(WEEKDAY(BC20)=2,"пн",IF(WEEKDAY(BC20)=3,"вт",IF(WEEKDAY(BC20)=4,"ср",IF(WEEKDAY(BC20)=5,"чт",IF(WEEKDAY(BC20)=6,"пт","сб")))))),IF(OR($Q$16=Lists!$I$17,$Q$16=Lists!$I$18),COUNTIFS($Z17:BC17,MONTH(BC20),$Z18:BC18,YEAR(BC20)-2000)&IF($Q$16=Lists!$I$17,"нд-","дк-")&IF(BC17=1,"янв",IF(BC17=2,"фев",IF(BC17=3,"мар",IF(BC17=4,"апр",IF(BC17=5,"май",IF(BC17=6,"июн",IF(BC17=7,"июл",IF(BC17=8,"авг",IF(BC17=9,"сен",IF(BC17=10,"окт",IF(BC17=11,"ноя","дек")))))))))))&BC18,IF($Q$16=Lists!$I$19,BC20,IF($Q$16=Lists!$I$20,(INT((BC17-1)/3)+1)&"кв"&BC18&"г",IF($Q$16=Lists!$I$21,BC16&" год",IF($Q$16=Lists!$I$22,YEAR(BC20)&"г.",""))))))) -> 2023-11-01 | BD22: =IF(BD20="","",IF($Q$16=Lists!$I$16,IF(WEEKDAY(BD20)=1,"вс",IF(WEEKDAY(BD20)=2,"пн",IF(WEEKDAY(BD20)=3,"вт",IF(WEEKDAY(BD20)=4,"ср",IF(WEEKDAY(BD20)=5,"чт",IF(WEEKDAY(BD20)=6,"пт","сб")))))),IF(OR($Q$16=Lists!$I$17,$Q$16=Lists!$I$18),COUNTIFS($Z17:BD17,MONTH(BD20),$Z18:BD18,YEAR(BD20)-2000)&IF($Q$16=Lists!$I$17,"нд-","дк-")&IF(BD17=1,"янв",IF(BD17=2,"фев",IF(BD17=3,"мар",IF(BD17=4,"апр",IF(BD17=5,"май",IF(BD17=6,"июн",IF(BD17=7,"июл",IF(BD17=8,"авг",IF(BD17=9,"сен",IF(BD17=10,"окт",IF(BD17=11,"ноя","дек")))))))))))&BD18,IF($Q$16=Lists!$I$19,BD20,IF($Q$16=Lists!$I$20,(INT((BD17-1)/3)+1)&"кв"&BD18&"г",IF($Q$16=Lists!$I$21,BD16&" год",IF($Q$16=Lists!$I$22,YEAR(BD20)&"г.",""))))))) -> 2023-12-01 | BE22: =IF(BE20="","",IF($Q$16=Lists!$I$16,IF(WEEKDAY(BE20)=1,"вс",IF(WEEKDAY(BE20)=2,"пн",IF(WEEKDAY(BE20)=3,"вт",IF(WEEKDAY(BE20)=4,"ср",IF(WEEKDAY(BE20)=5,"чт",IF(WEEKDAY(BE20)=6,"пт","сб")))))),IF(OR($Q$16=Lists!$I$17,$Q$16=Lists!$I$18),COUNTIFS($Z17:BE17,MONTH(BE20),$Z18:BE18,YEAR(BE20)-2000)&IF($Q$16=Lists!$I$17,"нд-","дк-")&IF(BE17=1,"янв",IF(BE17=2,"фев",IF(BE17=3,"мар",IF(BE17=4,"апр",IF(BE17=5,"май",IF(BE17=6,"июн",IF(BE17=7,"июл",IF(BE17=8,"авг",IF(BE17=9,"сен",IF(BE17=10,"окт",IF(BE17=11,"ноя","дек")))))))))))&BE18,IF($Q$16=Lists!$I$19,BE20,IF($Q$16=Lists!$I$20,(INT((BE17-1)/3)+1)&"кв"&BE18&"г",IF($Q$16=Lists!$I$21,BE16&" год",IF($Q$16=Lists!$I$22,YEAR(BE20)&"г.",""))))))) -> 2024-01-01 | BF22: =IF(BF20="","",IF($Q$16=Lists!$I$16,IF(WEEKDAY(BF20)=1,"вс",IF(WEEKDAY(BF20)=2,"пн",IF(WEEKDAY(BF20)=3,"вт",IF(WEEKDAY(BF20)=4,"ср",IF(WEEKDAY(BF20)=5,"чт",IF(WEEKDAY(BF20)=6,"пт","сб")))))),IF(OR($Q$16=Lists!$I$17,$Q$16=Lists!$I$18),COUNTIFS($Z17:BF17,MONTH(BF20),$Z18:BF18,YEAR(BF20)-2000)&IF($Q$16=Lists!$I$17,"нд-","дк-")&IF(BF17=1,"янв",IF(BF17=2,"фев",IF(BF17=3,"мар",IF(BF17=4,"апр",IF(BF17=5,"май",IF(BF17=6,"июн",IF(BF17=7,"июл",IF(BF17=8,"авг",IF(BF17=9,"сен",IF(BF17=10,"окт",IF(BF17=11,"ноя","дек")))))))))))&BF18,IF($Q$16=Lists!$I$19,BF20,IF($Q$16=Lists!$I$20,(INT((BF17-1)/3)+1)&"кв"&BF18&"г",IF($Q$16=Lists!$I$21,BF16&" год",IF($Q$16=Lists!$I$22,YEAR(BF20)&"г.",""))))))) -> 2024-02-01 | BG22: =IF(BG20="","",IF($Q$16=Lists!$I$16,IF(WEEKDAY(BG20)=1,"вс",IF(WEEKDAY(BG20)=2,"пн",IF(WEEKDAY(BG20)=3,"вт",IF(WEEKDAY(BG20)=4,"ср",IF(WEEKDAY(BG20)=5,"чт",IF(WEEKDAY(BG20)=6,"пт","сб")))))),IF(OR($Q$16=Lists!$I$17,$Q$16=Lists!$I$18),COUNTIFS($Z17:BG17,MONTH(BG20),$Z18:BG18,YEAR(BG20)-2000)&IF($Q$16=Lists!$I$17,"нд-","дк-")&IF(BG17=1,"янв",IF(BG17=2,"фев",IF(BG17=3,"мар",IF(BG17=4,"апр",IF(BG17=5,"май",IF(BG17=6,"июн",IF(BG17=7,"июл",IF(BG17=8,"авг",IF(BG17=9,"сен",IF(BG17=10,"окт",IF(BG17=11,"ноя","дек")))))))))))&BG18,IF($Q$16=Lists!$I$19,BG20,IF($Q$16=Lists!$I$20,(INT((BG17-1)/3)+1)&"кв"&BG18&"г",IF($Q$16=Lists!$I$21,BG16&" год",IF($Q$16=Lists!$I$22,YEAR(BG20)&"г.",""))))))) -> 2024-03-01 | BH22: =IF(BH20="","",IF($Q$16=Lists!$I$16,IF(WEEKDAY(BH20)=1,"вс",IF(WEEKDAY(BH20)=2,"пн",IF(WEEKDAY(BH20)=3,"вт",IF(WEEKDAY(BH20)=4,"ср",IF(WEEKDAY(BH20)=5,"чт",IF(WEEKDAY(BH20)=6,"пт","сб")))))),IF(OR($Q$16=Lists!$I$17,$Q$16=Lists!$I$18),COUNTIFS($Z17:BH17,MONTH(BH20),$Z18:BH18,YEAR(BH20)-2000)&IF($Q$16=Lists!$I$17,"нд-","дк-")&IF(BH17=1,"янв",IF(BH17=2,"фев",IF(BH17=3,"мар",IF(BH17=4,"апр",IF(BH17=5,"май",IF(BH17=6,"июн",IF(BH17=7,"июл",IF(BH17=8,"авг",IF(BH17=9,"сен",IF(BH17=10,"окт",IF(BH17=11,"ноя","дек")))))))))))&BH18,IF($Q$16=Lists!$I$19,BH20,IF($Q$16=Lists!$I$20,(INT((BH17-1)/3)+1)&"кв"&BH18&"г",IF($Q$16=Lists!$I$21,BH16&" год",IF($Q$16=Lists!$I$22,YEAR(BH20)&"г.",""))))))) -> 2024-04-01 | BI22: =IF(BI20="","",IF($Q$16=Lists!$I$16,IF(WEEKDAY(BI20)=1,"вс",IF(WEEKDAY(BI20)=2,"пн",IF(WEEKDAY(BI20)=3,"вт",IF(WEEKDAY(BI20)=4,"ср",IF(WEEKDAY(BI20)=5,"чт",IF(WEEKDAY(BI20)=6,"пт","сб")))))),IF(OR($Q$16=Lists!$I$17,$Q$16=Lists!$I$18),COUNTIFS($Z17:BI17,MONTH(BI20),$Z18:BI18,YEAR(BI20)-2000)&IF($Q$16=Lists!$I$17,"нд-","дк-")&IF(BI17=1,"янв",IF(BI17=2,"фев",IF(BI17=3,"мар",IF(BI17=4,"апр",IF(BI17=5,"май",IF(BI17=6,"июн",IF(BI17=7,"июл",IF(BI17=8,"авг",IF(BI17=9,"сен",IF(BI17=10,"окт",IF(BI17=11,"ноя","дек")))))))))))&BI18,IF($Q$16=Lists!$I$19,BI20,IF($Q$16=Lists!$I$20,(INT((BI17-1)/3)+1)&"кв"&BI18&"г",IF($Q$16=Lists!$I$21,BI16&" год",IF($Q$16=Lists!$I$22,YEAR(BI20)&"г.",""))))))) -> 2024-05-01 | BJ22: =IF(BJ20="","",IF($Q$16=Lists!$I$16,IF(WEEKDAY(BJ20)=1,"вс",IF(WEEKDAY(BJ20)=2,"пн",IF(WEEKDAY(BJ20)=3,"вт",IF(WEEKDAY(BJ20)=4,"ср",IF(WEEKDAY(BJ20)=5,"чт",IF(WEEKDAY(BJ20)=6,"пт","сб")))))),IF(OR($Q$16=Lists!$I$17,$Q$16=Lists!$I$18),COUNTIFS($Z17:BJ17,MONTH(BJ20),$Z18:BJ18,YEAR(BJ20)-2000)&IF($Q$16=Lists!$I$17,"нд-","дк-")&IF(BJ17=1,"янв",IF(BJ17=2,"фев",IF(BJ17=3,"мар",IF(BJ17=4,"апр",IF(BJ17=5,"май",IF(BJ17=6,"июн",IF(BJ17=7,"июл",IF(BJ17=8,"авг",IF(BJ17=9,"сен",IF(BJ17=10,"окт",IF(BJ17=11,"ноя","дек")))))))))))&BJ18,IF($Q$16=Lists!$I$19,BJ20,IF($Q$16=Lists!$I$20,(INT((BJ17-1)/3)+1)&"кв"&BJ18&"г",IF($Q$16=Lists!$I$21,BJ16&" год",IF($Q$16=Lists!$I$22,YEAR(BJ20)&"г.",""))))))) -> 2024-06-01 | BK22: =IF(BK20="","",IF($Q$16=Lists!$I$16,IF(WEEKDAY(BK20)=1,"вс",IF(WEEKDAY(BK20)=2,"пн",IF(WEEKDAY(BK20)=3,"вт",IF(WEEKDAY(BK20)=4,"ср",IF(WEEKDAY(BK20)=5,"чт",IF(WEEKDAY(BK20)=6,"пт","сб")))))),IF(OR($Q$16=Lists!$I$17,$Q$16=Lists!$I$18),COUNTIFS($Z17:BK17,MONTH(BK20),$Z18:BK18,YEAR(BK20)-2000)&IF($Q$16=Lists!$I$17,"нд-","дк-")&IF(BK17=1,"янв",IF(BK17=2,"фев",IF(BK17=3,"мар",IF(BK17=4,"апр",IF(BK17=5,"май",IF(BK17=6,"июн",IF(BK17=7,"июл",IF(BK17=8,"авг",IF(BK17=9,"сен",IF(BK17=10,"окт",IF(BK17=11,"ноя","дек")))))))))))&BK18,IF($Q$16=Lists!$I$19,BK20,IF($Q$16=Lists!$I$20,(INT((BK17-1)/3)+1)&"кв"&BK18&"г",IF($Q$16=Lists!$I$21,BK16&" год",IF($Q$16=Lists!$I$22,YEAR(BK20)&"г.",""))))))) -> 2024-07-01 | BL22: =IF(BL20="","",IF($Q$16=Lists!$I$16,IF(WEEKDAY(BL20)=1,"вс",IF(WEEKDAY(BL20)=2,"пн",IF(WEEKDAY(BL20)=3,"вт",IF(WEEKDAY(BL20)=4,"ср",IF(WEEKDAY(BL20)=5,"чт",IF(WEEKDAY(BL20)=6,"пт","сб")))))),IF(OR($Q$16=Lists!$I$17,$Q$16=Lists!$I$18),COUNTIFS($Z17:BL17,MONTH(BL20),$Z18:BL18,YEAR(BL20)-2000)&IF($Q$16=Lists!$I$17,"нд-","дк-")&IF(BL17=1,"янв",IF(BL17=2,"фев",IF(BL17=3,"мар",IF(BL17=4,"апр",IF(BL17=5,"май",IF(BL17=6,"июн",IF(BL17=7,"июл",IF(BL17=8,"авг",IF(BL17=9,"сен",IF(BL17=10,"окт",IF(BL17=11,"ноя","дек")))))))))))&BL18,IF($Q$16=Lists!$I$19,BL20,IF($Q$16=Lists!$I$20,(INT((BL17-1)/3)+1)&"кв"&BL18&"г",IF($Q$16=Lists!$I$21,BL16&" год",IF($Q$16=Lists!$I$22,YEAR(BL20)&"г.",""))))))) -> 2024-08-01 | BM22: =IF(BM20="","",IF($Q$16=Lists!$I$16,IF(WEEKDAY(BM20)=1,"вс",IF(WEEKDAY(BM20)=2,"пн",IF(WEEKDAY(BM20)=3,"вт",IF(WEEKDAY(BM20)=4,"ср",IF(WEEKDAY(BM20)=5,"чт",IF(WEEKDAY(BM20)=6,"пт","сб")))))),IF(OR($Q$16=Lists!$I$17,$Q$16=Lists!$I$18),COUNTIFS($Z17:BM17,MONTH(BM20),$Z18:BM18,YEAR(BM20)-2000)&IF($Q$16=Lists!$I$17,"нд-","дк-")&IF(BM17=1,"янв",IF(BM17=2,"фев",IF(BM17=3,"мар",IF(BM17=4,"апр",IF(BM17=5,"май",IF(BM17=6,"июн",IF(BM17=7,"июл",IF(BM17=8,"авг",IF(BM17=9,"сен",IF(BM17=10,"окт",IF(BM17=11,"ноя","дек")))))))))))&BM18,IF($Q$16=Lists!$I$19,BM20,IF($Q$16=Lists!$I$20,(INT((BM17-1)/3)+1)&"кв"&BM18&"г",IF($Q$16=Lists!$I$21,BM16&" год",IF($Q$16=Lists!$I$22,YEAR(BM20)&"г.",""))))))) -> 2024-09-01 | BN22: =IF(BN20="","",IF($Q$16=Lists!$I$16,IF(WEEKDAY(BN20)=1,"вс",IF(WEEKDAY(BN20)=2,"пн",IF(WEEKDAY(BN20)=3,"вт",IF(WEEKDAY(BN20)=4,"ср",IF(WEEKDAY(BN20)=5,"чт",IF(WEEKDAY(BN20)=6,"пт","сб")))))),IF(OR($Q$16=Lists!$I$17,$Q$16=Lists!$I$18),COUNTIFS($Z17:BN17,MONTH(BN20),$Z18:BN18,YEAR(BN20)-2000)&IF($Q$16=Lists!$I$17,"нд-","дк-")&IF(BN17=1,"янв",IF(BN17=2,"фев",IF(BN17=3,"мар",IF(BN17=4,"апр",IF(BN17=5,"май",IF(BN17=6,"июн",IF(BN17=7,"июл",IF(BN17=8,"авг",IF(BN17=9,"сен",IF(BN17=10,"окт",IF(BN17=11,"ноя","дек")))))))))))&BN18,IF($Q$16=Lists!$I$19,BN20,IF($Q$16=Lists!$I$20,(INT((BN17-1)/3)+1)&"кв"&BN18&"г",IF($Q$16=Lists!$I$21,BN16&" год",IF($Q$16=Lists!$I$22,YEAR(BN20)&"г.",""))))))) -> 2024-10-01 | BO22: =IF(BO20="","",IF($Q$16=Lists!$I$16,IF(WEEKDAY(BO20)=1,"вс",IF(WEEKDAY(BO20)=2,"пн",IF(WEEKDAY(BO20)=3,"вт",IF(WEEKDAY(BO20)=4,"ср",IF(WEEKDAY(BO20)=5,"чт",IF(WEEKDAY(BO20)=6,"пт","сб")))))),IF(OR($Q$16=Lists!$I$17,$Q$16=Lists!$I$18),COUNTIFS($Z17:BO17,MONTH(BO20),$Z18:BO18,YEAR(BO20)-2000)&IF($Q$16=Lists!$I$17,"нд-","дк-")&IF(BO17=1,"янв",IF(BO17=2,"фев",IF(BO17=3,"мар",IF(BO17=4,"апр",IF(BO17=5,"май",IF(BO17=6,"июн",IF(BO17=7,"июл",IF(BO17=8,"авг",IF(BO17=9,"сен",IF(BO17=10,"окт",IF(BO17=11,"ноя","дек")))))))))))&BO18,IF($Q$16=Lists!$I$19,BO20,IF($Q$16=Lists!$I$20,(INT((BO17-1)/3)+1)&"кв"&BO18&"г",IF($Q$16=Lists!$I$21,BO16&" год",IF($Q$16=Lists!$I$22,YEAR(BO20)&"г.",""))))))) -> 2024-11-01 | BP22: =IF(BP20="","",IF($Q$16=Lists!$I$16,IF(WEEKDAY(BP20)=1,"вс",IF(WEEKDAY(BP20)=2,"пн",IF(WEEKDAY(BP20)=3,"вт",IF(WEEKDAY(BP20)=4,"ср",IF(WEEKDAY(BP20)=5,"чт",IF(WEEKDAY(BP20)=6,"пт","сб")))))),IF(OR($Q$16=Lists!$I$17,$Q$16=Lists!$I$18),COUNTIFS($Z17:BP17,MONTH(BP20),$Z18:BP18,YEAR(BP20)-2000)&IF($Q$16=Lists!$I$17,"нд-","дк-")&IF(BP17=1,"янв",IF(BP17=2,"фев",IF(BP17=3,"мар",IF(BP17=4,"апр",IF(BP17=5,"май",IF(BP17=6,"июн",IF(BP17=7,"июл",IF(BP17=8,"авг",IF(BP17=9,"сен",IF(BP17=10,"окт",IF(BP17=11,"ноя","дек")))))))))))&BP18,IF($Q$16=Lists!$I$19,BP20,IF($Q$16=Lists!$I$20,(INT((BP17-1)/3)+1)&"кв"&BP18&"г",IF($Q$16=Lists!$I$21,BP16&" год",IF($Q$16=Lists!$I$22,YEAR(BP20)&"г.",""))))))) -> 2024-12-01 | BQ22: =IF(BQ20="","",IF($Q$16=Lists!$I$16,IF(WEEKDAY(BQ20)=1,"вс",IF(WEEKDAY(BQ20)=2,"пн",IF(WEEKDAY(BQ20)=3,"вт",IF(WEEKDAY(BQ20)=4,"ср",IF(WEEKDAY(BQ20)=5,"чт",IF(WEEKDAY(BQ20)=6,"пт","сб")))))),IF(OR($Q$16=Lists!$I$17,$Q$16=Lists!$I$18),COUNTIFS($Z17:BQ17,MONTH(BQ20),$Z18:BQ18,YEAR(BQ20)-2000)&IF($Q$16=Lists!$I$17,"нд-","дк-")&IF(BQ17=1,"янв",IF(BQ17=2,"фев",IF(BQ17=3,"мар",IF(BQ17=4,"апр",IF(BQ17=5,"май",IF(BQ17=6,"июн",IF(BQ17=7,"июл",IF(BQ17=8,"авг",IF(BQ17=9,"сен",IF(BQ17=10,"окт",IF(BQ17=11,"ноя","дек")))))))))))&BQ18,IF($Q$16=Lists!$I$19,BQ20,IF($Q$16=Lists!$I$20,(INT((BQ17-1)/3)+1)&"кв"&BQ18&"г",IF($Q$16=Lists!$I$21,BQ16&" год",IF($Q$16=Lists!$I$22,YEAR(BQ20)&"г.",""))))))) -> 2025-01-01 | BR22: =IF(BR20="","",IF($Q$16=Lists!$I$16,IF(WEEKDAY(BR20)=1,"вс",IF(WEEKDAY(BR20)=2,"пн",IF(WEEKDAY(BR20)=3,"вт",IF(WEEKDAY(BR20)=4,"ср",IF(WEEKDAY(BR20)=5,"чт",IF(WEEKDAY(BR20)=6,"пт","сб")))))),IF(OR($Q$16=Lists!$I$17,$Q$16=Lists!$I$18),COUNTIFS($Z17:BR17,MONTH(BR20),$Z18:BR18,YEAR(BR20)-2000)&IF($Q$16=Lists!$I$17,"нд-","дк-")&IF(BR17=1,"янв",IF(BR17=2,"фев",IF(BR17=3,"мар",IF(BR17=4,"апр",IF(BR17=5,"май",IF(BR17=6,"июн",IF(BR17=7,"июл",IF(BR17=8,"авг",IF(BR17=9,"сен",IF(BR17=10,"окт",IF(BR17=11,"ноя","дек")))))))))))&BR18,IF($Q$16=Lists!$I$19,BR20,IF($Q$16=Lists!$I$20,(INT((BR17-1)/3)+1)&"кв"&BR18&"г",IF($Q$16=Lists!$I$21,BR16&" год",IF($Q$16=Lists!$I$22,YEAR(BR20)&"г.",""))))))) -> 2025-02-01 | BS22: =IF(BS20="","",IF($Q$16=Lists!$I$16,IF(WEEKDAY(BS20)=1,"вс",IF(WEEKDAY(BS20)=2,"пн",IF(WEEKDAY(BS20)=3,"вт",IF(WEEKDAY(BS20)=4,"ср",IF(WEEKDAY(BS20)=5,"чт",IF(WEEKDAY(BS20)=6,"пт","сб")))))),IF(OR($Q$16=Lists!$I$17,$Q$16=Lists!$I$18),COUNTIFS($Z17:BS17,MONTH(BS20),$Z18:BS18,YEAR(BS20)-2000)&IF($Q$16=Lists!$I$17,"нд-","дк-")&IF(BS17=1,"янв",IF(BS17=2,"фев",IF(BS17=3,"мар",IF(BS17=4,"апр",IF(BS17=5,"май",IF(BS17=6,"июн",IF(BS17=7,"июл",IF(BS17=8,"авг",IF(BS17=9,"сен",IF(BS17=10,"окт",IF(BS17=11,"ноя","дек")))))))))))&BS18,IF($Q$16=Lists!$I$19,BS20,IF($Q$16=Lists!$I$20,(INT((BS17-1)/3)+1)&"кв"&BS18&"г",IF($Q$16=Lists!$I$21,BS16&" год",IF($Q$16=Lists!$I$22,YEAR(BS20)&"г.",""))))))) -> 2025-03-01 | BT22: =IF(BT20="","",IF($Q$16=Lists!$I$16,IF(WEEKDAY(BT20)=1,"вс",IF(WEEKDAY(BT20)=2,"пн",IF(WEEKDAY(BT20)=3,"вт",IF(WEEKDAY(BT20)=4,"ср",IF(WEEKDAY(BT20)=5,"чт",IF(WEEKDAY(BT20)=6,"пт","сб")))))),IF(OR($Q$16=Lists!$I$17,$Q$16=Lists!$I$18),COUNTIFS($Z17:BT17,MONTH(BT20),$Z18:BT18,YEAR(BT20)-2000)&IF($Q$16=Lists!$I$17,"нд-","дк-")&IF(BT17=1,"янв",IF(BT17=2,"фев",IF(BT17=3,"мар",IF(BT17=4,"апр",IF(BT17=5,"май",IF(BT17=6,"июн",IF(BT17=7,"июл",IF(BT17=8,"авг",IF(BT17=9,"сен",IF(BT17=10,"окт",IF(BT17=11,"ноя","дек")))))))))))&BT18,IF($Q$16=Lists!$I$19,BT20,IF($Q$16=Lists!$I$20,(INT((BT17-1)/3)+1)&"кв"&BT18&"г",IF($Q$16=Lists!$I$21,BT16&" год",IF($Q$16=Lists!$I$22,YEAR(BT20)&"г.",""))))))) -> 2025-04-01 | BU22: =IF(BU20="","",IF($Q$16=Lists!$I$16,IF(WEEKDAY(BU20)=1,"вс",IF(WEEKDAY(BU20)=2,"пн",IF(WEEKDAY(BU20)=3,"вт",IF(WEEKDAY(BU20)=4,"ср",IF(WEEKDAY(BU20)=5,"чт",IF(WEEKDAY(BU20)=6,"пт","сб")))))),IF(OR($Q$16=Lists!$I$17,$Q$16=Lists!$I$18),COUNTIFS($Z17:BU17,MONTH(BU20),$Z18:BU18,YEAR(BU20)-2000)&IF($Q$16=Lists!$I$17,"нд-","дк-")&IF(BU17=1,"янв",IF(BU17=2,"фев",IF(BU17=3,"мар",IF(BU17=4,"апр",IF(BU17=5,"май",IF(BU17=6,"июн",IF(BU17=7,"июл",IF(BU17=8,"авг",IF(BU17=9,"сен",IF(BU17=10,"окт",IF(BU17=11,"ноя","дек")))))))))))&BU18,IF($Q$16=Lists!$I$19,BU20,IF($Q$16=Lists!$I$20,(INT((BU17-1)/3)+1)&"кв"&BU18&"г",IF($Q$16=Lists!$I$21,BU16&" год",IF($Q$16=Lists!$I$22,YEAR(BU20)&"г.",""))))))) -> 2025-05-01 | BV22: =IF(BV20="","",IF($Q$16=Lists!$I$16,IF(WEEKDAY(BV20)=1,"вс",IF(WEEKDAY(BV20)=2,"пн",IF(WEEKDAY(BV20)=3,"вт",IF(WEEKDAY(BV20)=4,"ср",IF(WEEKDAY(BV20)=5,"чт",IF(WEEKDAY(BV20)=6,"пт","сб")))))),IF(OR($Q$16=Lists!$I$17,$Q$16=Lists!$I$18),COUNTIFS($Z17:BV17,MONTH(BV20),$Z18:BV18,YEAR(BV20)-2000)&IF($Q$16=Lists!$I$17,"нд-","дк-")&IF(BV17=1,"янв",IF(BV17=2,"фев",IF(BV17=3,"мар",IF(BV17=4,"апр",IF(BV17=5,"май",IF(BV17=6,"июн",IF(BV17=7,"июл",IF(BV17=8,"авг",IF(BV17=9,"сен",IF(BV17=10,"окт",IF(BV17=11,"ноя","дек")))))))))))&BV18,IF($Q$16=Lists!$I$19,BV20,IF($Q$16=Lists!$I$20,(INT((BV17-1)/3)+1)&"кв"&BV18&"г",IF($Q$16=Lists!$I$21,BV16&" год",IF($Q$16=Lists!$I$22,YEAR(BV20)&"г.",""))))))) -> 2025-06-01 | BW22: =IF(BW20="","",IF($Q$16=Lists!$I$16,IF(WEEKDAY(BW20)=1,"вс",IF(WEEKDAY(BW20)=2,"пн",IF(WEEKDAY(BW20)=3,"вт",IF(WEEKDAY(BW20)=4,"ср",IF(WEEKDAY(BW20)=5,"чт",IF(WEEKDAY(BW20)=6,"пт","сб")))))),IF(OR($Q$16=Lists!$I$17,$Q$16=Lists!$I$18),COUNTIFS($Z17:BW17,MONTH(BW20),$Z18:BW18,YEAR(BW20)-2000)&IF($Q$16=Lists!$I$17,"нд-","дк-")&IF(BW17=1,"янв",IF(BW17=2,"фев",IF(BW17=3,"мар",IF(BW17=4,"апр",IF(BW17=5,"май",IF(BW17=6,"июн",IF(BW17=7,"июл",IF(BW17=8,"авг",IF(BW17=9,"сен",IF(BW17=10,"окт",IF(BW17=11,"ноя","дек")))))))))))&BW18,IF($Q$16=Lists!$I$19,BW20,IF($Q$16=Lists!$I$20,(INT((BW17-1)/3)+1)&"кв"&BW18&"г",IF($Q$16=Lists!$I$21,BW16&" год",IF($Q$16=Lists!$I$22,YEAR(BW20)&"г.",""))))))) -> 2025-07-01 | BX22: =IF(BX20="","",IF($Q$16=Lists!$I$16,IF(WEEKDAY(BX20)=1,"вс",IF(WEEKDAY(BX20)=2,"пн",IF(WEEKDAY(BX20)=3,"вт",IF(WEEKDAY(BX20)=4,"ср",IF(WEEKDAY(BX20)=5,"чт",IF(WEEKDAY(BX20)=6,"пт","сб")))))),IF(OR($Q$16=Lists!$I$17,$Q$16=Lists!$I$18),COUNTIFS($Z17:BX17,MONTH(BX20),$Z18:BX18,YEAR(BX20)-2000)&IF($Q$16=Lists!$I$17,"нд-","дк-")&IF(BX17=1,"янв",IF(BX17=2,"фев",IF(BX17=3,"мар",IF(BX17=4,"апр",IF(BX17=5,"май",IF(BX17=6,"июн",IF(BX17=7,"июл",IF(BX17=8,"авг",IF(BX17=9,"сен",IF(BX17=10,"окт",IF(BX17=11,"ноя","дек")))))))))))&BX18,IF($Q$16=Lists!$I$19,BX20,IF($Q$16=Lists!$I$20,(INT((BX17-1)/3)+1)&"кв"&BX18&"г",IF($Q$16=Lists!$I$21,BX16&" год",IF($Q$16=Lists!$I$22,YEAR(BX20)&"г.",""))))))) -> 2025-08-01 | BY22: =IF(BY20="","",IF($Q$16=Lists!$I$16,IF(WEEKDAY(BY20)=1,"вс",IF(WEEKDAY(BY20)=2,"пн",IF(WEEKDAY(BY20)=3,"вт",IF(WEEKDAY(BY20)=4,"ср",IF(WEEKDAY(BY20)=5,"чт",IF(WEEKDAY(BY20)=6,"пт","сб")))))),IF(OR($Q$16=Lists!$I$17,$Q$16=Lists!$I$18),COUNTIFS($Z17:BY17,MONTH(BY20),$Z18:BY18,YEAR(BY20)-2000)&IF($Q$16=Lists!$I$17,"нд-","дк-")&IF(BY17=1,"янв",IF(BY17=2,"фев",IF(BY17=3,"мар",IF(BY17=4,"апр",IF(BY17=5,"май",IF(BY17=6,"июн",IF(BY17=7,"июл",IF(BY17=8,"авг",IF(BY17=9,"сен",IF(BY17=10,"окт",IF(BY17=11,"ноя","дек")))))))))))&BY18,IF($Q$16=Lists!$I$19,BY20,IF($Q$16=Lists!$I$20,(INT((BY17-1)/3)+1)&"кв"&BY18&"г",IF($Q$16=Lists!$I$21,BY16&" год",IF($Q$16=Lists!$I$22,YEAR(BY20)&"г.",""))))))) -> 2025-09-01 | BZ22: =IF(BZ20="","",IF($Q$16=Lists!$I$16,IF(WEEKDAY(BZ20)=1,"вс",IF(WEEKDAY(BZ20)=2,"пн",IF(WEEKDAY(BZ20)=3,"вт",IF(WEEKDAY(BZ20)=4,"ср",IF(WEEKDAY(BZ20)=5,"чт",IF(WEEKDAY(BZ20)=6,"пт","сб")))))),IF(OR($Q$16=Lists!$I$17,$Q$16=Lists!$I$18),COUNTIFS($Z17:BZ17,MONTH(BZ20),$Z18:BZ18,YEAR(BZ20)-2000)&IF($Q$16=Lists!$I$17,"нд-","дк-")&IF(BZ17=1,"янв",IF(BZ17=2,"фев",IF(BZ17=3,"мар",IF(BZ17=4,"апр",IF(BZ17=5,"май",IF(BZ17=6,"июн",IF(BZ17=7,"июл",IF(BZ17=8,"авг",IF(BZ17=9,"сен",IF(BZ17=10,"окт",IF(BZ17=11,"ноя","дек")))))))))))&BZ18,IF($Q$16=Lists!$I$19,BZ20,IF($Q$16=Lists!$I$20,(INT((BZ17-1)/3)+1)&"кв"&BZ18&"г",IF($Q$16=Lists!$I$21,BZ16&" год",IF($Q$16=Lists!$I$22,YEAR(BZ20)&"г.",""))))))) -> 2025-10-01 | CA22: =IF(CA20="","",IF($Q$16=Lists!$I$16,IF(WEEKDAY(CA20)=1,"вс",IF(WEEKDAY(CA20)=2,"пн",IF(WEEKDAY(CA20)=3,"вт",IF(WEEKDAY(CA20)=4,"ср",IF(WEEKDAY(CA20)=5,"чт",IF(WEEKDAY(CA20)=6,"пт","сб")))))),IF(OR($Q$16=Lists!$I$17,$Q$16=Lists!$I$18),COUNTIFS($Z17:CA17,MONTH(CA20),$Z18:CA18,YEAR(CA20)-2000)&IF($Q$16=Lists!$I$17,"нд-","дк-")&IF(CA17=1,"янв",IF(CA17=2,"фев",IF(CA17=3,"мар",IF(CA17=4,"апр",IF(CA17=5,"май",IF(CA17=6,"июн",IF(CA17=7,"июл",IF(CA17=8,"авг",IF(CA17=9,"сен",IF(CA17=10,"окт",IF(CA17=11,"ноя","дек")))))))))))&CA18,IF($Q$16=Lists!$I$19,CA20,IF($Q$16=Lists!$I$20,(INT((CA17-1)/3)+1)&"кв"&CA18&"г",IF($Q$16=Lists!$I$21,CA16&" год",IF($Q$16=Lists!$I$22,YEAR(CA20)&"г.",""))))))) -> 2025-11-01 | CB22: =IF(CB20="","",IF($Q$16=Lists!$I$16,IF(WEEKDAY(CB20)=1,"вс",IF(WEEKDAY(CB20)=2,"пн",IF(WEEKDAY(CB20)=3,"вт",IF(WEEKDAY(CB20)=4,"ср",IF(WEEKDAY(CB20)=5,"чт",IF(WEEKDAY(CB20)=6,"пт","сб")))))),IF(OR($Q$16=Lists!$I$17,$Q$16=Lists!$I$18),COUNTIFS($Z17:CB17,MONTH(CB20),$Z18:CB18,YEAR(CB20)-2000)&IF($Q$16=Lists!$I$17,"нд-","дк-")&IF(CB17=1,"янв",IF(CB17=2,"фев",IF(CB17=3,"мар",IF(CB17=4,"апр",IF(CB17=5,"май",IF(CB17=6,"июн",IF(CB17=7,"июл",IF(CB17=8,"авг",IF(CB17=9,"сен",IF(CB17=10,"окт",IF(CB17=11,"ноя","дек")))))))))))&CB18,IF($Q$16=Lists!$I$19,CB20,IF($Q$16=Lists!$I$20,(INT((CB17-1)/3)+1)&"кв"&CB18&"г",IF($Q$16=Lists!$I$21,CB16&" год",IF($Q$16=Lists!$I$22,YEAR(CB20)&"г.",""))))))) -> 2025-12-01 | CC22: =IF(CC20="","",IF($Q$16=Lists!$I$16,IF(WEEKDAY(CC20)=1,"вс",IF(WEEKDAY(CC20)=2,"пн",IF(WEEKDAY(CC20)=3,"вт",IF(WEEKDAY(CC20)=4,"ср",IF(WEEKDAY(CC20)=5,"чт",IF(WEEKDAY(CC20)=6,"пт","сб")))))),IF(OR($Q$16=Lists!$I$17,$Q$16=Lists!$I$18),COUNTIFS($Z17:CC17,MONTH(CC20),$Z18:CC18,YEAR(CC20)-2000)&IF($Q$16=Lists!$I$17,"нд-","дк-")&IF(CC17=1,"янв",IF(CC17=2,"фев",IF(CC17=3,"мар",IF(CC17=4,"апр",IF(CC17=5,"май",IF(CC17=6,"июн",IF(CC17=7,"июл",IF(CC17=8,"авг",IF(CC17=9,"сен",IF(CC17=10,"окт",IF(CC17=11,"ноя","дек")))))))))))&CC18,IF($Q$16=Lists!$I$19,CC20,IF($Q$16=Lists!$I$20,(INT((CC17-1)/3)+1)&"кв"&CC18&"г",IF($Q$16=Lists!$I$21,CC16&" год",IF($Q$16=Lists!$I$22,YEAR(CC20)&"г.",""))))))) -> 2026-01-01 | CD22: =IF(CD20="","",IF($Q$16=Lists!$I$16,IF(WEEKDAY(CD20)=1,"вс",IF(WEEKDAY(CD20)=2,"пн",IF(WEEKDAY(CD20)=3,"вт",IF(WEEKDAY(CD20)=4,"ср",IF(WEEKDAY(CD20)=5,"чт",IF(WEEKDAY(CD20)=6,"пт","сб")))))),IF(OR($Q$16=Lists!$I$17,$Q$16=Lists!$I$18),COUNTIFS($Z17:CD17,MONTH(CD20),$Z18:CD18,YEAR(CD20)-2000)&IF($Q$16=Lists!$I$17,"нд-","дк-")&IF(CD17=1,"янв",IF(CD17=2,"фев",IF(CD17=3,"мар",IF(CD17=4,"апр",IF(CD17=5,"май",IF(CD17=6,"июн",IF(CD17=7,"июл",IF(CD17=8,"авг",IF(CD17=9,"сен",IF(CD17=10,"окт",IF(CD17=11,"ноя","дек")))))))))))&CD18,IF($Q$16=Lists!$I$19,CD20,IF($Q$16=Lists!$I$20,(INT((CD17-1)/3)+1)&"кв"&CD18&"г",IF($Q$16=Lists!$I$21,CD16&" год",IF($Q$16=Lists!$I$22,YEAR(CD20)&"г.",""))))))) -> 2026-02-01 | CE22: =IF(CE20="","",IF($Q$16=Lists!$I$16,IF(WEEKDAY(CE20)=1,"вс",IF(WEEKDAY(CE20)=2,"пн",IF(WEEKDAY(CE20)=3,"вт",IF(WEEKDAY(CE20)=4,"ср",IF(WEEKDAY(CE20)=5,"чт",IF(WEEKDAY(CE20)=6,"пт","сб")))))),IF(OR($Q$16=Lists!$I$17,$Q$16=Lists!$I$18),COUNTIFS($Z17:CE17,MONTH(CE20),$Z18:CE18,YEAR(CE20)-2000)&IF($Q$16=Lists!$I$17,"нд-","дк-")&IF(CE17=1,"янв",IF(CE17=2,"фев",IF(CE17=3,"мар",IF(CE17=4,"апр",IF(CE17=5,"май",IF(CE17=6,"июн",IF(CE17=7,"июл",IF(CE17=8,"авг",IF(CE17=9,"сен",IF(CE17=10,"окт",IF(CE17=11,"ноя","дек")))))))))))&CE18,IF($Q$16=Lists!$I$19,CE20,IF($Q$16=Lists!$I$20,(INT((CE17-1)/3)+1)&"кв"&CE18&"г",IF($Q$16=Lists!$I$21,CE16&" год",IF($Q$16=Lists!$I$22,YEAR(CE20)&"г.",""))))))) -> 2026-03-01 | CF22: =IF(CF20="","",IF($Q$16=Lists!$I$16,IF(WEEKDAY(CF20)=1,"вс",IF(WEEKDAY(CF20)=2,"пн",IF(WEEKDAY(CF20)=3,"вт",IF(WEEKDAY(CF20)=4,"ср",IF(WEEKDAY(CF20)=5,"чт",IF(WEEKDAY(CF20)=6,"пт","сб")))))),IF(OR($Q$16=Lists!$I$17,$Q$16=Lists!$I$18),COUNTIFS($Z17:CF17,MONTH(CF20),$Z18:CF18,YEAR(CF20)-2000)&IF($Q$16=Lists!$I$17,"нд-","дк-")&IF(CF17=1,"янв",IF(CF17=2,"фев",IF(CF17=3,"мар",IF(CF17=4,"апр",IF(CF17=5,"май",IF(CF17=6,"июн",IF(CF17=7,"июл",IF(CF17=8,"авг",IF(CF17=9,"сен",IF(CF17=10,"окт",IF(CF17=11,"ноя","дек")))))))))))&CF18,IF($Q$16=Lists!$I$19,CF20,IF($Q$16=Lists!$I$20,(INT((CF17-1)/3)+1)&"кв"&CF18&"г",IF($Q$16=Lists!$I$21,CF16&" год",IF($Q$16=Lists!$I$22,YEAR(CF20)&"г.",""))))))) -> 2026-04-01 | CG22: =IF(CG20="","",IF($Q$16=Lists!$I$16,IF(WEEKDAY(CG20)=1,"вс",IF(WEEKDAY(CG20)=2,"пн",IF(WEEKDAY(CG20)=3,"вт",IF(WEEKDAY(CG20)=4,"ср",IF(WEEKDAY(CG20)=5,"чт",IF(WEEKDAY(CG20)=6,"пт","сб")))))),IF(OR($Q$16=Lists!$I$17,$Q$16=Lists!$I$18),COUNTIFS($Z17:CG17,MONTH(CG20),$Z18:CG18,YEAR(CG20)-2000)&IF($Q$16=Lists!$I$17,"нд-","дк-")&IF(CG17=1,"янв",IF(CG17=2,"фев",IF(CG17=3,"мар",IF(CG17=4,"апр",IF(CG17=5,"май",IF(CG17=6,"июн",IF(CG17=7,"июл",IF(CG17=8,"авг",IF(CG17=9,"сен",IF(CG17=10,"окт",IF(CG17=11,"ноя","дек")))))))))))&CG18,IF($Q$16=Lists!$I$19,CG20,IF($Q$16=Lists!$I$20,(INT((CG17-1)/3)+1)&"кв"&CG18&"г",IF($Q$16=Lists!$I$21,CG16&" год",IF($Q$16=Lists!$I$22,YEAR(CG20)&"г.",""))))))) -> 2026-05-01 | CH22: =IF(CH20="","",IF($Q$16=Lists!$I$16,IF(WEEKDAY(CH20)=1,"вс",IF(WEEKDAY(CH20)=2,"пн",IF(WEEKDAY(CH20)=3,"вт",IF(WEEKDAY(CH20)=4,"ср",IF(WEEKDAY(CH20)=5,"чт",IF(WEEKDAY(CH20)=6,"пт","сб")))))),IF(OR($Q$16=Lists!$I$17,$Q$16=Lists!$I$18),COUNTIFS($Z17:CH17,MONTH(CH20),$Z18:CH18,YEAR(CH20)-2000)&IF($Q$16=Lists!$I$17,"нд-","дк-")&IF(CH17=1,"янв",IF(CH17=2,"фев",IF(CH17=3,"мар",IF(CH17=4,"апр",IF(CH17=5,"май",IF(CH17=6,"июн",IF(CH17=7,"июл",IF(CH17=8,"авг",IF(CH17=9,"сен",IF(CH17=10,"окт",IF(CH17=11,"ноя","дек")))))))))))&CH18,IF($Q$16=Lists!$I$19,CH20,IF($Q$16=Lists!$I$20,(INT((CH17-1)/3)+1)&"кв"&CH18&"г",IF($Q$16=Lists!$I$21,CH16&" год",IF($Q$16=Lists!$I$22,YEAR(CH20)&"г.",""))))))) -> 2026-06-01 | CI22: =IF(CI20="","",IF($Q$16=Lists!$I$16,IF(WEEKDAY(CI20)=1,"вс",IF(WEEKDAY(CI20)=2,"пн",IF(WEEKDAY(CI20)=3,"вт",IF(WEEKDAY(CI20)=4,"ср",IF(WEEKDAY(CI20)=5,"чт",IF(WEEKDAY(CI20)=6,"пт","сб")))))),IF(OR($Q$16=Lists!$I$17,$Q$16=Lists!$I$18),COUNTIFS($Z17:CI17,MONTH(CI20),$Z18:CI18,YEAR(CI20)-2000)&IF($Q$16=Lists!$I$17,"нд-","дк-")&IF(CI17=1,"янв",IF(CI17=2,"фев",IF(CI17=3,"мар",IF(CI17=4,"апр",IF(CI17=5,"май",IF(CI17=6,"июн",IF(CI17=7,"июл",IF(CI17=8,"авг",IF(CI17=9,"сен",IF(CI17=10,"окт",IF(CI17=11,"ноя","дек")))))))))))&CI18,IF($Q$16=Lists!$I$19,CI20,IF($Q$16=Lists!$I$20,(INT((CI17-1)/3)+1)&"кв"&CI18&"г",IF($Q$16=Lists!$I$21,CI16&" год",IF($Q$16=Lists!$I$22,YEAR(CI20)&"г.",""))))))) -> 2026-07-01 | CJ22: =IF(CJ20="","",IF($Q$16=Lists!$I$16,IF(WEEKDAY(CJ20)=1,"вс",IF(WEEKDAY(CJ20)=2,"пн",IF(WEEKDAY(CJ20)=3,"вт",IF(WEEKDAY(CJ20)=4,"ср",IF(WEEKDAY(CJ20)=5,"чт",IF(WEEKDAY(CJ20)=6,"пт","сб")))))),IF(OR($Q$16=Lists!$I$17,$Q$16=Lists!$I$18),COUNTIFS($Z17:CJ17,MONTH(CJ20),$Z18:CJ18,YEAR(CJ20)-2000)&IF($Q$16=Lists!$I$17,"нд-","дк-")&IF(CJ17=1,"янв",IF(CJ17=2,"фев",IF(CJ17=3,"мар",IF(CJ17=4,"апр",IF(CJ17=5,"май",IF(CJ17=6,"июн",IF(CJ17=7,"июл",IF(CJ17=8,"авг",IF(CJ17=9,"сен",IF(CJ17=10,"окт",IF(CJ17=11,"ноя","дек")))))))))))&CJ18,IF($Q$16=Lists!$I$19,CJ20,IF($Q$16=Lists!$I$20,(INT((CJ17-1)/3)+1)&"кв"&CJ18&"г",IF($Q$16=Lists!$I$21,CJ16&" год",IF($Q$16=Lists!$I$22,YEAR(CJ20)&"г.",""))))))) -> 2026-08-01 | CK22: =IF(CK20="","",IF($Q$16=Lists!$I$16,IF(WEEKDAY(CK20)=1,"вс",IF(WEEKDAY(CK20)=2,"пн",IF(WEEKDAY(CK20)=3,"вт",IF(WEEKDAY(CK20)=4,"ср",IF(WEEKDAY(CK20)=5,"чт",IF(WEEKDAY(CK20)=6,"пт","сб")))))),IF(OR($Q$16=Lists!$I$17,$Q$16=Lists!$I$18),COUNTIFS($Z17:CK17,MONTH(CK20),$Z18:CK18,YEAR(CK20)-2000)&IF($Q$16=Lists!$I$17,"нд-","дк-")&IF(CK17=1,"янв",IF(CK17=2,"фев",IF(CK17=3,"мар",IF(CK17=4,"апр",IF(CK17=5,"май",IF(CK17=6,"июн",IF(CK17=7,"июл",IF(CK17=8,"авг",IF(CK17=9,"сен",IF(CK17=10,"окт",IF(CK17=11,"ноя","дек")))))))))))&CK18,IF($Q$16=Lists!$I$19,CK20,IF($Q$16=Lists!$I$20,(INT((CK17-1)/3)+1)&"кв"&CK18&"г",IF($Q$16=Lists!$I$21,CK16&" год",IF($Q$16=Lists!$I$22,YEAR(CK20)&"г.",""))))))) -> 2026-09-01 | CL22: =IF(CL20="","",IF($Q$16=Lists!$I$16,IF(WEEKDAY(CL20)=1,"вс",IF(WEEKDAY(CL20)=2,"пн",IF(WEEKDAY(CL20)=3,"вт",IF(WEEKDAY(CL20)=4,"ср",IF(WEEKDAY(CL20)=5,"чт",IF(WEEKDAY(CL20)=6,"пт","сб")))))),IF(OR($Q$16=Lists!$I$17,$Q$16=Lists!$I$18),COUNTIFS($Z17:CL17,MONTH(CL20),$Z18:CL18,YEAR(CL20)-2000)&IF($Q$16=Lists!$I$17,"нд-","дк-")&IF(CL17=1,"янв",IF(CL17=2,"фев",IF(CL17=3,"мар",IF(CL17=4,"апр",IF(CL17=5,"май",IF(CL17=6,"июн",IF(CL17=7,"июл",IF(CL17=8,"авг",IF(CL17=9,"сен",IF(CL17=10,"окт",IF(CL17=11,"ноя","дек")))))))))))&CL18,IF($Q$16=Lists!$I$19,CL20,IF($Q$16=Lists!$I$20,(INT((CL17-1)/3)+1)&"кв"&CL18&"г",IF($Q$16=Lists!$I$21,CL16&" год",IF($Q$16=Lists!$I$22,YEAR(CL20)&"г.",""))))))) -> 2026-10-01 | CM22: =IF(CM20="","",IF($Q$16=Lists!$I$16,IF(WEEKDAY(CM20)=1,"вс",IF(WEEKDAY(CM20)=2,"пн",IF(WEEKDAY(CM20)=3,"вт",IF(WEEKDAY(CM20)=4,"ср",IF(WEEKDAY(CM20)=5,"чт",IF(WEEKDAY(CM20)=6,"пт","сб")))))),IF(OR($Q$16=Lists!$I$17,$Q$16=Lists!$I$18),COUNTIFS($Z17:CM17,MONTH(CM20),$Z18:CM18,YEAR(CM20)-2000)&IF($Q$16=Lists!$I$17,"нд-","дк-")&IF(CM17=1,"янв",IF(CM17=2,"фев",IF(CM17=3,"мар",IF(CM17=4,"апр",IF(CM17=5,"май",IF(CM17=6,"июн",IF(CM17=7,"июл",IF(CM17=8,"авг",IF(CM17=9,"сен",IF(CM17=10,"окт",IF(CM17=11,"ноя","дек")))))))))))&CM18,IF($Q$16=Lists!$I$19,CM20,IF($Q$16=Lists!$I$20,(INT((CM17-1)/3)+1)&"кв"&CM18&"г",IF($Q$16=Lists!$I$21,CM16&" год",IF($Q$16=Lists!$I$22,YEAR(CM20)&"г.",""))))))) -> 2026-11-01 | CN22: =IF(CN20="","",IF($Q$16=Lists!$I$16,IF(WEEKDAY(CN20)=1,"вс",IF(WEEKDAY(CN20)=2,"пн",IF(WEEKDAY(CN20)=3,"вт",IF(WEEKDAY(CN20)=4,"ср",IF(WEEKDAY(CN20)=5,"чт",IF(WEEKDAY(CN20)=6,"пт","сб")))))),IF(OR($Q$16=Lists!$I$17,$Q$16=Lists!$I$18),COUNTIFS($Z17:CN17,MONTH(CN20),$Z18:CN18,YEAR(CN20)-2000)&IF($Q$16=Lists!$I$17,"нд-","дк-")&IF(CN17=1,"янв",IF(CN17=2,"фев",IF(CN17=3,"мар",IF(CN17=4,"апр",IF(CN17=5,"май",IF(CN17=6,"июн",IF(CN17=7,"июл",IF(CN17=8,"авг",IF(CN17=9,"сен",IF(CN17=10,"окт",IF(CN17=11,"ноя","дек")))))))))))&CN18,IF($Q$16=Lists!$I$19,CN20,IF($Q$16=Lists!$I$20,(INT((CN17-1)/3)+1)&"кв"&CN18&"г",IF($Q$16=Lists!$I$21,CN16&" год",IF($Q$16=Lists!$I$22,YEAR(CN20)&"г.",""))))))) -> 2026-12-01 | CO22: =IF(CO20="","",IF($Q$16=Lists!$I$16,IF(WEEKDAY(CO20)=1,"вс",IF(WEEKDAY(CO20)=2,"пн",IF(WEEKDAY(CO20)=3,"вт",IF(WEEKDAY(CO20)=4,"ср",IF(WEEKDAY(CO20)=5,"чт",IF(WEEKDAY(CO20)=6,"пт","сб")))))),IF(OR($Q$16=Lists!$I$17,$Q$16=Lists!$I$18),COUNTIFS($Z17:CO17,MONTH(CO20),$Z18:CO18,YEAR(CO20)-2000)&IF($Q$16=Lists!$I$17,"нд-","дк-")&IF(CO17=1,"янв",IF(CO17=2,"фев",IF(CO17=3,"мар",IF(CO17=4,"апр",IF(CO17=5,"май",IF(CO17=6,"июн",IF(CO17=7,"июл",IF(CO17=8,"авг",IF(CO17=9,"сен",IF(CO17=10,"окт",IF(CO17=11,"ноя","дек")))))))))))&CO18,IF($Q$16=Lists!$I$19,CO20,IF($Q$16=Lists!$I$20,(INT((CO17-1)/3)+1)&"кв"&CO18&"г",IF($Q$16=Lists!$I$21,CO16&" год",IF($Q$16=Lists!$I$22,YEAR(CO20)&"г.",""))))))) -> 2027-01-01 | CP22: =IF(CP20="","",IF($Q$16=Lists!$I$16,IF(WEEKDAY(CP20)=1,"вс",IF(WEEKDAY(CP20)=2,"пн",IF(WEEKDAY(CP20)=3,"вт",IF(WEEKDAY(CP20)=4,"ср",IF(WEEKDAY(CP20)=5,"чт",IF(WEEKDAY(CP20)=6,"пт","сб")))))),IF(OR($Q$16=Lists!$I$17,$Q$16=Lists!$I$18),COUNTIFS($Z17:CP17,MONTH(CP20),$Z18:CP18,YEAR(CP20)-2000)&IF($Q$16=Lists!$I$17,"нд-","дк-")&IF(CP17=1,"янв",IF(CP17=2,"фев",IF(CP17=3,"мар",IF(CP17=4,"апр",IF(CP17=5,"май",IF(CP17=6,"июн",IF(CP17=7,"июл",IF(CP17=8,"авг",IF(CP17=9,"сен",IF(CP17=10,"окт",IF(CP17=11,"ноя","дек")))))))))))&CP18,IF($Q$16=Lists!$I$19,CP20,IF($Q$16=Lists!$I$20,(INT((CP17-1)/3)+1)&"кв"&CP18&"г",IF($Q$16=Lists!$I$21,CP16&" год",IF($Q$16=Lists!$I$22,YEAR(CP20)&"г.",""))))))) -> 2027-02-01 | CQ22: =IF(CQ20="","",IF($Q$16=Lists!$I$16,IF(WEEKDAY(CQ20)=1,"вс",IF(WEEKDAY(CQ20)=2,"пн",IF(WEEKDAY(CQ20)=3,"вт",IF(WEEKDAY(CQ20)=4,"ср",IF(WEEKDAY(CQ20)=5,"чт",IF(WEEKDAY(CQ20)=6,"пт","сб")))))),IF(OR($Q$16=Lists!$I$17,$Q$16=Lists!$I$18),COUNTIFS($Z17:CQ17,MONTH(CQ20),$Z18:CQ18,YEAR(CQ20)-2000)&IF($Q$16=Lists!$I$17,"нд-","дк-")&IF(CQ17=1,"янв",IF(CQ17=2,"фев",IF(CQ17=3,"мар",IF(CQ17=4,"апр",IF(CQ17=5,"май",IF(CQ17=6,"июн",IF(CQ17=7,"июл",IF(CQ17=8,"авг",IF(CQ17=9,"сен",IF(CQ17=10,"окт",IF(CQ17=11,"ноя","дек")))))))))))&CQ18,IF($Q$16=Lists!$I$19,CQ20,IF($Q$16=Lists!$I$20,(INT((CQ17-1)/3)+1)&"кв"&CQ18&"г",IF($Q$16=Lists!$I$21,CQ16&" год",IF($Q$16=Lists!$I$22,YEAR(CQ20)&"г.",""))))))) -> 2027-03-01 | CR22: =IF(CR20="","",IF($Q$16=Lists!$I$16,IF(WEEKDAY(CR20)=1,"вс",IF(WEEKDAY(CR20)=2,"пн",IF(WEEKDAY(CR20)=3,"вт",IF(WEEKDAY(CR20)=4,"ср",IF(WEEKDAY(CR20)=5,"чт",IF(WEEKDAY(CR20)=6,"пт","сб")))))),IF(OR($Q$16=Lists!$I$17,$Q$16=Lists!$I$18),COUNTIFS($Z17:CR17,MONTH(CR20),$Z18:CR18,YEAR(CR20)-2000)&IF($Q$16=Lists!$I$17,"нд-","дк-")&IF(CR17=1,"янв",IF(CR17=2,"фев",IF(CR17=3,"мар",IF(CR17=4,"апр",IF(CR17=5,"май",IF(CR17=6,"июн",IF(CR17=7,"июл",IF(CR17=8,"авг",IF(CR17=9,"сен",IF(CR17=10,"окт",IF(CR17=11,"ноя","дек")))))))))))&CR18,IF($Q$16=Lists!$I$19,CR20,IF($Q$16=Lists!$I$20,(INT((CR17-1)/3)+1)&"кв"&CR18&"г",IF($Q$16=Lists!$I$21,CR16&" год",IF($Q$16=Lists!$I$22,YEAR(CR20)&"г.",""))))))) -> 2027-04-01 | CS22: =IF(CS20="","",IF($Q$16=Lists!$I$16,IF(WEEKDAY(CS20)=1,"вс",IF(WEEKDAY(CS20)=2,"пн",IF(WEEKDAY(CS20)=3,"вт",IF(WEEKDAY(CS20)=4,"ср",IF(WEEKDAY(CS20)=5,"чт",IF(WEEKDAY(CS20)=6,"пт","сб")))))),IF(OR($Q$16=Lists!$I$17,$Q$16=Lists!$I$18),COUNTIFS($Z17:CS17,MONTH(CS20),$Z18:CS18,YEAR(CS20)-2000)&IF($Q$16=Lists!$I$17,"нд-","дк-")&IF(CS17=1,"янв",IF(CS17=2,"фев",IF(CS17=3,"мар",IF(CS17=4,"апр",IF(CS17=5,"май",IF(CS17=6,"июн",IF(CS17=7,"июл",IF(CS17=8,"авг",IF(CS17=9,"сен",IF(CS17=10,"окт",IF(CS17=11,"ноя","дек")))))))))))&CS18,IF($Q$16=Lists!$I$19,CS20,IF($Q$16=Lists!$I$20,(INT((CS17-1)/3)+1)&"кв"&CS18&"г",IF($Q$16=Lists!$I$21,CS16&" год",IF($Q$16=Lists!$I$22,YEAR(CS20)&"г.",""))))))) -> 2027-05-01 | CT22: =IF(CT20="","",IF($Q$16=Lists!$I$16,IF(WEEKDAY(CT20)=1,"вс",IF(WEEKDAY(CT20)=2,"пн",IF(WEEKDAY(CT20)=3,"вт",IF(WEEKDAY(CT20)=4,"ср",IF(WEEKDAY(CT20)=5,"чт",IF(WEEKDAY(CT20)=6,"пт","сб")))))),IF(OR($Q$16=Lists!$I$17,$Q$16=Lists!$I$18),COUNTIFS($Z17:CT17,MONTH(CT20),$Z18:CT18,YEAR(CT20)-2000)&IF($Q$16=Lists!$I$17,"нд-","дк-")&IF(CT17=1,"янв",IF(CT17=2,"фев",IF(CT17=3,"мар",IF(CT17=4,"апр",IF(CT17=5,"май",IF(CT17=6,"июн",IF(CT17=7,"июл",IF(CT17=8,"авг",IF(CT17=9,"сен",IF(CT17=10,"окт",IF(CT17=11,"ноя","дек")))))))))))&CT18,IF($Q$16=Lists!$I$19,CT20,IF($Q$16=Lists!$I$20,(INT((CT17-1)/3)+1)&"кв"&CT18&"г",IF($Q$16=Lists!$I$21,CT16&" год",IF($Q$16=Lists!$I$22,YEAR(CT20)&"г.",""))))))) -> 2027-06-01 | CU22: =IF(CU20="","",IF($Q$16=Lists!$I$16,IF(WEEKDAY(CU20)=1,"вс",IF(WEEKDAY(CU20)=2,"пн",IF(WEEKDAY(CU20)=3,"вт",IF(WEEKDAY(CU20)=4,"ср",IF(WEEKDAY(CU20)=5,"чт",IF(WEEKDAY(CU20)=6,"пт","сб")))))),IF(OR($Q$16=Lists!$I$17,$Q$16=Lists!$I$18),COUNTIFS($Z17:CU17,MONTH(CU20),$Z18:CU18,YEAR(CU20)-2000)&IF($Q$16=Lists!$I$17,"нд-","дк-")&IF(CU17=1,"янв",IF(CU17=2,"фев",IF(CU17=3,"мар",IF(CU17=4,"апр",IF(CU17=5,"май",IF(CU17=6,"июн",IF(CU17=7,"июл",IF(CU17=8,"авг",IF(CU17=9,"сен",IF(CU17=10,"окт",IF(CU17=11,"ноя","дек")))))))))))&CU18,IF($Q$16=Lists!$I$19,CU20,IF($Q$16=Lists!$I$20,(INT((CU17-1)/3)+1)&"кв"&CU18&"г",IF($Q$16=Lists!$I$21,CU16&" год",IF($Q$16=Lists!$I$22,YEAR(CU20)&"г.",""))))))) -> 2027-07-01 | CV22: =IF(CV20="","",IF($Q$16=Lists!$I$16,IF(WEEKDAY(CV20)=1,"вс",IF(WEEKDAY(CV20)=2,"пн",IF(WEEKDAY(CV20)=3,"вт",IF(WEEKDAY(CV20)=4,"ср",IF(WEEKDAY(CV20)=5,"чт",IF(WEEKDAY(CV20)=6,"пт","сб")))))),IF(OR($Q$16=Lists!$I$17,$Q$16=Lists!$I$18),COUNTIFS($Z17:CV17,MONTH(CV20),$Z18:CV18,YEAR(CV20)-2000)&IF($Q$16=Lists!$I$17,"нд-","дк-")&IF(CV17=1,"янв",IF(CV17=2,"фев",IF(CV17=3,"мар",IF(CV17=4,"апр",IF(CV17=5,"май",IF(CV17=6,"июн",IF(CV17=7,"июл",IF(CV17=8,"авг",IF(CV17=9,"сен",IF(CV17=10,"окт",IF(CV17=11,"ноя","дек")))))))))))&CV18,IF($Q$16=Lists!$I$19,CV20,IF($Q$16=Lists!$I$20,(INT((CV17-1)/3)+1)&"кв"&CV18&"г",IF($Q$16=Lists!$I$21,CV16&" год",IF($Q$16=Lists!$I$22,YEAR(CV20)&"г.",""))))))) -> 2027-08-01 | CW22: =IF(CW20="","",IF($Q$16=Lists!$I$16,IF(WEEKDAY(CW20)=1,"вс",IF(WEEKDAY(CW20)=2,"пн",IF(WEEKDAY(CW20)=3,"вт",IF(WEEKDAY(CW20)=4,"ср",IF(WEEKDAY(CW20)=5,"чт",IF(WEEKDAY(CW20)=6,"пт","сб")))))),IF(OR($Q$16=Lists!$I$17,$Q$16=Lists!$I$18),COUNTIFS($Z17:CW17,MONTH(CW20),$Z18:CW18,YEAR(CW20)-2000)&IF($Q$16=Lists!$I$17,"нд-","дк-")&IF(CW17=1,"янв",IF(CW17=2,"фев",IF(CW17=3,"мар",IF(CW17=4,"апр",IF(CW17=5,"май",IF(CW17=6,"июн",IF(CW17=7,"июл",IF(CW17=8,"авг",IF(CW17=9,"сен",IF(CW17=10,"окт",IF(CW17=11,"ноя","дек")))))))))))&CW18,IF($Q$16=Lists!$I$19,CW20,IF($Q$16=Lists!$I$20,(INT((CW17-1)/3)+1)&"кв"&CW18&"г",IF($Q$16=Lists!$I$21,CW16&" год",IF($Q$16=Lists!$I$22,YEAR(CW20)&"г.",""))))))) -> 2027-09-01 | CX22: =IF(CX20="","",IF($Q$16=Lists!$I$16,IF(WEEKDAY(CX20)=1,"вс",IF(WEEKDAY(CX20)=2,"пн",IF(WEEKDAY(CX20)=3,"вт",IF(WEEKDAY(CX20)=4,"ср",IF(WEEKDAY(CX20)=5,"чт",IF(WEEKDAY(CX20)=6,"пт","сб")))))),IF(OR($Q$16=Lists!$I$17,$Q$16=Lists!$I$18),COUNTIFS($Z17:CX17,MONTH(CX20),$Z18:CX18,YEAR(CX20)-2000)&IF($Q$16=Lists!$I$17,"нд-","дк-")&IF(CX17=1,"янв",IF(CX17=2,"фев",IF(CX17=3,"мар",IF(CX17=4,"апр",IF(CX17=5,"май",IF(CX17=6,"июн",IF(CX17=7,"июл",IF(CX17=8,"авг",IF(CX17=9,"сен",IF(CX17=10,"окт",IF(CX17=11,"ноя","дек")))))))))))&CX18,IF($Q$16=Lists!$I$19,CX20,IF($Q$16=Lists!$I$20,(INT((CX17-1)/3)+1)&"кв"&CX18&"г",IF($Q$16=Lists!$I$21,CX16&" год",IF($Q$16=Lists!$I$22,YEAR(CX20)&"г.",""))))))) -> 2027-10-01 | CY22: =IF(CY20="","",IF($Q$16=Lists!$I$16,IF(WEEKDAY(CY20)=1,"вс",IF(WEEKDAY(CY20)=2,"пн",IF(WEEKDAY(CY20)=3,"вт",IF(WEEKDAY(CY20)=4,"ср",IF(WEEKDAY(CY20)=5,"чт",IF(WEEKDAY(CY20)=6,"пт","сб")))))),IF(OR($Q$16=Lists!$I$17,$Q$16=Lists!$I$18),COUNTIFS($Z17:CY17,MONTH(CY20),$Z18:CY18,YEAR(CY20)-2000)&IF($Q$16=Lists!$I$17,"нд-","дк-")&IF(CY17=1,"янв",IF(CY17=2,"фев",IF(CY17=3,"мар",IF(CY17=4,"апр",IF(CY17=5,"май",IF(CY17=6,"июн",IF(CY17=7,"июл",IF(CY17=8,"авг",IF(CY17=9,"сен",IF(CY17=10,"окт",IF(CY17=11,"ноя","дек")))))))))))&CY18,IF($Q$16=Lists!$I$19,CY20,IF($Q$16=Lists!$I$20,(INT((CY17-1)/3)+1)&"кв"&CY18&"г",IF($Q$16=Lists!$I$21,CY16&" год",IF($Q$16=Lists!$I$22,YEAR(CY20)&"г.",""))))))) -> 2027-11-01 | CZ22: =IF(CZ20="","",IF($Q$16=Lists!$I$16,IF(WEEKDAY(CZ20)=1,"вс",IF(WEEKDAY(CZ20)=2,"пн",IF(WEEKDAY(CZ20)=3,"вт",IF(WEEKDAY(CZ20)=4,"ср",IF(WEEKDAY(CZ20)=5,"чт",IF(WEEKDAY(CZ20)=6,"пт","сб")))))),IF(OR($Q$16=Lists!$I$17,$Q$16=Lists!$I$18),COUNTIFS($Z17:CZ17,MONTH(CZ20),$Z18:CZ18,YEAR(CZ20)-2000)&IF($Q$16=Lists!$I$17,"нд-","дк-")&IF(CZ17=1,"янв",IF(CZ17=2,"фев",IF(CZ17=3,"мар",IF(CZ17=4,"апр",IF(CZ17=5,"май",IF(CZ17=6,"июн",IF(CZ17=7,"июл",IF(CZ17=8,"авг",IF(CZ17=9,"сен",IF(CZ17=10,"окт",IF(CZ17=11,"ноя","дек")))))))))))&CZ18,IF($Q$16=Lists!$I$19,CZ20,IF($Q$16=Lists!$I$20,(INT((CZ17-1)/3)+1)&"кв"&CZ18&"г",IF($Q$16=Lists!$I$21,CZ16&" год",IF($Q$16=Lists!$I$22,YEAR(CZ20)&"г.",""))))))) -> 2027-12-01 | DA22: =IF(DA20="","",IF($Q$16=Lists!$I$16,IF(WEEKDAY(DA20)=1,"вс",IF(WEEKDAY(DA20)=2,"пн",IF(WEEKDAY(DA20)=3,"вт",IF(WEEKDAY(DA20)=4,"ср",IF(WEEKDAY(DA20)=5,"чт",IF(WEEKDAY(DA20)=6,"пт","сб")))))),IF(OR($Q$16=Lists!$I$17,$Q$16=Lists!$I$18),COUNTIFS($Z17:DA17,MONTH(DA20),$Z18:DA18,YEAR(DA20)-2000)&IF($Q$16=Lists!$I$17,"нд-","дк-")&IF(DA17=1,"янв",IF(DA17=2,"фев",IF(DA17=3,"мар",IF(DA17=4,"апр",IF(DA17=5,"май",IF(DA17=6,"июн",IF(DA17=7,"июл",IF(DA17=8,"авг",IF(DA17=9,"сен",IF(DA17=10,"окт",IF(DA17=11,"ноя","дек")))))))))))&DA18,IF($Q$16=Lists!$I$19,DA20,IF($Q$16=Lists!$I$20,(INT((DA17-1)/3)+1)&"кв"&DA18&"г",IF($Q$16=Lists!$I$21,DA16&" год",IF($Q$16=Lists!$I$22,YEAR(DA20)&"г.",""))))))) -> 2028-01-01 | DB22: =IF(DB20="","",IF($Q$16=Lists!$I$16,IF(WEEKDAY(DB20)=1,"вс",IF(WEEKDAY(DB20)=2,"пн",IF(WEEKDAY(DB20)=3,"вт",IF(WEEKDAY(DB20)=4,"ср",IF(WEEKDAY(DB20)=5,"чт",IF(WEEKDAY(DB20)=6,"пт","сб")))))),IF(OR($Q$16=Lists!$I$17,$Q$16=Lists!$I$18),COUNTIFS($Z17:DB17,MONTH(DB20),$Z18:DB18,YEAR(DB20)-2000)&IF($Q$16=Lists!$I$17,"нд-","дк-")&IF(DB17=1,"янв",IF(DB17=2,"фев",IF(DB17=3,"мар",IF(DB17=4,"апр",IF(DB17=5,"май",IF(DB17=6,"июн",IF(DB17=7,"июл",IF(DB17=8,"авг",IF(DB17=9,"сен",IF(DB17=10,"окт",IF(DB17=11,"ноя","дек")))))))))))&DB18,IF($Q$16=Lists!$I$19,DB20,IF($Q$16=Lists!$I$20,(INT((DB17-1)/3)+1)&"кв"&DB18&"г",IF($Q$16=Lists!$I$21,DB16&" год",IF($Q$16=Lists!$I$22,YEAR(DB20)&"г.",""))))))) -> 2028-02-01 | DC22: =IF(DC20="","",IF($Q$16=Lists!$I$16,IF(WEEKDAY(DC20)=1,"вс",IF(WEEKDAY(DC20)=2,"пн",IF(WEEKDAY(DC20)=3,"вт",IF(WEEKDAY(DC20)=4,"ср",IF(WEEKDAY(DC20)=5,"чт",IF(WEEKDAY(DC20)=6,"пт","сб")))))),IF(OR($Q$16=Lists!$I$17,$Q$16=Lists!$I$18),COUNTIFS($Z17:DC17,MONTH(DC20),$Z18:DC18,YEAR(DC20)-2000)&IF($Q$16=Lists!$I$17,"нд-","дк-")&IF(DC17=1,"янв",IF(DC17=2,"фев",IF(DC17=3,"мар",IF(DC17=4,"апр",IF(DC17=5,"май",IF(DC17=6,"июн",IF(DC17=7,"июл",IF(DC17=8,"авг",IF(DC17=9,"сен",IF(DC17=10,"окт",IF(DC17=11,"ноя","дек")))))))))))&DC18,IF($Q$16=Lists!$I$19,DC20,IF($Q$16=Lists!$I$20,(INT((DC17-1)/3)+1)&"кв"&DC18&"г",IF($Q$16=Lists!$I$21,DC16&" год",IF($Q$16=Lists!$I$22,YEAR(DC20)&"г.",""))))))) -> 2028-03-01 | DD22: =IF(DD20="","",IF($Q$16=Lists!$I$16,IF(WEEKDAY(DD20)=1,"вс",IF(WEEKDAY(DD20)=2,"пн",IF(WEEKDAY(DD20)=3,"вт",IF(WEEKDAY(DD20)=4,"ср",IF(WEEKDAY(DD20)=5,"чт",IF(WEEKDAY(DD20)=6,"пт","сб")))))),IF(OR($Q$16=Lists!$I$17,$Q$16=Lists!$I$18),COUNTIFS($Z17:DD17,MONTH(DD20),$Z18:DD18,YEAR(DD20)-2000)&IF($Q$16=Lists!$I$17,"нд-","дк-")&IF(DD17=1,"янв",IF(DD17=2,"фев",IF(DD17=3,"мар",IF(DD17=4,"апр",IF(DD17=5,"май",IF(DD17=6,"июн",IF(DD17=7,"июл",IF(DD17=8,"авг",IF(DD17=9,"сен",IF(DD17=10,"окт",IF(DD17=11,"ноя","дек")))))))))))&DD18,IF($Q$16=Lists!$I$19,DD20,IF($Q$16=Lists!$I$20,(INT((DD17-1)/3)+1)&"кв"&DD18&"г",IF($Q$16=Lists!$I$21,DD16&" год",IF($Q$16=Lists!$I$22,YEAR(DD20)&"г.",""))))))) -> 2028-04-01 | DE22: =IF(DE20="","",IF($Q$16=Lists!$I$16,IF(WEEKDAY(DE20)=1,"вс",IF(WEEKDAY(DE20)=2,"пн",IF(WEEKDAY(DE20)=3,"вт",IF(WEEKDAY(DE20)=4,"ср",IF(WEEKDAY(DE20)=5,"чт",IF(WEEKDAY(DE20)=6,"пт","сб")))))),IF(OR($Q$16=Lists!$I$17,$Q$16=Lists!$I$18),COUNTIFS($Z17:DE17,MONTH(DE20),$Z18:DE18,YEAR(DE20)-2000)&IF($Q$16=Lists!$I$17,"нд-","дк-")&IF(DE17=1,"янв",IF(DE17=2,"фев",IF(DE17=3,"мар",IF(DE17=4,"апр",IF(DE17=5,"май",IF(DE17=6,"июн",IF(DE17=7,"июл",IF(DE17=8,"авг",IF(DE17=9,"сен",IF(DE17=10,"окт",IF(DE17=11,"ноя","дек")))))))))))&DE18,IF($Q$16=Lists!$I$19,DE20,IF($Q$16=Lists!$I$20,(INT((DE17-1)/3)+1)&"кв"&DE18&"г",IF($Q$16=Lists!$I$21,DE16&" год",IF($Q$16=Lists!$I$22,YEAR(DE20)&"г.",""))))))) -> 2028-05-01 | DF22: =IF(DF20="","",IF($Q$16=Lists!$I$16,IF(WEEKDAY(DF20)=1,"вс",IF(WEEKDAY(DF20)=2,"пн",IF(WEEKDAY(DF20)=3,"вт",IF(WEEKDAY(DF20)=4,"ср",IF(WEEKDAY(DF20)=5,"чт",IF(WEEKDAY(DF20)=6,"пт","сб")))))),IF(OR($Q$16=Lists!$I$17,$Q$16=Lists!$I$18),COUNTIFS($Z17:DF17,MONTH(DF20),$Z18:DF18,YEAR(DF20)-2000)&IF($Q$16=Lists!$I$17,"нд-","дк-")&IF(DF17=1,"янв",IF(DF17=2,"фев",IF(DF17=3,"мар",IF(DF17=4,"апр",IF(DF17=5,"май",IF(DF17=6,"июн",IF(DF17=7,"июл",IF(DF17=8,"авг",IF(DF17=9,"сен",IF(DF17=10,"окт",IF(DF17=11,"ноя","дек")))))))))))&DF18,IF($Q$16=Lists!$I$19,DF20,IF($Q$16=Lists!$I$20,(INT((DF17-1)/3)+1)&"кв"&DF18&"г",IF($Q$16=Lists!$I$21,DF16&" год",IF($Q$16=Lists!$I$22,YEAR(DF20)&"г.",""))))))) -> 2028-06-01 | DG22: =IF(DG20="","",IF($Q$16=Lists!$I$16,IF(WEEKDAY(DG20)=1,"вс",IF(WEEKDAY(DG20)=2,"пн",IF(WEEKDAY(DG20)=3,"вт",IF(WEEKDAY(DG20)=4,"ср",IF(WEEKDAY(DG20)=5,"чт",IF(WEEKDAY(DG20)=6,"пт","сб")))))),IF(OR($Q$16=Lists!$I$17,$Q$16=Lists!$I$18),COUNTIFS($Z17:DG17,MONTH(DG20),$Z18:DG18,YEAR(DG20)-2000)&IF($Q$16=Lists!$I$17,"нд-","дк-")&IF(DG17=1,"янв",IF(DG17=2,"фев",IF(DG17=3,"мар",IF(DG17=4,"апр",IF(DG17=5,"май",IF(DG17=6,"июн",IF(DG17=7,"июл",IF(DG17=8,"авг",IF(DG17=9,"сен",IF(DG17=10,"окт",IF(DG17=11,"ноя","дек")))))))))))&DG18,IF($Q$16=Lists!$I$19,DG20,IF($Q$16=Lists!$I$20,(INT((DG17-1)/3)+1)&"кв"&DG18&"г",IF($Q$16=Lists!$I$21,DG16&" год",IF($Q$16=Lists!$I$22,YEAR(DG20)&"г.",""))))))) -> 2028-07-01 | DH22: =IF(DH20="","",IF($Q$16=Lists!$I$16,IF(WEEKDAY(DH20)=1,"вс",IF(WEEKDAY(DH20)=2,"пн",IF(WEEKDAY(DH20)=3,"вт",IF(WEEKDAY(DH20)=4,"ср",IF(WEEKDAY(DH20)=5,"чт",IF(WEEKDAY(DH20)=6,"пт","сб")))))),IF(OR($Q$16=Lists!$I$17,$Q$16=Lists!$I$18),COUNTIFS($Z17:DH17,MONTH(DH20),$Z18:DH18,YEAR(DH20)-2000)&IF($Q$16=Lists!$I$17,"нд-","дк-")&IF(DH17=1,"янв",IF(DH17=2,"фев",IF(DH17=3,"мар",IF(DH17=4,"апр",IF(DH17=5,"май",IF(DH17=6,"июн",IF(DH17=7,"июл",IF(DH17=8,"авг",IF(DH17=9,"сен",IF(DH17=10,"окт",IF(DH17=11,"ноя","дек")))))))))))&DH18,IF($Q$16=Lists!$I$19,DH20,IF($Q$16=Lists!$I$20,(INT((DH17-1)/3)+1)&"кв"&DH18&"г",IF($Q$16=Lists!$I$21,DH16&" год",IF($Q$16=Lists!$I$22,YEAR(DH20)&"г.",""))))))) -> 2028-08-01 | DI22: =IF(DI20="","",IF($Q$16=Lists!$I$16,IF(WEEKDAY(DI20)=1,"вс",IF(WEEKDAY(DI20)=2,"пн",IF(WEEKDAY(DI20)=3,"вт",IF(WEEKDAY(DI20)=4,"ср",IF(WEEKDAY(DI20)=5,"чт",IF(WEEKDAY(DI20)=6,"пт","сб")))))),IF(OR($Q$16=Lists!$I$17,$Q$16=Lists!$I$18),COUNTIFS($Z17:DI17,MONTH(DI20),$Z18:DI18,YEAR(DI20)-2000)&IF($Q$16=Lists!$I$17,"нд-","дк-")&IF(DI17=1,"янв",IF(DI17=2,"фев",IF(DI17=3,"мар",IF(DI17=4,"апр",IF(DI17=5,"май",IF(DI17=6,"июн",IF(DI17=7,"июл",IF(DI17=8,"авг",IF(DI17=9,"сен",IF(DI17=10,"окт",IF(DI17=11,"ноя","дек")))))))))))&DI18,IF($Q$16=Lists!$I$19,DI20,IF($Q$16=Lists!$I$20,(INT((DI17-1)/3)+1)&"кв"&DI18&"г",IF($Q$16=Lists!$I$21,DI16&" год",IF($Q$16=Lists!$I$22,YEAR(DI20)&"г.",""))))))) -> 2028-09-01 | DJ22: =IF(DJ20="","",IF($Q$16=Lists!$I$16,IF(WEEKDAY(DJ20)=1,"вс",IF(WEEKDAY(DJ20)=2,"пн",IF(WEEKDAY(DJ20)=3,"вт",IF(WEEKDAY(DJ20)=4,"ср",IF(WEEKDAY(DJ20)=5,"чт",IF(WEEKDAY(DJ20)=6,"пт","сб")))))),IF(OR($Q$16=Lists!$I$17,$Q$16=Lists!$I$18),COUNTIFS($Z17:DJ17,MONTH(DJ20),$Z18:DJ18,YEAR(DJ20)-2000)&IF($Q$16=Lists!$I$17,"нд-","дк-")&IF(DJ17=1,"янв",IF(DJ17=2,"фев",IF(DJ17=3,"мар",IF(DJ17=4,"апр",IF(DJ17=5,"май",IF(DJ17=6,"июн",IF(DJ17=7,"июл",IF(DJ17=8,"авг",IF(DJ17=9,"сен",IF(DJ17=10,"окт",IF(DJ17=11,"ноя","дек")))))))))))&DJ18,IF($Q$16=Lists!$I$19,DJ20,IF($Q$16=Lists!$I$20,(INT((DJ17-1)/3)+1)&"кв"&DJ18&"г",IF($Q$16=Lists!$I$21,DJ16&" год",IF($Q$16=Lists!$I$22,YEAR(DJ20)&"г.",""))))))) -> 2028-10-01 | DK22: =IF(DK20="","",IF($Q$16=Lists!$I$16,IF(WEEKDAY(DK20)=1,"вс",IF(WEEKDAY(DK20)=2,"пн",IF(WEEKDAY(DK20)=3,"вт",IF(WEEKDAY(DK20)=4,"ср",IF(WEEKDAY(DK20)=5,"чт",IF(WEEKDAY(DK20)=6,"пт","сб")))))),IF(OR($Q$16=Lists!$I$17,$Q$16=Lists!$I$18),COUNTIFS($Z17:DK17,MONTH(DK20),$Z18:DK18,YEAR(DK20)-2000)&IF($Q$16=Lists!$I$17,"нд-","дк-")&IF(DK17=1,"янв",IF(DK17=2,"фев",IF(DK17=3,"мар",IF(DK17=4,"апр",IF(DK17=5,"май",IF(DK17=6,"июн",IF(DK17=7,"июл",IF(DK17=8,"авг",IF(DK17=9,"сен",IF(DK17=10,"окт",IF(DK17=11,"ноя","дек")))))))))))&DK18,IF($Q$16=Lists!$I$19,DK20,IF($Q$16=Lists!$I$20,(INT((DK17-1)/3)+1)&"кв"&DK18&"г",IF($Q$16=Lists!$I$21,DK16&" год",IF($Q$16=Lists!$I$22,YEAR(DK20)&"г.",""))))))) -> 2028-11-01 | DL22: =IF(DL20="","",IF($Q$16=Lists!$I$16,IF(WEEKDAY(DL20)=1,"вс",IF(WEEKDAY(DL20)=2,"пн",IF(WEEKDAY(DL20)=3,"вт",IF(WEEKDAY(DL20)=4,"ср",IF(WEEKDAY(DL20)=5,"чт",IF(WEEKDAY(DL20)=6,"пт","сб")))))),IF(OR($Q$16=Lists!$I$17,$Q$16=Lists!$I$18),COUNTIFS($Z17:DL17,MONTH(DL20),$Z18:DL18,YEAR(DL20)-2000)&IF($Q$16=Lists!$I$17,"нд-","дк-")&IF(DL17=1,"янв",IF(DL17=2,"фев",IF(DL17=3,"мар",IF(DL17=4,"апр",IF(DL17=5,"май",IF(DL17=6,"июн",IF(DL17=7,"июл",IF(DL17=8,"авг",IF(DL17=9,"сен",IF(DL17=10,"окт",IF(DL17=11,"ноя","дек")))))))))))&DL18,IF($Q$16=Lists!$I$19,DL20,IF($Q$16=Lists!$I$20,(INT((DL17-1)/3)+1)&"кв"&DL18&"г",IF($Q$16=Lists!$I$21,DL16&" год",IF($Q$16=Lists!$I$22,YEAR(DL20)&"г.",""))))))) -> 2028-12-01 | DM22: =IF(DM20="","",IF($Q$16=Lists!$I$16,IF(WEEKDAY(DM20)=1,"вс",IF(WEEKDAY(DM20)=2,"пн",IF(WEEKDAY(DM20)=3,"вт",IF(WEEKDAY(DM20)=4,"ср",IF(WEEKDAY(DM20)=5,"чт",IF(WEEKDAY(DM20)=6,"пт","сб")))))),IF(OR($Q$16=Lists!$I$17,$Q$16=Lists!$I$18),COUNTIFS($Z17:DM17,MONTH(DM20),$Z18:DM18,YEAR(DM20)-2000)&IF($Q$16=Lists!$I$17,"нд-","дк-")&IF(DM17=1,"янв",IF(DM17=2,"фев",IF(DM17=3,"мар",IF(DM17=4,"апр",IF(DM17=5,"май",IF(DM17=6,"июн",IF(DM17=7,"июл",IF(DM17=8,"авг",IF(DM17=9,"сен",IF(DM17=10,"окт",IF(DM17=11,"ноя","дек")))))))))))&DM18,IF($Q$16=Lists!$I$19,DM20,IF($Q$16=Lists!$I$20,(INT((DM17-1)/3)+1)&"кв"&DM18&"г",IF($Q$16=Lists!$I$21,DM16&" год",IF($Q$16=Lists!$I$22,YEAR(DM20)&"г.",""))))))) -> 2029-01-01 | DN22: =IF(DN20="","",IF($Q$16=Lists!$I$16,IF(WEEKDAY(DN20)=1,"вс",IF(WEEKDAY(DN20)=2,"пн",IF(WEEKDAY(DN20)=3,"вт",IF(WEEKDAY(DN20)=4,"ср",IF(WEEKDAY(DN20)=5,"чт",IF(WEEKDAY(DN20)=6,"пт","сб")))))),IF(OR($Q$16=Lists!$I$17,$Q$16=Lists!$I$18),COUNTIFS($Z17:DN17,MONTH(DN20),$Z18:DN18,YEAR(DN20)-2000)&IF($Q$16=Lists!$I$17,"нд-","дк-")&IF(DN17=1,"янв",IF(DN17=2,"фев",IF(DN17=3,"мар",IF(DN17=4,"апр",IF(DN17=5,"май",IF(DN17=6,"июн",IF(DN17=7,"июл",IF(DN17=8,"авг",IF(DN17=9,"сен",IF(DN17=10,"окт",IF(DN17=11,"ноя","дек")))))))))))&DN18,IF($Q$16=Lists!$I$19,DN20,IF($Q$16=Lists!$I$20,(INT((DN17-1)/3)+1)&"кв"&DN18&"г",IF($Q$16=Lists!$I$21,DN16&" год",IF($Q$16=Lists!$I$22,YEAR(DN20)&"г.",""))))))) -> 2029-02-01 | DO22: =IF(DO20="","",IF($Q$16=Lists!$I$16,IF(WEEKDAY(DO20)=1,"вс",IF(WEEKDAY(DO20)=2,"пн",IF(WEEKDAY(DO20)=3,"вт",IF(WEEKDAY(DO20)=4,"ср",IF(WEEKDAY(DO20)=5,"чт",IF(WEEKDAY(DO20)=6,"пт","сб")))))),IF(OR($Q$16=Lists!$I$17,$Q$16=Lists!$I$18),COUNTIFS($Z17:DO17,MONTH(DO20),$Z18:DO18,YEAR(DO20)-2000)&IF($Q$16=Lists!$I$17,"нд-","дк-")&IF(DO17=1,"янв",IF(DO17=2,"фев",IF(DO17=3,"мар",IF(DO17=4,"апр",IF(DO17=5,"май",IF(DO17=6,"июн",IF(DO17=7,"июл",IF(DO17=8,"авг",IF(DO17=9,"сен",IF(DO17=10,"окт",IF(DO17=11,"ноя","дек")))))))))))&DO18,IF($Q$16=Lists!$I$19,DO20,IF($Q$16=Lists!$I$20,(INT((DO17-1)/3)+1)&"кв"&DO18&"г",IF($Q$16=Lists!$I$21,DO16&" год",IF($Q$16=Lists!$I$22,YEAR(DO20)&"г.",""))))))) -> 2029-03-01 | DP22: =IF(DP20="","",IF($Q$16=Lists!$I$16,IF(WEEKDAY(DP20)=1,"вс",IF(WEEKDAY(DP20)=2,"пн",IF(WEEKDAY(DP20)=3,"вт",IF(WEEKDAY(DP20)=4,"ср",IF(WEEKDAY(DP20)=5,"чт",IF(WEEKDAY(DP20)=6,"пт","сб")))))),IF(OR($Q$16=Lists!$I$17,$Q$16=Lists!$I$18),COUNTIFS($Z17:DP17,MONTH(DP20),$Z18:DP18,YEAR(DP20)-2000)&IF($Q$16=Lists!$I$17,"нд-","дк-")&IF(DP17=1,"янв",IF(DP17=2,"фев",IF(DP17=3,"мар",IF(DP17=4,"апр",IF(DP17=5,"май",IF(DP17=6,"июн",IF(DP17=7,"июл",IF(DP17=8,"авг",IF(DP17=9,"сен",IF(DP17=10,"окт",IF(DP17=11,"ноя","дек")))))))))))&DP18,IF($Q$16=Lists!$I$19,DP20,IF($Q$16=Lists!$I$20,(INT((DP17-1)/3)+1)&"кв"&DP18&"г",IF($Q$16=Lists!$I$21,DP16&" год",IF($Q$16=Lists!$I$22,YEAR(DP20)&"г.",""))))))) -> 2029-04-01 | DQ22: =IF(DQ20="","",IF($Q$16=Lists!$I$16,IF(WEEKDAY(DQ20)=1,"вс",IF(WEEKDAY(DQ20)=2,"пн",IF(WEEKDAY(DQ20)=3,"вт",IF(WEEKDAY(DQ20)=4,"ср",IF(WEEKDAY(DQ20)=5,"чт",IF(WEEKDAY(DQ20)=6,"пт","сб")))))),IF(OR($Q$16=Lists!$I$17,$Q$16=Lists!$I$18),COUNTIFS($Z17:DQ17,MONTH(DQ20),$Z18:DQ18,YEAR(DQ20)-2000)&IF($Q$16=Lists!$I$17,"нд-","дк-")&IF(DQ17=1,"янв",IF(DQ17=2,"фев",IF(DQ17=3,"мар",IF(DQ17=4,"апр",IF(DQ17=5,"май",IF(DQ17=6,"июн",IF(DQ17=7,"июл",IF(DQ17=8,"авг",IF(DQ17=9,"сен",IF(DQ17=10,"окт",IF(DQ17=11,"ноя","дек")))))))))))&DQ18,IF($Q$16=Lists!$I$19,DQ20,IF($Q$16=Lists!$I$20,(INT((DQ17-1)/3)+1)&"кв"&DQ18&"г",IF($Q$16=Lists!$I$21,DQ16&" год",IF($Q$16=Lists!$I$22,YEAR(DQ20)&"г.",""))))))) -> 2029-05-01 | DR22: =IF(DR20="","",IF($Q$16=Lists!$I$16,IF(WEEKDAY(DR20)=1,"вс",IF(WEEKDAY(DR20)=2,"пн",IF(WEEKDAY(DR20)=3,"вт",IF(WEEKDAY(DR20)=4,"ср",IF(WEEKDAY(DR20)=5,"чт",IF(WEEKDAY(DR20)=6,"пт","сб")))))),IF(OR($Q$16=Lists!$I$17,$Q$16=Lists!$I$18),COUNTIFS($Z17:DR17,MONTH(DR20),$Z18:DR18,YEAR(DR20)-2000)&IF($Q$16=Lists!$I$17,"нд-","дк-")&IF(DR17=1,"янв",IF(DR17=2,"фев",IF(DR17=3,"мар",IF(DR17=4,"апр",IF(DR17=5,"май",IF(DR17=6,"июн",IF(DR17=7,"июл",IF(DR17=8,"авг",IF(DR17=9,"сен",IF(DR17=10,"окт",IF(DR17=11,"ноя","дек")))))))))))&DR18,IF($Q$16=Lists!$I$19,DR20,IF($Q$16=Lists!$I$20,(INT((DR17-1)/3)+1)&"кв"&DR18&"г",IF($Q$16=Lists!$I$21,DR16&" год",IF($Q$16=Lists!$I$22,YEAR(DR20)&"г.",""))))))) -> 2029-06-01 | DS22: =IF(DS20="","",IF($Q$16=Lists!$I$16,IF(WEEKDAY(DS20)=1,"вс",IF(WEEKDAY(DS20)=2,"пн",IF(WEEKDAY(DS20)=3,"вт",IF(WEEKDAY(DS20)=4,"ср",IF(WEEKDAY(DS20)=5,"чт",IF(WEEKDAY(DS20)=6,"пт","сб")))))),IF(OR($Q$16=Lists!$I$17,$Q$16=Lists!$I$18),COUNTIFS($Z17:DS17,MONTH(DS20),$Z18:DS18,YEAR(DS20)-2000)&IF($Q$16=Lists!$I$17,"нд-","дк-")&IF(DS17=1,"янв",IF(DS17=2,"фев",IF(DS17=3,"мар",IF(DS17=4,"апр",IF(DS17=5,"май",IF(DS17=6,"июн",IF(DS17=7,"июл",IF(DS17=8,"авг",IF(DS17=9,"сен",IF(DS17=10,"окт",IF(DS17=11,"ноя","дек")))))))))))&DS18,IF($Q$16=Lists!$I$19,DS20,IF($Q$16=Lists!$I$20,(INT((DS17-1)/3)+1)&"кв"&DS18&"г",IF($Q$16=Lists!$I$21,DS16&" год",IF($Q$16=Lists!$I$22,YEAR(DS20)&"г.",""))))))) -> 2029-07-01 | DT22: =IF(DT20="","",IF($Q$16=Lists!$I$16,IF(WEEKDAY(DT20)=1,"вс",IF(WEEKDAY(DT20)=2,"пн",IF(WEEKDAY(DT20)=3,"вт",IF(WEEKDAY(DT20)=4,"ср",IF(WEEKDAY(DT20)=5,"чт",IF(WEEKDAY(DT20)=6,"пт","сб")))))),IF(OR($Q$16=Lists!$I$17,$Q$16=Lists!$I$18),COUNTIFS($Z17:DT17,MONTH(DT20),$Z18:DT18,YEAR(DT20)-2000)&IF($Q$16=Lists!$I$17,"нд-","дк-")&IF(DT17=1,"янв",IF(DT17=2,"фев",IF(DT17=3,"мар",IF(DT17=4,"апр",IF(DT17=5,"май",IF(DT17=6,"июн",IF(DT17=7,"июл",IF(DT17=8,"авг",IF(DT17=9,"сен",IF(DT17=10,"окт",IF(DT17=11,"ноя","дек")))))))))))&DT18,IF($Q$16=Lists!$I$19,DT20,IF($Q$16=Lists!$I$20,(INT((DT17-1)/3)+1)&"кв"&DT18&"г",IF($Q$16=Lists!$I$21,DT16&" год",IF($Q$16=Lists!$I$22,YEAR(DT20)&"г.",""))))))) -> 2029-08-01 | DU22: =IF(DU20="","",IF($Q$16=Lists!$I$16,IF(WEEKDAY(DU20)=1,"вс",IF(WEEKDAY(DU20)=2,"пн",IF(WEEKDAY(DU20)=3,"вт",IF(WEEKDAY(DU20)=4,"ср",IF(WEEKDAY(DU20)=5,"чт",IF(WEEKDAY(DU20)=6,"пт","сб")))))),IF(OR($Q$16=Lists!$I$17,$Q$16=Lists!$I$18),COUNTIFS($Z17:DU17,MONTH(DU20),$Z18:DU18,YEAR(DU20)-2000)&IF($Q$16=Lists!$I$17,"нд-","дк-")&IF(DU17=1,"янв",IF(DU17=2,"фев",IF(DU17=3,"мар",IF(DU17=4,"апр",IF(DU17=5,"май",IF(DU17=6,"июн",IF(DU17=7,"июл",IF(DU17=8,"авг",IF(DU17=9,"сен",IF(DU17=10,"окт",IF(DU17=11,"ноя","дек")))))))))))&DU18,IF($Q$16=Lists!$I$19,DU20,IF($Q$16=Lists!$I$20,(INT((DU17-1)/3)+1)&"кв"&DU18&"г",IF($Q$16=Lists!$I$21,DU16&" год",IF($Q$16=Lists!$I$22,YEAR(DU20)&"г.",""))))))) -> 2029-09-01 | DV22: =IF(DV20="","",IF($Q$16=Lists!$I$16,IF(WEEKDAY(DV20)=1,"вс",IF(WEEKDAY(DV20)=2,"пн",IF(WEEKDAY(DV20)=3,"вт",IF(WEEKDAY(DV20)=4,"ср",IF(WEEKDAY(DV20)=5,"чт",IF(WEEKDAY(DV20)=6,"пт","сб")))))),IF(OR($Q$16=Lists!$I$17,$Q$16=Lists!$I$18),COUNTIFS($Z17:DV17,MONTH(DV20),$Z18:DV18,YEAR(DV20)-2000)&IF($Q$16=Lists!$I$17,"нд-","дк-")&IF(DV17=1,"янв",IF(DV17=2,"фев",IF(DV17=3,"мар",IF(DV17=4,"апр",IF(DV17=5,"май",IF(DV17=6,"июн",IF(DV17=7,"июл",IF(DV17=8,"авг",IF(DV17=9,"сен",IF(DV17=10,"окт",IF(DV17=11,"ноя","дек")))))))))))&DV18,IF($Q$16=Lists!$I$19,DV20,IF($Q$16=Lists!$I$20,(INT((DV17-1)/3)+1)&"кв"&DV18&"г",IF($Q$16=Lists!$I$21,DV16&" год",IF($Q$16=Lists!$I$22,YEAR(DV20)&"г.",""))))))) -> 2029-10-01 | DW22: =IF(DW20="","",IF($Q$16=Lists!$I$16,IF(WEEKDAY(DW20)=1,"вс",IF(WEEKDAY(DW20)=2,"пн",IF(WEEKDAY(DW20)=3,"вт",IF(WEEKDAY(DW20)=4,"ср",IF(WEEKDAY(DW20)=5,"чт",IF(WEEKDAY(DW20)=6,"пт","сб")))))),IF(OR($Q$16=Lists!$I$17,$Q$16=Lists!$I$18),COUNTIFS($Z17:DW17,MONTH(DW20),$Z18:DW18,YEAR(DW20)-2000)&IF($Q$16=Lists!$I$17,"нд-","дк-")&IF(DW17=1,"янв",IF(DW17=2,"фев",IF(DW17=3,"мар",IF(DW17=4,"апр",IF(DW17=5,"май",IF(DW17=6,"июн",IF(DW17=7,"июл",IF(DW17=8,"авг",IF(DW17=9,"сен",IF(DW17=10,"окт",IF(DW17=11,"ноя","дек")))))))))))&DW18,IF($Q$16=Lists!$I$19,DW20,IF($Q$16=Lists!$I$20,(INT((DW17-1)/3)+1)&"кв"&DW18&"г",IF($Q$16=Lists!$I$21,DW16&" год",IF($Q$16=Lists!$I$22,YEAR(DW20)&"г.",""))))))) -> 2029-11-01 | DX22: =IF(DX20="","",IF($Q$16=Lists!$I$16,IF(WEEKDAY(DX20)=1,"вс",IF(WEEKDAY(DX20)=2,"пн",IF(WEEKDAY(DX20)=3,"вт",IF(WEEKDAY(DX20)=4,"ср",IF(WEEKDAY(DX20)=5,"чт",IF(WEEKDAY(DX20)=6,"пт","сб")))))),IF(OR($Q$16=Lists!$I$17,$Q$16=Lists!$I$18),COUNTIFS($Z17:DX17,MONTH(DX20),$Z18:DX18,YEAR(DX20)-2000)&IF($Q$16=Lists!$I$17,"нд-","дк-")&IF(DX17=1,"янв",IF(DX17=2,"фев",IF(DX17=3,"мар",IF(DX17=4,"апр",IF(DX17=5,"май",IF(DX17=6,"июн",IF(DX17=7,"июл",IF(DX17=8,"авг",IF(DX17=9,"сен",IF(DX17=10,"окт",IF(DX17=11,"ноя","дек")))))))))))&DX18,IF($Q$16=Lists!$I$19,DX20,IF($Q$16=Lists!$I$20,(INT((DX17-1)/3)+1)&"кв"&DX18&"г",IF($Q$16=Lists!$I$21,DX16&" год",IF($Q$16=Lists!$I$22,YEAR(DX20)&"г.",""))))))) -> 2029-12-01 | DY22: =IF(DY20="","",IF($Q$16=Lists!$I$16,IF(WEEKDAY(DY20)=1,"вс",IF(WEEKDAY(DY20)=2,"пн",IF(WEEKDAY(DY20)=3,"вт",IF(WEEKDAY(DY20)=4,"ср",IF(WEEKDAY(DY20)=5,"чт",IF(WEEKDAY(DY20)=6,"пт","сб")))))),IF(OR($Q$16=Lists!$I$17,$Q$16=Lists!$I$18),COUNTIFS($Z17:DY17,MONTH(DY20),$Z18:DY18,YEAR(DY20)-2000)&IF($Q$16=Lists!$I$17,"нд-","дк-")&IF(DY17=1,"янв",IF(DY17=2,"фев",IF(DY17=3,"мар",IF(DY17=4,"апр",IF(DY17=5,"май",IF(DY17=6,"июн",IF(DY17=7,"июл",IF(DY17=8,"авг",IF(DY17=9,"сен",IF(DY17=10,"окт",IF(DY17=11,"ноя","дек")))))))))))&DY18,IF($Q$16=Lists!$I$19,DY20,IF($Q$16=Lists!$I$20,(INT((DY17-1)/3)+1)&"кв"&DY18&"г",IF($Q$16=Lists!$I$21,DY16&" год",IF($Q$16=Lists!$I$22,YEAR(DY20)&"г.",""))))))) -> 2030-01-01 | DZ22: =IF(DZ20="","",IF($Q$16=Lists!$I$16,IF(WEEKDAY(DZ20)=1,"вс",IF(WEEKDAY(DZ20)=2,"пн",IF(WEEKDAY(DZ20)=3,"вт",IF(WEEKDAY(DZ20)=4,"ср",IF(WEEKDAY(DZ20)=5,"чт",IF(WEEKDAY(DZ20)=6,"пт","сб")))))),IF(OR($Q$16=Lists!$I$17,$Q$16=Lists!$I$18),COUNTIFS($Z17:DZ17,MONTH(DZ20),$Z18:DZ18,YEAR(DZ20)-2000)&IF($Q$16=Lists!$I$17,"нд-","дк-")&IF(DZ17=1,"янв",IF(DZ17=2,"фев",IF(DZ17=3,"мар",IF(DZ17=4,"апр",IF(DZ17=5,"май",IF(DZ17=6,"июн",IF(DZ17=7,"июл",IF(DZ17=8,"авг",IF(DZ17=9,"сен",IF(DZ17=10,"окт",IF(DZ17=11,"ноя","дек")))))))))))&DZ18,IF($Q$16=Lists!$I$19,DZ20,IF($Q$16=Lists!$I$20,(INT((DZ17-1)/3)+1)&"кв"&DZ18&"г",IF($Q$16=Lists!$I$21,DZ16&" год",IF($Q$16=Lists!$I$22,YEAR(DZ20)&"г.",""))))))) -> 2030-02-01 | EA22: =IF(EA20="","",IF($Q$16=Lists!$I$16,IF(WEEKDAY(EA20)=1,"вс",IF(WEEKDAY(EA20)=2,"пн",IF(WEEKDAY(EA20)=3,"вт",IF(WEEKDAY(EA20)=4,"ср",IF(WEEKDAY(EA20)=5,"чт",IF(WEEKDAY(EA20)=6,"пт","сб")))))),IF(OR($Q$16=Lists!$I$17,$Q$16=Lists!$I$18),COUNTIFS($Z17:EA17,MONTH(EA20),$Z18:EA18,YEAR(EA20)-2000)&IF($Q$16=Lists!$I$17,"нд-","дк-")&IF(EA17=1,"янв",IF(EA17=2,"фев",IF(EA17=3,"мар",IF(EA17=4,"апр",IF(EA17=5,"май",IF(EA17=6,"июн",IF(EA17=7,"июл",IF(EA17=8,"авг",IF(EA17=9,"сен",IF(EA17=10,"окт",IF(EA17=11,"ноя","дек")))))))))))&EA18,IF($Q$16=Lists!$I$19,EA20,IF($Q$16=Lists!$I$20,(INT((EA17-1)/3)+1)&"кв"&EA18&"г",IF($Q$16=Lists!$I$21,EA16&" год",IF($Q$16=Lists!$I$22,YEAR(EA20)&"г.",""))))))) -> 2030-03-01 | EB22: =IF(EB20="","",IF($Q$16=Lists!$I$16,IF(WEEKDAY(EB20)=1,"вс",IF(WEEKDAY(EB20)=2,"пн",IF(WEEKDAY(EB20)=3,"вт",IF(WEEKDAY(EB20)=4,"ср",IF(WEEKDAY(EB20)=5,"чт",IF(WEEKDAY(EB20)=6,"пт","сб")))))),IF(OR($Q$16=Lists!$I$17,$Q$16=Lists!$I$18),COUNTIFS($Z17:EB17,MONTH(EB20),$Z18:EB18,YEAR(EB20)-2000)&IF($Q$16=Lists!$I$17,"нд-","дк-")&IF(EB17=1,"янв",IF(EB17=2,"фев",IF(EB17=3,"мар",IF(EB17=4,"апр",IF(EB17=5,"май",IF(EB17=6,"июн",IF(EB17=7,"июл",IF(EB17=8,"авг",IF(EB17=9,"сен",IF(EB17=10,"окт",IF(EB17=11,"ноя","дек")))))))))))&EB18,IF($Q$16=Lists!$I$19,EB20,IF($Q$16=Lists!$I$20,(INT((EB17-1)/3)+1)&"кв"&EB18&"г",IF($Q$16=Lists!$I$21,EB16&" год",IF($Q$16=Lists!$I$22,YEAR(EB20)&"г.",""))))))) -> 2030-04-01 | EC22: =IF(EC20="","",IF($Q$16=Lists!$I$16,IF(WEEKDAY(EC20)=1,"вс",IF(WEEKDAY(EC20)=2,"пн",IF(WEEKDAY(EC20)=3,"вт",IF(WEEKDAY(EC20)=4,"ср",IF(WEEKDAY(EC20)=5,"чт",IF(WEEKDAY(EC20)=6,"пт","сб")))))),IF(OR($Q$16=Lists!$I$17,$Q$16=Lists!$I$18),COUNTIFS($Z17:EC17,MONTH(EC20),$Z18:EC18,YEAR(EC20)-2000)&IF($Q$16=Lists!$I$17,"нд-","дк-")&IF(EC17=1,"янв",IF(EC17=2,"фев",IF(EC17=3,"мар",IF(EC17=4,"апр",IF(EC17=5,"май",IF(EC17=6,"июн",IF(EC17=7,"июл",IF(EC17=8,"авг",IF(EC17=9,"сен",IF(EC17=10,"окт",IF(EC17=11,"ноя","дек")))))))))))&EC18,IF($Q$16=Lists!$I$19,EC20,IF($Q$16=Lists!$I$20,(INT((EC17-1)/3)+1)&"кв"&EC18&"г",IF($Q$16=Lists!$I$21,EC16&" год",IF($Q$16=Lists!$I$22,YEAR(EC20)&"г.",""))))))) -> 2030-05-01 | ED22: =IF(ED20="","",IF($Q$16=Lists!$I$16,IF(WEEKDAY(ED20)=1,"вс",IF(WEEKDAY(ED20)=2,"пн",IF(WEEKDAY(ED20)=3,"вт",IF(WEEKDAY(ED20)=4,"ср",IF(WEEKDAY(ED20)=5,"чт",IF(WEEKDAY(ED20)=6,"пт","сб")))))),IF(OR($Q$16=Lists!$I$17,$Q$16=Lists!$I$18),COUNTIFS($Z17:ED17,MONTH(ED20),$Z18:ED18,YEAR(ED20)-2000)&IF($Q$16=Lists!$I$17,"нд-","дк-")&IF(ED17=1,"янв",IF(ED17=2,"фев",IF(ED17=3,"мар",IF(ED17=4,"апр",IF(ED17=5,"май",IF(ED17=6,"июн",IF(ED17=7,"июл",IF(ED17=8,"авг",IF(ED17=9,"сен",IF(ED17=10,"окт",IF(ED17=11,"ноя","дек")))))))))))&ED18,IF($Q$16=Lists!$I$19,ED20,IF($Q$16=Lists!$I$20,(INT((ED17-1)/3)+1)&"кв"&ED18&"г",IF($Q$16=Lists!$I$21,ED16&" год",IF($Q$16=Lists!$I$22,YEAR(ED20)&"г.",""))))))) -> 2030-06-01 | EE22: =IF(EE20="","",IF($Q$16=Lists!$I$16,IF(WEEKDAY(EE20)=1,"вс",IF(WEEKDAY(EE20)=2,"пн",IF(WEEKDAY(EE20)=3,"вт",IF(WEEKDAY(EE20)=4,"ср",IF(WEEKDAY(EE20)=5,"чт",IF(WEEKDAY(EE20)=6,"пт","сб")))))),IF(OR($Q$16=Lists!$I$17,$Q$16=Lists!$I$18),COUNTIFS($Z17:EE17,MONTH(EE20),$Z18:EE18,YEAR(EE20)-2000)&IF($Q$16=Lists!$I$17,"нд-","дк-")&IF(EE17=1,"янв",IF(EE17=2,"фев",IF(EE17=3,"мар",IF(EE17=4,"апр",IF(EE17=5,"май",IF(EE17=6,"июн",IF(EE17=7,"июл",IF(EE17=8,"авг",IF(EE17=9,"сен",IF(EE17=10,"окт",IF(EE17=11,"ноя","дек")))))))))))&EE18,IF($Q$16=Lists!$I$19,EE20,IF($Q$16=Lists!$I$20,(INT((EE17-1)/3)+1)&"кв"&EE18&"г",IF($Q$16=Lists!$I$21,EE16&" год",IF($Q$16=Lists!$I$22,YEAR(EE20)&"г.",""))))))) -> 2030-07-01 | EF22: =IF(EF20="","",IF($Q$16=Lists!$I$16,IF(WEEKDAY(EF20)=1,"вс",IF(WEEKDAY(EF20)=2,"пн",IF(WEEKDAY(EF20)=3,"вт",IF(WEEKDAY(EF20)=4,"ср",IF(WEEKDAY(EF20)=5,"чт",IF(WEEKDAY(EF20)=6,"пт","сб")))))),IF(OR($Q$16=Lists!$I$17,$Q$16=Lists!$I$18),COUNTIFS($Z17:EF17,MONTH(EF20),$Z18:EF18,YEAR(EF20)-2000)&IF($Q$16=Lists!$I$17,"нд-","дк-")&IF(EF17=1,"янв",IF(EF17=2,"фев",IF(EF17=3,"мар",IF(EF17=4,"апр",IF(EF17=5,"май",IF(EF17=6,"июн",IF(EF17=7,"июл",IF(EF17=8,"авг",IF(EF17=9,"сен",IF(EF17=10,"окт",IF(EF17=11,"ноя","дек")))))))))))&EF18,IF($Q$16=Lists!$I$19,EF20,IF($Q$16=Lists!$I$20,(INT((EF17-1)/3)+1)&"кв"&EF18&"г",IF($Q$16=Lists!$I$21,EF16&" год",IF($Q$16=Lists!$I$22,YEAR(EF20)&"г.",""))))))) -> 2030-08-01 | EG22: =IF(EG20="","",IF($Q$16=Lists!$I$16,IF(WEEKDAY(EG20)=1,"вс",IF(WEEKDAY(EG20)=2,"пн",IF(WEEKDAY(EG20)=3,"вт",IF(WEEKDAY(EG20)=4,"ср",IF(WEEKDAY(EG20)=5,"чт",IF(WEEKDAY(EG20)=6,"пт","сб")))))),IF(OR($Q$16=Lists!$I$17,$Q$16=Lists!$I$18),COUNTIFS($Z17:EG17,MONTH(EG20),$Z18:EG18,YEAR(EG20)-2000)&IF($Q$16=Lists!$I$17,"нд-","дк-")&IF(EG17=1,"янв",IF(EG17=2,"фев",IF(EG17=3,"мар",IF(EG17=4,"апр",IF(EG17=5,"май",IF(EG17=6,"июн",IF(EG17=7,"июл",IF(EG17=8,"авг",IF(EG17=9,"сен",IF(EG17=10,"окт",IF(EG17=11,"ноя","дек")))))))))))&EG18,IF($Q$16=Lists!$I$19,EG20,IF($Q$16=Lists!$I$20,(INT((EG17-1)/3)+1)&"кв"&EG18&"г",IF($Q$16=Lists!$I$21,EG16&" год",IF($Q$16=Lists!$I$22,YEAR(EG20)&"г.",""))))))) -> 2030-09-01 | EH22: =IF(EH20="","",IF($Q$16=Lists!$I$16,IF(WEEKDAY(EH20)=1,"вс",IF(WEEKDAY(EH20)=2,"пн",IF(WEEKDAY(EH20)=3,"вт",IF(WEEKDAY(EH20)=4,"ср",IF(WEEKDAY(EH20)=5,"чт",IF(WEEKDAY(EH20)=6,"пт","сб")))))),IF(OR($Q$16=Lists!$I$17,$Q$16=Lists!$I$18),COUNTIFS($Z17:EH17,MONTH(EH20),$Z18:EH18,YEAR(EH20)-2000)&IF($Q$16=Lists!$I$17,"нд-","дк-")&IF(EH17=1,"янв",IF(EH17=2,"фев",IF(EH17=3,"мар",IF(EH17=4,"апр",IF(EH17=5,"май",IF(EH17=6,"июн",IF(EH17=7,"июл",IF(EH17=8,"авг",IF(EH17=9,"сен",IF(EH17=10,"окт",IF(EH17=11,"ноя","дек")))))))))))&EH18,IF($Q$16=Lists!$I$19,EH20,IF($Q$16=Lists!$I$20,(INT((EH17-1)/3)+1)&"кв"&EH18&"г",IF($Q$16=Lists!$I$21,EH16&" год",IF($Q$16=Lists!$I$22,YEAR(EH20)&"г.",""))))))) -> 2030-10-01 | EI22: =IF(EI20="","",IF($Q$16=Lists!$I$16,IF(WEEKDAY(EI20)=1,"вс",IF(WEEKDAY(EI20)=2,"пн",IF(WEEKDAY(EI20)=3,"вт",IF(WEEKDAY(EI20)=4,"ср",IF(WEEKDAY(EI20)=5,"чт",IF(WEEKDAY(EI20)=6,"пт","сб")))))),IF(OR($Q$16=Lists!$I$17,$Q$16=Lists!$I$18),COUNTIFS($Z17:EI17,MONTH(EI20),$Z18:EI18,YEAR(EI20)-2000)&IF($Q$16=Lists!$I$17,"нд-","дк-")&IF(EI17=1,"янв",IF(EI17=2,"фев",IF(EI17=3,"мар",IF(EI17=4,"апр",IF(EI17=5,"май",IF(EI17=6,"июн",IF(EI17=7,"июл",IF(EI17=8,"авг",IF(EI17=9,"сен",IF(EI17=10,"окт",IF(EI17=11,"ноя","дек")))))))))))&EI18,IF($Q$16=Lists!$I$19,EI20,IF($Q$16=Lists!$I$20,(INT((EI17-1)/3)+1)&"кв"&EI18&"г",IF($Q$16=Lists!$I$21,EI16&" год",IF($Q$16=Lists!$I$22,YEAR(EI20)&"г.",""))))))) -> 2030-11-01 | EJ22: =IF(EJ20="","",IF($Q$16=Lists!$I$16,IF(WEEKDAY(EJ20)=1,"вс",IF(WEEKDAY(EJ20)=2,"пн",IF(WEEKDAY(EJ20)=3,"вт",IF(WEEKDAY(EJ20)=4,"ср",IF(WEEKDAY(EJ20)=5,"чт",IF(WEEKDAY(EJ20)=6,"пт","сб")))))),IF(OR($Q$16=Lists!$I$17,$Q$16=Lists!$I$18),COUNTIFS($Z17:EJ17,MONTH(EJ20),$Z18:EJ18,YEAR(EJ20)-2000)&IF($Q$16=Lists!$I$17,"нд-","дк-")&IF(EJ17=1,"янв",IF(EJ17=2,"фев",IF(EJ17=3,"мар",IF(EJ17=4,"апр",IF(EJ17=5,"май",IF(EJ17=6,"июн",IF(EJ17=7,"июл",IF(EJ17=8,"авг",IF(EJ17=9,"сен",IF(EJ17=10,"окт",IF(EJ17=11,"ноя","дек")))))))))))&EJ18,IF($Q$16=Lists!$I$19,EJ20,IF($Q$16=Lists!$I$20,(INT((EJ17-1)/3)+1)&"кв"&EJ18&"г",IF($Q$16=Lists!$I$21,EJ16&" год",IF($Q$16=Lists!$I$22,YEAR(EJ20)&"г.",""))))))) -> 2030-12-01 | EK22: =IF(EK20="","",IF($Q$16=Lists!$I$16,IF(WEEKDAY(EK20)=1,"вс",IF(WEEKDAY(EK20)=2,"пн",IF(WEEKDAY(EK20)=3,"вт",IF(WEEKDAY(EK20)=4,"ср",IF(WEEKDAY(EK20)=5,"чт",IF(WEEKDAY(EK20)=6,"пт","сб")))))),IF(OR($Q$16=Lists!$I$17,$Q$16=Lists!$I$18),COUNTIFS($Z17:EK17,MONTH(EK20),$Z18:EK18,YEAR(EK20)-2000)&IF($Q$16=Lists!$I$17,"нд-","дк-")&IF(EK17=1,"янв",IF(EK17=2,"фев",IF(EK17=3,"мар",IF(EK17=4,"апр",IF(EK17=5,"май",IF(EK17=6,"июн",IF(EK17=7,"июл",IF(EK17=8,"авг",IF(EK17=9,"сен",IF(EK17=10,"окт",IF(EK17=11,"ноя","дек")))))))))))&EK18,IF($Q$16=Lists!$I$19,EK20,IF($Q$16=Lists!$I$20,(INT((EK17-1)/3)+1)&"кв"&EK18&"г",IF($Q$16=Lists!$I$21,EK16&" год",IF($Q$16=Lists!$I$22,YEAR(EK20)&"г.",""))))))) -> 2031-01-01 | EL22: =IF(EL20="","",IF($Q$16=Lists!$I$16,IF(WEEKDAY(EL20)=1,"вс",IF(WEEKDAY(EL20)=2,"пн",IF(WEEKDAY(EL20)=3,"вт",IF(WEEKDAY(EL20)=4,"ср",IF(WEEKDAY(EL20)=5,"чт",IF(WEEKDAY(EL20)=6,"пт","сб")))))),IF(OR($Q$16=Lists!$I$17,$Q$16=Lists!$I$18),COUNTIFS($Z17:EL17,MONTH(EL20),$Z18:EL18,YEAR(EL20)-2000)&IF($Q$16=Lists!$I$17,"нд-","дк-")&IF(EL17=1,"янв",IF(EL17=2,"фев",IF(EL17=3,"мар",IF(EL17=4,"апр",IF(EL17=5,"май",IF(EL17=6,"июн",IF(EL17=7,"июл",IF(EL17=8,"авг",IF(EL17=9,"сен",IF(EL17=10,"окт",IF(EL17=11,"ноя","дек")))))))))))&EL18,IF($Q$16=Lists!$I$19,EL20,IF($Q$16=Lists!$I$20,(INT((EL17-1)/3)+1)&"кв"&EL18&"г",IF($Q$16=Lists!$I$21,EL16&" год",IF($Q$16=Lists!$I$22,YEAR(EL20)&"г.",""))))))) -> 2031-02-01 | EM22: =IF(EM20="","",IF($Q$16=Lists!$I$16,IF(WEEKDAY(EM20)=1,"вс",IF(WEEKDAY(EM20)=2,"пн",IF(WEEKDAY(EM20)=3,"вт",IF(WEEKDAY(EM20)=4,"ср",IF(WEEKDAY(EM20)=5,"чт",IF(WEEKDAY(EM20)=6,"пт","сб")))))),IF(OR($Q$16=Lists!$I$17,$Q$16=Lists!$I$18),COUNTIFS($Z17:EM17,MONTH(EM20),$Z18:EM18,YEAR(EM20)-2000)&IF($Q$16=Lists!$I$17,"нд-","дк-")&IF(EM17=1,"янв",IF(EM17=2,"фев",IF(EM17=3,"мар",IF(EM17=4,"апр",IF(EM17=5,"май",IF(EM17=6,"июн",IF(EM17=7,"июл",IF(EM17=8,"авг",IF(EM17=9,"сен",IF(EM17=10,"окт",IF(EM17=11,"ноя","дек")))))))))))&EM18,IF($Q$16=Lists!$I$19,EM20,IF($Q$16=Lists!$I$20,(INT((EM17-1)/3)+1)&"кв"&EM18&"г",IF($Q$16=Lists!$I$21,EM16&" год",IF($Q$16=Lists!$I$22,YEAR(EM20)&"г.",""))))))) -> 2031-03-01 | EN22: =IF(EN20="","",IF($Q$16=Lists!$I$16,IF(WEEKDAY(EN20)=1,"вс",IF(WEEKDAY(EN20)=2,"пн",IF(WEEKDAY(EN20)=3,"вт",IF(WEEKDAY(EN20)=4,"ср",IF(WEEKDAY(EN20)=5,"чт",IF(WEEKDAY(EN20)=6,"пт","сб")))))),IF(OR($Q$16=Lists!$I$17,$Q$16=Lists!$I$18),COUNTIFS($Z17:EN17,MONTH(EN20),$Z18:EN18,YEAR(EN20)-2000)&IF($Q$16=Lists!$I$17,"нд-","дк-")&IF(EN17=1,"янв",IF(EN17=2,"фев",IF(EN17=3,"мар",IF(EN17=4,"апр",IF(EN17=5,"май",IF(EN17=6,"июн",IF(EN17=7,"июл",IF(EN17=8,"авг",IF(EN17=9,"сен",IF(EN17=10,"окт",IF(EN17=11,"ноя","дек")))))))))))&EN18,IF($Q$16=Lists!$I$19,EN20,IF($Q$16=Lists!$I$20,(INT((EN17-1)/3)+1)&"кв"&EN18&"г",IF($Q$16=Lists!$I$21,EN16&" год",IF($Q$16=Lists!$I$22,YEAR(EN20)&"г.",""))))))) -> 2031-04-01 | EO22: =IF(EO20="","",IF($Q$16=Lists!$I$16,IF(WEEKDAY(EO20)=1,"вс",IF(WEEKDAY(EO20)=2,"пн",IF(WEEKDAY(EO20)=3,"вт",IF(WEEKDAY(EO20)=4,"ср",IF(WEEKDAY(EO20)=5,"чт",IF(WEEKDAY(EO20)=6,"пт","сб")))))),IF(OR($Q$16=Lists!$I$17,$Q$16=Lists!$I$18),COUNTIFS($Z17:EO17,MONTH(EO20),$Z18:EO18,YEAR(EO20)-2000)&IF($Q$16=Lists!$I$17,"нд-","дк-")&IF(EO17=1,"янв",IF(EO17=2,"фев",IF(EO17=3,"мар",IF(EO17=4,"апр",IF(EO17=5,"май",IF(EO17=6,"июн",IF(EO17=7,"июл",IF(EO17=8,"авг",IF(EO17=9,"сен",IF(EO17=10,"окт",IF(EO17=11,"ноя","дек")))))))))))&EO18,IF($Q$16=Lists!$I$19,EO20,IF($Q$16=Lists!$I$20,(INT((EO17-1)/3)+1)&"кв"&EO18&"г",IF($Q$16=Lists!$I$21,EO16&" год",IF($Q$16=Lists!$I$22,YEAR(EO20)&"г.",""))))))) -> 2031-05-01 | EP22: =IF(EP20="","",IF($Q$16=Lists!$I$16,IF(WEEKDAY(EP20)=1,"вс",IF(WEEKDAY(EP20)=2,"пн",IF(WEEKDAY(EP20)=3,"вт",IF(WEEKDAY(EP20)=4,"ср",IF(WEEKDAY(EP20)=5,"чт",IF(WEEKDAY(EP20)=6,"пт","сб")))))),IF(OR($Q$16=Lists!$I$17,$Q$16=Lists!$I$18),COUNTIFS($Z17:EP17,MONTH(EP20),$Z18:EP18,YEAR(EP20)-2000)&IF($Q$16=Lists!$I$17,"нд-","дк-")&IF(EP17=1,"янв",IF(EP17=2,"фев",IF(EP17=3,"мар",IF(EP17=4,"апр",IF(EP17=5,"май",IF(EP17=6,"июн",IF(EP17=7,"июл",IF(EP17=8,"авг",IF(EP17=9,"сен",IF(EP17=10,"окт",IF(EP17=11,"ноя","дек")))))))))))&EP18,IF($Q$16=Lists!$I$19,EP20,IF($Q$16=Lists!$I$20,(INT((EP17-1)/3)+1)&"кв"&EP18&"г",IF($Q$16=Lists!$I$21,EP16&" год",IF($Q$16=Lists!$I$22,YEAR(EP20)&"г.",""))))))) -> 2031-06-01 | EQ22: =IF(EQ20="","",IF($Q$16=Lists!$I$16,IF(WEEKDAY(EQ20)=1,"вс",IF(WEEKDAY(EQ20)=2,"пн",IF(WEEKDAY(EQ20)=3,"вт",IF(WEEKDAY(EQ20)=4,"ср",IF(WEEKDAY(EQ20)=5,"чт",IF(WEEKDAY(EQ20)=6,"пт","сб")))))),IF(OR($Q$16=Lists!$I$17,$Q$16=Lists!$I$18),COUNTIFS($Z17:EQ17,MONTH(EQ20),$Z18:EQ18,YEAR(EQ20)-2000)&IF($Q$16=Lists!$I$17,"нд-","дк-")&IF(EQ17=1,"янв",IF(EQ17=2,"фев",IF(EQ17=3,"мар",IF(EQ17=4,"апр",IF(EQ17=5,"май",IF(EQ17=6,"июн",IF(EQ17=7,"июл",IF(EQ17=8,"авг",IF(EQ17=9,"сен",IF(EQ17=10,"окт",IF(EQ17=11,"ноя","дек")))))))))))&EQ18,IF($Q$16=Lists!$I$19,EQ20,IF($Q$16=Lists!$I$20,(INT((EQ17-1)/3)+1)&"кв"&EQ18&"г",IF($Q$16=Lists!$I$21,EQ16&" год",IF($Q$16=Lists!$I$22,YEAR(EQ20)&"г.",""))))))) ->  | ER22: =IF(ER20="","",IF($Q$16=Lists!$I$16,IF(WEEKDAY(ER20)=1,"вс",IF(WEEKDAY(ER20)=2,"пн",IF(WEEKDAY(ER20)=3,"вт",IF(WEEKDAY(ER20)=4,"ср",IF(WEEKDAY(ER20)=5,"чт",IF(WEEKDAY(ER20)=6,"пт","сб")))))),IF(OR($Q$16=Lists!$I$17,$Q$16=Lists!$I$18),COUNTIFS($Z17:ER17,MONTH(ER20),$Z18:ER18,YEAR(ER20)-2000)&IF($Q$16=Lists!$I$17,"нд-","дк-")&IF(ER17=1,"янв",IF(ER17=2,"фев",IF(ER17=3,"мар",IF(ER17=4,"апр",IF(ER17=5,"май",IF(ER17=6,"июн",IF(ER17=7,"июл",IF(ER17=8,"авг",IF(ER17=9,"сен",IF(ER17=10,"окт",IF(ER17=11,"ноя","дек")))))))))))&ER18,IF($Q$16=Lists!$I$19,ER20,IF($Q$16=Lists!$I$20,(INT((ER17-1)/3)+1)&"кв"&ER18&"г",IF($Q$16=Lists!$I$21,ER16&" год",IF($Q$16=Lists!$I$22,YEAR(ER20)&"г.",""))))))) ->  | ES22: =IF(ES20="","",IF($Q$16=Lists!$I$16,IF(WEEKDAY(ES20)=1,"вс",IF(WEEKDAY(ES20)=2,"пн",IF(WEEKDAY(ES20)=3,"вт",IF(WEEKDAY(ES20)=4,"ср",IF(WEEKDAY(ES20)=5,"чт",IF(WEEKDAY(ES20)=6,"пт","сб")))))),IF(OR($Q$16=Lists!$I$17,$Q$16=Lists!$I$18),COUNTIFS($Z17:ES17,MONTH(ES20),$Z18:ES18,YEAR(ES20)-2000)&IF($Q$16=Lists!$I$17,"нд-","дк-")&IF(ES17=1,"янв",IF(ES17=2,"фев",IF(ES17=3,"мар",IF(ES17=4,"апр",IF(ES17=5,"май",IF(ES17=6,"июн",IF(ES17=7,"июл",IF(ES17=8,"авг",IF(ES17=9,"сен",IF(ES17=10,"окт",IF(ES17=11,"ноя","дек")))))))))))&ES18,IF($Q$16=Lists!$I$19,ES20,IF($Q$16=Lists!$I$20,(INT((ES17-1)/3)+1)&"кв"&ES18&"г",IF($Q$16=Lists!$I$21,ES16&" год",IF($Q$16=Lists!$I$22,YEAR(ES20)&"г.",""))))))) ->  | ET22: =IF(ET20="","",IF($Q$16=Lists!$I$16,IF(WEEKDAY(ET20)=1,"вс",IF(WEEKDAY(ET20)=2,"пн",IF(WEEKDAY(ET20)=3,"вт",IF(WEEKDAY(ET20)=4,"ср",IF(WEEKDAY(ET20)=5,"чт",IF(WEEKDAY(ET20)=6,"пт","сб")))))),IF(OR($Q$16=Lists!$I$17,$Q$16=Lists!$I$18),COUNTIFS($Z17:ET17,MONTH(ET20),$Z18:ET18,YEAR(ET20)-2000)&IF($Q$16=Lists!$I$17,"нд-","дк-")&IF(ET17=1,"янв",IF(ET17=2,"фев",IF(ET17=3,"мар",IF(ET17=4,"апр",IF(ET17=5,"май",IF(ET17=6,"июн",IF(ET17=7,"июл",IF(ET17=8,"авг",IF(ET17=9,"сен",IF(ET17=10,"окт",IF(ET17=11,"ноя","дек")))))))))))&ET18,IF($Q$16=Lists!$I$19,ET20,IF($Q$16=Lists!$I$20,(INT((ET17-1)/3)+1)&"кв"&ET18&"г",IF($Q$16=Lists!$I$21,ET16&" год",IF($Q$16=Lists!$I$22,YEAR(ET20)&"г.",""))))))) ->  | EU22: =IF(EU20="","",IF($Q$16=Lists!$I$16,IF(WEEKDAY(EU20)=1,"вс",IF(WEEKDAY(EU20)=2,"пн",IF(WEEKDAY(EU20)=3,"вт",IF(WEEKDAY(EU20)=4,"ср",IF(WEEKDAY(EU20)=5,"чт",IF(WEEKDAY(EU20)=6,"пт","сб")))))),IF(OR($Q$16=Lists!$I$17,$Q$16=Lists!$I$18),COUNTIFS($Z17:EU17,MONTH(EU20),$Z18:EU18,YEAR(EU20)-2000)&IF($Q$16=Lists!$I$17,"нд-","дк-")&IF(EU17=1,"янв",IF(EU17=2,"фев",IF(EU17=3,"мар",IF(EU17=4,"апр",IF(EU17=5,"май",IF(EU17=6,"июн",IF(EU17=7,"июл",IF(EU17=8,"авг",IF(EU17=9,"сен",IF(EU17=10,"окт",IF(EU17=11,"ноя","дек")))))))))))&EU18,IF($Q$16=Lists!$I$19,EU20,IF($Q$16=Lists!$I$20,(INT((EU17-1)/3)+1)&"кв"&EU18&"г",IF($Q$16=Lists!$I$21,EU16&" год",IF($Q$16=Lists!$I$22,YEAR(EU20)&"г.",""))))))) ->  | EV22: =IF(EV20="","",IF($Q$16=Lists!$I$16,IF(WEEKDAY(EV20)=1,"вс",IF(WEEKDAY(EV20)=2,"пн",IF(WEEKDAY(EV20)=3,"вт",IF(WEEKDAY(EV20)=4,"ср",IF(WEEKDAY(EV20)=5,"чт",IF(WEEKDAY(EV20)=6,"пт","сб")))))),IF(OR($Q$16=Lists!$I$17,$Q$16=Lists!$I$18),COUNTIFS($Z17:EV17,MONTH(EV20),$Z18:EV18,YEAR(EV20)-2000)&IF($Q$16=Lists!$I$17,"нд-","дк-")&IF(EV17=1,"янв",IF(EV17=2,"фев",IF(EV17=3,"мар",IF(EV17=4,"апр",IF(EV17=5,"май",IF(EV17=6,"июн",IF(EV17=7,"июл",IF(EV17=8,"авг",IF(EV17=9,"сен",IF(EV17=10,"окт",IF(EV17=11,"ноя","дек")))))))))))&EV18,IF($Q$16=Lists!$I$19,EV20,IF($Q$16=Lists!$I$20,(INT((EV17-1)/3)+1)&"кв"&EV18&"г",IF($Q$16=Lists!$I$21,EV16&" год",IF($Q$16=Lists!$I$22,YEAR(EV20)&"г.",""))))))) ->  | EW22: =IF(EW20="","",IF($Q$16=Lists!$I$16,IF(WEEKDAY(EW20)=1,"вс",IF(WEEKDAY(EW20)=2,"пн",IF(WEEKDAY(EW20)=3,"вт",IF(WEEKDAY(EW20)=4,"ср",IF(WEEKDAY(EW20)=5,"чт",IF(WEEKDAY(EW20)=6,"пт","сб")))))),IF(OR($Q$16=Lists!$I$17,$Q$16=Lists!$I$18),COUNTIFS($Z17:EW17,MONTH(EW20),$Z18:EW18,YEAR(EW20)-2000)&IF($Q$16=Lists!$I$17,"нд-","дк-")&IF(EW17=1,"янв",IF(EW17=2,"фев",IF(EW17=3,"мар",IF(EW17=4,"апр",IF(EW17=5,"май",IF(EW17=6,"июн",IF(EW17=7,"июл",IF(EW17=8,"авг",IF(EW17=9,"сен",IF(EW17=10,"окт",IF(EW17=11,"ноя","дек")))))))))))&EW18,IF($Q$16=Lists!$I$19,EW20,IF($Q$16=Lists!$I$20,(INT((EW17-1)/3)+1)&"кв"&EW18&"г",IF($Q$16=Lists!$I$21,EW16&" год",IF($Q$16=Lists!$I$22,YEAR(EW20)&"г.",""))))))) ->  | EX22: =IF(EX20="","",IF($Q$16=Lists!$I$16,IF(WEEKDAY(EX20)=1,"вс",IF(WEEKDAY(EX20)=2,"пн",IF(WEEKDAY(EX20)=3,"вт",IF(WEEKDAY(EX20)=4,"ср",IF(WEEKDAY(EX20)=5,"чт",IF(WEEKDAY(EX20)=6,"пт","сб")))))),IF(OR($Q$16=Lists!$I$17,$Q$16=Lists!$I$18),COUNTIFS($Z17:EX17,MONTH(EX20),$Z18:EX18,YEAR(EX20)-2000)&IF($Q$16=Lists!$I$17,"нд-","дк-")&IF(EX17=1,"янв",IF(EX17=2,"фев",IF(EX17=3,"мар",IF(EX17=4,"апр",IF(EX17=5,"май",IF(EX17=6,"июн",IF(EX17=7,"июл",IF(EX17=8,"авг",IF(EX17=9,"сен",IF(EX17=10,"окт",IF(EX17=11,"ноя","дек")))))))))))&EX18,IF($Q$16=Lists!$I$19,EX20,IF($Q$16=Lists!$I$20,(INT((EX17-1)/3)+1)&"кв"&EX18&"г",IF($Q$16=Lists!$I$21,EX16&" год",IF($Q$16=Lists!$I$22,YEAR(EX20)&"г.",""))))))) ->  | EY22: =IF(EY20="","",IF($Q$16=Lists!$I$16,IF(WEEKDAY(EY20)=1,"вс",IF(WEEKDAY(EY20)=2,"пн",IF(WEEKDAY(EY20)=3,"вт",IF(WEEKDAY(EY20)=4,"ср",IF(WEEKDAY(EY20)=5,"чт",IF(WEEKDAY(EY20)=6,"пт","сб")))))),IF(OR($Q$16=Lists!$I$17,$Q$16=Lists!$I$18),COUNTIFS($Z17:EY17,MONTH(EY20),$Z18:EY18,YEAR(EY20)-2000)&IF($Q$16=Lists!$I$17,"нд-","дк-")&IF(EY17=1,"янв",IF(EY17=2,"фев",IF(EY17=3,"мар",IF(EY17=4,"апр",IF(EY17=5,"май",IF(EY17=6,"июн",IF(EY17=7,"июл",IF(EY17=8,"авг",IF(EY17=9,"сен",IF(EY17=10,"окт",IF(EY17=11,"ноя","дек")))))))))))&EY18,IF($Q$16=Lists!$I$19,EY20,IF($Q$16=Lists!$I$20,(INT((EY17-1)/3)+1)&"кв"&EY18&"г",IF($Q$16=Lists!$I$21,EY16&" год",IF($Q$16=Lists!$I$22,YEAR(EY20)&"г.",""))))))) ->  | EZ22: =IF(EZ20="","",IF($Q$16=Lists!$I$16,IF(WEEKDAY(EZ20)=1,"вс",IF(WEEKDAY(EZ20)=2,"пн",IF(WEEKDAY(EZ20)=3,"вт",IF(WEEKDAY(EZ20)=4,"ср",IF(WEEKDAY(EZ20)=5,"чт",IF(WEEKDAY(EZ20)=6,"пт","сб")))))),IF(OR($Q$16=Lists!$I$17,$Q$16=Lists!$I$18),COUNTIFS($Z17:EZ17,MONTH(EZ20),$Z18:EZ18,YEAR(EZ20)-2000)&IF($Q$16=Lists!$I$17,"нд-","дк-")&IF(EZ17=1,"янв",IF(EZ17=2,"фев",IF(EZ17=3,"мар",IF(EZ17=4,"апр",IF(EZ17=5,"май",IF(EZ17=6,"июн",IF(EZ17=7,"июл",IF(EZ17=8,"авг",IF(EZ17=9,"сен",IF(EZ17=10,"окт",IF(EZ17=11,"ноя","дек")))))))))))&EZ18,IF($Q$16=Lists!$I$19,EZ20,IF($Q$16=Lists!$I$20,(INT((EZ17-1)/3)+1)&"кв"&EZ18&"г",IF($Q$16=Lists!$I$21,EZ16&" год",IF($Q$16=Lists!$I$22,YEAR(EZ20)&"г.",""))))))) ->  | FA22: =IF(FA20="","",IF($Q$16=Lists!$I$16,IF(WEEKDAY(FA20)=1,"вс",IF(WEEKDAY(FA20)=2,"пн",IF(WEEKDAY(FA20)=3,"вт",IF(WEEKDAY(FA20)=4,"ср",IF(WEEKDAY(FA20)=5,"чт",IF(WEEKDAY(FA20)=6,"пт","сб")))))),IF(OR($Q$16=Lists!$I$17,$Q$16=Lists!$I$18),COUNTIFS($Z17:FA17,MONTH(FA20),$Z18:FA18,YEAR(FA20)-2000)&IF($Q$16=Lists!$I$17,"нд-","дк-")&IF(FA17=1,"янв",IF(FA17=2,"фев",IF(FA17=3,"мар",IF(FA17=4,"апр",IF(FA17=5,"май",IF(FA17=6,"июн",IF(FA17=7,"июл",IF(FA17=8,"авг",IF(FA17=9,"сен",IF(FA17=10,"окт",IF(FA17=11,"ноя","дек")))))))))))&FA18,IF($Q$16=Lists!$I$19,FA20,IF($Q$16=Lists!$I$20,(INT((FA17-1)/3)+1)&"кв"&FA18&"г",IF($Q$16=Lists!$I$21,FA16&" год",IF($Q$16=Lists!$I$22,YEAR(FA20)&"г.",""))))))) ->  | FB22: =IF(FB20="","",IF($Q$16=Lists!$I$16,IF(WEEKDAY(FB20)=1,"вс",IF(WEEKDAY(FB20)=2,"пн",IF(WEEKDAY(FB20)=3,"вт",IF(WEEKDAY(FB20)=4,"ср",IF(WEEKDAY(FB20)=5,"чт",IF(WEEKDAY(FB20)=6,"пт","сб")))))),IF(OR($Q$16=Lists!$I$17,$Q$16=Lists!$I$18),COUNTIFS($Z17:FB17,MONTH(FB20),$Z18:FB18,YEAR(FB20)-2000)&IF($Q$16=Lists!$I$17,"нд-","дк-")&IF(FB17=1,"янв",IF(FB17=2,"фев",IF(FB17=3,"мар",IF(FB17=4,"апр",IF(FB17=5,"май",IF(FB17=6,"июн",IF(FB17=7,"июл",IF(FB17=8,"авг",IF(FB17=9,"сен",IF(FB17=10,"окт",IF(FB17=11,"ноя","дек")))))))))))&FB18,IF($Q$16=Lists!$I$19,FB20,IF($Q$16=Lists!$I$20,(INT((FB17-1)/3)+1)&"кв"&FB18&"г",IF($Q$16=Lists!$I$21,FB16&" год",IF($Q$16=Lists!$I$22,YEAR(FB20)&"г.",""))))))) ->  | FC22: =IF(FC20="","",IF($Q$16=Lists!$I$16,IF(WEEKDAY(FC20)=1,"вс",IF(WEEKDAY(FC20)=2,"пн",IF(WEEKDAY(FC20)=3,"вт",IF(WEEKDAY(FC20)=4,"ср",IF(WEEKDAY(FC20)=5,"чт",IF(WEEKDAY(FC20)=6,"пт","сб")))))),IF(OR($Q$16=Lists!$I$17,$Q$16=Lists!$I$18),COUNTIFS($Z17:FC17,MONTH(FC20),$Z18:FC18,YEAR(FC20)-2000)&IF($Q$16=Lists!$I$17,"нд-","дк-")&IF(FC17=1,"янв",IF(FC17=2,"фев",IF(FC17=3,"мар",IF(FC17=4,"апр",IF(FC17=5,"май",IF(FC17=6,"июн",IF(FC17=7,"июл",IF(FC17=8,"авг",IF(FC17=9,"сен",IF(FC17=10,"окт",IF(FC17=11,"ноя","дек")))))))))))&FC18,IF($Q$16=Lists!$I$19,FC20,IF($Q$16=Lists!$I$20,(INT((FC17-1)/3)+1)&"кв"&FC18&"г",IF($Q$16=Lists!$I$21,FC16&" год",IF($Q$16=Lists!$I$22,YEAR(FC20)&"г.",""))))))) -> 
A23: =ROW() -> 23
A24: =ROW() -> 24 | G24: =IF($R24="^",IF(COUNTIF(Lists!$13:$13,H24)=1,0,1),0) -> 0 | H24: =Lists!$M$13 -> ответ "да/нет"
A25: =ROW() -> 25 | G25: =IF($R25="^",IF(COUNTIF(Lists!$13:$13,H25)=1,0,1),0) -> 0 | H25: =Lists!$M$13 -> ответ "да/нет" | I25: учесть фактические данные? | P25: * | Q25: нет | R25: ^ | S25: =IF(G25<>0,1,IF(OR($Q25="",$Q25=0),0,IF($R25="^",IF(COUNTIF(INDIRECT(INDEX(Lists!$15:$15,SUMIFS(Lists!$1:$1,Lists!$13:$13,$H25))),$Q25)=1,0,1),0))) -> 0
A26: =ROW() -> 26 | G26: =IF($R26="^",IF(COUNTIF(Lists!$13:$13,H26)=1,0,1),0) -> 0 | H26: =Lists!$M$13 -> ответ "да/нет" | I26: фактический период выбрать по умолчанию? | P26: =IF($Q$25=Lists!$M$16,"*","") ->  | Q26: да | R26: ^ | S26: =IF(G26<>0,1,IF(OR($Q26="",$Q26=0),0,IF($R26="^",IF(COUNTIF(INDIRECT(INDEX(Lists!$15:$15,SUMIFS(Lists!$1:$1,Lists!$13:$13,$H26))),$Q26)=1,0,1),0))) -> 0
A27: =ROW() -> 27
A28: =ROW() -> 28 | G28: =IF($R28="^",IF(COUNTIF(Lists!$13:$13,H28)=1,0,1),0) -> 0 | H28: дата начала фактического периода | X28: =IF(AA28="","",MIN($Z28:$FD28)) ->  | AA28: =IF(AA29="","",AA20) ->  | AB28: =IF(AB29="","",AB20) ->  | CN28: =IF(CN29="","",CN20) ->  | EZ28: =IF(EZ29="","",EZ20) ->  | FA28: =IF(FA29="","",FA20) ->  | FB28: =IF(FB29="","",FB20) ->  | FC28: =IF(FC29="","",FC20) -> 
A29: =ROW() -> 29 | G29: =IF($R29="^",IF(COUNTIF(Lists!$13:$13,H29)=1,0,1),0) -> 0 | H29: дата окончания фактического периода | X29: =IF(AA29="","",MAX($Z29:$FD29)) ->  | AA29: =IF($Q$25=Lists!$M$16,IF(AA21<=IF($Q$26=Lists!$M$16,$Q$30,$Q$31),AA21,""),"") ->  | AB29: =IF($Q$25=Lists!$M$16,IF(AB21<=IF($Q$26=Lists!$M$16,$Q$30,$Q$31),AB21,""),"") ->  | AC29: =IF($Q$25=Lists!$M$16,IF(AC21<=IF($Q$26=Lists!$M$16,$Q$30,$Q$31),AC21,""),"") ->  | AD29: =IF($Q$25=Lists!$M$16,IF(AD21<=IF($Q$26=Lists!$M$16,$Q$30,$Q$31),AD21,""),"") ->  | AE29: =IF($Q$25=Lists!$M$16,IF(AE21<=IF($Q$26=Lists!$M$16,$Q$30,$Q$31),AE21,""),"") ->  | AF29: =IF($Q$25=Lists!$M$16,IF(AF21<=IF($Q$26=Lists!$M$16,$Q$30,$Q$31),AF21,""),"") ->  | AG29: =IF($Q$25=Lists!$M$16,IF(AG21<=IF($Q$26=Lists!$M$16,$Q$30,$Q$31),AG21,""),"") ->  | AH29: =IF($Q$25=Lists!$M$16,IF(AH21<=IF($Q$26=Lists!$M$16,$Q$30,$Q$31),AH21,""),"") ->  | AI29: =IF($Q$25=Lists!$M$16,IF(AI21<=IF($Q$26=Lists!$M$16,$Q$30,$Q$31),AI21,""),"") ->  | AJ29: =IF($Q$25=Lists!$M$16,IF(AJ21<=IF($Q$26=Lists!$M$16,$Q$30,$Q$31),AJ21,""),"") ->  | AK29: =IF($Q$25=Lists!$M$16,IF(AK21<=IF($Q$26=Lists!$M$16,$Q$30,$Q$31),AK21,""),"") ->  | AL29: =IF($Q$25=Lists!$M$16,IF(AL21<=IF($Q$26=Lists!$M$16,$Q$30,$Q$31),AL21,""),"") ->  | AM29: =IF($Q$25=Lists!$M$16,IF(AM21<=IF($Q$26=Lists!$M$16,$Q$30,$Q$31),AM21,""),"") ->  | AN29: =IF($Q$25=Lists!$M$16,IF(AN21<=IF($Q$26=Lists!$M$16,$Q$30,$Q$31),AN21,""),"") ->  | AO29: =IF($Q$25=Lists!$M$16,IF(AO21<=IF($Q$26=Lists!$M$16,$Q$30,$Q$31),AO21,""),"") ->  | AP29: =IF($Q$25=Lists!$M$16,IF(AP21<=IF($Q$26=Lists!$M$16,$Q$30,$Q$31),AP21,""),"") ->  | AQ29: =IF($Q$25=Lists!$M$16,IF(AQ21<=IF($Q$26=Lists!$M$16,$Q$30,$Q$31),AQ21,""),"") ->  | AR29: =IF($Q$25=Lists!$M$16,IF(AR21<=IF($Q$26=Lists!$M$16,$Q$30,$Q$31),AR21,""),"") ->  | AS29: =IF($Q$25=Lists!$M$16,IF(AS21<=IF($Q$26=Lists!$M$16,$Q$30,$Q$31),AS21,""),"") ->  | AT29: =IF($Q$25=Lists!$M$16,IF(AT21<=IF($Q$26=Lists!$M$16,$Q$30,$Q$31),AT21,""),"") ->  | AU29: =IF($Q$25=Lists!$M$16,IF(AU21<=IF($Q$26=Lists!$M$16,$Q$30,$Q$31),AU21,""),"") ->  | AV29: =IF($Q$25=Lists!$M$16,IF(AV21<=IF($Q$26=Lists!$M$16,$Q$30,$Q$31),AV21,""),"") ->  | AW29: =IF($Q$25=Lists!$M$16,IF(AW21<=IF($Q$26=Lists!$M$16,$Q$30,$Q$31),AW21,""),"") ->  | AX29: =IF($Q$25=Lists!$M$16,IF(AX21<=IF($Q$26=Lists!$M$16,$Q$30,$Q$31),AX21,""),"") ->  | AY29: =IF($Q$25=Lists!$M$16,IF(AY21<=IF($Q$26=Lists!$M$16,$Q$30,$Q$31),AY21,""),"") ->  | AZ29: =IF($Q$25=Lists!$M$16,IF(AZ21<=IF($Q$26=Lists!$M$16,$Q$30,$Q$31),AZ21,""),"") ->  | BA29: =IF($Q$25=Lists!$M$16,IF(BA21<=IF($Q$26=Lists!$M$16,$Q$30,$Q$31),BA21,""),"") ->  | BB29: =IF($Q$25=Lists!$M$16,IF(BB21<=IF($Q$26=Lists!$M$16,$Q$30,$Q$31),BB21,""),"") ->  | BC29: =IF($Q$25=Lists!$M$16,IF(BC21<=IF($Q$26=Lists!$M$16,$Q$30,$Q$31),BC21,""),"") ->  | BD29: =IF($Q$25=Lists!$M$16,IF(BD21<=IF($Q$26=Lists!$M$16,$Q$30,$Q$31),BD21,""),"") ->  | BE29: =IF($Q$25=Lists!$M$16,IF(BE21<=IF($Q$26=Lists!$M$16,$Q$30,$Q$31),BE21,""),"") ->  | BF29: =IF($Q$25=Lists!$M$16,IF(BF21<=IF($Q$26=Lists!$M$16,$Q$30,$Q$31),BF21,""),"") ->  | BG29: =IF($Q$25=Lists!$M$16,IF(BG21<=IF($Q$26=Lists!$M$16,$Q$30,$Q$31),BG21,""),"") ->  | BH29: =IF($Q$25=Lists!$M$16,IF(BH21<=IF($Q$26=Lists!$M$16,$Q$30,$Q$31),BH21,""),"") ->  | BI29: =IF($Q$25=Lists!$M$16,IF(BI21<=IF($Q$26=Lists!$M$16,$Q$30,$Q$31),BI21,""),"") ->  | BJ29: =IF($Q$25=Lists!$M$16,IF(BJ21<=IF($Q$26=Lists!$M$16,$Q$30,$Q$31),BJ21,""),"") ->  | BK29: =IF($Q$25=Lists!$M$16,IF(BK21<=IF($Q$26=Lists!$M$16,$Q$30,$Q$31),BK21,""),"") ->  | BL29: =IF($Q$25=Lists!$M$16,IF(BL21<=IF($Q$26=Lists!$M$16,$Q$30,$Q$31),BL21,""),"") ->  | BM29: =IF($Q$25=Lists!$M$16,IF(BM21<=IF($Q$26=Lists!$M$16,$Q$30,$Q$31),BM21,""),"") ->  | BN29: =IF($Q$25=Lists!$M$16,IF(BN21<=IF($Q$26=Lists!$M$16,$Q$30,$Q$31),BN21,""),"") ->  | BO29: =IF($Q$25=Lists!$M$16,IF(BO21<=IF($Q$26=Lists!$M$16,$Q$30,$Q$31),BO21,""),"") ->  | BP29: =IF($Q$25=Lists!$M$16,IF(BP21<=IF($Q$26=Lists!$M$16,$Q$30,$Q$31),BP21,""),"") ->  | BQ29: =IF($Q$25=Lists!$M$16,IF(BQ21<=IF($Q$26=Lists!$M$16,$Q$30,$Q$31),BQ21,""),"") ->  | BR29: =IF($Q$25=Lists!$M$16,IF(BR21<=IF($Q$26=Lists!$M$16,$Q$30,$Q$31),BR21,""),"") ->  | BS29: =IF($Q$25=Lists!$M$16,IF(BS21<=IF($Q$26=Lists!$M$16,$Q$30,$Q$31),BS21,""),"") ->  | BT29: =IF($Q$25=Lists!$M$16,IF(BT21<=IF($Q$26=Lists!$M$16,$Q$30,$Q$31),BT21,""),"") ->  | BU29: =IF($Q$25=Lists!$M$16,IF(BU21<=IF($Q$26=Lists!$M$16,$Q$30,$Q$31),BU21,""),"") ->  | BV29: =IF($Q$25=Lists!$M$16,IF(BV21<=IF($Q$26=Lists!$M$16,$Q$30,$Q$31),BV21,""),"") ->  | BW29: =IF($Q$25=Lists!$M$16,IF(BW21<=IF($Q$26=Lists!$M$16,$Q$30,$Q$31),BW21,""),"") ->  | BX29: =IF($Q$25=Lists!$M$16,IF(BX21<=IF($Q$26=Lists!$M$16,$Q$30,$Q$31),BX21,""),"") ->  | BY29: =IF($Q$25=Lists!$M$16,IF(BY21<=IF($Q$26=Lists!$M$16,$Q$30,$Q$31),BY21,""),"") ->  | BZ29: =IF($Q$25=Lists!$M$16,IF(BZ21<=IF($Q$26=Lists!$M$16,$Q$30,$Q$31),BZ21,""),"") ->  | CA29: =IF($Q$25=Lists!$M$16,IF(CA21<=IF($Q$26=Lists!$M$16,$Q$30,$Q$31),CA21,""),"") ->  | CB29: =IF($Q$25=Lists!$M$16,IF(CB21<=IF($Q$26=Lists!$M$16,$Q$30,$Q$31),CB21,""),"") ->  | CC29: =IF($Q$25=Lists!$M$16,IF(CC21<=IF($Q$26=Lists!$M$16,$Q$30,$Q$31),CC21,""),"") ->  | CD29: =IF($Q$25=Lists!$M$16,IF(CD21<=IF($Q$26=Lists!$M$16,$Q$30,$Q$31),CD21,""),"") ->  | CE29: =IF($Q$25=Lists!$M$16,IF(CE21<=IF($Q$26=Lists!$M$16,$Q$30,$Q$31),CE21,""),"") ->  | CF29: =IF($Q$25=Lists!$M$16,IF(CF21<=IF($Q$26=Lists!$M$16,$Q$30,$Q$31),CF21,""),"") ->  | CG29: =IF($Q$25=Lists!$M$16,IF(CG21<=IF($Q$26=Lists!$M$16,$Q$30,$Q$31),CG21,""),"") ->  | CH29: =IF($Q$25=Lists!$M$16,IF(CH21<=IF($Q$26=Lists!$M$16,$Q$30,$Q$31),CH21,""),"") ->  | CI29: =IF($Q$25=Lists!$M$16,IF(CI21<=IF($Q$26=Lists!$M$16,$Q$30,$Q$31),CI21,""),"") ->  | CJ29: =IF($Q$25=Lists!$M$16,IF(CJ21<=IF($Q$26=Lists!$M$16,$Q$30,$Q$31),CJ21,""),"") ->  | CK29: =IF($Q$25=Lists!$M$16,IF(CK21<=IF($Q$26=Lists!$M$16,$Q$30,$Q$31),CK21,""),"") ->  | CL29: =IF($Q$25=Lists!$M$16,IF(CL21<=IF($Q$26=Lists!$M$16,$Q$30,$Q$31),CL21,""),"") ->  | CM29: =IF($Q$25=Lists!$M$16,IF(CM21<=IF($Q$26=Lists!$M$16,$Q$30,$Q$31),CM21,""),"") ->  | CN29: =IF($Q$25=Lists!$M$16,IF(CN21<=IF($Q$26=Lists!$M$16,$Q$30,$Q$31),CN21,""),"") ->  | CO29: =IF($Q$25=Lists!$M$16,IF(CO21<=IF($Q$26=Lists!$M$16,$Q$30,$Q$31),CO21,""),"") ->  | CP29: =IF($Q$25=Lists!$M$16,IF(CP21<=IF($Q$26=Lists!$M$16,$Q$30,$Q$31),CP21,""),"") ->  | CQ29: =IF($Q$25=Lists!$M$16,IF(CQ21<=IF($Q$26=Lists!$M$16,$Q$30,$Q$31),CQ21,""),"") ->  | CR29: =IF($Q$25=Lists!$M$16,IF(CR21<=IF($Q$26=Lists!$M$16,$Q$30,$Q$31),CR21,""),"") ->  | CS29: =IF($Q$25=Lists!$M$16,IF(CS21<=IF($Q$26=Lists!$M$16,$Q$30,$Q$31),CS21,""),"") ->  | CT29: =IF($Q$25=Lists!$M$16,IF(CT21<=IF($Q$26=Lists!$M$16,$Q$30,$Q$31),CT21,""),"") ->  | CU29: =IF($Q$25=Lists!$M$16,IF(CU21<=IF($Q$26=Lists!$M$16,$Q$30,$Q$31),CU21,""),"") ->  | CV29: =IF($Q$25=Lists!$M$16,IF(CV21<=IF($Q$26=Lists!$M$16,$Q$30,$Q$31),CV21,""),"") ->  | CW29: =IF($Q$25=Lists!$M$16,IF(CW21<=IF($Q$26=Lists!$M$16,$Q$30,$Q$31),CW21,""),"") ->  | CX29: =IF($Q$25=Lists!$M$16,IF(CX21<=IF($Q$26=Lists!$M$16,$Q$30,$Q$31),CX21,""),"") ->  | CY29: =IF($Q$25=Lists!$M$16,IF(CY21<=IF($Q$26=Lists!$M$16,$Q$30,$Q$31),CY21,""),"") ->  | CZ29: =IF($Q$25=Lists!$M$16,IF(CZ21<=IF($Q$26=Lists!$M$16,$Q$30,$Q$31),CZ21,""),"") ->  | DA29: =IF($Q$25=Lists!$M$16,IF(DA21<=IF($Q$26=Lists!$M$16,$Q$30,$Q$31),DA21,""),"") ->  | DB29: =IF($Q$25=Lists!$M$16,IF(DB21<=IF($Q$26=Lists!$M$16,$Q$30,$Q$31),DB21,""),"") ->  | DC29: =IF($Q$25=Lists!$M$16,IF(DC21<=IF($Q$26=Lists!$M$16,$Q$30,$Q$31),DC21,""),"") ->  | DD29: =IF($Q$25=Lists!$M$16,IF(DD21<=IF($Q$26=Lists!$M$16,$Q$30,$Q$31),DD21,""),"") ->  | DE29: =IF($Q$25=Lists!$M$16,IF(DE21<=IF($Q$26=Lists!$M$16,$Q$30,$Q$31),DE21,""),"") ->  | DF29: =IF($Q$25=Lists!$M$16,IF(DF21<=IF($Q$26=Lists!$M$16,$Q$30,$Q$31),DF21,""),"") ->  | DG29: =IF($Q$25=Lists!$M$16,IF(DG21<=IF($Q$26=Lists!$M$16,$Q$30,$Q$31),DG21,""),"") ->  | DH29: =IF($Q$25=Lists!$M$16,IF(DH21<=IF($Q$26=Lists!$M$16,$Q$30,$Q$31),DH21,""),"") ->  | DI29: =IF($Q$25=Lists!$M$16,IF(DI21<=IF($Q$26=Lists!$M$16,$Q$30,$Q$31),DI21,""),"") ->  | DJ29: =IF($Q$25=Lists!$M$16,IF(DJ21<=IF($Q$26=Lists!$M$16,$Q$30,$Q$31),DJ21,""),"") ->  | DK29: =IF($Q$25=Lists!$M$16,IF(DK21<=IF($Q$26=Lists!$M$16,$Q$30,$Q$31),DK21,""),"") ->  | DL29: =IF($Q$25=Lists!$M$16,IF(DL21<=IF($Q$26=Lists!$M$16,$Q$30,$Q$31),DL21,""),"") ->  | DM29: =IF($Q$25=Lists!$M$16,IF(DM21<=IF($Q$26=Lists!$M$16,$Q$30,$Q$31),DM21,""),"") ->  | DN29: =IF($Q$25=Lists!$M$16,IF(DN21<=IF($Q$26=Lists!$M$16,$Q$30,$Q$31),DN21,""),"") ->  | DO29: =IF($Q$25=Lists!$M$16,IF(DO21<=IF($Q$26=Lists!$M$16,$Q$30,$Q$31),DO21,""),"") ->  | DP29: =IF($Q$25=Lists!$M$16,IF(DP21<=IF($Q$26=Lists!$M$16,$Q$30,$Q$31),DP21,""),"") ->  | DQ29: =IF($Q$25=Lists!$M$16,IF(DQ21<=IF($Q$26=Lists!$M$16,$Q$30,$Q$31),DQ21,""),"") ->  | DR29: =IF($Q$25=Lists!$M$16,IF(DR21<=IF($Q$26=Lists!$M$16,$Q$30,$Q$31),DR21,""),"") ->  | DS29: =IF($Q$25=Lists!$M$16,IF(DS21<=IF($Q$26=Lists!$M$16,$Q$30,$Q$31),DS21,""),"") ->  | DT29: =IF($Q$25=Lists!$M$16,IF(DT21<=IF($Q$26=Lists!$M$16,$Q$30,$Q$31),DT21,""),"") ->  | DU29: =IF($Q$25=Lists!$M$16,IF(DU21<=IF($Q$26=Lists!$M$16,$Q$30,$Q$31),DU21,""),"") ->  | DV29: =IF($Q$25=Lists!$M$16,IF(DV21<=IF($Q$26=Lists!$M$16,$Q$30,$Q$31),DV21,""),"") ->  | DW29: =IF($Q$25=Lists!$M$16,IF(DW21<=IF($Q$26=Lists!$M$16,$Q$30,$Q$31),DW21,""),"") ->  | DX29: =IF($Q$25=Lists!$M$16,IF(DX21<=IF($Q$26=Lists!$M$16,$Q$30,$Q$31),DX21,""),"") ->  | DY29: =IF($Q$25=Lists!$M$16,IF(DY21<=IF($Q$26=Lists!$M$16,$Q$30,$Q$31),DY21,""),"") ->  | DZ29: =IF($Q$25=Lists!$M$16,IF(DZ21<=IF($Q$26=Lists!$M$16,$Q$30,$Q$31),DZ21,""),"") ->  | EA29: =IF($Q$25=Lists!$M$16,IF(EA21<=IF($Q$26=Lists!$M$16,$Q$30,$Q$31),EA21,""),"") ->  | EB29: =IF($Q$25=Lists!$M$16,IF(EB21<=IF($Q$26=Lists!$M$16,$Q$30,$Q$31),EB21,""),"") ->  | EC29: =IF($Q$25=Lists!$M$16,IF(EC21<=IF($Q$26=Lists!$M$16,$Q$30,$Q$31),EC21,""),"") ->  | ED29: =IF($Q$25=Lists!$M$16,IF(ED21<=IF($Q$26=Lists!$M$16,$Q$30,$Q$31),ED21,""),"") ->  | EE29: =IF($Q$25=Lists!$M$16,IF(EE21<=IF($Q$26=Lists!$M$16,$Q$30,$Q$31),EE21,""),"") ->  | EF29: =IF($Q$25=Lists!$M$16,IF(EF21<=IF($Q$26=Lists!$M$16,$Q$30,$Q$31),EF21,""),"") ->  | EG29: =IF($Q$25=Lists!$M$16,IF(EG21<=IF($Q$26=Lists!$M$16,$Q$30,$Q$31),EG21,""),"") ->  | EH29: =IF($Q$25=Lists!$M$16,IF(EH21<=IF($Q$26=Lists!$M$16,$Q$30,$Q$31),EH21,""),"") ->  | EI29: =IF($Q$25=Lists!$M$16,IF(EI21<=IF($Q$26=Lists!$M$16,$Q$30,$Q$31),EI21,""),"") ->  | EJ29: =IF($Q$25=Lists!$M$16,IF(EJ21<=IF($Q$26=Lists!$M$16,$Q$30,$Q$31),EJ21,""),"") ->  | EK29: =IF($Q$25=Lists!$M$16,IF(EK21<=IF($Q$26=Lists!$M$16,$Q$30,$Q$31),EK21,""),"") ->  | EL29: =IF($Q$25=Lists!$M$16,IF(EL21<=IF($Q$26=Lists!$M$16,$Q$30,$Q$31),EL21,""),"") ->  | EM29: =IF($Q$25=Lists!$M$16,IF(EM21<=IF($Q$26=Lists!$M$16,$Q$30,$Q$31),EM21,""),"") ->  | EN29: =IF($Q$25=Lists!$M$16,IF(EN21<=IF($Q$26=Lists!$M$16,$Q$30,$Q$31),EN21,""),"") ->  | EO29: =IF($Q$25=Lists!$M$16,IF(EO21<=IF($Q$26=Lists!$M$16,$Q$30,$Q$31),EO21,""),"") ->  | EP29: =IF($Q$25=Lists!$M$16,IF(EP21<=IF($Q$26=Lists!$M$16,$Q$30,$Q$31),EP21,""),"") ->  | EQ29: =IF($Q$25=Lists!$M$16,IF(EQ21<=IF($Q$26=Lists!$M$16,$Q$30,$Q$31),EQ21,""),"") ->  | ER29: =IF($Q$25=Lists!$M$16,IF(ER21<=IF($Q$26=Lists!$M$16,$Q$30,$Q$31),ER21,""),"") ->  | ES29: =IF($Q$25=Lists!$M$16,IF(ES21<=IF($Q$26=Lists!$M$16,$Q$30,$Q$31),ES21,""),"") ->  | ET29: =IF($Q$25=Lists!$M$16,IF(ET21<=IF($Q$26=Lists!$M$16,$Q$30,$Q$31),ET21,""),"") ->  | EU29: =IF($Q$25=Lists!$M$16,IF(EU21<=IF($Q$26=Lists!$M$16,$Q$30,$Q$31),EU21,""),"") ->  | EV29: =IF($Q$25=Lists!$M$16,IF(EV21<=IF($Q$26=Lists!$M$16,$Q$30,$Q$31),EV21,""),"") ->  | EW29: =IF($Q$25=Lists!$M$16,IF(EW21<=IF($Q$26=Lists!$M$16,$Q$30,$Q$31),EW21,""),"") ->  | EX29: =IF($Q$25=Lists!$M$16,IF(EX21<=IF($Q$26=Lists!$M$16,$Q$30,$Q$31),EX21,""),"") ->  | EY29: =IF($Q$25=Lists!$M$16,IF(EY21<=IF($Q$26=Lists!$M$16,$Q$30,$Q$31),EY21,""),"") ->  | EZ29: =IF($Q$25=Lists!$M$16,IF(EZ21<=IF($Q$26=Lists!$M$16,$Q$30,$Q$31),EZ21,""),"") ->  | FA29: =IF($Q$25=Lists!$M$16,IF(FA21<=IF($Q$26=Lists!$M$16,$Q$30,$Q$31),FA21,""),"") ->  | FB29: =IF($Q$25=Lists!$M$16,IF(FB21<=IF($Q$26=Lists!$M$16,$Q$30,$Q$31),FB21,""),"") ->  | FC29: =IF($Q$25=Lists!$M$16,IF(FC21<=IF($Q$26=Lists!$M$16,$Q$30,$Q$31),FC21,""),"") -> 
A30: =ROW() -> 30 | G30: =IF($R30="^",IF(COUNTIF(Lists!$13:$13,H30)=1,0,1),0) -> 0 | H30: =H29 -> дата окончания фактического периода | I30: по умолчанию - сегодняшний день | Q30: =TODAY() -> 2022-04-07
A31: =ROW() -> 31 | G31: =IF($R31="^",IF(COUNTIF(Lists!$13:$13,H31)=1,0,1),0) -> 0 | H31: =H29 -> дата окончания фактического периода | I31: задать вручную дату окончания периода | P31: =IF(AND($Q$25=Lists!$M$16,$Q$26=Lists!$M$17),"*","") ->  | Q31: 2020-10-31 | Y31: =START!$K$131 -> номер периода модели: | AA31: =MAX($Z31:Z31)+1 -> 1 | AB31: =MAX($Z31:AA31)+1 -> 2 | AC31: =MAX($Z31:AB31)+1 -> 3 | AD31: =MAX($Z31:AC31)+1 -> 4 | AE31: =MAX($Z31:AD31)+1 -> 5 | AF31: =MAX($Z31:AE31)+1 -> 6 | AG31: =MAX($Z31:AF31)+1 -> 7 | AH31: =MAX($Z31:AG31)+1 -> 8 | AI31: =MAX($Z31:AH31)+1 -> 9 | AJ31: =MAX($Z31:AI31)+1 -> 10 | AK31: =MAX($Z31:AJ31)+1 -> 11 | AL31: =MAX($Z31:AK31)+1 -> 12 | AM31: =MAX($Z31:AL31)+1 -> 13 | AN31: =MAX($Z31:AM31)+1 -> 14 | AO31: =MAX($Z31:AN31)+1 -> 15 | AP31: =MAX($Z31:AO31)+1 -> 16 | AQ31: =MAX($Z31:AP31)+1 -> 17 | AR31: =MAX($Z31:AQ31)+1 -> 18 | AS31: =MAX($Z31:AR31)+1 -> 19 | AT31: =MAX($Z31:AS31)+1 -> 20 | AU31: =MAX($Z31:AT31)+1 -> 21 | AV31: =MAX($Z31:AU31)+1 -> 22 | AW31: =MAX($Z31:AV31)+1 -> 23 | AX31: =MAX($Z31:AW31)+1 -> 24 | AY31: =MAX($Z31:AX31)+1 -> 25 | AZ31: =MAX($Z31:AY31)+1 -> 26 | BA31: =MAX($Z31:AZ31)+1 -> 27 | BB31: =MAX($Z31:BA31)+1 -> 28 | BC31: =MAX($Z31:BB31)+1 -> 29 | BD31: =MAX($Z31:BC31)+1 -> 30 | BE31: =MAX($Z31:BD31)+1 -> 31 | BF31: =MAX($Z31:BE31)+1 -> 32 | BG31: =MAX($Z31:BF31)+1 -> 33 | BH31: =MAX($Z31:BG31)+1 -> 34 | BI31: =MAX($Z31:BH31)+1 -> 35 | BJ31: =MAX($Z31:BI31)+1 -> 36 | BK31: =MAX($Z31:BJ31)+1 -> 37 | BL31: =MAX($Z31:BK31)+1 -> 38 | BM31: =MAX($Z31:BL31)+1 -> 39 | BN31: =MAX($Z31:BM31)+1 -> 40 | BO31: =MAX($Z31:BN31)+1 -> 41 | BP31: =MAX($Z31:BO31)+1 -> 42 | BQ31: =MAX($Z31:BP31)+1 -> 43 | BR31: =MAX($Z31:BQ31)+1 -> 44 | BS31: =MAX($Z31:BR31)+1 -> 45 | BT31: =MAX($Z31:BS31)+1 -> 46 | BU31: =MAX($Z31:BT31)+1 -> 47 | BV31: =MAX($Z31:BU31)+1 -> 48 | BW31: =MAX($Z31:BV31)+1 -> 49 | BX31: =MAX($Z31:BW31)+1 -> 50 | BY31: =MAX($Z31:BX31)+1 -> 51 | BZ31: =MAX($Z31:BY31)+1 -> 52 | CA31: =MAX($Z31:BZ31)+1 -> 53 | CB31: =MAX($Z31:CA31)+1 -> 54 | CC31: =MAX($Z31:CB31)+1 -> 55 | CD31: =MAX($Z31:CC31)+1 -> 56 | CE31: =MAX($Z31:CD31)+1 -> 57 | CF31: =MAX($Z31:CE31)+1 -> 58 | CG31: =MAX($Z31:CF31)+1 -> 59 | CH31: =MAX($Z31:CG31)+1 -> 60 | CI31: =MAX($Z31:CH31)+1 -> 61 | CJ31: =MAX($Z31:CI31)+1 -> 62 | CK31: =MAX($Z31:CJ31)+1 -> 63 | CL31: =MAX($Z31:CK31)+1 -> 64 | CM31: =MAX($Z31:CL31)+1 -> 65 | CN31: =MAX($Z31:CM31)+1 -> 66 | CO31: =MAX($Z31:CN31)+1 -> 67 | CP31: =MAX($Z31:CO31)+1 -> 68 | CQ31: =MAX($Z31:CP31)+1 -> 69 | CR31: =MAX($Z31:CQ31)+1 -> 70 | CS31: =MAX($Z31:CR31)+1 -> 71 | CT31: =MAX($Z31:CS31)+1 -> 72 | CU31: =MAX($Z31:CT31)+1 -> 73 | CV31: =MAX($Z31:CU31)+1 -> 74 | CW31: =MAX($Z31:CV31)+1 -> 75 | CX31: =MAX($Z31:CW31)+1 -> 76 | CY31: =MAX($Z31:CX31)+1 -> 77 | CZ31: =MAX($Z31:CY31)+1 -> 78 | DA31: =MAX($Z31:CZ31)+1 -> 79 | DB31: =MAX($Z31:DA31)+1 -> 80 | DC31: =MAX($Z31:DB31)+1 -> 81 | DD31: =MAX($Z31:DC31)+1 -> 82 | DE31: =MAX($Z31:DD31)+1 -> 83 | DF31: =MAX($Z31:DE31)+1 -> 84 | DG31: =MAX($Z31:DF31)+1 -> 85 | DH31: =MAX($Z31:DG31)+1 -> 86 | DI31: =MAX($Z31:DH31)+1 -> 87 | DJ31: =MAX($Z31:DI31)+1 -> 88 | DK31: =MAX($Z31:DJ31)+1 -> 89 | DL31: =MAX($Z31:DK31)+1 -> 90 | DM31: =MAX($Z31:DL31)+1 -> 91 | DN31: =MAX($Z31:DM31)+1 -> 92 | DO31: =MAX($Z31:DN31)+1 -> 93 | DP31: =MAX($Z31:DO31)+1 -> 94 | DQ31: =MAX($Z31:DP31)+1 -> 95 | DR31: =MAX($Z31:DQ31)+1 -> 96 | DS31: =MAX($Z31:DR31)+1 -> 97 | DT31: =MAX($Z31:DS31)+1 -> 98 | DU31: =MAX($Z31:DT31)+1 -> 99 | DV31: =MAX($Z31:DU31)+1 -> 100 | DW31: =MAX($Z31:DV31)+1 -> 101 | DX31: =MAX($Z31:DW31)+1 -> 102 | DY31: =MAX($Z31:DX31)+1 -> 103 | DZ31: =MAX($Z31:DY31)+1 -> 104 | EA31: =MAX($Z31:DZ31)+1 -> 105 | EB31: =MAX($Z31:EA31)+1 -> 106 | EC31: =MAX($Z31:EB31)+1 -> 107 | ED31: =MAX($Z31:EC31)+1 -> 108 | EE31: =MAX($Z31:ED31)+1 -> 109 | EF31: =MAX($Z31:EE31)+1 -> 110 | EG31: =MAX($Z31:EF31)+1 -> 111 | EH31: =MAX($Z31:EG31)+1 -> 112 | EI31: =MAX($Z31:EH31)+1 -> 113 | EJ31: =MAX($Z31:EI31)+1 -> 114 | EK31: =MAX($Z31:EJ31)+1 -> 115 | EL31: =MAX($Z31:EK31)+1 -> 116 | EM31: =MAX($Z31:EL31)+1 -> 117 | EN31: =MAX($Z31:EM31)+1 -> 118 | EO31: =MAX($Z31:EN31)+1 -> 119 | EP31: =MAX($Z31:EO31)+1 -> 120 | EQ31: =MAX($Z31:EP31)+1 -> 121 | ER31: =MAX($Z31:EQ31)+1 -> 122 | ES31: =MAX($Z31:ER31)+1 -> 123 | ET31: =MAX($Z31:ES31)+1 -> 124 | EU31: =MAX($Z31:ET31)+1 -> 125 | EV31: =MAX($Z31:EU31)+1 -> 126 | EW31: =MAX($Z31:EV31)+1 -> 127 | EX31: =MAX($Z31:EW31)+1 -> 128 | EY31: =MAX($Z31:EX31)+1 -> 129 | EZ31: =MAX($Z31:EY31)+1 -> 130 | FA31: =MAX($Z31:EZ31)+1 -> 131 | FB31: =MAX($Z31:FA31)+1 -> 132 | FC31: =MAX($Z31:FB31)+1 -> 133
... 38 more rows

Sheet Lists
I1: =COLUMN() -> 9 | M1: =COLUMN() -> 13 | Q1: =COLUMN() -> 17 | U1: =COLUMN() -> 21 | AB1: =COLUMN() -> 28 | AF1: =COLUMN() -> 32 | AI1: =COLUMN() -> 35 | AM1: =COLUMN() -> 39 | AQ1: =COLUMN() -> 43 | AU1: =COLUMN() -> 47 | AY1: =COLUMN() -> 51 | BC1: =COLUMN() -> 55 | BG1: =COLUMN() -> 59 | BK1: =COLUMN() -> 63 | BO1: =COLUMN() -> 67 | BS1: =COLUMN() -> 71 | BW1: =COLUMN() -> 75 | CA1: =COLUMN() -> 79 | CE1: =COLUMN() -> 83 | CI1: =COLUMN() -> 87 | CM1: =COLUMN() -> 91 | CQ1: =COLUMN() -> 95 | CU1: =COLUMN() -> 99
I2: =LEFT(ADDRESS(1,COLUMN(),4),LEN(ADDRESS(1,COLUMN(),4))-1) -> I | M2: =LEFT(ADDRESS(1,COLUMN(),4),LEN(ADDRESS(1,COLUMN(),4))-1) -> M | Q2: =LEFT(ADDRESS(1,COLUMN(),4),LEN(ADDRESS(1,COLUMN(),4))-1) -> Q | U2: =LEFT(ADDRESS(1,COLUMN(),4),LEN(ADDRESS(1,COLUMN(),4))-1) -> U | AB2: =LEFT(ADDRESS(1,COLUMN(),4),LEN(ADDRESS(1,COLUMN(),4))-1) -> AB | AF2: =LEFT(ADDRESS(1,COLUMN(),4),LEN(ADDRESS(1,COLUMN(),4))-1) -> AF | AI2: =LEFT(ADDRESS(1,COLUMN(),4),LEN(ADDRESS(1,COLUMN(),4))-1) -> AI | AM2: =LEFT(ADDRESS(1,COLUMN(),4),LEN(ADDRESS(1,COLUMN(),4))-1) -> AM | AQ2: =LEFT(ADDRESS(1,COLUMN(),4),LEN(ADDRESS(1,COLUMN(),4))-1) -> AQ | AU2: =LEFT(ADDRESS(1,COLUMN(),4),LEN(ADDRESS(1,COLUMN(),4))-1) -> AU | AY2: =LEFT(ADDRESS(1,COLUMN(),4),LEN(ADDRESS(1,COLUMN(),4))-1) -> AY | BC2: =LEFT(ADDRESS(1,COLUMN(),4),LEN(ADDRESS(1,COLUMN(),4))-1) -> BC | BG2: =LEFT(ADDRESS(1,COLUMN(),4),LEN(ADDRESS(1,COLUMN(),4))-1) -> BG | BK2: =LEFT(ADDRESS(1,COLUMN(),4),LEN(ADDRESS(1,COLUMN(),4))-1) -> BK | BO2: =LEFT(ADDRESS(1,COLUMN(),4),LEN(ADDRESS(1,COLUMN(),4))-1) -> BO | BS2: =LEFT(ADDRESS(1,COLUMN(),4),LEN(ADDRESS(1,COLUMN(),4))-1) -> BS | BW2: =LEFT(ADDRESS(1,COLUMN(),4),LEN(ADDRESS(1,COLUMN(),4))-1) -> BW | CA2: =LEFT(ADDRESS(1,COLUMN(),4),LEN(ADDRESS(1,COLUMN(),4))-1) -> CA | CE2: =LEFT(ADDRESS(1,COLUMN(),4),LEN(ADDRESS(1,COLUMN(),4))-1) -> CE | CI2: =LEFT(ADDRESS(1,COLUMN(),4),LEN(ADDRESS(1,COLUMN(),4))-1) -> CI | CM2: =LEFT(ADDRESS(1,COLUMN(),4),LEN(ADDRESS(1,COLUMN(),4))-1) -> CM | CQ2: =LEFT(ADDRESS(1,COLUMN(),4),LEN(ADDRESS(1,COLUMN(),4))-1) -> CQ | CU2: =LEFT(ADDRESS(1,COLUMN(),4),LEN(ADDRESS(1,COLUMN(),4))-1) -> CU
F11: =INDIRECT("START!I28") -> Lists | I11: =INDIRECT("START!K28") -> Выпадающие списки финансовой модели
AI12: =START!$I$32 -> Mrkting | AY12: =START!$I$32 -> Mrkting | BC12: =START!$I$32 -> Mrkting | BK12: =START!$I$34 -> Sales | BO12: =START!$I$35 -> Prdction | BS12: =START!$I$33 -> CapEx | BW12: =START!$I$33 -> CapEx | CA12: =START!$I$36 -> HR | CI12: =START!$I$36 -> HR | CM12: =START!$I$29 -> Macro | CQ12: =START!$I$29 -> Macro | CU12: =START!$I$54 -> Calc
I13: минимальный период расчетов | M13: ответ "да/нет" | Q13: период отчетности | U13: тип листа | AB13: тип прогрессии | AF13: кол-во дней в периоде | AI13: каналы привлечения клиентов | AM13: продукция | AQ13: дата старта | AU13: тип учета | AY13: натуральные факторы переменных расходов маркетинга | BC13: денежные факторы переменных расходов маркетинга | BG13: тип зависимости переменных расходов | BK13: типы деятельности сотрудников отдела продаж | BO13: типы деятельности производственных сотрудников | BS13: Ввод в эксплуатацию | BW13: Налоги на внеоборотные активы | CA13: Типы и должности персонала | CE13: Типы оплаты | CI13: Потребность в офисе | CM13: Система налогообложения | CQ13: Налоги и сборы | CU13: Метки расчетов
D14: =INDIRECT("Cntrl!M17") -> 0 | E14: =SUM($F14:$PH14) -> 0 | F14: =IFERROR(_xlfn.SHEET($A$1)-SUMIFS(Cntrl!O$15:O$100000,Cntrl!I$15:I$100000,$F$11),1) -> 0 | I14: =IF(OR(I13=0,I13=""),1,IF(COUNTIF(13:13,I13)=1,0,1)) -> 0 | K14: =SUM(K$15:K$100000) -> 0 | M14: =IF(OR(M13=0,M13=""),1,IF(COUNTIF(13:13,M13)=1,0,1)) -> 0 | O14: =SUM(O$15:O$100000) -> 0 | Q14: =IF(OR(Q13=0,Q13=""),1,IF(COUNTIF(13:13,Q13)=1,0,1)) -> 0 | S14: =SUM(S$15:S$100000) -> 0 | U14: =IF(OR(U13=0,U13=""),1,IF(COUNTIF(13:13,U13)=1,0,1)) -> 0 | W14: =SUM(W$15:W$100000) -> 0 | AD14: =SUM(AD$15:AD$100000) -> 0 | AF14: =IF(OR(AF13=0,AF13=""),1,IF(COUNTIF(13:13,AF13)=1,0,1)) -> 0 | AI14: =IF(OR(AI13=0,AI13=""),1,IF(COUNTIF(13:13,AI13)=1,0,1)) -> 0 | AK14: =SUM(AK$15:AK$100000) -> 0 | AM14: =IF(OR(AM13=0,AM13=""),1,IF(COUNTIF(13:13,AM13)=1,0,1)) -> 0 | AO14: =SUM(AO$15:AO$100000) -> 0 | AQ14: =IF(OR(AQ13=0,AQ13=""),1,IF(COUNTIF(13:13,AQ13)=1,0,1)) -> 0 | AS14: =SUM(AS$15:AS$100000) -> 0 | AU14: =IF(OR(AU13=0,AU13=""),1,IF(COUNTIF(13:13,AU13)=1,0,1)) -> 0 | AW14: =SUM(AW$15:AW$100000) -> 0 | AY14: =IF(OR(AY13=0,AY13=""),1,IF(COUNTIF(13:13,AY13)=1,0,1)) -> 0 | BA14: =SUM(BA$15:BA$100000) -> 0 | BC14: =IF(OR(BC13=0,BC13=""),1,IF(COUNTIF(13:13,BC13)=1,0,1)) -> 0 | BE14: =SUM(BE$15:BE$100000) -> 0 | BG14: =IF(OR(BG13=0,BG13=""),1,IF(COUNTIF(13:13,BG13)=1,0,1)) -> 0 | BI14: =SUM(BI$15:BI$100000) -> 0 | BK14: =IF(OR(BK13=0,BK13=""),1,IF(COUNTIF(13:13,BK13)=1,0,1)) -> 0 | BM14: =SUM(BM$15:BM$100000) -> 0 | BO14: =IF(OR(BO13=0,BO13=""),1,IF(COUNTIF(13:13,BO13)=1,0,1)) -> 0 | BQ14: =SUM(BQ$15:BQ$100000) -> 0 | BS14: =IF(OR(BS13=0,BS13=""),1,IF(COUNTIF(13:13,BS13)=1,0,1)) -> 0 | BU14: =SUM(BU$15:BU$100000) -> 0 | BW14: =IF(OR(BW13=0,BW13=""),1,IF(COUNTIF(13:13,BW13)=1,0,1)) -> 0 | BY14: =SUM(BY$15:BY$100000) -> 0 | CA14: =IF(OR(CA13=0,CA13=""),1,IF(COUNTIF(13:13,CA13)=1,0,1)) -> 0 | CC14: =SUM(CC$15:CC$100000) -> 0 | CE14: =IF(OR(CE13=0,CE13=""),1,IF(COUNTIF(13:13,CE13)=1,0,1)) -> 0 | CG14: =SUM(CG$15:CG$100000) -> 0 | CI14: =IF(OR(CI13=0,CI13=""),1,IF(COUNTIF(13:13,CI13)=1,0,1)) -> 0 | CK14: =SUM(CK$15:CK$100000) -> 0 | CM14: =IF(OR(CM13=0,CM13=""),1,IF(COUNTIF(13:13,CM13)=1,0,1)) -> 0 | CO14: =SUM(CO$15:CO$100000) -> 0 | CQ14: =IF(OR(CQ13=0,CQ13=""),1,IF(COUNTIF(13:13,CQ13)=1,0,1)) -> 0 | CS14: =SUM(CS$15:CS$100000) -> 0 | CU14: =IF(OR(CU13=0,CU13=""),1,IF(COUNTIF(13:13,CU13)=1,0,1)) -> 0 | CW14: =SUM(CW$15:CW$100000) -> 0
A15: =ROW() -> 15 | I15: =$F$11&"!"&I$2&$A16&":"&I$2&($A15+MAX(J$15:J$100000)) -> Lists!I16:I22 | M15: =$F$11&"!"&M$2&$A16&":"&M$2&($A15+MAX(N$15:N$100000)) -> Lists!M16:M17 | Q15: =$F$11&"!"&Q$2&$A16&":"&Q$2&($A15+MAX(R$15:R$100000)) -> Lists!Q16:Q18 | U15: =$F$11&"!"&U$2&$A16&":"&U$2&($A15+MAX(V$15:V$100000)) -> Lists!U16:U18 | AB15: =$F$11&"!"&AB$2&$A16&":"&AB$2&($A15+MAX(AC$15:AC$100000)) -> Lists!AB16:AB17 | AF15: =$F$11&"!"&AF$2&$A16&":"&AF$2&($A15+MAX(AG$15:AG$100000)) -> Lists!AF16:AF22 | AI15: =$F$11&"!"&AI$2&$A16&":"&AI$2&($A15+MAX(AJ$15:AJ$100000)) -> Lists!AI16:AI17 | AM15: =$F$11&"!"&AM$2&$A16&":"&AM$2&($A15+MAX(AN$15:AN$100000)) -> Lists!AM16:AM18 | AQ15: =$F$11&"!"&AQ$2&$A16&":"&AQ$2&($A15+MAX(AR$15:AR$100000)) -> Lists!AQ16:AQ135 | AU15: =$F$11&"!"&AU$2&$A16&":"&AU$2&($A15+MAX(AV$15:AV$100000)) -> Lists!AU16:AU20 | AY15: =$F$11&"!"&AY$2&$A16&":"&AY$2&($A15+MAX(AZ$15:AZ$100000)) -> Lists!AY16:AY19 | BC15: =$F$11&"!"&BC$2&$A16&":"&BC$2&($A15+MAX(BD$15:BD$100000)) -> Lists!BC16:BC17 | BG15: =$F$11&"!"&BG$2&$A16&":"&BG$2&($A15+MAX(BH$15:BH$100000)) -> Lists!BG16:BG17 | BK15: =$F$11&"!"&BK$2&$A16&":"&BK$2&($A15+MAX(BL$15:BL$100000)) -> Lists!BK16:BK18 | BO15: =$F$11&"!"&BO$2&$A16&":"&BO$2&($A15+MAX(BP$15:BP$100000)) -> Lists!BO16:BO18 | BS15: =$F$11&"!"&BS$2&$A16&":"&BS$2&($A15+MAX(BT$15:BT$100000)) -> Lists!BS16:BS18 | BW15: =$F$11&"!"&BW$2&$A16&":"&BW$2&($A15+MAX(BX$15:BX$100000)) -> Lists!BW16:BW18 | CA15: =$F$11&"!"&CA$2&$A16&":"&CA$2&($A15+MAX(CB$15:CB$100000)) -> Lists!CA16:CA25 | CE15: =$F$11&"!"&CE$2&$A16&":"&CE$2&($A15+MAX(CF$15:CF$100000)) -> Lists!CE16:CE18 | CI15: =$F$11&"!"&CI$2&$A16&":"&CI$2&($A15+MAX(CJ$15:CJ$100000)) -> Lists!CI16:CI17 | CM15: =$F$11&"!"&CM$2&$A16&":"&CM$2&($A15+MAX(CN$15:CN$100000)) -> Lists!CM16:CM19 | CQ15: =$F$11&"!"&CQ$2&$A16&":"&CQ$2&($A15+MAX(CR$15:CR$100000)) -> Lists!CQ16:CQ19 | CU15: =$F$11&"!"&CU$2&$A16&":"&CU$2&($A15+MAX(CV$15:CV$100000)) -> Lists!CU16:CU29
A16: =ROW() -> 16 | I16: день | J16: =MAX(J$15:J15)+1 -> 1 | K16: =IF(OR(I16=0,I16=""),0,IF(COUNTIF(I$15:I$100000,I16)=1,0,1)) -> 0 | M16: да | N16: =MAX(N$15:N15)+1 -> 1 | O16: =IF(OR(M16=0,M16=""),0,IF(COUNTIF(M$15:M$100000,M16)=1,0,1)) -> 0 | Q16: =IF(Periods!$Q$16=$I$16,$I17,IF(OR(Periods!$Q$16=$I$17,Periods!$Q$16=$I$18),$I19,IF(Periods!$Q$16=$I$19,$I20,IF(Periods!$Q$16=$I$20,$I21,IF(Periods!$Q$16=$I$21,$I22,""))))) -> квартал | R16: =IF(OR(Q16="",Q16=0),"",MAX(R$15:R15)+1) -> 1 | S16: =IF(OR(Q16=0,Q16=""),0,IF(COUNTIF(Q$15:Q$100000,Q16)=1,0,1)) -> 0 | U16: расчетный | V16: =MAX(V$15:V15)+1 -> 1 | W16: =IF(OR(U16=0,U16=""),0,IF(COUNTIF(U$15:U$100000,U16)=1,0,1)) -> 0 | AB16: линейная | AC16: =MAX(AC$15:AC15)+1 -> 1 | AD16: =IF(OR(AB16=0,AB16=""),0,IF(COUNTIF(AB$15:AB$100000,AB16)=1,0,1)) -> 0 | AF16: 1 | AG16: =MAX(AG$15:AG15)+1 -> 1 | AH16: =MAX(AH$15:AH15)+1 -> 1 | AI16: =IF(SUMIFS(Mrkting!$A:$A,Mrkting!$K:$K,AH16)=0,"",INDEX(Mrkting!$L:$L,SUMIFS(Mrkting!$A:$A,Mrkting!$K:$K,AH16))) -> Формат Standart | AJ16: =IF(OR(AI16="",AI16=0),"",MAX(AJ$15:AJ15)+1) -> 1 | AK16: =IF(OR(AI16=0,AI16=""),0,IF(COUNTIF(AI$15:AI$100000,AI16)=1,0,1)) -> 0 | AL16: * | AM16: Почасовая аренда | AN16: =MAX(AN$15:AN15)+1 -> 1 | AO16: =IF(OR(AM16=0,AM16=""),0,IF(COUNTIF(AM$15:AM$100000,AM16)=1,0,1)) -> 0 | AP16: =MAX(AP$15:AP15)+1 -> 1 | AQ16: =SUMIFS(Periods!$11:$11,Periods!$2:$2,AP16) -> 2021-07-01 | AR16: =IF(OR(AQ16="",AQ16=0),"",MAX(AR$15:AR15)+1) -> 1 | AS16: =IF(OR(AQ16=0,AQ16=""),0,IF(COUNTIF(AQ$15:AQ$100000,AQ16)=1,0,1)) -> 0 | AU16: начисление | AV16: =MAX(AV$15:AV15)+1 -> 1 | AW16: =IF(OR(AU16=0,AU16=""),0,IF(COUNTIF(AU$15:AU$100000,AU16)=1,0,1)) -> 0 | AY16: =Mrkting!$H$19 -> Поток запусков создания коворкингов | AZ16: =MAX(AZ$15:AZ15)+1 -> 1 | BA16: =IF(OR(AY16=0,AY16=""),0,IF(COUNTIF(AY$15:AY$100000,AY16)=1,0,1)) -> 0 | BC16: =Mrkting!$H$104 -> Общий оборот (GMV) | BD16: =MAX(BD$15:BD15)+1 -> 1 | BE16: =IF(OR(BC16=0,BC16=""),0,IF(COUNTIF(BC$15:BC$100000,BC16)=1,0,1)) -> 0 | BG16: натуральные факторы | BH16: =MAX(BH$15:BH15)+1 -> 1 | BI16: =IF(OR(BG16=0,BG16=""),0,IF(COUNTIF(BG$15:BG$100000,BG16)=1,0,1)) -> 0 | BJ16: * | BK16: информирование об услугах | BL16: =MAX(BL$15:BL15)+1 -> 1 | BM16: =IF(OR(BK16=0,BK16=""),0,IF(COUNTIF(BK$15:BK$100000,BK16)=1,0,1)) -> 0 | BN16: * | BO16: Эксплуатация и ремонт | BP16: =MAX(BP$15:BP15)+1 -> 1 | BQ16: =IF(OR(BO16=0,BO16=""),0,IF(COUNTIF(BO$15:BO$100000,BO16)=1,0,1)) -> 0 | BS16: в последний период всех капзатрат | BT16: =MAX(BT$15:BT15)+1 -> 1 | BU16: =IF(OR(BS16=0,BS16=""),0,IF(COUNTIF(BS$15:BS$100000,BS16)=1,0,1)) -> 0 | BW16: земельный налог | BX16: =MAX(BX$15:BX15)+1 -> 1 | BY16: =IF(OR(BW16=0,BW16=""),0,IF(COUNTIF(BW$15:BW$100000,BW16)=1,0,1)) -> 0 | CA16: Сотрудники маркетинга | CB16: =MAX(CB$15:CB15)+1 -> 1 | CC16: =IF(OR(CA16=0,CA16=""),0,IF(COUNTIF(CA$15:CA$100000,CA16)=1,0,1)) -> 0 | CE16: аванс-доплата | CF16: =MAX(CF$15:CF15)+1 -> 1 | CG16: =IF(OR(CE16=0,CE16=""),0,IF(COUNTIF(CE$15:CE$100000,CE16)=1,0,1)) -> 0 | CI16: нужен офис | CJ16: =MAX(CJ$15:CJ15)+1 -> 1 | CK16: =IF(OR(CI16=0,CI16=""),0,IF(COUNTIF(CI$15:CI$100000,CI16)=1,0,1)) -> 0 | CM16: ОСНО | CN16: =MAX(CN$15:CN15)+1 -> 1 | CO16: =IF(OR(CM16=0,CM16=""),0,IF(COUNTIF(CM$15:CM$100000,CM16)=1,0,1)) -> 0 | CQ16: НДС | CR16: =MAX(CR$15:CR15)+1 -> 1 | CS16: =IF(OR(CQ16=0,CQ16=""),0,IF(COUNTIF(CQ$15:CQ$100000,CQ16)=1,0,1)) -> 0 | CU16: ндс(+) | CV16: =MAX(CV$15:CV15)+1 -> 1 | CW16: =IF(OR(CU16=0,CU16=""),0,IF(COUNTIF(CU$15:CU$100000,CU16)=1,0,1)) -> 0
A17: =ROW() -> 17 | I17: неделя | J17: =MAX(J$15:J16)+1 -> 2 | K17: =IF(OR(I17=0,I17=""),0,IF(COUNTIF(I$15:I$100000,I17)=1,0,1)) -> 0 | M17: нет | N17: =MAX(N$15:N16)+1 -> 2 | O17: =IF(OR(M17=0,M17=""),0,IF(COUNTIF(M$15:M$100000,M17)=1,0,1)) -> 0 | Q17: =IF(Periods!$Q$16=$I$16,$I18,IF(OR(Periods!$Q$16=$I$17,Periods!$Q$16=$I$18),$I20,IF(Periods!$Q$16=$I$19,$I21,IF(Periods!$Q$16=$I$20,$I22,IF(Periods!$Q$16=$I$21,$I23,""))))) -> год текущий | R17: =IF(OR(Q17="",Q17=0),"",MAX(R$15:R16)+1) -> 2 | S17: =IF(OR(Q17=0,Q17=""),0,IF(COUNTIF(Q$15:Q$100000,Q17)=1,0,1)) -> 0 | U17: отчетный | V17: =MAX(V$15:V16)+1 -> 2 | W17: =IF(OR(U17=0,U17=""),0,IF(COUNTIF(U$15:U$100000,U17)=1,0,1)) -> 0 | AB17: геометрическая | AC17: =MAX(AC$15:AC16)+1 -> 2 | AD17: =IF(OR(AB17=0,AB17=""),0,IF(COUNTIF(AB$15:AB$100000,AB17)=1,0,1)) -> 0 | AF17: 7 | AG17: =MAX(AG$15:AG16)+1 -> 2 | AH17: =MAX(AH$15:AH16)+1 -> 2 | AI17: =IF(SUMIFS(Mrkting!$A:$A,Mrkting!$K:$K,AH17)=0,"",INDEX(Mrkting!$L:$L,SUMIFS(Mrkting!$A:$A,Mrkting!$K:$K,AH17))) -> Формат Premium | AJ17: =IF(OR(AI17="",AI17=0),"",MAX(AJ$15:AJ16)+1) -> 2 | AK17: =IF(OR(AI17=0,AI17=""),0,IF(COUNTIF(AI$15:AI$100000,AI17)=1,0,1)) -> 0 | AL17: * | AM17: Допуслуги | AN17: =MAX(AN$15:AN16)+1 -> 2 | AO17: =IF(OR(AM17=0,AM17=""),0,IF(COUNTIF(AM$15:AM$100000,AM17)=1,0,1)) -> 0 | AP17: =MAX(AP$15:AP16)+1 -> 2 | AQ17: =SUMIFS(Periods!$11:$11,Periods!$2:$2,AP17) -> 2021-08-01 | AR17: =IF(OR(AQ17="",AQ17=0),"",MAX(AR$15:AR16)+1) -> 2 | AS17: =IF(OR(AQ17=0,AQ17=""),0,IF(COUNTIF(AQ$15:AQ$100000,AQ17)=1,0,1)) -> 0 | AU17: учет | AV17: =MAX(AV$15:AV16)+1 -> 2 | AW17: =IF(OR(AU17=0,AU17=""),0,IF(COUNTIF(AU$15:AU$100000,AU17)=1,0,1)) -> 0 | AY17: =Mrkting!$H$72 -> Трафик | AZ17: =MAX(AZ$15:AZ16)+1 -> 2 | BA17: =IF(OR(AY17=0,AY17=""),0,IF(COUNTIF(AY$15:AY$100000,AY17)=1,0,1)) -> 0 | BC17: =Mrkting!$H$138 -> Общий оборот (GMV) с учетом скидок | BD17: =MAX(BD$15:BD16)+1 -> 2 | BE17: =IF(OR(BC17=0,BC17=""),0,IF(COUNTIF(BC$15:BC$100000,BC17)=1,0,1)) -> 0 | BG17: денежные факторы | BH17: =MAX(BH$15:BH16)+1 -> 2 | BI17: =IF(OR(BG17=0,BG17=""),0,IF(COUNTIF(BG$15:BG$100000,BG17)=1,0,1)) -> 0 | BJ17: * | BK17: информирование о ценах и условиях | BL17: =MAX(BL$15:BL16)+1 -> 2 | BM17: =IF(OR(BK17=0,BK17=""),0,IF(COUNTIF(BK$15:BK$100000,BK17)=1,0,1)) -> 0 | BN17: * | BO17: Обучение и поддержка | BP17: =MAX(BP$15:BP16)+1 -> 2 | BQ17: =IF(OR(BO17=0,BO17=""),0,IF(COUNTIF(BO$15:BO$100000,BO17)=1,0,1)) -> 0 | BS17: в последний период данной статьи | BT17: =MAX(BT$15:BT16)+1 -> 2 | BU17: =IF(OR(BS17=0,BS17=""),0,IF(COUNTIF(BS$15:BS$100000,BS17)=1,0,1)) -> 0 | BW17: транспортный налог | BX17: =MAX(BX$15:BX16)+1 -> 2 | BY17: =IF(OR(BW17=0,BW17=""),0,IF(COUNTIF(BW$15:BW$100000,BW17)=1,0,1)) -> 0 | CA17: Продавцы-консультанты | CB17: =MAX(CB$15:CB16)+1 -> 2 | CC17: =IF(OR(CA17=0,CA17=""),0,IF(COUNTIF(CA$15:CA$100000,CA17)=1,0,1)) -> 0 | CE17: аванс-платеж | CF17: =MAX(CF$15:CF16)+1 -> 2 | CG17: =IF(OR(CE17=0,CE17=""),0,IF(COUNTIF(CE$15:CE$100000,CE17)=1,0,1)) -> 0 | CI17: не нужен офис | CJ17: =MAX(CJ$15:CJ16)+1 -> 2 | CK17: =IF(OR(CI17=0,CI17=""),0,IF(COUNTIF(CI$15:CI$100000,CI17)=1,0,1)) -> 0 | CM17: УСН(6%) | CN17: =MAX(CN$15:CN16)+1 -> 2 | CO17: =IF(OR(CM17=0,CM17=""),0,IF(COUNTIF(CM$15:CM$100000,CM17)=1,0,1)) -> 0 | CQ17: Соцсборы | CR17: =MAX(CR$15:CR16)+1 -> 2 | CS17: =IF(OR(CQ17=0,CQ17=""),0,IF(COUNTIF(CQ$15:CQ$100000,CQ17)=1,0,1)) -> 0 | CU17: ндс(-) | CV17: =MAX(CV$15:CV16)+1 -> 2 | CW17: 0
A18: =ROW() -> 18 | I18: декада | J18: =MAX(J$15:J17)+1 -> 3 | K18: 0 | Q18: =IF(Periods!$Q$16=$I$16,$I19,IF(OR(Periods!$Q$16=$I$17,Periods!$Q$16=$I$18),$I21,IF(Periods!$Q$16=$I$19,$I22,IF(Periods!$Q$16=$I$20,$I23,IF(Periods!$Q$16=$I$21,$I24,""))))) -> год календ. | R18: =IF(OR(Q18="",Q18=0),"",MAX(R$15:R17)+1) -> 3 | S18: 0 | U18: технический | V18: =MAX(V$15:V17)+1 -> 3 | W18: =IF(OR(U18=0,U18=""),0,IF(COUNTIF(U$15:U$100000,U18)=1,0,1)) -> 0 | AF18: 10 | AG18: =MAX(AG$15:AG17)+1 -> 3 | AH18: =MAX(AH$15:AH17)+1 -> 3 | AI18: =IF(SUMIFS(Mrkting!$A:$A,Mrkting!$K:$K,AH18)=0,"",INDEX(Mrkting!$L:$L,SUMIFS(Mrkting!$A:$A,Mrkting!$K:$K,AH18))) ->  | AJ18: =IF(OR(AI18="",AI18=0),"",MAX(AJ$15:AJ17)+1) ->  | AK18: 0 | AL18: * | AM18: Up-Sale | AN18: =MAX(AN$15:AN17)+1 -> 3 | AO18: =IF(OR(AM18=0,AM18=""),0,IF(COUNTIF(AM$15:AM$100000,AM18)=1,0,1)) -> 0 | AP18: =MAX(AP$15:AP17)+1 -> 3 | AQ18: =SUMIFS(Periods!$11:$11,Periods!$2:$2,AP18) -> 2021-09-01 | AR18: =IF(OR(AQ18="",AQ18=0),"",MAX(AR$15:AR17)+1) -> 3 | AS18: 0 | AU18: оплата | AV18: =MAX(AV$15:AV17)+1 -> 3 | AW18: =IF(OR(AU18=0,AU18=""),0,IF(COUNTIF(AU$15:AU$100000,AU18)=1,0,1)) -> 0 | AY18: =Mrkting!$H$74 -> Конверсия в арендатора | AZ18: =MAX(AZ$15:AZ17)+1 -> 3 | BA18: =IF(OR(AY18=0,AY18=""),0,IF(COUNTIF(AY$15:AY$100000,AY18)=1,0,1)) -> 0 | BJ18: * | BK18: представительская деятельность | BL18: =MAX(BL$15:BL17)+1 -> 3 | BM18: =IF(OR(BK18=0,BK18=""),0,IF(COUNTIF(BK$15:BK$100000,BK18)=1,0,1)) -> 0 | BN18: * | BO18: Снабжение сопутствующими товарами | BP18: =MAX(BP$15:BP17)+1 -> 3 | BQ18: =IF(OR(BO18=0,BO18=""),0,IF(COUNTIF(BO$15:BO$100000,BO18)=1,0,1)) -> 0 | BS18: в каждый период начисления | BT18: =MAX(BT$15:BT17)+1 -> 3 | BU18: =IF(OR(BS18=0,BS18=""),0,IF(COUNTIF(BS$15:BS$100000,BS18)=1,0,1)) -> 0 | BW18: налог на имущество организаций | BX18: =MAX(BX$15:BX17)+1 -> 3 | BY18: =IF(OR(BW18=0,BW18=""),0,IF(COUNTIF(BW$15:BW$100000,BW18)=1,0,1)) -> 0 | CA18: Обслуживающий персонал | CB18: =MAX(CB$15:CB17)+1 -> 3 | CC18: =IF(OR(CA18=0,CA18=""),0,IF(COUNTIF(CA$15:CA$100000,CA18)=1,0,1)) -> 0 | CE18: ретро-платеж | CF18: =MAX(CF$15:CF17)+1 -> 3 | CG18: =IF(OR(CE18=0,CE18=""),0,IF(COUNTIF(CE$15:CE$100000,CE18)=1,0,1)) -> 0 | CM18: УСН(15%) | CN18: =MAX(CN$15:CN17)+1 -> 3 | CO18: =IF(OR(CM18=0,CM18=""),0,IF(COUNTIF(CM$15:CM$100000,CM18)=1,0,1)) -> 0 | CQ18: Налог на прибыль | CR18: =MAX(CR$15:CR17)+1 -> 3 | CS18: =IF(OR(CQ18=0,CQ18=""),0,IF(COUNTIF(CQ$15:CQ$100000,CQ18)=1,0,1)) -> 0 | CU18: PL(+) | CV18: =MAX(CV$15:CV17)+1 -> 3 | CW18: 0
A19: =ROW() -> 19 | I19: месяц | J19: =MAX(J$15:J18)+1 -> 4 | K19: 0 | Q19: =IF(Periods!$Q$16=$I$16,$I20,IF(OR(Periods!$Q$16=$I$17,Periods!$Q$16=$I$18),$I22,IF(Periods!$Q$16=$I$19,$I23,IF(Periods!$Q$16=$I$20,$I24,IF(Periods!$Q$16=$I$21,$I25,""))))) -> 0 | R19: =IF(OR(Q19="",Q19=0),"",MAX(R$15:R18)+1) ->  | S19: 0 | AF19: 30 | AG19: =MAX(AG$15:AG18)+1 -> 4 | AH19: =MAX(AH$15:AH18)+1 -> 4 | AI19: =IF(SUMIFS(Mrkting!$A:$A,Mrkting!$K:$K,AH19)=0,"",INDEX(Mrkting!$L:$L,SUMIFS(Mrkting!$A:$A,Mrkting!$K:$K,AH19))) ->  | AJ19: =IF(OR(AI19="",AI19=0),"",MAX(AJ$15:AJ18)+1) ->  | AK19: 0 | AP19: =MAX(AP$15:AP18)+1 -> 4 | AQ19: =SUMIFS(Periods!$11:$11,Periods!$2:$2,AP19) -> 2021-10-01 | AR19: =IF(OR(AQ19="",AQ19=0),"",MAX(AR$15:AR18)+1) -> 4 | AS19: 0 | AU19: списание | AV19: =MAX(AV$15:AV18)+1 -> 4 | AW19: =IF(OR(AU19=0,AU19=""),0,IF(COUNTIF(AU$15:AU$100000,AU19)=1,0,1)) -> 0 | AY19: =Mrkting!$H$83 -> Валовый поток арендаторов | AZ19: =MAX(AZ$15:AZ18)+1 -> 4 | BA19: =IF(OR(AY19=0,AY19=""),0,IF(COUNTIF(AY$15:AY$100000,AY19)=1,0,1)) -> 0 | BZ19: * | CA19: Генеральный директор | CB19: =MAX(CB$15:CB18)+1 -> 4 | CC19: =IF(OR(CA19=0,CA19=""),0,IF(COUNTIF(CA$15:CA$100000,CA19)=1,0,1)) -> 0 | CM19: ТОСЭР | CN19: =MAX(CN$15:CN18)+1 -> 4 | CO19: =IF(OR(CM19=0,CM19=""),0,IF(COUNTIF(CM$15:CM$100000,CM19)=1,0,1)) -> 0 | CQ19: ТОСЭР | CR19: =MAX(CR$15:CR18)+1 -> 4 | CS19: =IF(OR(CQ19=0,CQ19=""),0,IF(COUNTIF(CQ$15:CQ$100000,CQ19)=1,0,1)) -> 0 | CU19: PL(-) | CV19: =MAX(CV$15:CV18)+1 -> 4 | CW19: 0
A20: =ROW() -> 20 | I20: квартал | J20: =MAX(J$15:J19)+1 -> 5 | K20: 0 | Q20: =IF(Periods!$Q$16=$I$16,$I21,IF(OR(Periods!$Q$16=$I$17,Periods!$Q$16=$I$18),$I23,IF(Periods!$Q$16=$I$19,$I24,IF(Periods!$Q$16=$I$20,$I25,IF(Periods!$Q$16=$I$21,$I26,""))))) -> 0 | R20: =IF(OR(Q20="",Q20=0),"",MAX(R$15:R19)+1) ->  | S20: 0 | AF20: 90 | AG20: =MAX(AG$15:AG19)+1 -> 5 | AH20: =MAX(AH$15:AH19)+1 -> 5 | AI20: =IF(SUMIFS(Mrkting!$A:$A,Mrkting!$K:$K,AH20)=0,"",INDEX(Mrkting!$L:$L,SUMIFS(Mrkting!$A:$A,Mrkting!$K:$K,AH20))) ->  | AJ20: =IF(OR(AI20="",AI20=0),"",MAX(AJ$15:AJ19)+1) ->  | AK20: 0 | AP20: =MAX(AP$15:AP19)+1 -> 5 | AQ20: =SUMIFS(Periods!$11:$11,Periods!$2:$2,AP20) -> 2021-11-01 | AR20: =IF(OR(AQ20="",AQ20=0),"",MAX(AR$15:AR19)+1) -> 5 | AS20: 0 | AU20: калькуляция | AV20: =MAX(AV$15:AV19)+1 -> 5 | AW20: =IF(OR(AU20=0,AU20=""),0,IF(COUNTIF(AU$15:AU$100000,AU20)=1,0,1)) -> 0 | BZ20: * | CA20: Операционный директор | CB20: =MAX(CB$15:CB19)+1 -> 5 | CC20: 0 | CU20: PL | CV20: =MAX(CV$15:CV19)+1 -> 5 | CW20: 0
A21: =ROW() -> 21 | I21: год текущий | J21: =MAX(J$15:J20)+1 -> 6 | K21: 0 | Q21: =IF(Periods!$Q$16=$I$16,$I22,IF(OR(Periods!$Q$16=$I$17,Periods!$Q$16=$I$18),$I24,IF(Periods!$Q$16=$I$19,$I25,IF(Periods!$Q$16=$I$20,$I26,IF(Periods!$Q$16=$I$21,$I27,""))))) -> 0 | R21: =IF(OR(Q21="",Q21=0),"",MAX(R$15:R20)+1) ->  | S21: 0 | AF21: 360 | AG21: =MAX(AG$15:AG20)+1 -> 6 | AH21: =MAX(AH$15:AH20)+1 -> 6 | AI21: =IF(SUMIFS(Mrkting!$A:$A,Mrkting!$K:$K,AH21)=0,"",INDEX(Mrkting!$L:$L,SUMIFS(Mrkting!$A:$A,Mrkting!$K:$K,AH21))) ->  | AJ21: =IF(OR(AI21="",AI21=0),"",MAX(AJ$15:AJ20)+1) ->  | AK21: 0 | AP21: =MAX(AP$15:AP20)+1 -> 6 | AQ21: =SUMIFS(Periods!$11:$11,Periods!$2:$2,AP21) -> 2021-12-01 | AR21: =IF(OR(AQ21="",AQ21=0),"",MAX(AR$15:AR20)+1) -> 6 | AS21: 0 | BZ21: * | CA21: Главный бухгалтер | CB21: =MAX(CB$15:CB20)+1 -> 6 | CC21: 0 | CU21: CF(+) | CV21: =MAX(CV$15:CV20)+1 -> 6 | CW21: 0
A22: =ROW() -> 22 | I22: год календ. | J22: =MAX(J$15:J21)+1 -> 7 | K22: 0 | Q22: =IF(Periods!$Q$16=$I$16,$I23,IF(OR(Periods!$Q$16=$I$17,Periods!$Q$16=$I$18),$I25,IF(Periods!$Q$16=$I$19,$I26,IF(Periods!$Q$16=$I$20,$I27,IF(Periods!$Q$16=$I$21,$I28,""))))) -> 0 | R22: =IF(OR(Q22="",Q22=0),"",MAX(R$15:R21)+1) ->  | S22: 0 | AF22: 360 | AG22: =MAX(AG$15:AG21)+1 -> 7 | AH22: =MAX(AH$15:AH21)+1 -> 7 | AI22: =IF(SUMIFS(Mrkting!$A:$A,Mrkting!$K:$K,AH22)=0,"",INDEX(Mrkting!$L:$L,SUMIFS(Mrkting!$A:$A,Mrkting!$K:$K,AH22))) ->  | AJ22: =IF(OR(AI22="",AI22=0),"",MAX(AJ$15:AJ21)+1) ->  | AK22: 0 | AP22: =MAX(AP$15:AP21)+1 -> 7 | AQ22: =SUMIFS(Periods!$11:$11,Periods!$2:$2,AP22) -> 2022-01-01 | AR22: =IF(OR(AQ22="",AQ22=0),"",MAX(AR$15:AR21)+1) -> 7 | AS22: 0 | BZ22: * | CA22: ИТ-специалисты | CB22: =MAX(CB$15:CB21)+1 -> 7 | CC22: 0 | CU22: CF(-) | CV22: =MAX(CV$15:CV21)+1 -> 7 | CW22: 0
A23: =ROW() -> 23 | AH23: =MAX(AH$15:AH22)+1 -> 8 | AI23: =IF(SUMIFS(Mrkting!$A:$A,Mrkting!$K:$K,AH23)=0,"",INDEX(Mrkting!$L:$L,SUMIFS(Mrkting!$A:$A,Mrkting!$K:$K,AH23))) ->  | AJ23: =IF(OR(AI23="",AI23=0),"",MAX(AJ$15:AJ22)+1) ->  | AK23: =IF(OR(AI23=0,AI23=""),0,IF(COUNTIF(AI$15:AI$100000,AI23)=1,0,1)) -> 0 | AP23: =MAX(AP$15:AP22)+1 -> 8 | AQ23: =SUMIFS(Periods!$11:$11,Periods!$2:$2,AP23) -> 2022-02-01 | AR23: =IF(OR(AQ23="",AQ23=0),"",MAX(AR$15:AR22)+1) -> 8 | AS23: =IF(OR(AQ23=0,AQ23=""),0,IF(COUNTIF(AQ$15:AQ$100000,AQ23)=1,0,1)) -> 0 | BZ23: * | CA23: Финансовые менеджеры | CB23: =MAX(CB$15:CB22)+1 -> 8 | CC23: 0 | CU23: CF | CV23: =MAX(CV$15:CV22)+1 -> 8 | CW23: 0
A24: =ROW() -> 24 | AH24: =MAX(AH$15:AH23)+1 -> 9 | AI24: =IF(SUMIFS(Mrkting!$A:$A,Mrkting!$K:$K,AH24)=0,"",INDEX(Mrkting!$L:$L,SUMIFS(Mrkting!$A:$A,Mrkting!$K:$K,AH24))) ->  | AJ24: =IF(OR(AI24="",AI24=0),"",MAX(AJ$15:AJ23)+1) ->  | AK24: 0 | AP24: =MAX(AP$15:AP23)+1 -> 9 | AQ24: =SUMIFS(Periods!$11:$11,Periods!$2:$2,AP24) -> 2022-03-01 | AR24: =IF(OR(AQ24="",AQ24=0),"",MAX(AR$15:AR23)+1) -> 9 | AS24: 0 | BZ24: * | CA24: Бухгалтера | CB24: =MAX(CB$15:CB23)+1 -> 9 | CC24: 0 | CU24: BS | CV24: =MAX(CV$15:CV23)+1 -> 9 | CW24: 0
A25: =ROW() -> 25 | AH25: =MAX(AH$15:AH24)+1 -> 10 | AI25: =IF(SUMIFS(Mrkting!$A:$A,Mrkting!$K:$K,AH25)=0,"",INDEX(Mrkting!$L:$L,SUMIFS(Mrkting!$A:$A,Mrkting!$K:$K,AH25))) ->  | AJ25: =IF(OR(AI25="",AI25=0),"",MAX(AJ$15:AJ24)+1) ->  | AK25: 0 | AP25: =MAX(AP$15:AP24)+1 -> 10 | AQ25: =SUMIFS(Periods!$11:$11,Periods!$2:$2,AP25) -> 2022-04-01 | AR25: =IF(OR(AQ25="",AQ25=0),"",MAX(AR$15:AR24)+1) -> 10 | AS25: 0 | BZ25: * | CA25: Прочие сотрудники | CB25: =MAX(CB$15:CB24)+1 -> 10 | CC25: 0 | CU25: BS(+) | CV25: =MAX(CV$15:CV24)+1 -> 10 | CW25: 0
A26: =ROW() -> 26 | AH26: =MAX(AH$15:AH25)+1 -> 11 | AI26: =IF(SUMIFS(Mrkting!$A:$A,Mrkting!$K:$K,AH26)=0,"",INDEX(Mrkting!$L:$L,SUMIFS(Mrkting!$A:$A,Mrkting!$K:$K,AH26))) ->  | AJ26: =IF(OR(AI26="",AI26=0),"",MAX(AJ$15:AJ25)+1) ->  | AK26: 0 | AP26: =MAX(AP$15:AP25)+1 -> 11 | AQ26: =SUMIFS(Periods!$11:$11,Periods!$2:$2,AP26) -> 2022-05-01 | AR26: =IF(OR(AQ26="",AQ26=0),"",MAX(AR$15:AR25)+1) -> 11 | AS26: 0 | CU26: BS(-) | CV26: =MAX(CV$15:CV25)+1 -> 11 | CW26: 0
A27: =ROW() -> 27 | AH27: =MAX(AH$15:AH26)+1 -> 12 | AI27: =IF(SUMIFS(Mrkting!$A:$A,Mrkting!$K:$K,AH27)=0,"",INDEX(Mrkting!$L:$L,SUMIFS(Mrkting!$A:$A,Mrkting!$K:$K,AH27))) ->  | AJ27: =IF(OR(AI27="",AI27=0),"",MAX(AJ$15:AJ26)+1) ->  | AK27: 0 | AP27: =MAX(AP$15:AP26)+1 -> 12 | AQ27: =SUMIFS(Periods!$11:$11,Periods!$2:$2,AP27) -> 2022-06-01 | AR27: =IF(OR(AQ27="",AQ27=0),"",MAX(AR$15:AR26)+1) -> 12 | AS27: 0 | CU27: SF(+) | CV27: =MAX(CV$15:CV26)+1 -> 12 | CW27: 0
A28: =ROW() -> 28 | AH28: =MAX(AH$15:AH27)+1 -> 13 | AI28: =IF(SUMIFS(Mrkting!$A:$A,Mrkting!$K:$K,AH28)=0,"",INDEX(Mrkting!$L:$L,SUMIFS(Mrkting!$A:$A,Mrkting!$K:$K,AH28))) ->  | AJ28: =IF(OR(AI28="",AI28=0),"",MAX(AJ$15:AJ27)+1) ->  | AK28: 0 | AP28: =MAX(AP$15:AP27)+1 -> 13 | AQ28: =SUMIFS(Periods!$11:$11,Periods!$2:$2,AP28) -> 2022-07-01 | AR28: =IF(OR(AQ28="",AQ28=0),"",MAX(AR$15:AR27)+1) -> 13 | AS28: 0 | CU28: SF(-) | CV28: =MAX(CV$15:CV27)+1 -> 13 | CW28: 0
A29: =ROW() -> 29 | AH29: =MAX(AH$15:AH28)+1 -> 14 | AI29: =IF(SUMIFS(Mrkting!$A:$A,Mrkting!$K:$K,AH29)=0,"",INDEX(Mrkting!$L:$L,SUMIFS(Mrkting!$A:$A,Mrkting!$K:$K,AH29))) ->  | AJ29: =IF(OR(AI29="",AI29=0),"",MAX(AJ$15:AJ28)+1) ->  | AK29: =IF(OR(AI29=0,AI29=""),0,IF(COUNTIF(AI$15:AI$100000,AI29)=1,0,1)) -> 0 | AP29: =MAX(AP$15:AP28)+1 -> 14 | AQ29: =SUMIFS(Periods!$11:$11,Periods!$2:$2,AP29) -> 2022-08-01 | AR29: =IF(OR(AQ29="",AQ29=0),"",MAX(AR$15:AR28)+1) -> 14 | AS29: 0 | CU29: SF | CV29: =MAX(CV$15:CV28)+1 -> 14 | CW29: 0
A30: =ROW() -> 30 | AH30: =MAX(AH$15:AH29)+1 -> 15 | AI30: =IF(SUMIFS(Mrkting!$A:$A,Mrkting!$K:$K,AH30)=0,"",INDEX(Mrkting!$L:$L,SUMIFS(Mrkting!$A:$A,Mrkting!$K:$K,AH30))) ->  | AJ30: =IF(OR(AI30="",AI30=0),"",MAX(AJ$15:AJ29)+1) ->  | AK30: =IF(OR(AI30=0,AI30=""),0,IF(COUNTIF(AI$15:AI$100000,AI30)=1,0,1)) -> 0 | AP30: =MAX(AP$15:AP29)+1 -> 15 | AQ30: =SUMIFS(Periods!$11:$11,Periods!$2:$2,AP30) -> 2022-09-01 | AR30: =IF(OR(AQ30="",AQ30=0),"",MAX(AR$15:AR29)+1) -> 15 | AS30: 0
A31: =ROW() -> 31 | AP31: =MAX(AP$15:AP30)+1 -> 16 | AQ31: =SUMIFS(Periods!$11:$11,Periods!$2:$2,AP31) -> 2022-10-01 | AR31: =IF(OR(AQ31="",AQ31=0),"",MAX(AR$15:AR30)+1) -> 16 | AS31: =IF(OR(AQ31=0,AQ31=""),0,IF(COUNTIF(AQ$15:AQ$100000,AQ31)=1,0,1)) -> 0
... 38 more rows

Sheet Macro
Y1: =START!$K$130 -> номер столбца: | AA1: =COLUMN() -> 27 | AB1: =COLUMN() -> 28 | AC1: =COLUMN() -> 29 | AD1: =COLUMN() -> 30 | AE1: =COLUMN() -> 31 | AF1: =COLUMN() -> 32 | AG1: =COLUMN() -> 33 | AH1: =COLUMN() -> 34 | AI1: =COLUMN() -> 35 | AJ1: =COLUMN() -> 36 | AK1: =COLUMN() -> 37 | AL1: =COLUMN() -> 38 | AM1: =COLUMN() -> 39 | AN1: =COLUMN() -> 40 | AO1: =COLUMN() -> 41 | AP1: =COLUMN() -> 42 | AQ1: =COLUMN() -> 43 | AR1: =COLUMN() -> 44 | AS1: =COLUMN() -> 45 | AT1: =COLUMN() -> 46 | AU1: =COLUMN() -> 47 | AV1: =COLUMN() -> 48 | AW1: =COLUMN() -> 49 | AX1: =COLUMN() -> 50 | AY1: =COLUMN() -> 51 | AZ1: =COLUMN() -> 52 | BA1: =COLUMN() -> 53 | BB1: =COLUMN() -> 54 | BC1: =COLUMN() -> 55 | BD1: =COLUMN() -> 56 | BE1: =COLUMN() -> 57 | BF1: =COLUMN() -> 58 | BG1: =COLUMN() -> 59 | BH1: =COLUMN() -> 60 | BI1: =COLUMN() -> 61 | BJ1: =COLUMN() -> 62 | BK1: =COLUMN() -> 63 | BL1: =COLUMN() -> 64 | BM1: =COLUMN() -> 65 | BN1: =COLUMN() -> 66 | BO1: =COLUMN() -> 67 | BP1: =COLUMN() -> 68 | BQ1: =COLUMN() -> 69 | BR1: =COLUMN() -> 70 | BS1: =COLUMN() -> 71 | BT1: =COLUMN() -> 72 | BU1: =COLUMN() -> 73 | BV1: =COLUMN() -> 74 | BW1: =COLUMN() -> 75 | BX1: =COLUMN() -> 76 | BY1: =COLUMN() -> 77 | BZ1: =COLUMN() -> 78 | CA1: =COLUMN() -> 79 | CB1: =COLUMN() -> 80 | CC1: =COLUMN() -> 81 | CD1: =COLUMN() -> 82 | CE1: =COLUMN() -> 83 | CF1: =COLUMN() -> 84 | CG1: =COLUMN() -> 85 | CH1: =COLUMN() -> 86 | CI1: =COLUMN() -> 87 | CJ1: =COLUMN() -> 88 | CK1: =COLUMN() -> 89 | CL1: =COLUMN() -> 90 | CM1: =COLUMN() -> 91 | CN1: =COLUMN() -> 92 | CO1: =COLUMN() -> 93 | CP1: =COLUMN() -> 94 | CQ1: =COLUMN() -> 95 | CR1: =COLUMN() -> 96 | CS1: =COLUMN() -> 97 | CT1: =COLUMN() -> 98 | CU1: =COLUMN() -> 99 | CV1: =COLUMN() -> 100 | CW1: =COLUMN() -> 101 | CX1: =COLUMN() -> 102 | CY1: =COLUMN() -> 103 | CZ1: =COLUMN() -> 104 | DA1: =COLUMN() -> 105 | DB1: =COLUMN() -> 106 | DC1: =COLUMN() -> 107 | DD1: =COLUMN() -> 108 | DE1: =COLUMN() -> 109 | DF1: =COLUMN() -> 110 | DG1: =COLUMN() -> 111 | DH1: =COLUMN() -> 112 | DI1: =COLUMN() -> 113 | DJ1: =COLUMN() -> 114 | DK1: =COLUMN() -> 115 | DL1: =COLUMN() -> 116 | DM1: =COLUMN() -> 117 | DN1: =COLUMN() -> 118 | DO1: =COLUMN() -> 119 | DP1: =COLUMN() -> 120 | DQ1: =COLUMN() -> 121 | DR1: =COLUMN() -> 122 | DS1: =COLUMN() -> 123 | DT1: =COLUMN() -> 124 | DU1: =COLUMN() -> 125 | DV1: =COLUMN() -> 126 | DW1: =COLUMN() -> 127 | DX1: =COLUMN() -> 128 | DY1: =COLUMN() -> 129 | DZ1: =COLUMN() -> 130 | EA1: =COLUMN() -> 131 | EB1: =COLUMN() -> 132 | EC1: =COLUMN() -> 133 | ED1: =COLUMN() -> 134 | EE1: =COLUMN() -> 135 | EF1: =COLUMN() -> 136 | EG1: =COLUMN() -> 137 | EH1: =COLUMN() -> 138 | EI1: =COLUMN() -> 139 | EJ1: =COLUMN() -> 140 | EK1: =COLUMN() -> 141 | EL1: =COLUMN() -> 142 | EM1: =COLUMN() -> 143 | EN1: =COLUMN() -> 144 | EO1: =COLUMN() -> 145 | EP1: =COLUMN() -> 146 | EQ1: =COLUMN() -> 147 | ER1: =COLUMN() -> 148 | ES1: =COLUMN() -> 149 | ET1: =COLUMN() -> 150 | EU1: =COLUMN() -> 151 | EV1: =COLUMN() -> 152 | EW1: =COLUMN() -> 153 | EX1: =COLUMN() -> 154 | EY1: =COLUMN() -> 155 | EZ1: =COLUMN() -> 156 | FA1: =COLUMN() -> 157 | FB1: =COLUMN() -> 158 | FC1: =COLUMN() -> 159
Y2: =START!$K$131 -> номер периода модели: | AA2: =MAX($Z2:Z2)+1 -> 1 | AB2: =MAX($Z2:AA2)+1 -> 2 | AC2: =MAX($Z2:AB2)+1 -> 3 | AD2: =MAX($Z2:AC2)+1 -> 4 | AE2: =MAX($Z2:AD2)+1 -> 5 | AF2: =MAX($Z2:AE2)+1 -> 6 | AG2: =MAX($Z2:AF2)+1 -> 7 | AH2: =MAX($Z2:AG2)+1 -> 8 | AI2: =MAX($Z2:AH2)+1 -> 9 | AJ2: =MAX($Z2:AI2)+1 -> 10 | AK2: =MAX($Z2:AJ2)+1 -> 11 | AL2: =MAX($Z2:AK2)+1 -> 12 | AM2: =MAX($Z2:AL2)+1 -> 13 | AN2: =MAX($Z2:AM2)+1 -> 14 | AO2: =MAX($Z2:AN2)+1 -> 15 | AP2: =MAX($Z2:AO2)+1 -> 16 | AQ2: =MAX($Z2:AP2)+1 -> 17 | AR2: =MAX($Z2:AQ2)+1 -> 18 | AS2: =MAX($Z2:AR2)+1 -> 19 | AT2: =MAX($Z2:AS2)+1 -> 20 | AU2: =MAX($Z2:AT2)+1 -> 21 | AV2: =MAX($Z2:AU2)+1 -> 22 | AW2: =MAX($Z2:AV2)+1 -> 23 | AX2: =MAX($Z2:AW2)+1 -> 24 | AY2: =MAX($Z2:AX2)+1 -> 25 | AZ2: =MAX($Z2:AY2)+1 -> 26 | BA2: =MAX($Z2:AZ2)+1 -> 27 | BB2: =MAX($Z2:BA2)+1 -> 28 | BC2: =MAX($Z2:BB2)+1 -> 29 | BD2: =MAX($Z2:BC2)+1 -> 30 | BE2: =MAX($Z2:BD2)+1 -> 31 | BF2: =MAX($Z2:BE2)+1 -> 32 | BG2: =MAX($Z2:BF2)+1 -> 33 | BH2: =MAX($Z2:BG2)+1 -> 34 | BI2: =MAX($Z2:BH2)+1 -> 35 | BJ2: =MAX($Z2:BI2)+1 -> 36 | BK2: =MAX($Z2:BJ2)+1 -> 37 | BL2: =MAX($Z2:BK2)+1 -> 38 | BM2: =MAX($Z2:BL2)+1 -> 39 | BN2: =MAX($Z2:BM2)+1 -> 40 | BO2: =MAX($Z2:BN2)+1 -> 41 | BP2: =MAX($Z2:BO2)+1 -> 42 | BQ2: =MAX($Z2:BP2)+1 -> 43 | BR2: =MAX($Z2:BQ2)+1 -> 44 | BS2: =MAX($Z2:BR2)+1 -> 45 | BT2: =MAX($Z2:BS2)+1 -> 46 | BU2: =MAX($Z2:BT2)+1 -> 47 | BV2: =MAX($Z2:BU2)+1 -> 48 | BW2: =MAX($Z2:BV2)+1 -> 49 | BX2: =MAX($Z2:BW2)+1 -> 50 | BY2: =MAX($Z2:BX2)+1 -> 51 | BZ2: =MAX($Z2:BY2)+1 -> 52 | CA2: =MAX($Z2:BZ2)+1 -> 53 | CB2: =MAX($Z2:CA2)+1 -> 54 | CC2: =MAX($Z2:CB2)+1 -> 55 | CD2: =MAX($Z2:CC2)+1 -> 56 | CE2: =MAX($Z2:CD2)+1 -> 57 | CF2: =MAX($Z2:CE2)+1 -> 58 | CG2: =MAX($Z2:CF2)+1 -> 59 | CH2: =MAX($Z2:CG2)+1 -> 60 | CI2: =MAX($Z2:CH2)+1 -> 61 | CJ2: =MAX($Z2:CI2)+1 -> 62 | CK2: =MAX($Z2:CJ2)+1 -> 63 | CL2: =MAX($Z2:CK2)+1 -> 64 | CM2: =MAX($Z2:CL2)+1 -> 65 | CN2: =MAX($Z2:CM2)+1 -> 66 | CO2: =MAX($Z2:CN2)+1 -> 67 | CP2: =MAX($Z2:CO2)+1 -> 68 | CQ2: =MAX($Z2:CP2)+1 -> 69 | CR2: =MAX($Z2:CQ2)+1 -> 70 | CS2: =MAX($Z2:CR2)+1 -> 71 | CT2: =MAX($Z2:CS2)+1 -> 72 | CU2: =MAX($Z2:CT2)+1 -> 73 | CV2: =MAX($Z2:CU2)+1 -> 74 | CW2: =MAX($Z2:CV2)+1 -> 75 | CX2: =MAX($Z2:CW2)+1 -> 76 | CY2: =MAX($Z2:CX2)+1 -> 77 | CZ2: =MAX($Z2:CY2)+1 -> 78 | DA2: =MAX($Z2:CZ2)+1 -> 79 | DB2: =MAX($Z2:DA2)+1 -> 80 | DC2: =MAX($Z2:DB2)+1 -> 81 | DD2: =MAX($Z2:DC2)+1 -> 82 | DE2: =MAX($Z2:DD2)+1 -> 83 | DF2: =MAX($Z2:DE2)+1 -> 84 | DG2: =MAX($Z2:DF2)+1 -> 85 | DH2: =MAX($Z2:DG2)+1 -> 86 | DI2: =MAX($Z2:DH2)+1 -> 87 | DJ2: =MAX($Z2:DI2)+1 -> 88 | DK2: =MAX($Z2:DJ2)+1 -> 89 | DL2: =MAX($Z2:DK2)+1 -> 90 | DM2: =MAX($Z2:DL2)+1 -> 91 | DN2: =MAX($Z2:DM2)+1 -> 92 | DO2: =MAX($Z2:DN2)+1 -> 93 | DP2: =MAX($Z2:DO2)+1 -> 94 | DQ2: =MAX($Z2:DP2)+1 -> 95 | DR2: =MAX($Z2:DQ2)+1 -> 96 | DS2: =MAX($Z2:DR2)+1 -> 97 | DT2: =MAX($Z2:DS2)+1 -> 98 | DU2: =MAX($Z2:DT2)+1 -> 99 | DV2: =MAX($Z2:DU2)+1 -> 100 | DW2: =MAX($Z2:DV2)+1 -> 101 | DX2: =MAX($Z2:DW2)+1 -> 102 | DY2: =MAX($Z2:DX2)+1 -> 103 | DZ2: =MAX($Z2:DY2)+1 -> 104 | EA2: =MAX($Z2:DZ2)+1 -> 105 | EB2: =MAX($Z2:EA2)+1 -> 106 | EC2: =MAX($Z2:EB2)+1 -> 107 | ED2: =MAX($Z2:EC2)+1 -> 108 | EE2: =MAX($Z2:ED2)+1 -> 109 | EF2: =MAX($Z2:EE2)+1 -> 110 | EG2: =MAX($Z2:EF2)+1 -> 111 | EH2: =MAX($Z2:EG2)+1 -> 112 | EI2: =MAX($Z2:EH2)+1 -> 113 | EJ2: =MAX($Z2:EI2)+1 -> 114 | EK2: =MAX($Z2:EJ2)+1 -> 115 | EL2: =MAX($Z2:EK2)+1 -> 116 | EM2: =MAX($Z2:EL2)+1 -> 117 | EN2: =MAX($Z2:EM2)+1 -> 118 | EO2: =MAX($Z2:EN2)+1 -> 119 | EP2: =MAX($Z2:EO2)+1 -> 120 | EQ2: =MAX($Z2:EP2)+1 -> 121 | ER2: =MAX($Z2:EQ2)+1 -> 122 | ES2: =MAX($Z2:ER2)+1 -> 123 | ET2: =MAX($Z2:ES2)+1 -> 124 | EU2: =MAX($Z2:ET2)+1 -> 125 | EV2: =MAX($Z2:EU2)+1 -> 126 | EW2: =MAX($Z2:EV2)+1 -> 127 | EX2: =MAX($Z2:EW2)+1 -> 128 | EY2: =MAX($Z2:EX2)+1 -> 129 | EZ2: =MAX($Z2:EY2)+1 -> 130 | FA2: =MAX($Z2:EZ2)+1 -> 131 | FB2: =MAX($Z2:FA2)+1 -> 132 | FC2: =MAX($Z2:FB2)+1 -> 133
